{"text_format":"1","workbook":"xlsx","n_sheets":20,"sheets":["Rozpočet B1 - Value for Money","Individuálny hárok","MU Budova 1","Kontrola energetických tried","Rozpočet B2","Rozpočet B3","Rozpočet B4","Rozpočet B5","Rozpočet B6","Rozpočet B7","Sumárny prehľad MU","MU Budova 2","MU Budova 3","MU Budova 4","MU Budova 5","MU Budova 6","MU Budova 7","Inštrukcia prepočtu PM10","Číselníky (2)","Číselníky"],"not_rendered":{"charts":0,"images":8,"macros":1,"external_links":4,"defined_names":845,"comments":14,"pivot_tables":0},"unopened":[],"bounds":{"document_bytes":16777216,"sheet_cells":100000,"rows_first":2000,"rows_last":500,"rows_between":2000,"halvings":0,"cell_chars":16384,"cell_head_chars":4096},"cells_cut":0,"cells_raw":0,"read":"whole","date_system":"1900"}

{"sheet":"Rozpočet B1 - Value for Money","index":0,"n_rows":190,"n_cols":17,"rows_kept":190,"cut":false,"hidden":false,"merged":[[11,7,11,14],[182,8,184,8],[189,0,190,14],[14,0,14,1],[163,0,163,4],[164,0,164,4],[183,0,183,1],[183,2,183,4],[30,0,30,4],[51,0,51,14],[52,1,52,14],[80,1,80,14],[182,0,182,4],[78,0,78,4],[182,12,184,13],[185,12,187,13],[1,0,1,14],[8,1,8,14],[9,1,9,14],[6,0,6,5],[6,6,6,14],[5,0,5,14],[185,14,187,14],[55,0,55,1],[35,0,35,1],[50,0,50,4],[174,0,174,14],[182,6,184,6],[182,7,184,7],[182,14,184,14],[178,0,178,14],[180,0,180,14],[79,0,79,14],[165,0,165,6],[184,0,184,1],[184,2,184,4],[10,12,10,13],[185,0,185,1],[81,0,81,14],[185,2,185,4],[167,10,168,13],[10,3,10,4],[11,3,11,4],[10,8,10,9],[182,9,184,9],[169,0,169,7],[170,0,170,14],[171,0,171,14],[172,0,172,14],[173,0,173,14],[31,0,31,14],[32,1,32,14]]}
[]
["Príloha ZoNFP č. 3 - Rozpočet projektu"]
[]
[]
[]
[{"$f":"IF(ISERROR(MacrosEnabled()&NOW()),\"Makrá sú vypnuté. Pre vypracovanie hárku ich, prosím, dočasne zapnite.\",\"\")","v":""}]
["Rozpočet  -  Budova č. 1",null,null,null,null,null,{"$f":"IF(G12=\"\",\"\",\" -  súpis. č. \"&G12)","v":" -  súpis. č. 68"}]
[]
["Názov žiadateľa:","Obec Podhorany"]
["Názov projektu:","Stavebné úpravy ZŠ Podhorany Zníženie spotreby energie pri prevádzke "]
["Je žiadateľ platcom DPH v rozsahu aktivity?","nie",null,"Katastrálne územie",null,"LV číslo","Súpisné číslo",null,"Právny vzťah ",null,null,null,null,null,"výlučné vlastníctvo budovy žiadateľom"]
["Počet samostatných budov v ŽoNFP?",1,null,"Podhorany",null,1,68,{"$f":"IF(O11=Číselníky!G13,\"Predložte súhlas všetkých podielových spoluvlastníkov stavby\",IF(O11=Číselníky!G14,\"Predložte doklad oprávnujúci k výkonu správy budovy\",\"\"))","v":""}]
[]
["Zateplenie obvodového plášťa"]
["Cieľová hodnota zateplenej plochy obvodového plášťa v m2",null,690.96," m2"]
["Názov výdavku","Skupina výdavkov  ","Merná\njednotka","Počet \njednotiek","Jednotková cena\nbez DPH [EUR]","Cena celkom \nbez DPH [EUR]","Cena celkom \ns DPH [EUR]","Celkový \nvýdavok","Výdavok nad \nreferenčnú hodnotu","Výdavok \npri neakceptovaní \nprekročenia ref.\nhodnôt","Schválenie /\nneschválenie \nprekročenia ref.\nhodnôt","Výdavok po odčítaní\nvecne neoprávne.\na/alebo neúčelných\nvýdavkov","Výdavok po odčítaní\nnehospodárnych\nvýdavkov","Oprávnený výdavok","Vecný opis výdavku"]
["Omietka vonk. stien vápenná hrubá zatretá - vonk. ostenie","021 Stavby","m2",67.974000000000004,7.3,{"$f":"ROUND(D17*E17,2)","v":496.21},{"$f":"ROUND(F17*1.2,2)","v":595.45000000000005},{"$f":"IF($B$11=\"áno\",F17,G17)","v":595.45000000000005},null,null,null,{"$f":"H17","v":595.45000000000005},{"$f":"L17","v":595.45000000000005},{"$f":"IFERROR(ROUND(IF($K$31=\"nie\",IF($M$31<=($C$15*100),M17,M17*$J$31/$M$31),M17),2),0)","v":595.45000000000005}]
["Oprava omietok vápenných a vápennocem. st. člen. 1-2 štukových 10-20%","021 Stavby","m2",316.488,4,1265.95,1519.14,1519.14,null,null,null,1519.14,1519.14,1519.14]
["Oprava omietok vápenných a vápennocem. st. člen. 1-2 - po demontáži kontaktného zateplenia hr. 50mm","021 Stavby","m2",297.7,10,2977,3572.4,3572.4,null,null,null,3572.4,3572.4,3572.4]
["Omietka vonk. stien tenkovrstv. BAUMIT silikátová základ a škrabaná 3 mm","021 Stavby","m2",690.96199999999999,13,8982.51,10779.01,10779.01,null,null,null,10779.01,10779.01,10779.01]
["Omietka vonk. stien šľachtená BAUMIT mozaiková so zákl. náterom Granopor,hr.zrna 2 mm","021 Stavby","m2",49.095999999999997,19,932.82,1119.3800000000001,1119.3800000000001,null,null,null,1119.3800000000001,1119.3800000000001,1119.3800000000001]
["Kontaktný zatepľovací systém soklovej alebo vodou namáhanej časti hr. 150mm, zatĺkacie kotvy XPS","021 Stavby","m2",49.095999999999997,49,2405.6999999999998,2886.84,2886.84,null,null,null,2886.84,2886.84,2886.84]
["Kontaktný zatepľovací systém PROFI z min. vlny hr. 200 mm zatĺk. kotvy","021 Stavby","m2",622.98800000000006,67,41740.199999999997,50088.24,50088.24,null,null,null,50088.24,50088.24,50088.24]
["Kontaktný zatepľovací systém ostenia PROFI z min. vlny hr. 30 mm","021 Stavby","m2",67.974000000000004,30,2039.22,2447.06,2447.06,null,null,null,2447.06,2447.06,2447.06]
["Vyrovnávacia vrstva MC šírky 150-300 mm pod klampiarskými prvkami","021 Stavby","m",48.24,2,96.48,115.78,115.78,null,null,null,115.78,115.78,115.78]
["Zakrývanie výplne otvorov fóliou a plastickým profilom","021 Stavby","m2",92.793999999999997,3.5,324.77999999999997,389.74,389.74,null,null,null,389.74,389.74,389.74]
["D+M parapetných dosák z plastických hmôt š. nad 20 cm","021 Stavby","m",48.24,38,1833.12,2199.7399999999998,2199.7399999999998,null,null,null,2199.7399999999998,2199.7399999999998,2199.7399999999998]
["Montáž lešenia ľahk. radového s podlahami š. do 1 m v. do 10 m","021 Stavby","m2",764.096,2.4,1833.83,2200.6,2200.6,null,null,null,2200.6,2200.6,2200.6]
["Príplatok za prvý a každý ďalší mesiac použitia lešenia k pol. -1031","021 Stavby","m2",764.096,1.5,1146.1400000000001,1375.37,1375.37,null,null,null,1375.37,1375.37,1375.37]
["Demontáž lešenia ľahk. radového s podlahami š. do 1 m v. do 10 m","021 Stavby","m2",764.096,1.5,1146.1400000000001,1375.37,1375.37,null,null,null,1375.37,1375.37,1375.37]
["Spolu výdavky zateplenia obvodového plášťa",null,null,null,null,{"$f":"SUM(F17:F30)","v":67220.100000000006},{"$f":"SUM(G17:G30)","v":80664.12},{"$f":"IF(OR(B11=\"\",C15=\"\",C15<=0,D12=\"\",F12=\"\",G12=\"\",O11=\"\"),0,SUM(H17:H30))","v":80664.12},{"$f":"IF(OR(C15=0,B11=\"\"),0,IF(F31>=C15*100,IF(B11=\"áno\",F31-C15*100,G31-C15*100*1.2),0))","v":0},{"$f":"IF(OR(C15=\"\",C15<=0,D12=\"\",F12=\"\",G12=\"\",O11=\"\"),0,H31-I31)","v":80664.12},"áno",{"$f":"IF(OR(B11=\"\",C15=\"\",C15<=0,D12=\"\",F12=\"\",G12=\"\",O11=\"\"),0,SUM(L17:L30))","v":80664.12},{"$f":"IF(OR(B11=\"\",C15=\"\",C15<=0,D12=\"\",F12=\"\",G12=\"\",O11=\"\"),0,SUM(M17:M30))","v":80664.12},{"$f":"IF(OR(B11=\"\",C15=\"\",C15<=0,D12=\"\",F12=\"\",G12=\"\",O11=\"\"),0,SUM(N17:N30))","v":80664.12}]
[{"$f":"IF(C10*G10>=H31,\"\",\"Prekročenie referenčných hodnôt nebude bez akceptovaného zdôvodnenia schválené.\")","v":"Prekročenie referenčných hodnôt nebude bez akceptovaného zdôvodnenia schválené."}]
["Zdôvodnenie prekročenia referenčnej hodnoty pre obvodový plášť","V prípade prekročenia stanovenej referenčnej hodnoty pre vybrané výdavky projektu je žiadateľ oprávnený toto prekročenie zdôvodniť.\n\nŽiadateľ v zdôvodnení uvedie výdavky, ktoré najvýznamnejšie vplývajú na prekročenie stanovenej referenčnej hodnoty a zdôvodní ich nevyhnutnosť. V prípade, že zdôvodnenie prekročenia stanovenej referenčnej hodnoty nebude predložené, resp. dostatočné  alebo akceptované zo strany odborného hodnotiteľa ako odôvodniteľné, žiadané výdavky budú krátené na výšku stanovených referenčných hodnôt.\n\nBližšie informácie týkajúce sa referenčných hodnôt a ich prekročenia sú uvedené v Prílohe č. 4 Výzvy - Osobitné podmienky oprávnenosti výdavkov.\n"]
[]
["Zateplenie strešného plášťa"]
["Cieľová hodnota zateplenej plochy strešného plášťa v m2",null,491.51," m2"]
["Názov výdavku","Skupina výdavkov  ","Merná\njednotka","Počet \njednotiek","Jednotková cena\nbez DPH [EUR]","Cena celkom \nbez DPH [EUR]","Cena celkom \ns DPH [EUR]","Celkový \nvýdavok","Výdavok nad \nreferenčnú hodnotu","Výdavok \npri neakceptovaní\nprekročenia ref.\nhodnôt","Schválenie /\nneschválenie\nprekročenia ref.\nhodnôt","Výdavok po odčítaní\nvecne neoprávne.\na/alebo neúčelných výdavkov","Výdavok po odčítaní\nnehospodárnych\nvýdavkov","Oprávnený výdavok","Vecný opis výdavku"]
["Montáž tep. izolácie stropov, položenie na vrch","021 Stavby","m2",250.32,1,{"$f":"ROUND(D38*E38,2)","v":250.32},{"$f":"ROUND(F38*1.2,2)","v":300.38},{"$f":"IF($B$11=\"áno\",F38,G38)","v":300.38},null,null,null,{"$f":"H38","v":300.38},{"$f":"L38","v":300.38},{"$f":"IFERROR(ROUND(IF($K$51=\"nie\",IF($M$51<=($C$36*80),M38,M38*$J$51/$M$51),M38),2),0)","v":300.38}]
["Doska čadičová NOBASIL MPE(M) 40kg/m3 hr. 15 cm","021 Stavby","m2",255.32599999999999,7.3,1863.88,2236.66,2236.66,null,null,null,2236.66,{"$f":"L39","v":2236.66},{"$f":"IFERROR(ROUND(IF($K$51=\"nie\",IF($M$51<=($C$36*80),M39,M39*$J$51/$M$51),M39),2),0)","v":2236.66}]
["Doska čadičová NOBASIL MPE(M) 40kg/m3 hr. 20 cm","021 Stavby","m2",255.32599999999999,10.5,2680.92,3217.1,3217.1,null,null,null,3217.1,{"$f":"L40","v":3217.1},{"$f":"IFERROR(ROUND(IF($K$51=\"nie\",IF($M$51<=($C$36*80),M40,M40*$J$51/$M$51),M40),2),0)","v":3217.1}]
["Montáž tep. izolácie stropov rovných spodom, pribitie (PIR doska)","021 Stavby","m2",241.185,4,964.74,1157.69,1157.69,null,null,null,1157.69,1157.69,1157.69]
["Doska PIR izolácia PUREN PERFECT","021 Stavby","m2",246.00899999999999,55,13530.5,16236.6,16236.6,null,null,null,16236.6,16236.6,16236.6]
["Montáž tep. izolácie stropov rovných spodom, pripevnenie na trne (nádstavec na krokvu)","021 Stavby","m2",110.952,3,332.86,399.43,399.43,null,null,null,399.43,399.43,399.43]
["Doska čadičová NOBASIL MPE(M) 40kg/m3 hr. 20 cm","021 Stavby","m2",113.17100000000001,10.5,1188.3,1425.96,1425.96,null,null,null,1425.96,1425.96,1425.96]
["Montáž tep. izolácie stropov rebrových spodom, pripevnenie drôtom - na drevenú konštrukciu Knauf","021 Stavby","m2",72.400000000000006,3,217.2,260.64,260.64,null,null,null,260.64,260.64,260.64]
["Doska čadičová NOBASIL MPE(M) 40kg/m3 hr. 15 cm","021 Stavby","m2",38.01,7.8,296.48,355.78,355.78,null,null,null,355.78,355.78,355.78]
["Doska čadičová NOBASIL MPE(M) 40kg/m3 hr. 20 cm","021 Stavby","m2",38.01,10.3,391.5,469.8,469.8,null,null,null,469.8,469.8,469.8]
["Montáž tepel. izolácie stropov striekaním PUR peny hr. 300 mm","021 Stavby","m2",177.84,5,889.2,1067.04,1067.04,null,null,null,1067.04,1067.04,1067.04]
["Polyuretánová pena dvojzl. pre tepelnú izoláciu s uzavretou bunk štruktúrov","021 Stavby","kg",1547.2080000000001,3.8,5879.39,7055.27,7055.27,null,null,null,7055.27,7055.27,7055.27]
["Presun hmôt pre izolácie tepelné v objektoch výšky do 12 m","021 Stavby","%",284.49,1.5,426.74,512.09,512.09,null,null,null,512.09,{"$f":"L50","v":512.09},{"$f":"IFERROR(ROUND(IF($K$51=\"nie\",IF($M$51<=($C$36*80),M50,M50*$J$51/$M$51),M50),2),0)","v":512.09}]
["Spolu výdavky zateplenia strešného plášťa",null,null,null,null,{"$f":"SUM(F38:F50)","v":28912.030000000002},{"$f":"SUM(G38:G50)","v":34694.439999999995},{"$f":"IF(OR(B11=\"\",C36=\"\",C36<=0,D12=\"\",F12=\"\",G12=\"\",O11=\"\"),0,SUM(H38:H50))","v":34694.439999999995},{"$f":"IF(OR(C36=0,B11=\"\"),0,IF(F51>=C36*80,IF(B11=\"áno\",F51-C36*80,G51-C36*80*1.2),0))","v":0},{"$f":"IF(OR(C36=\"\",C36<=0,D12=\"\",F12=\"\",G12=\"\",O11=\"\"),0,H51-I51)","v":34694.439999999995},"RH neprekročená",{"$f":"IF(OR(B11=\"\",C36=\"\",C36<=0,D12=\"\",F12=\"\",G12=\"\",O11=\"\"),0,SUM(L38:L50))","v":34694.439999999995},{"$f":"IF(OR(B11=\"\",C36=\"\",C36<=0,D12=\"\",F12=\"\",G12=\"\",O11=\"\"),0,SUM(M38:M50))","v":34694.439999999995},{"$f":"IF(OR(B11=\"\",C36=\"\",C36<=0,D12=\"\",F12=\"\",G12=\"\",O11=\"\"),0,SUM(N38:N50))","v":34694.439999999995}]
[{"$f":"IF(C31*G31>=H51,\"\",\"Prekročenie referenčných hodnôt nebude bez akceptovaného zdôvodnenia schválené.\")","v":"Prekročenie referenčných hodnôt nebude bez akceptovaného zdôvodnenia schválené."}]
["Zdôvodnenie prekročenia referenčnej hodnoty pre strešný plášť","V prípade prekročenia stanovenej referenčnej hodnoty pre vybrané výdavky projektu je žiadateľ oprávnený toto prekročenie zdôvodniť.\n\nŽiadateľ v zdôvodnení uvedie výdavky, ktoré najvýznamnejšie vplývajú na prekročenie stanovenej referenčnej hodnoty a zdôvodní ich nevyhnutnosť. V prípade, že zdôvodnenie prekročenia stanovenej referenčnej hodnoty nebude predložené, resp. dostatočné  alebo akceptované zo strany odborného hodnotiteľa ako odôvodniteľné, žiadané výdavky budú krátené na výšku stanovených referenčných hodnôt.\n\nBližšie informácie týkajúce sa referenčných hodnôt a ich prekročenia sú uvedené v Prílohe č. 4 Výzvy - Osobitné podmienky oprávnenosti výdavkov.\n"]
[]
["Výmena otvorových konštrukcií"]
["Cieľová hodnota výmeny otvorových konštrukcií v m2",null,96.48," m2"]
["Názov výdavku","Skupina výdavkov  ","Merná\njednotka","Počet \njednotiek","Jednotková cena\nbez DPH [EUR]","Cena celkom \nbez DPH [EUR]","Cena celkom \ns DPH [EUR]","Celkový \nvýdavok","Výdavok nad \nreferenčnú hodnotu","Výdavok \npri neakceptovaní\nprekročenia ref.\nhodnôt","Schválenie /\nneschválenie prekročenia ref.\nhodnôt","Výdavok po odčítaní\nvecne neoprávne.\na/alebo neúčelných\nvýdavkov","Výdavok po odčítaní\nnehospodárnych\nvýdavkov","Oprávnený výdavok","Vecný opis výdavku"]
["Montáž okien a dverí na penu + paropriepustné fólie","021 Stavby","m",268.14,20,{"$f":"ROUND(D58*E58,2)","v":5362.8},{"$f":"ROUND(F58*1.2,2)","v":6435.36},{"$f":"IF($B$11=\"áno\",F58,G58)","v":6435.36},null,null,null,{"$f":"H58","v":6435.36},{"$f":"L58","v":6435.36},{"$f":"IFERROR(ROUND(IF($K$79=\"nie\",IF($M$79<=($C$56*400),M58,M58*$J$79/$M$79),M58),2),0)","v":6435.36}]
["Okno plastové, rozmer 1950x1950mm, ug=0,5","021 Stavby","kus",1,750,750,900,900,null,null,null,900,900,{"$f":"IFERROR(ROUND(IF($K$79=\"nie\",IF($M$79<=($C$56*400),M59,M59*$J$79/$M$79),M59),2),0)","v":900}]
["Okno plastové, rozmer 1100x1950mm, ug=0,5","021 Stavby","kus",10,400,4000,4800,4800,null,null,null,4800,4800,{"$f":"IFERROR(ROUND(IF($K$79=\"nie\",IF($M$79<=($C$56*400),M60,M60*$J$79/$M$79),M60),2),0)","v":4800}]
["Okno plastové, rozmer 1600x1700mm, ug=0,5","021 Stavby","kus",1,550,550,660,660,null,null,null,660,660,660]
["Okno plastové, rozmer 1200x1500mm, ug=0,5","021 Stavby","kus",3,255,765,918,918,null,null,null,918,918,918]
["Okno plastové, rozmer 1100x1400mm, ug=0,5","021 Stavby","kus",3,320,960,1152,1152,null,null,null,1152,1152,1152]
["Okno plastové, rozmer 600x900mm, ug=0,5","021 Stavby","kus",3,125,375,450,450,null,null,null,450,450,450]
["Okno plastové, rozmer 1780x1720mm, ug=0,5","021 Stavby","kus",1,610,610,732,732,null,null,null,732,732,732]
["Okno plastové, rozmer 1000x1950mm, ug=0,5","021 Stavby","kus",1,400,400,480,480,null,null,null,480,480,480]
["Okno plastové, rozmer 1350x1400mm, ug=0,5","021 Stavby","kus",1,380,380,456,456,null,null,null,456,456,456]
["Okno plastové, rozmer 1320x1400mm, ug=0,5","021 Stavby","kus",1,380,380,456,456,null,null,null,456,456,456]
["Okno plastové, rozmer 600x500mm, ug=0,5","021 Stavby","kus",3,110,330,396,396,null,null,null,396,396,396]
["Okno plastové, rozmer 1200x1150mm, ug=0,5","021 Stavby","kus",1,295,295,354,354,null,null,null,354,354,354]
["Okno plastové, rozmer 1150x1700mm, ug=0,5","021 Stavby","kus",7,390,2730,3276,3276,null,null,null,3276,3276,3276]
["Okno plastové, rozmer 1800x1000mm, ug=0,5","021 Stavby","kus",2,365,730,876,876,null,null,null,876,876,876]
["Okno plastové, rozmer 1620x1680mm, ug=0,5","021 Stavby","kus",2,700,1400,1680,1680,null,null,null,1680,1680,1680]
["Dvere vchodové plast. bezpečnostné 1650x2200x580mm","021 Stavby","kus",2,1750,3500,4200,4200,null,null,null,4200,4200,4200]
["Dvere vchodové plast. bezpečnostné 1000x2050mm","021 Stavby","kus",2,910,1820,2184,2184,null,null,null,2184,2184,2184]
["Dvere vchodové plast. bezpečnostné 900x2050mm","021 Stavby","kus",5,830,4150,4980,4980,null,null,null,4980,4980,4980]
["Dvere vchodové plast. bezpečnostné 1500x1700mm","021 Stavby","kus",1,1100,1100,1320,1320,null,null,null,1320,1320,1320]
["Presun hmôt pre konštr. stolárske v objektoch výšky do 12 m","021 Stavby","%",307.32799999999997,1,307.33,368.8,368.8,null,null,null,368.8,368.8,{"$f":"IFERROR(ROUND(IF($K$79=\"nie\",IF($M$79<=($C$56*400),M78,M78*$J$79/$M$79),M78),2),0)","v":368.8}]
["Spolu výdavky výmeny otvorových konštrukcií",null,null,null,null,{"$f":"SUM(F58:F78)","v":30895.13},{"$f":"SUM(G58:G78)","v":37074.160000000003},{"$f":"IF(OR(B11=\"\",C56=\"\",C56<=0,D12=\"\",F12=\"\",G12=\"\",O11=\"\"),0,SUM(H58:H78))","v":37074.160000000003},{"$f":"IF(OR(C56=0,B11=\"\"),0,IF(F79>=C56*400,IF(B11=\"áno\",F79-C56*400,G79-C56*400*1.2),0))","v":0},{"$f":"IF(OR(C56=\"\",C56<=0,D12=\"\",F12=\"\",G12=\"\",O11=\"\"),0,H79-I79)","v":37074.160000000003},"RH neprekročená",{"$f":"IF(OR(B11=\"\",C56=\"\",C56<=0,D12=\"\",F12=\"\",G12=\"\",O11=\"\"),0,SUM(L58:L78))","v":37074.160000000003},{"$f":"IF(OR(B11=\"\",C56=\"\",C56<=0,D12=\"\",F12=\"\",G12=\"\",O11=\"\"),0,SUM(M58:M78))","v":37074.160000000003},{"$f":"IF(OR(B11=\"\",C56=\"\",C56<=0,D12=\"\",F12=\"\",G12=\"\",O11=\"\"),0,SUM(N58:N78))","v":37074.160000000003}]
[{"$f":"IF(C51*G51>=H79,\"\",\"Prekročenie referenčných hodnôt nebude bez akceptovaného zdôvodnenia schválené.\")","v":"Prekročenie referenčných hodnôt nebude bez akceptovaného zdôvodnenia schválené."}]
["Zdôvodnenie prekročenia referenčnej hodnoty pre výmenu otvorových konštrukcií","V prípade prekročenia stanovenej referenčnej hodnoty pre vybrané výdavky projektu je žiadateľ oprávnený toto prekročenie zdôvodniť.\n\nŽiadateľ v zdôvodnení uvedie výdavky, ktoré najvýznamnejšie vplývajú na prekročenie stanovenej referenčnej hodnoty a zdôvodní ich nevyhnutnosť. V prípade, že zdôvodnenie prekročenia stanovenej referenčnej hodnoty nebude predložené, resp. dostatočné  alebo akceptované zo strany odborného hodnotiteľa ako odôvodniteľné, žiadané výdavky budú krátené na výšku stanovených referenčných hodnôt.\n\nBližšie informácie týkajúce sa referenčných hodnôt a ich prekročenia sú uvedené v Prílohe č. 4 Výzvy - Osobitné podmienky oprávnenosti výdavkov.\n"]
[]
["Ostatné"]
["Názov výdavku","Skupina výdavkov  ","Merná jednotka","Počet jednotiek","Jednotková cena\nbez DPH [EUR]","Cena celkom \nbez DPH [EUR]","Cena celkom \ns DPH [EUR]","Celkový \nvýdavok","Výdavok nad \nreferenčnú hodnotu","Výdavok \npri neakceptovaní\nprekročenia ref.\nhodnôt","Stĺpec1","Výdavok po odčítaní\nvecne neoprávne. \na/alebo neúčelných\nvýdavkov","Stĺpec2","Oprávnený výdavok","Vecný opis výdavku"]
["Murivo výplňové z tehál 29 cm P15 zmes malt.suchá 10 Mpa","021 Stavby","m3",0.154,225,{"$f":"ROUND(D85*E85,2)","v":34.65},{"$f":"ROUND(F85*1.2,2)","v":41.58},{"$f":"IF($B$11=\"áno\",F85,G85)","v":41.58},null,null,null,{"$f":"H85","v":41.58},null,{"$f":"L85","v":41.58}]
["Montáž prefabrik. prekladov pre svetlosť otvoru do 180 cm","021 Stavby","kus",4,6,24,28.8,28.8,null,null,null,28.8,null,28.8]
["Keramický preklad predpätý POROTHERM65 2000x120x65mm","021 Stavby","kus",4,13,52,62.4,62.4,null,null,null,62.4,null,62.4]
["Demontáž ohrievačov vody zásobníkových do 630 l","021 Stavby","kus",1,30,30,36,36,null,null,null,36,null,36]
["Montáž ohrievačov vody, vr. príslušenstva, komín","021 Stavby","súbor",1,220,220,264,264,null,null,null,264,null,264]
["Závesný plynový ohrievač vody s núteným odťahom spalín 75L s uzavretou spaľov. komorou","021 Stavby","kus",1,930,930,1116,1116,null,null,null,1116,null,1116]
["Presun hmôt pre strojovne umiestnené vo výške do 12 m","021 Stavby","%",11.843999999999999,1.4,16.579999999999998,19.899999999999999,19.899999999999999,null,null,null,19.899999999999999,null,19.899999999999999]
["Demontáž a montáž atypických stavebných doplnk. konštrukcií  prestrešenie vchodu","021 Stavby","kus",2,100,200,240,240,null,null,null,240,null,240]
["Demontáž a montáž atypických stavebných doplnk. konštrukcií  bočný vchod, átrium","021 Stavby","súbor",1,300,300,360,360,null,null,null,360,null,360]
["Presun hmôt pre kovové stav. doplnk. konštr. v objektoch výšky do 12 m","021 Stavby","%",5.2,1.2,6.24,7.49,7.49,null,null,null,7.49,null,7.49]
["Penetrovanie 1x jemnozrných podkladov výšky  do 3,8m","021 Stavby","m2",113.29,0.7,79.3,95.16,95.16,null,null,null,95.16,null,95.16]
["Opr. maľba zmes prášk. 1 far. dvojn. s obrús. miest. do 3,8m - po výmene svetiel","021 Stavby","m2",105,1.4,147,176.4,176.4,null,null,null,176.4,null,176.4]
["Maľba zo zmesí tekut. 1 far. dvojnás. v miest. do 3,8m","021 Stavby","m2",283.10000000000002,1.4,396.34,475.61,475.61,null,null,null,475.61,null,475.61]
["Demontáž, žiarovkové, žiarivkové svietidlo, prisadené IP20-44-54-65","021 Stavby","kus",105,5,525,630,630,null,null,null,630,null,630]
["Montáž, žiarovkové svietidlo, prisadené IP20-44, so senzorom, nastavenie časového intervalu","021 Stavby","kus",5,7,35,42,42,null,null,null,42,null,42]
["LED stropné/nástenné svietidlo 14W 980lm 230V s pohybovým snímačom","021 Stavby","kus",5,100,500,600,600,null,null,null,600,null,600]
["Montáž, LED svietidlo, prisadené IP54-66","021 Stavby","kus",31,7.5,232.5,279,279,null,null,null,279,null,279]
["LED stropné/nástenné svietidlo 15W 1500lm IP54 30.000H","021 Stavby","kus",31,50,1550,1860,1860,null,null,null,1860,null,1860]
["Montáž, žiarivkové svietidlo, prisadené IP20-44 - 1x lineárna žiarivka 38W","021 Stavby","kus",65,11,715,858,858,null,null,null,858,null,858]
["Slim lineárne LED svietidlo 150cm 38W 5700lm 230V","021 Stavby","kus",65,91,5915,7098,7098,null,null,null,7098,null,7098]
["Montáž LED svietidlá bodového prisadeného 18W IP20","021 Stavby","kus",8,9,72,86.4,86.4,null,null,null,86.4,null,86.4]
["Svietidlo LED stropné bodové 18W 1590lm IP20","021 Stavby","kus",8,95,760,912,912,null,null,null,912,null,912]
["Výmena zdroja svietidla IP54-66 (LED, halogénovej žiarovky, kompaktnej žiarivky)","021 Stavby","kus",61,2.5,152.5,183,183,null,null,null,183,null,183]
["Žiarovka LED, GU10/7W/230V 4000K","021 Stavby","kus",61,7,427,512.4,512.4,null,null,null,512.4,null,512.4]
["Demontáž a montáž  bleskozvodu pri výmene a stavebných úpravách strešnej konštrukcie","021 Stavby","hod",16,15,240,288,288,null,null,null,288,null,288]
["Podružný materiál pri výmene svietidiel, D+M blekozvodu","021 Stavby","súbor",1,400,400,480,480,null,null,null,480,null,480]
["Revízia elektro a vypracovanie správy","021 Stavby","hod",8,15,120,144,144,null,null,null,144,null,144]
["Revízia bleskozvodu a vypracovanie správy","021 Stavby","hod",8,15,120,144,144,null,null,null,144,null,144]
["Búranie časti ríms tehl. vyložených do 25 cm hr. do 30 cm","021 Stavby","m",130.4,3.5,456.4,547.67999999999995,547.67999999999995,null,null,null,547.67999999999995,null,547.67999999999995]
["Demontáž plast. okien bm obvodu","021 Stavby","m",254.97,4.5,1147.3699999999999,1376.84,1376.84,null,null,null,1376.84,null,1376.84]
["Vybúr. otvorov do 4 m2 v murive zmiešanom hr. do 60 cm","021 Stavby","m3",1.633,60,97.98,117.58,117.58,null,null,null,117.58,null,117.58]
["Zbúranie komína - nevyhovujúci stav pod str. konštrukciu","021 Stavby","m",1.2,20,24,28.8,28.8,null,null,null,28.8,null,28.8]
["Demontáž kontaktného zateplenia z polystyrénových dosiek s povrchovou úpravou hrúbky nad 30 -80 mm","021 Stavby","m2",297.7,1.5,{"$f":"ROUND(D117*E117,2)","v":446.55},{"$f":"ROUND(F117*1.2,2)","v":535.86},{"$f":"IF($B$11=\"áno\",F117,G117)","v":535.86},null,null,null,{"$f":"H117","v":535.86},null,{"$f":"L117","v":535.86}]
["Zvislá doprava sute a vybúr. hmôt za prvé podlažie","021 Stavby","t",26.52,11.5,304.98,365.98,365.98,null,null,null,365.98,null,365.98]
["Odvoz sute a vybúraných hmôt na skládku do 1 km","021 Stavby","t",26.52,11,291.72000000000003,350.06,350.06,null,null,null,350.06,null,350.06]
["Odvoz sute a vybúraných hmôt na skládku každý ďalší 1 km","021 Stavby","t",106.08,0.33,35.01,42.01,42.01,null,null,null,42.01,null,42.01]
["Vnútrostavenisková doprava sute a vybúraných hmôt do 10 m","021 Stavby","t",26.52,10,265.2,318.24,318.24,null,null,null,318.24,null,318.24]
["Poplatok za ulož.a znešk.stav.sute na urč.sklád. -z demol.vozoviek \"O\"-ost.odpad","021 Stavby","t",26.52,28,742.56,891.07,891.07,null,null,null,891.07,null,891.07]
["Presun hmôt pre budovy murované výšky do 12 m","021 Stavby","t",82.731999999999999,8,661.86,794.23,794.23,null,null,null,794.23,null,794.23]
["Omietka vnútorného ostenia okenného alebo dverného vápenná štuková","021 Stavby","m2",113.29,15,1699.35,2039.22,2039.22,null,null,null,2039.22,null,2039.22]
["Omietka vnút stien jadrová - (hrubá) - úprava ostenia","021 Stavby","m2",118.294,9,1064.6500000000001,1277.58,1277.58,null,null,null,1277.58,null,1277.58]
["Potiahnutie vnút., alebo vonk. stien a ostatných plôch sklotextilnou mriežkou","021 Stavby","m2",113.29,3,339.87,407.84,407.84,null,null,null,407.84,null,407.84]
["Profil soklový hliníkový  LO 203 mm, hr. 0,8mm","021 Stavby","m",146.1,6.4,935.04,1122.05,1122.05,null,null,null,1122.05,null,1122.05]
["Okapnička na soklový profil Weber - Terranova PVC LO s tkaninou","021 Stavby","m",146.1,3.2,467.52,561.02,561.02,null,null,null,561.02,null,561.02]
["Profil plastový rohový ochranný s integrovanou sieťovinou LK 100","021 Stavby","m",218.17,4,872.68,1047.22,1047.22,null,null,null,1047.22,null,1047.22]
["Profil plastový okenný  APU s integrovanou tkaninou","021 Stavby","m",226.58,4,906.32,1087.58,1087.58,null,null,null,1087.58,null,1087.58]
["Profil plastový nadokenný  s integrovanou tkaninou 100x100 nepriznaný vo fasáde","021 Stavby","m",49.36,4,197.44,236.93,236.93,null,null,null,236.93,null,236.93]
["Demontáž viazaných konštr. krovov prier. plocha nad 224 do 288 cm2 - oprava poškodených častí krovu - odhad do 20%","021 Stavby","m",50,2.9,145,174,174,null,null,null,174,null,174]
["Doska MD neomietaná, hranená, vr. nateru proti škodcom a hnilobe","021 Stavby","m3",7.2359999999999998,250,1809,2170.8000000000002,2170.8000000000002,null,null,null,2170.8000000000002,null,2170.8000000000002]
["Montáž krovov viazaných prierez. plocha nad 224 do 288 cm2 - oprava poškodených častí krovu  - odhad do 20%","021 Stavby","m",50,12,600,720,720,null,null,null,720,null,720]
["Rezivo na opravu poškodených častí krovu - odha do 20%, vr. náteru proti škodcom a hnilobe","021 Stavby","m3",1.44,280,403.2,483.84,483.84,null,null,null,483.84,null,483.84]
["Montáž debnenia striech rovných z dosiek hrubých na zraz","021 Stavby","m2",241.185,4,964.74,1157.69,1157.69,null,null,null,1157.69,null,1157.69]
["Montáž kontralatí, rozpätie 80-120 cm","021 Stavby","m2",241.185,1,241.19,289.43,289.43,null,null,null,289.43,null,289.43]
["Lata SM 1 do 25cm2, vr. náteru proti škodcom a hnilobe","021 Stavby","m3",1.206,280,337.68,405.22,405.22,null,null,null,405.22,null,405.22]
["Spojovacie a ochranné prostriedky k montáži krovov","021 Stavby","m3",9.8819999999999997,50,494.1,592.91999999999996,592.91999999999996,null,null,null,592.91999999999996,null,592.91999999999996]
["Presun hmôt pre tesárske konštr. v objektoch výšky do 12 m","021 Stavby","%",52.723999999999997,4.3,226.71,272.05,272.05,null,null,null,272.05,null,272.05]
["Demontáž sadrokartónového podhľadu s nosnou konštrukciou drevenou, jednoduché opláštenie","021 Stavby","m2",110.952,2.5,277.38,332.86,332.86,null,null,null,332.86,null,332.86]
["Montáž drevenej nosnej konštr. podhľadu Knauf","021 Stavby","m2",36.200000000000003,12.5,452.5,543,543,null,null,null,543,null,543]
["Rezivo na podhľad knauf z fošní, vr. náteru proti škodcom a hnilobe","021 Stavby","m3",1.629,290,472.41,566.89,566.89,null,null,null,566.89,null,566.89]
["Podhľady sadr RIGIPS zavesený 2x profil UD a CD dosky RFI hr. 2x15 mm","021 Stavby","m2",147.15199999999999,32,4708.8599999999997,5650.63,5650.63,null,null,null,5650.63,null,5650.63]
["Presun hmôt pre drevostavby v objektoch výšky do 12 m","021 Stavby","%",58.628999999999998,6.8,398.68,478.42,478.42,null,null,null,478.42,null,478.42]
["Krytina z pozink farb.plechu,falcovaná s dvojitou drážkou, vr.kompl. príslušenstva (sneh.zach.,lemov,odv.mriežka,..)","021 Stavby","m2",241.185,34,8200.2900000000009,9840.35,9840.35,null,null,null,9840.35,null,9840.35]
["Klamp. demont. zastrešenia na hl. krytine1000, do 30° nad 25m2","021 Stavby","m2",229.7,1.2,275.64,330.77,330.77,null,null,null,330.77,null,330.77]
["Kompl.demontáž odkvapov a žľabov vr. príslušenstva","021 Stavby","m",38.340000000000003,0.8,30.67,36.799999999999997,36.799999999999997,null,null,null,36.799999999999997,null,36.799999999999997]
["Klamp. PZ pl. lakovaný, žľaby pododkvap. polkruh rš 250 dl 5m, vr. príslušenstva, hákov","021 Stavby","m",28.7,17,{"$f":"ROUND(D149*E149,2)","v":487.9},{"$f":"ROUND(F149*1.2,2)","v":585.48},{"$f":"IF($B$11=\"áno\",F149,G149)","v":585.48},null,null,null,{"$f":"H149","v":585.48},null,{"$f":"L149","v":585.48}]
["Klamp. PZ pl. oplechovanie parapetov rš 330, lakované","021 Stavby","m",48.24,20,964.8,1157.76,1157.76,null,null,null,1157.76,null,1157.76]
["Klamp. demont. parapetov rš 330","021 Stavby","m",45,1.2,54,64.8,64.8,null,null,null,64.8,null,64.8]
["Klamp. PZ pl. lakovaná oplechovanie ríms rš 800 - čelo strechy pri strešnom. žľabe","021 Stavby","m",28.7,21,602.70000000000005,723.24,723.24,null,null,null,723.24,null,723.24]
["Klamp. PZ pl. oplechovanie múrov rš 600, lakovaný - atika hl. budovy","021 Stavby","m",26.4,21,554.4,665.28,665.28,null,null,null,665.28,null,665.28]
["Predĺženie oplechovania strechy o 200mm, v mieste izolácie, demont., mont. nového oplechovanie","021 Stavby","m",10.1,50,505,606,606,null,null,null,606,null,606]
["Klamp. demont. oplechovanie múrov rš 400","021 Stavby","m",26.4,1.2,31.68,38.020000000000003,38.020000000000003,null,null,null,38.020000000000003,null,38.020000000000003]
["Klamp. PZ pl. lakované rúry odpadové kruhové d-120, vr. príslušenstva","021 Stavby","m",10.199999999999999,18,183.6,220.32,220.32,null,null,null,220.32,null,220.32]
["Kotlík PZ lakovaný, vr. odskoku na rúru d-120, vr. príslušenstva","021 Stavby","kus",4,15,60,72,72,null,null,null,72,null,72]
["Paropriepustná fólia pod strešnú krytinu, kontaktná 135g/m2","021 Stavby","m2",241.185,2,482.37,578.84,578.84,null,null,null,578.84,null,578.84]
["Difúzne otvorená fólia so separačnou vrstvou DIFFLEX CONVEC","021 Stavby","m2",241.185,7.5,1808.89,2170.67,2170.67,null,null,null,2170.67,null,2170.67]
["Presun hmôt pre klampiarske konštr. v objektoch výšky do 12 m","021 Stavby","%",145.006,1.7,246.51,295.81,295.81,null,null,null,295.81,null,295.81]
["D+M parotesnou zábranou 140g/m2, napr. Jutafol N 140 Speciál","021 Stavby","m2",147.15199999999999,4.5,662.18,794.62,794.62,null,null,null,794.62,null,794.62]
["Presun hmôt pre krytiny tvrdé na objektoch výšky do 12 m","021 Stavby","%",6.7690000000000001,6.3,42.64,51.17,51.17,null,null,null,51.17,null,51.17]
[null,null,null,null,null,0,0,0,null,null,null,0,null,0]
["SPOLU výdavky ostatné",null,null,null,null,{"$f":"SUM(F85:F163)","v":51881.33},{"$f":"SUM(G85:G163)","v":62257.609999999986},{"$f":"IF(OR(B11=\"\",D12=\"\",F12=\"\",G12=\"\",O11=\"\"),0,SUM(H85:H163))","v":62257.609999999986},"RH sa pre skup. výdav. \"Ostatné\" neuplatňuje.",null,null,{"$f":"IF(OR(B11=\"\",D12=\"\",F12=\"\",G12=\"\",O11=\"\"),0,SUM(L85:L163))","v":62257.609999999986},null,{"$f":"IF(OR(B11=\"\",D12=\"\",F12=\"\",G12=\"\",O11=\"\"),0,SUM(N85:N163))","v":62257.609999999986}]
["SPOLU Výdavky na budovu č. 1",null,null,null,null,{"$f":"F31+F51+F79+F164","v":178908.59000000003},214690.31,214690.31,{"$f":"REFa+REFb+REFc","v":0},{"$f":"J31+J51+J79","v":152432.72},null,{"$f":"IF(OR('MU Budova 1'!O15=0,'MU Budova 1'!O16=0,'MU Budova 1'!O17=0,'MU Budova 1'!O18=0,'MU Budova 1'!O19=0,'MU Budova 1'!O13=0,'MU Budova 1'!O33=0,'MU Budova 1'!O34=0,'MU Budova 1'!O35=0,'MU Budova 1'!O36=0,'MU Budova 1'!O37=0,'MU Budova 1'!O38=0),0,L31+L51+L79+L164)","v":214690.33},null,214690.31]
["SPOLU Výdavky na budovu č. 1 po prípadnom odpočítaní hospodárskej činnosti a nízkych úspor potreby energie na vykurovanie",null,null,null,null,null,null,214690.31,null,null,null,null,null,214690.31,null,null,{"$f":"IF('Rozpočet B1 - Value for Money'!$B$11=Číselníky!A2,'Rozpočet B1 - Value for Money'!N166,'Rozpočet B1 - Value for Money'!N166/1.2)","v":178908.59166666667}]
[]
[null,null,null,null,null,null,null,{"$f":"IF(OR('MU Budova 1'!O15=0,'MU Budova 1'!O16=0,'MU Budova 1'!O17=0,'MU Budova 1'!O18=0,'MU Budova 1'!O19=0,'MU Budova 1'!O13=0,'MU Budova 1'!O33=0,'MU Budova 1'!O34=0,'MU Budova 1'!O35=0,'MU Budova 1'!O36=0,'MU Budova 1'!O37=0,'MU Budova 1'!O38=0),0,H31+H51+H79+H164)","v":214690.33},null,null,{"$f":"IF(OR('Rozpočet B1 - Value for Money'!$B$12=0,'Rozpočet B1 - Value for Money'!$B$12=\"\"),\"\",IFERROR(IF('Rozpočet B1 - Value for Money'!$B$12=1,IF('Rozpočet B1 - Value for Money'!L165/'Rozpočet B1 - Value for Money'!H166<0.75,\"Projekt nie je oprávnený (viac ako 25% výdavkov je vecne neoprávnených / neúčelných.\",\"\"),IF('Rozpočet B1 - Value for Money'!$B$12=2,IF(('Rozpočet B1 - Value for Money'!L165+'Rozpočet B2'!L54)/('Rozpočet B1 - Value for Money'!H166+'Rozpočet B2'!H55)<0.75,\"Projekt nie je oprávnený (viac ako 25% výdavkov je vecne neoprávnených / neúčelných.\",\"\"),IF('Rozpočet B1 - Value for Money'!$B$12=3,IF(('Rozpočet B1 - Value for Money'!L165+'Rozpočet B2'!L54+'Rozpočet B3'!L54)/('Rozpočet B1 - Value for Money'!H166+'Rozpočet B2'!H55+'Rozpočet B3'!H55)<0.75,\"Projekt nie je oprávnený (viac ako 25% výdavkov je vecne neoprávnených / neúčelných.\",\"\"),IF('Rozpočet B1 - Value for Money'!$B$12=4,IF(('Rozpočet B1 - Value for Money'!L165+'Rozpočet B2'!L54+'Rozpočet B3'!L54+'Rozpočet B4'!L54)/('Rozpočet B1 - Value for Money'!H166+'Rozpočet B2'!H55+'Rozpočet B3'!H55+'Rozpočet B4'!H55)<0.75,\"Projekt nie je oprávnený (viac ako 25% výdavkov je vecne neoprávnených / neúčelných.\",\"\"),IF('Rozpočet B1 - Value for Money'!$B$12=5,IF(('Rozpočet B1 - Value for Money'!L165+'Rozpočet B2'!L54+'Rozpočet B3'!L54+'Rozpočet B4'!L54+'Rozpočet B5'!L54)/('Rozpočet B1 - Value for Money'!H166+'Rozpočet B2'!H55+'Rozpočet B3'!H55+'Rozpočet B4'!H55+'Rozpočet B5'!H55)<0.75,\"Projekt nie je oprávnený (viac ako 25% výdavkov je vecne neoprávnených / neúčelných.\",\"\"),IF('Rozpočet B1 - Value for Money'!$B$12=6,IF(('Rozpočet B1 - Value for Money'!L165+'Rozpočet B2'!L54+'Rozpočet B3'!L54+'Rozpočet B4'!L54+'Rozpočet B5'!L54+'Rozpočet B6'!L54)/('Rozpočet B1 - Value for Money'!H166+'Rozpočet B2'!H55+'Rozpočet B3'!H55+'Rozpočet B4'!H55+'Rozpočet B5'!H55+'Rozpočet B6'!H55)<0.75,\"Projekt nie je oprávnený (viac ako 25% výdavkov je vecne neoprávnených / neúčelných.\",\"\"),IF('Rozpočet B1 - Value for Money'!$B$12=7,IF(('Rozpočet B1 - Value for Money'!L165+'Rozpočet B2'!L54+'Rozpočet B3'!L54+'Rozpočet B4'!L54+'Rozpočet B5'!L54+'Rozpočet B6'!L54+'Rozpočet B7'!L54)/('Rozpočet B1 - Value for Money'!H166+'Rozpočet B2'!H55+'Rozpočet B3'!H55+'Rozpočet B4'!H55+'Rozpočet B5'!H55+'Rozpočet B6'!H55+'Rozpočet B7'!H55)<0.75,\"Projekt nie je oprávnený (viac ako 25 % výdavkov je vecne neoprávnených / neúčelných).\",\"\"),IF('Rozpočet B1 - Value for Money'!$B$12>=8,\" Splnenie podmienky „Vecne neoprávnené/neučelné  výdavky neprekračujú 25 % z COV“ je potrebné overiť.\")))))))),\"\"))","v":""}]
[]
["Upozornenia"]
["Každá samostatná budova reprezentuje samostatnú hlavnú aktivitu uvedenú v ŽoNPF. Pre každú samostatnú budovu sa predkladá samostatný Energetický audit, samostatná Projektová dokumentácia  vrátane Energetického hodnotenia, samostatný rozpočet a samostatný hárok MU. "]
["V prípade potreby doplnenia ďalších výdavkov vložte riadky a ak relevantné skopírujte vzorce."]
["V časti \"Vecný popis výdavkov\" špecifikujte jednotlivé výdavky z hľadiska ich predmetu, resp. rozsahu, prípadne nevyhnutnosti. Teda, ak výdavok pozostáva z viacerých položiek, je potrebné tieto položky v rámci vecného popisu výdavku bližšie špecifikovať, t. j. uviesť z akých položiek pozostáva cena výdavku vrátane výšky týchto položiek.  "]
["V časti rozpočtu \"Ostatné\" zadajte stavebné výdavky, ktoré nie je možné priradiť k predchádzajúcim častiam rozpočtu (zateplenie plášťa, strechy, výmena okenných konštrukcií). Napr. výdavky na systém prípravy teplej vody, osvetlenia vrátane potrebného merania a riadenia a modernizácie príslušných rozvodov energie, inštaláciu systémov merania a riadenia, inštaláciu zariadení na využívanie OZE pre spotrebu v budove a pod."]
["Dbajte prosím na súlad údajov uvedených v Rozpočte s údajmi uvedenými vo formulári ŽoNFP, ako aj v ďalších prílohách ŽoNFP."]
[]
[]
[]
["Value for Money "]
[]
["SO posudzuje v procese odborného hodnotenia ŽoNFP (hodnotiace kritérium 1.2) príspevok projektu k špecifickému cieľu 4.3.1 OP KŽP na základe princípu Value for Money, ktorý vyjadruje pomer celkových oprávnených výdavkov na hlavné aktivity projektu v sume vyjadrenej bez DPH a deklarovanej cieľovej hodnoty merateľného ukazovateľa P0689 Zníženie potreby energie vo verejných budovách.\n\nV prípade identifikácie neoprávnených výdavkov projektu (z titulu vecnej neoprávnenosti, neúčelnosti, nehospodárnosti a pod.) sa v procese odborného hodnotenia výška celkových oprávnených výdavkov projektu adekvátne zníži. Do výpočtu hodnoty Value for Money v tomto prípade vstupuje už odborným hodnotiteľom korigovaná výška celkových oprávnených výdavkov projektu (bez DPH)."]
[]
["Výpočet hodnoty Value for Money ",null,null,null,null,null,"Miera príspevku projektu k ŠC 4.3.1 OP KŽP","Limitné hodnoty\n(EUR/kWh/rok)","Počet bodov v odbornom hodnotení za kritérium 1.2",null,null,null,null,null,"Merateľný ukazovateľ"]
["Celkové oprávnené výdavky na hlavné aktivity bez DPH",null,{"$f":"IF('Rozpočet B1 - Value for Money'!$B$12=1, 'Rozpočet B1 - Value for Money'!Q166,IF('Rozpočet B1 - Value for Money'!$B$12=2, 'Rozpočet B1 - Value for Money'!Q166+'Rozpočet B2'!Q55,IF('Rozpočet B1 - Value for Money'!$B$12=3,'Rozpočet B1 - Value for Money'!Q166+'Rozpočet B2'!Q55+'Rozpočet B3'!Q55,IF('Rozpočet B1 - Value for Money'!$B$12=4,'Rozpočet B1 - Value for Money'!Q166+'Rozpočet B2'!Q55+'Rozpočet B3'!Q55+'Rozpočet B4'!Q55,IF('Rozpočet B1 - Value for Money'!$B$12=5,'Rozpočet B1 - Value for Money'!Q166+'Rozpočet B2'!Q55+'Rozpočet B3'!Q55+'Rozpočet B4'!Q55+'Rozpočet B5'!Q55,IF('Rozpočet B1 - Value for Money'!$B$12=6,'Rozpočet B1 - Value for Money'!Q166+'Rozpočet B2'!Q55+'Rozpočet B3'!Q55+'Rozpočet B4'!Q55+'Rozpočet B5'!Q55+'Rozpočet B6'!Q55,IF('Rozpočet B1 - Value for Money'!$B$12>=7,'Rozpočet B1 - Value for Money'!Q166+'Rozpočet B2'!Q55+'Rozpočet B3'!Q55+'Rozpočet B4'!Q55+'Rozpočet B5'!Q55+'Rozpočet B6'!Q55+'Rozpočet B7'!Q55,\"Vyplňte rozpočty za jednotlivé budovy\")))))))","v":178908.59166666667}]
["Cieľová hodnota merateľného ukazovateľa projektu v kWh/rok",null,{"$f":"IF('Rozpočet B1 - Value for Money'!$B$12=1, 'MU Budova 1'!H84,IF('Rozpočet B1 - Value for Money'!$B$12=2, 'MU Budova 1'!H84+'MU Budova 2'!H84,IF('Rozpočet B1 - Value for Money'!$B$12=3, 'MU Budova 1'!H84+'MU Budova 2'!H84+'MU Budova 3'!H84,IF('Rozpočet B1 - Value for Money'!$B$12=4, 'MU Budova 1'!H84+'MU Budova 2'!H84+'MU Budova 3'!H84+'MU Budova 4'!H84,IF('Rozpočet B1 - Value for Money'!$B$12=5, 'MU Budova 1'!H84+'MU Budova 2'!H84+'MU Budova 3'!H84+'MU Budova 4'!H84+'MU Budova 5'!H84,IF('Rozpočet B1 - Value for Money'!$B$12=6, 'MU Budova 1'!H84+'MU Budova 2'!H84+'MU Budova 3'!H84+'MU Budova 4'!H84+'MU Budova 5'!H84+'MU Budova 6'!H84,IF('Rozpočet B1 - Value for Money'!$B$12>=7, 'MU Budova 1'!H84+'MU Budova 2'!H84+'MU Budova 3'!H84+'MU Budova 4'!H84+'MU Budova 5'!H84+'MU Budova 6'!H84+'MU Budova 7'!H84,\"Vyplňte údaje za jednotlivé budovy\")))))))","v":89572.481600000014}]
["Vypočítaná hodnota Value for Money",null,{"$f":"IFERROR(IF('Rozpočet B1 - Value for Money'!$B$12>=8,\"\",C184/C185),\"Vyplňte hárky Rozpočet a MU\")","v":1.9973611143834453},null,null,null,"nízka","viac ako 2,5",5,null,null,null,null,null,"P0689 Zníženie potreby energie vo verejných budovách"]
[null,null,null,null,null,null,"stredná"," 1,5 – 2,5",10]
[null,null,null,null,null,null,"vysoká","menej ako 1,5",15]
[]
[{"$f":"IF('Rozpočet B1 - Value for Money'!$B$12>=8,CONCATENATE(\"Keďže predmetom projektu je viac ako 7 budov, hodnota Value for Money sa počíta manuálne, na základe súčtu jednotlivých COV a jednotlivých hodnôt MU P0657 uvedených v častiach „Výpočet hodnoty Value for Money“ predložených Príloh č. 6 ŽoNFP.\",\" Zároveň sa celkové hodnoty MU určia súčtom hodnôt jednotlivých MU v hárkoch „Sumárny prehľad MU“ predložených Príloh č. 6 ŽoNFP.\"),\"\")","v":""}]

{"sheet":"Individuálny hárok","index":1,"n_rows":84,"n_cols":11,"rows_kept":84,"cut":false,"hidden":true,"merged":[[83,0,83,3],[83,4,83,9],[79,0,79,5],[79,6,79,9],[80,0,80,9],[78,7,78,9],[78,3,78,6],[78,0,78,2],[77,7,77,9],[77,3,77,6],[77,0,77,2],[81,0,81,3],[81,4,81,9],[82,0,82,3],[82,4,82,9],[71,2,71,4],[71,7,71,8],[72,2,72,4],[72,7,72,8],[76,0,76,9],[73,0,75,0],[73,1,75,1],[73,2,75,4],[73,5,75,5],[73,6,75,6],[73,9,75,9],[74,7,75,7],[65,2,65,4],[65,7,65,8],[66,0,69,0],[66,1,69,1],[66,2,69,4],[66,5,69,5],[66,6,69,6],[70,2,70,4],[70,7,70,8],[55,0,58,0],[55,1,58,1],[55,2,58,4],[55,5,58,5],[55,6,58,6],[55,9,58,9],[59,0,64,0],[59,1,64,1],[59,2,64,4],[59,5,64,5],[59,6,64,6],[37,9,44,9],[49,2,49,4],[49,6,49,7],[50,2,50,4],[50,7,50,8],[51,0,54,0],[51,1,54,1],[51,2,54,4],[51,5,54,5],[51,6,54,6],[51,9,54,9],[54,7,54,8],[32,5,36,5],[32,6,32,7],[33,6,33,7],[34,6,34,7],[37,0,48,0],[37,1,48,1],[37,2,48,4],[37,5,48,5],[37,6,37,8],[46,6,46,7],[47,6,47,7],[48,6,48,7],[38,6,38,7],[39,6,39,7],[40,6,40,7],[41,6,41,7],[42,6,42,7],[43,6,43,7],[44,6,44,7],[45,6,45,7],[22,6,22,7],[35,6,35,7],[36,6,36,7],[24,6,24,7],[25,6,25,7],[26,6,26,7],[27,6,27,7],[28,6,28,7],[11,0,31,0],[11,1,31,1],[11,2,31,4],[11,5,31,5],[11,6,11,9],[12,6,12,7],[13,6,13,7],[14,6,14,7],[15,6,15,7],[16,6,16,7],[29,6,29,7],[30,6,30,7],[31,6,31,7],[32,0,36,0],[32,1,36,1],[32,2,36,4],[23,6,23,7],[0,0,0,9],[2,0,2,9],[3,0,3,1],[3,2,3,9],[4,0,4,1],[4,2,4,9],[8,0,8,1],[8,2,8,9],[9,0,9,1],[10,2,10,4],[10,6,10,8],[5,0,5,1],[5,2,5,9],[6,0,6,1],[6,2,6,9],[7,0,7,1],[7,2,7,9],[9,2,9,9],[17,6,17,7],[18,6,18,7],[19,6,19,7],[20,6,20,7],[21,6,21,7]]}
["SLOVENSKÁ INOVAČNÁ A ENERGETICKÁ AGENTÚRA AKO\nSPROSTREDKOVATEĽSKÝ ORGÁN PRE OPERAČNÝ PROGRAM KVALITA ŽIVOTNÉHO PROSTREDIA "]
[]
["Individuálny hodnotiaci hárok odborného hodnotenia žiadosti o nenávratný finančný príspevok"]
["Operačný program:",null,"Kvalita životného prostredia"]
["Prioritná os:",null,"Prioritná os 4 – Energeticky efektívne nízkouhlíkové hospodárstvo vo všetkých sektoroch"]
["Špecifický cieľ:",null,"Špecifický cieľ 4.3.1 – Zníženie energetickej náročnosti verejných budov"]
["Kód výzvy/vyzvania:",null,"OPKZP-PO4-SC431-2021-68"]
["Názov žiadateľa:",null,"Obec Podhorany"]
["Názov projektu:",null,"Stavebné úpravy ZŠ Podhorany Zníženie spotreby energie pri prevádzke "]
["Kód ŽoNFP:",null,"NFP310040BSY4"]
["P. č.","Vylučujúce hodnotiace kritériá","Hodnotená oblasť",null,null,"Výsledok posúdenia","Komentár",null,null,"Poznámka"]
["1.","1.1 Súlad projektu s intervenčnou stratégiou operačného programu","Príspevok navrhovaného projektu k cieľom a výsledkom OP a PO",null,null,{"$f":"IF(OR(I13=\"\",I14=\"\",I15=\"Potrebné zodpovedať všetky otázky nižšie\",I20=\"Potrebné zodpovedať všetky otázky nižšie\"),\"\",IF(OR(I13=\"nie\",I14=\"nie\",I15=\"nie\",I20=\"nie\"),\"NIE\",\"ÁNO\"))","v":"ÁNO"},"V rámci predmetného kritéria sa hodnotia nasledovné aspekty:"]
[null,null,null,null,null,null,"a)        Súlad projektu so špecifickým cieľom projektu. Je nevyhnutné odpovedať na otázku: Prispeje realizácia projektu k napĺňaniu špecifického cieľa - Zníženie spotreby energie pri prevádzke verejných budov?",null,"áno","Realizáca projektu \"Stavebné úpravy ZŠ Podhorany Zníženie spotreby energie pri prevádzke\" prispeje k naplneniu špecifického cieľa - Zníženie spotreby energie pri prevádzke verejných budov."]
[null,null,null,null,null,null,"b)        Súlad projektu s očakávanými výsledkami. Je nevyhnutné odpovedať na otázku: Podporí sa realizáciou projektu dosahovanie výsledkov definovaných pre danú oblasť podpory OP KŽP?",null,"áno","Realizáciou projektu sa podporí dosahovanie výsledkov definovaných pre danú oblasť podpory OP KŽP."]
[null,null,null,null,null,null,"c)        Súlad projektu s definovanými oprávnenými aktivitami.  Je nevyhnutné odpovedať na otázku: Zodpovedajú hlavné aktivity projektu z hľadiska vecného obsahu oprávneným aktivitám definovaným výzvou? (Jediným oprávneným typom aktivity je Zníženie energetickej náročnosti verejných budov)",null,{"$f":"IF(OR(I16=\"\",I17=\"\",I18=\"\",I19=\"\"),\"Potrebné zodpovedať všetky otázky nižšie\",IF(OR(I16=\"nie\",I17=\"nie\",I18=\"nie\",I19=\"nie\"),\"nie\",\"áno\"))","v":"áno"},"Hlavné aktivity projektu z hľadiska vecného obsahu zodpovedajú oprávneným aktivitám definovaných výzvou."]
[null,null,null,null,null,null,"Sú hlavné aktivity vo vecnom súlade s oprávneným typom aktivity ?",null,"áno","Hlavné aktivity sú vo vecnom súlade s oprávneným typom aktivity \"Zníženie energetickej náročnosti verejných budov\"."]
[null,null,null,null,null,null,"Bude v rámci uvedenej aktivity podpora zameraná na zníženie spotreby energie pri prevádzke verejných budov realizáciou optimálnej kombinácie nasledovných podopatrení vyplývajúcich z energetického auditu: \n• zlepšovanie tepelno-technických vlastností stavebných konštrukcií; \n• modernizácia vykurovacích/klimatizačných systémov, systémov prípravy teplej vody, osvetlenia, výťahov za účelom zníženia spotreby energie; \n• inštalácia systémov merania a riadenia; \n• zmena spôsobu zásobovania teplom smerom k využívaniu účinných systémov centrálneho zásobovania teplom (ďalej len „CZT“); \n• inštalácia zariadení na využívanie OZE pre spotrebu energie v budove.",null,"áno","V rámci uvedenej aktivity je podpora zameraná na zníženie spotreby energie pri prevádzke verejných budov realizáciou optimálnej kombinácie nasledovných podopatrení vyplývajúcich z energetického auditu: \n• zlepšovanie tepelno-technických vlastností stavebných konštrukcií; \n• modernizácia vykurovacích systémov, systémov prípravy teplej vody, osvetlenia, za účelom zníženia spotreby energie.","• inštalácia zariadení na využívanie OZE pre spotrebu energie v budove."]
[null,null,null,null,null,null,"Týka sa realizácia projektu sa týka verejných budov, ktoré spadajú do kategórie uvedenej v § 3 ods. 5, písm. c) a d) zákona o energetickej hospodárnosti budov, t. j.:\n• administratívne budovy,\n• budovy škôla školských zariadení v zriaďovateľskej  pôsobnosti žiadateľa",null,"áno","Realizácia projektu sa týka verejných budov, ktoré spadajú do kategórie uvedenej v § 3 ods. 5, písm. c) a d) zákona o energetickej hospodárnosti budov, t. j.:\n• administratívne budovy,\n• budovy škôla školských zariadení v zriaďovateľskej  pôsobnosti žiadateľa."]
[null,null,null,null,null,null,"Je budova využívaná minimálne v rozsahu 75% (percento podielu priemernej spotreby energie budovy za min. posledné 3 kalendárne roky predchádzajúce  podaniu  ŽoNFP voči celkovej ročnej potrebe energie verejnej budovy v stave pred realizáciou projektu vypočítanej projektovým energetickým hodnotením)?",null,"áno","Celková potreba energie ZŠ podľa tepelnotechnického posudku pred realizáciou opatrení je 154,74 kWh/m2. rok, čo pri podlahovej ploche 797,25 m2 predstavuje celkovú potrebu energie 123,37 MWh/rok. Keďže celková priemerná spotreba energie ZŠ je 242,88 MWh, podiel využitia budovy je 196,88 % a to z dôvodu dvojsmennej výučby. "]
[null,null,null,null,null,null,"d)     Súlad s usmerňujúcimi zásadami (osobitnými podmienkami) pre výber projektov. Je nevyhnutné zdôvodniť naplnenie týchto usmerňujúcich zásad:",null,{"$f":"IF(OR(I21=\"\",I22=\"\",I23=\"\",I24=\"\",I25=\"\",I26=\"\",I27=\"\",I28=\"\",I29=\"\",I30=\"\",I31=\"\",I32=\"\"),\"Potrebné vyplniť všetky otázky nižšie\",IF(OR(I21=\"nie\",I22=\"nie\",I23=\"nie\",I24=\"nie\",I25=\"nie\",I26=\"nie\",I27=\"nie\",I28=\"nie\",I29=\"nie\",I30=\"nie\",I31=\"nie\",I32=\"nie\"),\"nie\",\"áno\"))","v":"áno"}]
[null,null,null,null,null,null,"Týka sa realizácia projektu verejných budov, ktoré bude v zmysle plánovanej reformy verejnej správy na národnej, resp. lokálnej úrovni preukázateľne dlhodobo využívať verejný sektor a realizáciou projektu nedôjde k zmene charakteru využitia budovy?",null,"áno","Realizácia projektu sa týka verejnej budovy (ktoré bude v zmysle plánovanej reformy verejnej správy na národnej, resp. lokálnej úrovni preukázateľne dlhodobo využívať verejný sektor) a realizáciou projektu nedôjde k zmene charakteru využitia budovy."]
[null,null,null,null,null,null,"Bude obnovená budova spĺňať hornú hranicu, minimálne energetickej triedy B, pre všetky miesta spotreby energie nachádzajúce sa v budove (vykurovanie, príprava teplej vody, vetranie a chladenie, osvetlenie) bez ohľadu na požiadavky vyplývajúce z platnej legislatívy?",null,"áno","Projekt obsahuje návrh opatrení, realizáciou ktorých sa  predpokladá nasledovné zatriedenie budovy do energetickej triedy pre jednotlivé miesta spotreby energie v budove:\n- vykurovanie: B,\n- príprava teplej vody: B,\n- vetranie a chladenie: nehodnotí sa,\n- osvetlenie: A,\n- celková potreba energie: B,\na zároveň globálny ukazovateľ - primárna energia  obnovovanej budovy, energetická trieda:  A1."]
[null,null,null,null,null,null,"Dosiahne sa realizáciou projektu sa  plánovaná úspora potreby energie na vykurovanie vo výške minimálne 30 %?",null,"áno","Realizáciou projektu sa  dosiahne plánovaná úspora potreby energie na vykurovanie 69,03 %."]
[null,null,null,null,null,null,"Sú opatrenia na úsporu energie v budove navrhnuté nad rámec splnenia minimálnych požiadaviek na energetickú hospodárnosť budov podľa všeobecne záväzných právnych predpisov tak, aby sa potreba energie znížila na úroveň nízkoenergetických budov, ultranízkoenergetických budov a budov s takmer nulovou potrebou energie?\n(- pre projekty so žiadosťou o vydanie stavebného povolenia s termínom po 31. decembri 2015 je minimálnou požiadavkou pre globálny ukazovateľ horná hranica energetickej triedy A1. \n-pre projekty so žiadosťou o vydanie stavebného povolenia s termínom po 31. decembri 2018 je požiadavkou pre globálny ukazovateľ horná hranica energetickej triedy A0. Splnenie minimálnej požiadavky sa preukazuje podľa § 4 ods. 1 zákona 555/2005 o energetickej hospodárnosti budov a o zmene a doplnení niektorých zákonov v znení neskorších predpisov) \nAk nie je technicky alebo funkčne uskutočniteľné dosiahnuť pre danú budovu energetickú triedu A0, je táto skutočnosť zdôvodnená?",null,"áno","Budova Základnej školy - dátum vydania stavebného povolenia 16.09.2021, dosiahnutý globálny ukazovateľ primárna energia po realizácii projektu A1, skutočnosť, že po realizácii navrhnutých opatrení budova nedosiahne globálny ukazovateľ primárna energia A0 je dostatočne zdôvodnené.",{"$f":"'MU Budova 1'!K28","v":"2021-09-16"}]
[null,null,null,null,null,null,"Ak je predmetom projektu aj OZE, je inštalácia zariadenia na využívanie OZE realizovaná ako súčasť komplexného projektu na zlepšenie energetickej hospodárnosti verejných budov t. j. v kombinácii s iným / inými podopatreniami?",null,"irelevantné","Predmetom projektu nie je inštalácia zariadenia na využívanie OZE."]
[null,null,null,null,null,null,"Je projekt navrhnutý tak, aby nezahŕňal odpojenie od účinných systémov CZT  v rozpore s národnou legislatívou?",null,"áno","Objekt nie je pripojený na účinný sytém CZT."]
[null,null,null,null,null,null,"Je projekt navrhnutý tak, aby sa inštaláciou obnoviteľných zdrojov energie nezvýšili emisie znečisťujúcich látok do ovzdušia v porovnaní so súčasným stavom v predmetnej lokalite? (relevantné len v prípade OZE)",null,"irelevantné","Predmetom projektu nie je inštalácia zariadenia na využívanie OZE."]
[null,null,null,null,null,null,"Je v prípade projektov zameraných na využívanie biomasy preukázané splnenie kritérií udržateľnosti jej využívania (Kritériá udržateľného využívania biomasy v regiónoch Slovenska pre programy SR na obdobie 2014 - 2020 spolufinancované z EŠIF – so zameraním na drevnú biomasu; dokument je prístupný prostredníctvom linku: http://www.op-kzp.sk/ine-dokumenty/)?",null,"irelevantné"]
[null,null,null,null,null,null,"Je projekt koncipovaný tak, že neobsahuje aktivity, ktoré nesúvisia so zlepšením energetickej hospodárnosti budov (napr. nadstavba, prístavba budovy)?",null,"áno","Projekt neobsahuje aktivity, ktoré nesúvisia so zlepšením energetickej hospodárnosti budov (napr. nadstavba, prístavba budovy)."]
[null,null,null,null,null,null,"Je realizácia projektu navrhovaná na základe vypracovaného energetického auditu, ktorý v procese odborného hodnotenia umožňuje overiť:\n- výpočet plánovaného ročného objemu úspory PEZ na m2 celkovej podlahovej plochy;\n- technickú uskutočniteľnosť navrhovaných energetických opatrení?",null,"áno","Realizácia projektu je navrhovaná na základe vypracovaného energetického auditu, ktorý v procese odborného hodnotenia umožňuje overiť  výpočet plánovaného ročného objemu úspory PEZ na m2 celkovej podlahovej plochy a technickú uskutočniteľnosť navrhovaných energetických opatrení."]
[null,null,null,null,null,null,"Je realizácia projektu navrhnutá v súlade so Stratégiou pre redukciu PM10?",null,"áno","Realizácia projektu je navrhnutá v súlade so Stratégiou pre redukciu PM10."]
[null,null,null,null,null,null,"Je projekt realizovaný v súlade s programami na zlepšenie kvality ovzdušia?",null,"áno","Projekt je realizovaný v súlade s programami na zlepšenie kvality ovzdušia."]
["2.","4.1 Účelnosť a vecná oprávnenosť výdavkov projektu","Finančná a ekonomická stránka projektu",null,null,{"$f":"IF(I37=\"\",\"\",IF(I37>0.25,\"NIE\",\"ÁNO\"))","v":"ÁNO"},"Na základe údajov uvedených vo formulári ŽoNFP, prílohe č. 6 ŽoNFP (rozpočet projektu) a ostatnej dokumentácii ŽoNFP je suma celkových oprávnených výdavkov žiadaných zo strany žiadateľa:",null,214690.31]
[null,null,null,null,null,null,"Na základe podrobného posúdenia deklarovaných výdavkov z pohľadu riadiacej dokumentácie (Výzvy/Príručky pre žiadateľa/Príručky k oprávnenosti výdavkov pre dopytovo orientované projekty Operačného programu Kvalita životného prostredia) boli ako vecne neoprávnené, resp. neúčelné identifikované výdavky v sume:",null,{"$f":"I35+I36","v":0}]
[null,null,null,null,null,null,"Z toho ako výdavky nie nevyhnutné/neúčelné pre realizáciu projektu boli vyhodnotené výdavky v sume:",null,0,{"$f":"IF(I35<>0,\"Uviesť presné položky v rozpočte projektu\",\"\")","v":""}]
[null,null,null,null,null,null,"Z toho ako vecne neoprávnené boli vyhodnotené výdavky:",null,0,{"$f":"IF(I36<>0,\"Uviesť presné položky v rozpočte projektu\",\"\")","v":""}]
[null,null,null,null,null,null,"Na základe vyššie uvedených skutočností možno konštatovať, že percento neoprávnených, resp. neúčelných výdavkov k celkovým žiadaným oprávneným výdavkom je na úrovni:",null,{"$f":"IFERROR(I34/I33,\"\")","v":0}]
["3.","4.2 Hospodárnosť a efektívnosť výdavkov projektu","Finančná a ekonomická stránka projektu",null,null,{"$f":"IF(OR(I46=\"\",I47=\"\",I48=\"\",I49=\"\"),\"\",\"ÁNO\")","v":"ÁNO"},"Údaje o finančnej stránke projektu:"]
[null,null,null,null,null,null,"• žiadaná výška celkových oprávnených výdavkov: suma (v EUR);",null,{"$f":"I33","v":214690.31}]
[null,null,null,null,null,null,"• celkové oprávnené výdavky po OH: suma (v EUR), 100  %, (vždy 100 %); ",null,{"$f":"I39-I41","v":214690.31}]
[null,null,null,null,null,null,"• neoprávnené výdavky identifikované v OH: suma (v EUR);",null,{"$f":"I34","v":0}]
[null,null,null,null,null,null,"• nenávratný finančný príspevok: suma (v EUR), percentuálny podiel (v %);         95%",null,{"$f":"0.95*I40","v":203955.79449999999}]
[null,null,null,null,null,null,"• EÚ zdroje v pomere k COV po OH: suma (v EUR), percentuálny podiel (v %);       85%",null,{"$f":"0.85*I40","v":182486.7635}]
[null,null,null,null,null,null,"• ŠR zdroje v pomere k COV po OH: suma (v EUR), percentuálny podiel (v %);       10%",null,{"$f":"0.1*I40","v":21469.031000000003}]
[null,null,null,null,null,null,"• žiadateľ v pomere k COV po OH: suma (v EUR), percentuálny podiel (v %).           5%",null,{"$f":"0.05*I40","v":10734.515500000001}]
[null,null,null,null,null,null,"1. Je referenčná hodnota vypočítaná správne?",null,"áno","Referenčné hodnoty sú vypočítané správne."]
[null,null,null,null,null,null,"2. Je dodržaná referenčná hodnota, resp. je v prípade prekročenia referenčnej hodnoty uvedené relevantné zdôvodnenie prekročenia prekročenia objektívnymi činiteľmi ovplyvňujúcimi zvýšenú investičnú náročnosť ? Žiadosť o NFP postupuje do ďalšieho hodnotenia a tieto výdavky budú znížené na úroveň referenčných hodnôt (projekt nebude diskvalifikovaný)",null,"áno","Referenčné hodnoty sú dodržané."]
[null,null,null,null,null,null,"3. Je k dispozícii zrealizované verejné obstarávanie pred podaním žiadosti o NFP na všetky položky /výdavky?",null,"áno","Na všetky položky /výdavky bolo zrealizované verejné obstarávanie pred podaním žiadosti o NFP."]
[null,null,null,null,null,null,"4. Sú jednotkové ceny, alebo ceny uvedené v rozpočte projektu najnižšími/ekonomicky najvýhodnejšími cenami, resp. priemernými cenami zistenými v rámci verejného obstarávania?",null,"áno","Jednotkové ceny, alebo ceny uvedené v rozpočte projektu sú najnižšími/ekonomicky najvýhodnejšími cenami, resp. priemernými cenami zistenými v rámci verejného obstarávania."]
["4.","4.4 Finančná udržateľnosť projektu","Finančná a ekonomická stránka projektu",null,null,{"$f":"IF(I50=\"áno\",\"ÁNO\",IF(I50=\"nie\",\"NIE\",\"\"))","v":"ÁNO"},"Preukázal žiadateľ zabezpečenie finančnej udržateľnosti projektu? ",null,"áno","Posudzovaný projekt je s výškou oprávnených výdavkov do 1 mil. EUR. Pri posudzovaní finančnej udržateľnosti projektu bolo vychádzané z údajov uvedených vo formulári žiadosti o NFP. V ňom žiadateľ dostatočne popísal situáciu po realizácii projektu a finančnú udržateľnosť predkladaného projektu. "]
["P. č.","Bodované hodnotiace kritériá","Hodnotená oblasť",null,null,"Dosiahnuté bodové hodnotenie","Maximálne bodové hodnotenie","Komentár",null,"Poznámka"]
["1.","1.2 Príspevok projektu k príslušnému špecifickému cieľu operačného programu","Príspevok navrhovaného projektu k cieľom a výsledkom OP a PO",null,null,{"$f":"IF(I54=\"\",\"\",IF(I54>2.5,5,IF(I54<1.5,15,10)))","v":10},15,"Na základe odborného posúdenia je výška celkových oprávnených výdavkov projektu bez DPH:",{"$f":"I40/1.2","v":178908.59166666667}]
[null,null,null,null,null,null,null,"Na základe odborného posúdenia je hodnota MU P0689 – Zníženie potreby energie vo verejných budovách na úrovni:",{"$f":"'MU Budova 1'!H84","v":89572.481600000014}]
[null,null,null,null,null,null,null,"Hodnota Value for money je na úrovni:",{"$f":"IFERROR(I52/I53,\"\")","v":1.9973611143834453}]
[null,null,null,null,null,null,null,{"$f":"IF(F52=15,\"Vzhľadom k dosiahnutej hodnote Value for money možno konštatovať, že sa jedná o vysokú mieru príspevku\",IF(F52=10,\"Vzhľadom k dosiahnutej hodnote Value for money možno konštatovať, že sa jedná o strednú mieru príspevku\",IF(F52=5,\"Vzhľadom k dosiahnutej hodnote Value for money možno konštatovať, že sa jedná o nízku mieru príspevku\",\"\")))","v":"Vzhľadom k dosiahnutej hodnote Value for money možno konštatovať, že sa jedná o strednú mieru príspevku"}]
["2.","1.3 Relevancia projektu k RIÚS/SURM/NUS","Príspevok navrhovaného projektu k cieľom a výsledkom OP a PO",null,null,{"$f":"IF(AND(I56=\"\",I57=\"\"),\"\",IF(I56=\"áno\",4,IF(I57=\"áno\",2,IF(I59=\"áno\",2,0))))","v":4},4,"Je projekt realizovaný na území aspoň jedného z okresov zaradeného do zoznamu najmenej rozvinutých okresov (platnom ku dňu predloženia ŽoNFP) vedeným Ústredím práce, sociálnych vecí a rodiny?","áno","Projekt je realizovaný v okrese Kežmarok, pričom tento okres je zapísaný v zozname najmenej rozvinutých okresov vedeným Ústredím práce, sociálnych vecí a rodiny."]
[null,null,null,null,null,null,null,"Je žiadateľom subjekt ústrednej štátnej správy?"]
[null,null,null,null,null,null,null,"Pre túto žiadosť o NFP je relevantná nasledujúca stratégia, dostupná v ITMS 2014+, resp. na webovom sídle uvedenom vo výzve:"]
[null,null,null,null,null,null,null,"Bola predmetná žiadosť o NFP v čase predloženia evidovaná v zozname relevantnej stratégie?"]
["3.","2.1 Vhodnosť a prepojenosť navrhovaných aktivít projektu vo vzťahu k východiskovej situácii a k stanoveným cieľom a výsledkom projektu","Navrhovaný spôsob realizácie projektu",null,null,{"$f":"IF(OR(I60=\"\",I61=\"\",I62=\"\",I63=\"\",I64=\"\",I65=\"\"),\"\",IF(AND(I60=\"áno\",I61=\"áno\",I62=\"áno\",I63=\"áno\",I64=\"áno\",I65=\"áno\"),6,IF(AND(I60=\"áno\",I61=\"áno\",I62=\"áno\",I63=\"áno\",I64=\"áno\",I65=\"nie\"),3,0)))","v":6},6,"Je navrhovaný projekt orientovaný na riešenie potrieb cieľových skupín v mieste realizácie projektu?","áno","Navrhovaný projekt je orientovaný na riešenie potrieb cieľových skupín v mieste realizácie projektu."]
[null,null,null,null,null,null,null,"Sú žiadateľom identifikované potreby cieľových skupín v mieste realizácie projektu v súlade so špecifickými cieľmi a výsledkami OP KŽP pre danú oblasť podpory?","áno","Žiadateľom sú identifikované potreby cieľových skupín v mieste realizácie projektu v súlade so špecifickými cieľmi a výsledkami OP KŽP pre danú oblasť podpory."]
[null,null,null,null,null,null,null,"Nadväzujú výstupy projektu na existujúcu environmentálnu infraštruktúru v mieste realizácie projektu?","áno","Výstupy projektu nadväzujú na existujúcu environmentálnu infraštruktúru v mieste realizácie projektu."]
[null,null,null,null,null,null,null,"Sú výstupy projektu navrhnuté tak, aby neboli v protiklade s existujúcou environmentálnou, resp. inou relevantnou infraštruktúrou v mieste realizácie projektu?","áno","Výstupy projektu sú navrhnuté tak, aby neboli v protiklade s existujúcou environmentálnou, resp. inou relevantnou infraštruktúrou v mieste realizácie projektu."]
[null,null,null,null,null,null,null,"Je prostredníctvom realizácie hlavných aktivít projektu reálne očakávať dosiahnutie deklarovanej cieľovej hodnoty MU P0689 – Zníženie potreby energie vo verejných budovách?","áno","Prostredníctvom realizácie hlavných aktivít projektu je reálne očakávať dosiahnutie deklarovanej cieľovej hodnoty MU P0689 – Zníženie potreby energie vo verejných budovách 89 572,48 kWh/rok."]
[null,null,null,null,null,null,null,"Je prostredníctvom realizácie hlavných aktivít projektu reálne očakávať aj dosiahnutie deklarovaných cieľových hodnoty ostatných merateľných ukazovateľov projektu (okrem MU v hodnotiacej otázke 5)?","áno","Prostredníctvom realizácie hlavných aktivít projektu je reálne očakávať aj dosiahnutie deklarovaných cieľových hodnoty ostatných merateľných ukazovateľov projektu."]
["4.","2.2 Reálnosť aktivít projektu vo vzťahu k navrhovanému časovému harmonogramu projektu","Navrhovaný spôsob realizácie projektu",null,null,3,3,"Hodnotiteľ pridelí 0 bodov ak etapizácia projektu obsahuje aspoň jeden z nasledovných nedostatkov, ktorý môže mať vplyv na dodržanie celkovej žiadateľom stanovenej dĺžky realizácie projektu a/alebo ohrozenie dosiahnutia cieľa a výsledkov projektu:\na) časovo nevhodne (nelogicky) nadväzujúce aktivity projektu;\nb) realizáciu aspoň jednej z aktivít projektu v neprimerane krátkej lehote;\nc) realizáciu aspoň jednej z aktivít projektu v neprimerane dlhej lehote;\nd) aspoň jeden termín, ktorý je v rozpore s dodržaním lehoty uvedenej v právoplatnom povolení/rozhodnutí orgánu verejnej správy vydanom v súvislosti s realizáciou projektu (ak relevantné) a ktorý nie je prípustné zmeniť v zmysle legislatívnych podmienok, prípadne okolností definovaných výzvou.\n\nHodnotiteľ pridelí 2 body, ak etapizácia projektu obsahuje aspoň jeden z nasledovných nedostatkov, ktorý však nemá vplyv na dodržanie celkovej, žiadateľom stanovenej, dĺžky realizácie projektu a/alebo ohrozenie dosiahnutia cieľa a výstupov projektu: \na) časovo nevhodne (nelogicky) nadväzujúce aktivity projektu;\nb) realizáciu aspoň jednej z aktivít projektu v neprimerane krátkej lehote, resp. v lehote kratšej, ako je stanovená príslušnými predpismi;\nc) realizáciu aspoň jednej z aktivít projektu v neprimerane dlhej lehote;\nd) aspoň jeden termín, ktorý je v rozpore s dodržaním lehoty uvedenej v právoplatnom povolení/rozhodnutí orgánu verejnej správy vydanom v súvislosti s realizáciou projektu (ak relevantné) a ktorý nie je prípustné zmeniť v zmysle legislatívnych; podmienok, prípadne okolností definovaných výzvou.\n\nHodnotiteľ pridelí 3 body, ak je etapizácia projektu vnútorne súladná, aktivity sú logicky nadväzujúce a nastavené realisticky z hľadiska ich trvania a z hľadiska dosiahnutia výstupov projektu.\n",null,"V ŽoNFP je deklarovaná dĺžka realizácie projektu 6 mesiace. Taktiež je zabezpečený súlad uvádzaných termínov: celkový termín začatia 4.2022 a ukončenia realizácie projektu 9.2022.\nHlavné aktivity projektu sú uvedené v časovom harmonograme projektu z hľadiska reálnosti ich predpokladaného trvania  a trvania v zmysle hodnôt uvedených v prílohách ŽoNFP, ktoré boli vydané v súvislosti s realizáciou projektu orgánmi verejnej správy.\nEtapizácia projektu je vnútorne súladná, aktivity sú logicky nadväzujúce a nastavené realisticky z hľadiska ich trvania a z hľadiska dosiahnutia výstupov projektu."]
["5.","2.3 Vhodnosť a uskutočniteľnosť aktivít projektu z hľadiska navrhovaných postupov","Navrhovaný spôsob realizácie projektu",null,null,{"$f":"IF(OR(I67=\"\",I68=\"\",I69=\"\",I70=\"\"),\"\",IF(I67=\"nie\",\"Neoprávnený projekt\",IF(AND(I69=\"áno\",I70=\"áno\"),6,3)))","v":3},6,"Umožnia navrhované postupy realizácie hlavných aktivít projektu dosiahnuť minimálnu akceptovateľnú kvalitatívnu úroveň výstupov projektu (energetickú triedu B pre jednotlivé miesta spotreby a dosiahnutie minimálne hornej hranice energetickej triedy B pre globálny ukazovateľ – primárna energia)?","áno"]
[null,null,null,null,null,null,null,"Umožnia navrhované postupy realizácie hlavných aktivít projektu dosiahnuť žiadateľom deklarovanú kvalitatívnu úroveň výstupov projektu (žiadateľom deklarovanú energetickú triedu minimálne pre jedno jednotlivé miesto spotreby alebo hornú hranicu energetickej triedy inú ako B pre globálny ukazovateľ – primárna energia)? Odpoveď: ÁNO/NIE.","áno"]
[null,null,null,null,null,null,null,"Umožnia navrhované postupy realizácie hlavných aktivít projektu dosiahnuť žiadateľom deklarovanú kvalitatívnu úroveň výstupov projektu (žiadateľom deklarovanú energetickú triedu pre všetky jednotlivé miesta spotreby a pre hornú hranicu energetickej triedy inú ako B pre globálny ukazovateľ – primárna energia)? Odpoveď: ÁNO/NIE.","áno"]
[null,null,null,null,null,null,null,"Dosiahne sa realizáciou projektu energetická trieda A0 pre globálny ukazovateľ – primárna energia pre všetky hlavné aktivity projektu? Odpoveď: ÁNO/NIE","nie","Realizáciou projektu sa nedosiahne energetická trieda A0 pre globálny ukazovateľ – primárna energia."]
["6.","3.1 Kapacita žiadateľa na riadenie projektu","Administratívna a prevádzková kapacita žiadateľa",null,null,1,3,"Hodnotiteľ pridelí „0“ bodov, ak administratívne kapacity žiadateľa na riadenie projektu podľa podmienok definovaných v príslušnej riadiacej dokumentácii pre implementáciu projektov v rámci OP KŽP sú nedostatočné z hľadiska ich počtu, kvalifikovanosti a skúseností s riadením obdobných/porovnateľných projektov. \nTo znamená, že žiadateľ nemá zabezpečené riadenie projektu:\na)  internými kapacitami primeranými rozsahu predkladaného projektu a ani \nb)  externými kapacitami primeranými rozsahu predkladaného projektu.\n\nHodnotiteľ pridelí „1“ bod, ak interné administratívne kapacity žiadateľa na riadenie projektu podľa podmienok definovaných v príslušnej riadiacej dokumentácii pre implementáciu projektov v rámci OP KŽP sú síce dostatočné z hľadiska ich počtu a kvalifikovanosti, ale bez preukázateľných skúseností žiadateľa s riadením obdobných/porovnateľných projektov. \nTo znamená, že žiadateľ má zabezpečené riadenie projektu internými/externými kapacitami primeranými rozsahu predkladaného projektu, ale nerealizoval žiadny obdobný/porovnateľný projekt.\n\nHodnotiteľ pridelí „3“ body, ak administratívne kapacity žiadateľa na riadenie projektu podľa podmienok definovaných v príslušnej riadiacej dokumentácii pre implementáciu projektov v rámci OP KŽP sú dostatočné.\nŽiadateľ má zabezpečené, resp. deklaruje zabezpečenie riadenia projektu: \na) internými kapacitami primeranými rozsahu predkladaného projektu, ktoré majú zároveň skúsenosti s riadením aspoň jedného obdobného/porovnateľného projektu alebo \nb) externými kapacitami so skúsenosťami v oblasti riadenia aspoň jedného obdobného/porovnateľného projektu",null,"Zodpovednosť za riadenie projektu počas jeho realizácie bude v kompetencii žiadateľa. Žiadateľ bude  mať dostatočne zabezpečené interné a externé riadenie projektu personálnymi kapacitami z hľadiska ich počtu, kvalifikovanosti a skúseností s riadením projektov.\nŽiadateľ nepreukázal dostatočné skúsenosti s interným riadením obdobných/porovnateľných projektov spolufinancovaných z fondov EÚ, alebo iných verejných zdrojov.\nObdobný/porovnateľný projekt je projekt s hodnotou\n128 814,19 €, čo predstavuje minimálne 60% hodnoty celkových oprávnených výdavkov predkladaného projektu.",{"$f":"I39*0.6","v":128814.18599999999}]
["7.","3.2  Kapacita žiadateľa na realizáciu projektu","Administratívna a prevádzková kapacita žiadateľa",null,null,4,4,"Hodnotiteľ pridelí „0“ bodov, ak žiadateľ:\na) nedisponuje adekvátnym legislatívnym a materiálno-technickým zázemím a dostatočnými internými odbornými kapacitami s náležitou odbornou spôsobilosťou a know-how (napr. skúsenosti, informácie pre technické uskutočnenie, pre oblasť výroby a pod.) pre realizáciu projektu v danej oblasti, a súčasne\nb)  nemá zabezpečené adekvátne legislatívne a materiálno-technické zázemie a dostatočné odborné kapacity s náležitou odbornou spôsobilosťou a know-how pre realizáciu projektu v danej oblasti prostredníctvom externého dodávateľa.\n\nHodnotiteľ pridelí „4“ body, ak žiadateľ:\na) disponuje adekvátnym legislatívnym a materiálno-technickým zázemím a dostatočnými internými odbornými kapacitami s náležitou odbornou spôsobilosťou a know-how pre realizáciu projektu v danej oblasti, a/alebo\nb)  má zabezpečené adekvátne legislatívne a materiálno-technické zázemie a dostatočné odborné kapacity s náležitou odbornou spôsobilosťou a know-how pre realizáciu projektu v danej oblasti prostredníctvom externého dodávateľa.",null,"Žiadateľ disponuje potrebným  materiálno-technickým zabezpečením a dostatočnými administratívnymi kapacitami s náležitou odbornou spôsobilosťou a know-how pre realizáciu projektu. Technickú stránku projektu bude zabezpečovať dodávateľ stavby vybraný v súlade s pravidlami verejného obstarávania."]
["8.","3.3   Prevádzková kapacita žiadateľa","Administratívna a prevádzková kapacita žiadateľa",null,null,3,3,"Hodnotiteľ pridelí „0“ bodov, ak žiadateľ:\na) nedisponuje adekvátnym legislatívnym a materiálno-technickým zázemím a dostatočnými internými odbornými kapacitami s náležitou odbornou spôsobilosťou a know-how pre realizáciu projektu v danej oblasti, a súčasne\nb)  nemá zabezpečené adekvátne legislatívne a materiálno-technické zázemie a dostatočné odborné kapacity s náležitou odbornou spôsobilosťou a know-how pre realizáciu projektu v danej oblasti prostredníctvom externého dodávateľa.\n\nHodnotiteľ pridelí „3“ body, ak žiadateľ:\na) disponuje adekvátnym  legislatívnym a materiálno-technickým zázemím a dostatočnými internými odbornými kapacitami s náležitou odbornou spôsobilosťou a know-how pre zabezpečenie prevádzky projektu v danej oblasti, a/alebo \nb) má zabezpečené adekvátne legislatívne a materiálno-technické zázemie a dostatočné odborné kapacity s náležitou odbornou spôsobilosťou a know-how pre zabezpečenie prevádzky  projektu v danej oblasti prostredníctvom  externého dodávateľa.",null,"Žiadateľ disponuje adekvátnym legislatívnym a materiálno-technickým zázemím a dostatočnými odbornými kapacitami s náležitou odbornou spôsobilosťou a know-how na zabezpečenie prevádzky projektu v danej oblasti prostredníctvom interných, prípadne externých kapacít."]
["9.","4.3 Finančná charakteristika žiadateľa","Finančná a ekonomická stránka projektu",null,null,{"$f":"IF(I74=\"\",\"\",IF(I74='Číselníky (2)'!A7,6,IF(I75<5,0,IF(I75>7,6,3))))","v":6},6,"Právna forma žiadateľa je:","2. subjekt územnej samosprávy"]
[null,null,null,null,null,null,null,"Index VS v zmysle Ukazovateľov hodnotenia finančnej sitácie žiadateľa je na úrovni:",7.84]
[null,null,null,null,null,null,null,null,{"$f":"IF(I75=\"\",\"\",IF(I75<5,\"subjekt s veľmi silnými finančnými problémami\",IF(I75>7,\"subjekt s dobrou finančno-ekonomickou situáciou\",\"subjekt s neurčitou finančnou situáciou\")))","v":"subjekt s dobrou finančno-ekonomickou situáciou"}]
["Sumár:"]
["Dosiahnuté bodové hodnotenie",null,null,"Maximálne bodové hodnotenie",null,null,null,"Podiel dosiahnutého bodového hodnotenia z maximálneho bodového hodnotenia (%)"]
[{"$f":"IFERROR(F52+F56+F60+F66+F67+F71+F72+F73+F74,\"\")","v":40},null,null,50,null,null,null,{"$f":"IFERROR(A79/D79,\"\")","v":0.8}]
["Výsledok odborného hodnotenia:",null,null,null,null,null,{"$f":"IF(AND(F12=\"ÁNO\",F33=\"ÁNO\",F38=\"ÁNO\",F50=\"ÁNO\",A79>=30),'Číselníky (2)'!A30,IF(OR(OR(F12=\"NIE\",F33=\"NIE\",F38=\"NIE\",F50=\"NIE\"),A79<30),'Číselníky (2)'!A31,\"Potrebné vyplniť všetky kritériá\"))","v":"kritériá odborného hodnotenia splnené"}]
[]
["Vypracoval:",null,null,null,"Ing. Jana Feriancová"]
["Dátum:",null,null,null,"2022-02-17"]
["Podpis:"]

{"sheet":"MU Budova 1","index":2,"n_rows":98,"n_cols":18,"rows_kept":98,"cut":false,"hidden":true,"merged":[[32,8,32,12],[37,8,37,12],[36,8,36,12],[35,8,35,12],[34,8,34,12],[33,8,33,12],[25,5,25,6],[28,0,28,3],[28,4,28,6],[27,8,27,9],[24,8,24,9],[25,8,25,9],[19,5,19,6],[20,5,20,6],[27,0,27,3],[12,0,12,2],[12,3,12,6],[22,0,22,1],[22,3,22,4],[22,5,22,6],[23,0,23,1],[23,3,23,4],[23,5,23,6],[24,0,24,1],[24,3,24,4],[24,5,24,6],[25,0,25,1],[25,3,25,4],[1,0,1,12],[9,1,9,12],[10,1,10,12],[7,7,7,12],[6,0,6,12],[7,0,7,6],[47,0,47,3],[50,0,50,3],[65,0,65,3],[49,0,49,12],[40,0,40,3],[41,0,41,3],[42,0,42,3],[43,0,43,3],[44,0,44,3],[45,0,45,3],[46,0,46,3],[63,0,63,3],[80,1,80,4],[81,1,81,4],[69,0,69,1],[30,0,30,12],[72,0,72,2],[36,6,36,7],[37,6,37,7],[72,3,72,7],[31,6,31,7],[32,6,32,7],[33,6,33,7],[34,6,34,7],[35,6,35,7],[68,0,68,1],[66,0,66,1],[67,0,67,1],[88,1,88,4],[89,1,89,4],[90,1,90,4],[82,1,82,4],[73,1,73,4],[83,1,83,4],[84,1,84,4],[85,1,85,4],[86,1,86,4],[87,1,87,4],[74,1,74,4],[75,1,75,4],[76,1,76,4],[77,1,77,4],[78,1,78,4],[79,1,79,4],[12,8,12,12],[21,5,21,6],[27,4,27,6],[19,3,19,4],[21,0,21,1],[19,0,19,1],[20,0,20,1],[21,3,21,4],[14,0,14,5],[14,8,15,11],[14,12,15,12],[15,0,15,5],[16,0,16,5],[16,8,17,10],[17,0,17,5],[20,3,20,4]]}
[]
["Príloha ŽoNFP č. 6 - Dokumentácia k oprávnenosti výdavkov"]
[]
[]
[]
[]
[{"$f":"IF(ISERROR(MacrosEnabled()&NOW()),\"Makrá sú vypnuté. Pre vypracovanie hárku ich, prosím, dočasne zapnite.\",\"\")","v":""}]
["Merateľné ukazovateľe  -  Budova č. 1",null,null,null,null,null,null,{"$f":"IF('Rozpočet B1 - Value for Money'!G12=\"\",\"\",\" -  súpis. č. \"&'Rozpočet B1 - Value for Money'!G12)","v":" -  súpis. č. 68"}]
[]
["Názov žiadateľa:",{"$f":"IF('Rozpočet B1 - Value for Money'!B9:O9=\"\",\"\",'Rozpočet B1 - Value for Money'!B9:O9)","v":"Obec Podhorany"}]
["Názov projektu:",{"$f":"IF('Rozpočet B1 - Value for Money'!B10:O10=\"\",\"\",'Rozpočet B1 - Value for Money'!B10:O10)","v":"Stavebné úpravy ZŠ Podhorany Zníženie spotreby energie pri prevádzke "}]
[]
["Využitie budovy ",null,null,{"$f":"IFERROR(IF(H82/(E64)>=0.75,Číselníky!C20,Číselníky!C19),\"\")","v":"Podmienka je splnená"},null,null,null,null,{"$f":"IF(OR(O15=0,O16=0,O17=0,O18=0,O19=0),\"Minimálne jedna podmienka výzvy nie je splnená (riadky 15-18)\",IF(K25<30,\"Podmienka plánovanej úspory potreby energie na vykurovanie nie je splnená\",\"\"))","v":""},null,null,null,null,null,{"$f":"IF(D13=Číselníky!C19,0,1)","v":1}]
[]
["Bude budova preukázateľne dlhodobo využívaná verejným sektorom bez zmeny charakteru jej využitia v zmysle výzvy?",null,null,null,null,null,"áno",null,"Ak je budova pripojená k účinným (efektívnym) systémom centralizovaného zásobovania teplom, zostane pripojená aj po ukončení realizácie projektu v zmysle výzvy?",null,null,null,"irelevantné",null,{"$f":"IF(G15=Číselníky!A3,0,1)","v":1}]
["Bude dosiahnutá plánovaná úspora potreby energie na vykurovanie vo výške min. 30% v zmysle výzvy?",null,null,null,null,null,{"$f":"IF($K$26=\"\",\"\",IF($K$26=100,Číselníky!$A$3,Číselníky!$A$2))","v":"áno"},null,null,null,null,null,null,null,{"$f":"IF(G16=Číselníky!A3,0,1)","v":1}]
["Je hlavná aktivita v súlade so Stratégiou pre redukciu PM10 a programami na zlepšenie kvality ovzdušia v zmysle výzvy?",null,null,null,null,null,"áno",null,"Ak je súčastou aktivity energetické zariadenie využívajúce biomasu, je a bude využívané?",null,null,"Ku dňu predloženia ŽoNFP","Po ukončení realizácie projektu",null,{"$f":"IF(G17=Číselníky!A3,0,1)","v":1}]
["Ak relevantné, je hlavná aktivita v súlade s Kritériami udržateľného využívania biomasy v zmysle výzvy?",null,null,null,null,null,"irelevantné",null,null,null,null,"irelevantné","irelevantné",null,{"$f":"IF(G18=Číselníky!A3,0,1)","v":1}]
[null,null,null,null,null,null,null,null,null,null,null,null,null,null,{"$f":"IF(M15=Číselníky!A3,0,1)","v":1}]
["Využívanie verejnej budovy na hospodársku činnosť",null,"Merná jednotka","Stav PRED realizáciou projektu",null,"Stav PO realizácii projektu"]
["Celková podlahová plocha verejnej budovy (v zmysle Príkladu)",null,"[ m2h ]",797.25,null,839.54,null,null,null,null,null,null,null,null,{"$f":"IF(ISNUMBER(F21),1,0)","v":1}]
["Podlahová plocha využívaná na sprievodnú hospodársku činnosť v rámci definície zmiešaného využitia budovy (v zmysle Príkladu)",null,"[ m2h ]",0,null,0,null,null,null,null,null,null,null,null,{"$f":"IF(ISNUMBER(F22),1,0)","v":1}]
["Podlahová plocha využívaná na hospodársku činnosť mimo definície zmiešaného využitia budovy ",null,"[ m2h ]",0,null,0,null,null,null,null,null,null,null,null,{"$f":"IF(ISNUMBER(F23),1,0)","v":1}]
["Podiel podlahovej plochy zmiešaného využitia budovy",null,"[%]",{"$f":"IFERROR((D22/D21)*100,0)","v":0},null,{"$f":"IFERROR((F22/F21)*100,0)","v":0}]
["Podiel podlahovej plochy hospodárskej činnosti budovy",null,"[%]",{"$f":"IFERROR((D23/D21)*100,0)","v":0},null,{"$f":"IFERROR((F23/F21)*100,0)","v":0},null,null,"Plánovaná úspora energie na vykurovanie  [ % ]",null,{"$f":"IF(OR(E33=\"\",F33=\"\"),\"\",((E33-F33)/E33*100))","v":69.031911629334147}]
["Celkové percentuálne zníženie OV ",null,"[%]",0,null,{"$f":"IFERROR(IF(F24>20,SUM(F24:G25),F25),0)","v":0},null,null,"Celkové zníženie OV  [ % ]",null,{"$f":"IF(OR(E33=\"\",F33=\"\"),\"\",IF(K25<30,100,IF(AND(K25>=30,K25<=40),10,IF(AND(K25>=40,K25<=50),5,IF(K25>50,0)))))","v":0}]
[]
["Kategória budovy",null,null,null,"budova škôl a školských zariadení",null,null,null,"Dátum vydania stavebného povolenia",null,"2021-09-16","stavebné povolenie"]
["Počet opatrení na zníženie SPOTREBY energie realizovaných v predmetnej budove",null,null,null,3]
[]
["Príloha č. 4 - Povolenie na realizáciu projektu \nPríloha č. 5 - Projektová dokumentácia - ENERGETICKÉ HODNOTENIE"]
["Podklady k stanoveniu úspory energie",null,null,null,"Stav PRED realizáciou projektu","Stav PO realizácii projektu","Energetická trieda po realizácii projektu",null,"ok"]
["Potreba energie na vykurovanie",null,null,"[kWh/m2.rok]",130.36000000000001,40.369999999999997,{"$f":"IF(E28=\"\",\"Vyplňte kategóriu budovy\",IF(OR(E28=\"Administratívna budova\",E28=\"Budova škôl a školských zariadení\"),IF(ROUND(F33,0)<=28,\"A\",IF(ROUND(F33,0)<=56,\"B\",IF(ROUND(F33,0)<=84,\"C\",IF(ROUND(F33,0)<=112,\"D\",IF(ROUND(F33,0)<=140,\"E\",IF(ROUND(F33,0)<=168,\"F\",\"G\")))))),\"neoprávnená kategória budovy\"))","v":"B"},null,{"$f":"IF(OR(G33=\"C\",G33=\"D\",G33=\"E\",G33=\"F\",G33=\"G\"),Číselníky!C19,\"\")","v":""},null,null,null,null,null,{"$f":"IF(I33=Číselníky!C19,0,1)","v":1},null,{"$f":"E33*$E$39/1000","v":103.92951000000001},"MWh"]
["Potreba energie na prípravu teplej vody",null,null,"[kWh/m2.rok]",12.3,11.8,{"$f":"IF(E28=\"\",\"Vyplňte kategóriu budovy\",IF(E28=\"Administratívna budova\",IF(ROUND(F34,0)<=4,\"A\",IF(ROUND(F34,0)<=8,\"B\",IF(ROUND(F34,0)<=12,\"C\",IF(ROUND(F34,0)<=16,\"D\",IF(ROUND(F34,0)<=20,\"E\",IF(ROUND(F34,0)<=24,\"F\",\"G\")))))),IF(E28=\"Budova škôl a školských zariadení\",IF(ROUND(F34,0)<=6,\"A\",IF(ROUND(F34,0)<=12,\"B\",IF(ROUND(F34,0)<=18,\"C\",IF(ROUND(F34,0)<=24,\"D\",IF(ROUND(F34,0)<=30,\"E\",IF(ROUND(F34,0)<=36,\"F\",\"G\")))))),\"neoprávnená kategória budovy\")))","v":"B"},null,{"$f":"IF(OR(G34=\"C\",G34=\"D\",G34=\"E\",G34=\"F\",G34=\"G\"),Číselníky!C19,\"\")","v":""},null,null,null,null,null,{"$f":"IF(I34=Číselníky!C19,0,1)","v":1},null,{"$f":"E34*$E$39/1000","v":9.8061750000000014},"MWh"]
["Potreba energie na nútené vetranie/chladenie",null,null,"[kWh/m2.rok]",0,0,{"$f":"IF(E28=\"\",\"Vyplňte kategóriu budovy\",IF(E28=\"Administratívna budova\",IF(ROUND(F35,0)<=16,\"A\",IF(ROUND(F35,0)<=31,\"B\",IF(ROUND(F35,0)<=45,\"C\",IF(ROUND(F35,0)<=59,\"D\",IF(ROUND(F35,0)<=75,\"E\",IF(ROUND(F35,0)<=90,\"F\",\"G\")))))),IF(E28=\"Budova škôl a školských zariadení\",\"nehodnotí sa\",\"neoprávnená kategória budovy\")))","v":"nehodnotí sa"},null,{"$f":"IF(OR(G35=\"C\",G35=\"D\",G35=\"E\",G35=\"F\",G35=\"G\"),Číselníky!C19,\"\")","v":""},null,null,null,null,null,{"$f":"IF(I35=Číselníky!C19,0,1)","v":1},null,{"$f":"E35*$E$39","v":0}]
["Potreba energie na osvetlenie",null,null,"[kWh/m2.rok]",12.08,4.79,{"$f":"IF(E28=\"\",\"Vyplňte kategóriu budovy\",IF(E28=\"Administratívna budova\",IF(ROUND(F36,0)<=15,\"A\",IF(ROUND(F36,0)<=30,\"B\",IF(ROUND(F36,0)<=38,\"C\",IF(ROUND(F36,0)<=45,\"D\",IF(ROUND(F36,0)<=56,\"E\",IF(ROUND(F36,0)<=68,\"F\",\"G\")))))),IF(E28=\"Budova škôl a školských zariadení\",IF(ROUND(F36,0)<=9,\"A\",IF(ROUND(F36,0)<=18,\"B\",IF(ROUND(F36,0)<=23,\"C\",IF(ROUND(F36,0)<=27,\"D\",IF(ROUND(F36,0)<=34,\"E\",IF(ROUND(F36,0)<=41,\"F\",\"G\")))))),\"neoprávnená kategória budovy\")))","v":"A"},null,{"$f":"IF(OR(G36=\"C\",G36=\"D\",G36=\"E\",G36=\"F\",G36=\"G\"),Číselníky!C19,\"\")","v":""},null,null,null,null,null,{"$f":"IF(I36=Číselníky!C19,0,1)","v":1},null,{"$f":"E36*$E$39/1000","v":9.6307800000000015},"MWh"]
["Celková potreba energie",null,null,"[kWh/m2.rok]",{"$f":"SUM(E33:E36)","v":154.74000000000004},{"$f":"SUM(F33:F36)","v":56.96},{"$f":"IF(E28=\"\",\"Vyplňte kategóriu budovy\",IF(E28=\"Administratívna budova\",IF(ROUND(F37,0)<=63,\"A\",IF(ROUND(F37,0)<=125,\"B\",IF(ROUND(F37,0)<=179,\"C\",IF(ROUND(F37,0)<=232,\"D\",IF(ROUND(F37,0)<=291,\"E\",IF(ROUND(F37,0)<=350,\"F\",\"G\")))))),IF(E28=\"Budova škôl a školských zariadení\",IF(ROUND(F37,0)<=43,\"A\",IF(ROUND(F37,0)<=86,\"B\",IF(ROUND(F37,0)<=125,\"C\",IF(ROUND(F37,0)<=163,\"D\",IF(ROUND(F37,0)<=204,\"E\",IF(ROUND(F37,0)<=245,\"F\",\"G\")))))),\"neoprávnená kategória budovy\")))","v":"B"},null,{"$f":"IF(OR(G37=\"C\",G37=\"D\",G37=\"E\",G37=\"F\",G37=\"G\"),Číselníky!C19,\"\")","v":""},null,null,null,null,null,{"$f":"IF(I37=Číselníky!C19,0,1)","v":1}]
["Globálny ukazovateľ - Primárna energia",null,null,"[kWh/m2.rok]",184.18,68.209999999999994,{"$f":"IF(OR(E28=\"\",K28=\"\"),\"Vyplňte kategóriu budovy / Dátum stav. pov\",IF(E28=\"Administratívna budova\",IF(ROUND(F38,0)<=61,\"A0\",IF(ROUND(F38,0)<=122,\"A1\",IF(ROUND(F38,0)<=255,\"B\",IF(ROUND(F38,0)<=383,\"C\",IF(ROUND(F38,0)<=511,\"D\",IF(ROUND(F38,0)<=639,\"E\",IF(ROUND(F38,0)<=766,\"F\",\"G\"))))))),IF(E28=\"Budova škôl a školských zariadení\",IF(ROUND(F38,0)<=34,\"A0\",IF(ROUND(F38,0)<=68,\"A1\",IF(ROUND(F38,0)<=136,\"B\",IF(ROUND(F38,0)<=204,\"C\",IF(ROUND(F38,0)<=272,\"D\",IF(ROUND(F38,0)<=340,\"E\",IF(ROUND(F38,0)<=408,\"F\",\"G\"))))))),\"neoprávnená kategória budovy\")))","v":"A1"},null,{"$f":"IF(OR(G38=\"B\",G38=\"C\",G38=\"D\",G38=\"E\",G38=\"F\",G38=\"G\"),Číselníky!C19,IF((AND(G38=\"A1\",K28>DATEVALUE(\"31.12.2018\"))),\"Projekt. dok. musí obsahovať zdôvodnenie nedosiahnutia hornej hranice energ. triedy A0\",\"\"))","v":"Projekt. dok. musí obsahovať zdôvodnenie nedosiahnutia hornej hranice energ. triedy A0"},null,null,null,null,null,{"$f":"IF(I38=Číselníky!C19,0,1)","v":1}]
["Celková podlahová plocha ",null,null,"[m2]",797.25,839.54]
[]
["Energetické zariadenia",null,null,null,"Počet kusov","Plocha - Absorpčná  [m2]","Výkon \n[kW]","Výkon na m2 \n[kWh/m2]","Využitelnosť \n[h/rok]","P0080\n [MWh]","P0084 \n[MWh]","P0705 \n[MW]","P0707 \n[MW]"]
["Tepelné čerpadlo - Elektrické",null,null,null,0,null,0,null,1290,null,{"$f":"M42*I42","v":0},null,{"$f":"(E42*G42)/1000","v":0}]
["Tepelné čerpadlo - Plynové",null,null,null,0,null,0,null,1050,null,{"$f":"M43*I43","v":0},null,{"$f":"(E43*G43)/1000","v":0}]
["KVET - Elektrina",null,null,null,0,null,0,null,1290,{"$f":"L44*I44","v":0},null,{"$f":"(E44*G44)/1000","v":0}]
["KVET - Teplo",null,null,null,0,null,0,null,1290,null,{"$f":"M45*I45","v":0},null,{"$f":"(E45*G45)/1000","v":0}]
["Solárny panel Termický plochý",null,null,null,0,0,null,525,null,null,{"$f":"(E46*F46*H46)/1000","v":0},null,{"$f":"K46/1000","v":0}]
["Solárny panel Vákouový",null,null,null,0,0,null,800,null,null,{"$f":"(E47*F47*H47)/1000","v":0},null,{"$f":"K47/1000","v":0}]
["Fotovoltaický panel",null,null,null,0,1,0,null,1000,{"$f":"L48*I48","v":0},null,{"$f":"(E48*F48*G48)/1000","v":0}]
[]
["Príloha č. 8 ŽoNFP - Energetický audit"]
["Prehľad o spotrebe energie pred realizáciou projektu",null,null,null,"Rok N-2","Rok  N-1","Rok N","Priemer","Zníženie spotreby PE"]
["elektrina",null,null,"(MWh)",10.951000000000001,8.7680000000000007,6.3959999999999999,{"$f":"(E52+F52+G52)/3","v":8.7050000000000001},{"$f":"$H$83*H52/$H$62/(0.93*0.99*0.4)","v":14418.771216482553}]
["zemný plyn",null,null,"(MWh)",265.14800000000002,220.05199999999999,217.32,{"$f":"(E53+F53+G53)/3","v":234.17333333333332},{"$f":"$H$83*H53/$H$62/(0.99*0.985)","v":146488.53062688312}]
["biomasa, uhlie ",null,null,"(MWh)",0,0,0,{"$f":"(E54+F54+G54)/3","v":0},{"$f":"$H$83*H54/$H$62","v":0}]
["CZT",null,null,"(MWh)",0,0,0,{"$f":"(E55+F55+G55)/3","v":0},{"$f":"IF(OR(E56=\"\",E57=\"\",E58=\"\",E59=\"\",E60=\"\",E61=\"\"),\"Vyplňte bunky E56 - 61\",$H$83*H55/$H$62/(O56*O57*O58*O59*O60*O61))","v":0}]
[null,"Účinnosť sekundárneho rozvodu - teplá voda",null,null,"nie",null,null,null,null,null,null,null,null,null,{"$f":"IF(E56=\"áno\",0.94,1)","v":1}]
[null,"Účinnosť OST ",null,null,"nie",null,null,null,null,null,null,null,null,null,{"$f":"IF(E57=\"áno\",0.985,1)","v":1}]
[null,"Účinnosť účinnosť primárneho rozvodu - teplá voda",null,null,"nie",null,null,null,null,null,null,null,null,null,{"$f":"IF(E58=\"áno\",0.925,1)","v":1}]
[null,"Účinnosť OST - horúca - teplá voda",null,null,"nie",null,null,null,null,null,null,null,null,null,{"$f":"IF(E59=\"áno\",0.985,1)","v":1}]
[null,"Účinnosť primárneho rozvodu - horúca voda",null,null,"nie",null,null,null,null,null,null,null,null,null,{"$f":"IF(E60=\"áno\",0.9,1)","v":1}]
[null,"Účinnosť premeny energie",null,null,"nie",null,null,null,null,null,null,null,null,null,{"$f":"IF(E61=\"áno\",0.88,1)","v":1}]
["Spotreba energie SPOLU",null,null,"(MWh)",{"$f":"SUM(E52:E55)","v":276.09900000000005},{"$f":"SUM(F52:F55)","v":228.82},{"$f":"SUM(G52:G55)","v":223.71599999999998},{"$f":"SUM(H52:H55)","v":242.87833333333333},{"$f":"SUM(I52:I55)","v":160907.30184336568}]
[]
["Celková potreba energie pred realizáciou projektu vypočítaná projektovým energetickým hodnotením",null,null,null,{"$f":"E37*E39/1000","v":123.36646500000002},"MWh/rok",{"$f":"H62/E64","v":1.9687549070432819},null,"ZŠ","bunka J 19",{"$f":"CONCATENATE(CHAR(10),\"Celková potreba energie \",I64,\" podľa tepelnotechnického posudku pred realizáciou opatrení je \",E37,\" kWh/m2. rok, čo pri podlahovej ploche \",E39,\" m2 predstavuje celkovú potrebu energie \",E64,\" MWh/rok. Keďže celková priemerná spotreba energie \",I64,\" je \",H62,\" MWh, podiel využitia budovy je \",G64*100,\" %.\"\"\")","v":"\nCelková potreba energie ZŠ podľa tepelnotechnického posudku pred realizáciou opatrení je 154,74 kWh/m2. rok, čo pri podlahovej ploche 797,25 m2 predstavuje celkovú potrebu energie 123,366465 MWh/rok. Keďže celková priemerná spotreba energie ZŠ je 242,878333333333 MWh, podiel využitia budovy je 196,875490704328 %.\""}]
[null,null,null,null,null,null,"využitie budovy"]
["Environmentálne hodnotenie",null,null,null,"Stav PRED realizáciou projektu","Stav PO realizácii projektu",null,null,"Kultúrneho domu","bunka J 23",{"$f":"CONCATENATE(CHAR(10),\"Realizáciou projektu sa  dosiahne plánovaná úspora potreby energie na vykurovanie \",K25,\" %.\"\"\")","v":"\nRealizáciou projektu sa  dosiahne plánovaná úspora potreby energie na vykurovanie 69,0319116293341 %.\""}]
["CO2",null,null,"ton",52.971969999999999,22.391210000000001,null,null,"Obecného úradu"]
["NOx",null,null,"kg",46.62,20.86,null,null,"MŠ"]
["TZL/PM10",null,null,"kg",3.5,1.71,null,null,"ZŠ"]
["SO2",null,null,"kg",7.98,4.57,null,null,"Obecného úradu a kultúrneho domu"]
[]
[]
["Merateľné ukazovatele  Budova č. 1",null,null,{"$f":"IF('Rozpočet B1 - Value for Money'!G12=\"\",\"\",\" -  súpis. č. \"&'Rozpočet B1 - Value for Money'!G12)","v":" -  súpis. č. 68"}]
["Názov MU","Názov Merateľného ukazovatela",null,null,null,"Príznak rizika","Merná jednotka","Výsledná hodnota po OH","Výsledná hodnota"]
["P0080","Množstvo elektrickej energie vyrobenej v zariadení OZE",null,null,null,"S príznakom","MWh/rok",{"$f":"J44+J48","v":0},0,{"$f":"IF(H75<>I75,1,0)","v":0},{"$f":"IF(J75>0,CONCATENATE(\"•  \",A75,\" \",B75,\" (\",G75,\"): pôvodná hodnota \",I75,\"; korigovaná hodnota \",H75,\";\"))","v":false}]
["P0084","Množstvo tepelnej energie vyrobenej v zariadení OZE",null,null,null,"S príznakom","MWh/rok",{"$f":"K42+K43+K45+K46+K47","v":0},0,{"$f":"IF(H76<>I76,1,0)","v":0},{"$f":"IF(J76>0,CONCATENATE(\"•  \",A76,\" \",B76,\" (\",G76,\"): pôvodná hodnota \",I76,\"; korigovaná hodnota \",H76,\";\"))","v":false}]
["P0103","Odhadované ročné zníženie emisií skleníkových plynov",null,null,null,"S príznakom"," t ekviv. CO2/rok",{"$f":"E67-F67","v":30.580759999999998},30.580759999999998,0,false]
["P0250","Počet opatrení na zníženie spotreby energie realizovaných vo verejnej budove",null,null,null,"Bez príznaku","počet",{"$f":"E29","v":3},3,0,false]
["P0470","Počet verej. budov na úrovni nízkoenerg. / ultranízkoenerg. alebo s takmer nul. potrebou energie",null,null,null,"Bez príznaku","počet",1,1,0,false]
["P0612","Podlahová plocha budov obnovených nad rámec minimálnych požiadaviek",null,null,null,"Bez príznaku","m2",{"$f":"F39","v":839.54},839.54,0,false]
["P0627","Spotreba energie v budove po realizácii opatrení energetickej efektívnosti",null,null,null,"S príznakom","MWh/rok",{"$f":"H82*(F38*F39)/(E38*E39)","v":94.719897628922055},94.719897628922055,0,false]
["P0628","Spotreba energie v budove pred realizáciou opatrení energetickej efektívnosti",null,null,null,"S príznakom","MWh/rok",{"$f":"H62","v":242.87833333333333},242.87833333333333,0,false]
["P0687","Zníženie konečnej spotreby energie vo verejných budovách",null,null,null,"S príznakom","kWh/rok",{"$f":"(H82-H81)*1000","v":148158.43570441127},148158.43570441127,0,false]
["P0689","Zníženie potreby energie vo verejných budovách",null,null,null,"S príznakom","kWh/rok",{"$f":"(E38*E39)-(F38*F39)","v":89572.481600000014},89572.481600000014,{"$f":"IF(H84<>I84,1,0)","v":0},{"$f":"IF(J84>0,CONCATENATE(\"V procese OH  bol korigovaný MU \",A84,\" \",B84,\" (\",G84,\"): pôvodná hodnota \",I84,\"; korigovaná hodnota \",H84,\".\"))","v":false}]
["P0691","Zníženie produkcie emisií NOx",null,null,null,"S príznakom","kg/rok",{"$f":"E68-F68","v":25.759999999999998},25.759999999999998,0,{"$f":"IF(J85>0,CONCATENATE(\"•  \",A85,\" \",B85,\" (\",G85,\"): pôvodná hodnota \",I85,\"; korigovaná hodnota \",H85,\";\"))","v":false}]
["P0692","Zníženie produkcie emisií PM10",null,null,null,"S príznakom","kg/rok",{"$f":"E69-F69","v":1.79},1.79,0,false]
["P0694","Zníženie produkcie emisií SO2",null,null,null,"S príznakom","kg/rok",{"$f":"E70-F70","v":3.41},3.41,0,false]
["P0701","Zníženie ročnej spotreby primárnej energie vo verejných budovách",null,null,null,"S príznakom","kWh/rok",{"$f":"I62","v":160907.30184336568},160907.30184336568,0,false]
["P0705","Zvýšená kapacita výroby elektriny z obnoviteľných zdrojov",null,null,null,"Bez príznaku","MWe",{"$f":"L44+L48","v":0},0,0,false]
["P0706","Zvýšená kapacita výroby energie z obnoviteľných zdrojov",null,null,null,"Bez príznaku","MW",{"$f":"H89+H91","v":0},0,0,false]
["P0707","Zvýšená kapacita výroby tepla z obnoviteľných zdrojov",null,null,null,"Bez príznaku","MWt",{"$f":"M42+M43+M45+M46+M47","v":0},0,0,false]
[]
[]
[]
[null,null,null,null,null,null,null,null,null,"bunka J 64",{"$f":"IF(J84<1,CONCATENATE(\"Prostredníctvom realizácie hlavných aktivít projektu je reálne očakávať dosiahnutie deklarovanej cieľovej hodnoty MU P0689 – Zníženie potreby energie vo verejných budovách \",H84,\" kWh/rok.\"\"\"))","v":"Prostredníctvom realizácie hlavných aktivít projektu je reálne očakávať dosiahnutie deklarovanej cieľovej hodnoty MU P0689 – Zníženie potreby energie vo verejných budovách 89572,4816 kWh/rok.\""}]
[]
[]
[null,null,null,null,null,null,null,null,null,"bunka J 65","Prostredníctvom realizácie hlavných aktivít projektu je reálne očakávať aj dosiahnutie deklarovaných cieľových hodnoty ostatných merateľných ukazovateľov projektu."]

{"sheet":"Kontrola energetických tried","index":3,"n_rows":31,"n_cols":38,"rows_kept":31,"cut":false,"hidden":true,"merged":[[24,31,24,37],[2,5,2,11],[24,1,24,6],[24,7,24,12],[24,13,24,18],[24,19,24,24],[24,25,24,30]]}
["Kategória budovy"]
["budova škôl a školských zariadení"]
[null,null,null,null,null,"horne hranice energetickych tried"]
["Energetické hodnotenie budovy\nnavrhovaný stav","Energetická trieda","Merná potreba energie (kWh/(m2.a))","Kontrola energetickej triedy","Kontrolné\nčíslo","A0","A","B","C","D","E","F","Mer. potr. energie zaokrúhlená"]
["Vykurovanie","B",40.369999999999997,{"$f":"IF(M5<=G5,G$4,IF(M5<=H5,H$4,IF(M5<=I5,I$4,IF(M5<=J5,J$4,IF(M5<=K5,K$4,L$4)))))","v":"B"},{"$f":"IF(LEN(D5)>3,1,HLOOKUP(D5,$F$4:$L$12,9,FALSE))","v":1},null,{"$f":"VLOOKUP($A$2,$A$27:$AL$31,2,FALSE)","v":28},{"$f":"VLOOKUP($A$2,$A$27:$AL$31,3,FALSE)","v":56},{"$f":"VLOOKUP($A$2,$A$27:$AL$31,4,FALSE)","v":84},{"$f":"VLOOKUP($A$2,$A$27:$AL$31,5,FALSE)","v":112},{"$f":"VLOOKUP($A$2,$A$27:$AL$31,6,FALSE)","v":140},{"$f":"VLOOKUP($A$2,$A$27:$AL$31,7,FALSE)","v":168},{"$f":"ROUND(C5,0)","v":40}]
["Príprava teplej vody","B",11.8,{"$f":"IF(M6<=G6,G$4,IF(M6<=H6,H$4,IF(M6<=I6,I$4,IF(M6<=J6,J$4,IF(M6<=K6,K$4,L$4)))))","v":"B"},{"$f":"IF(LEN(D6)>3,1,HLOOKUP(D6,$F$4:$L$12,9,FALSE))","v":1},null,{"$f":"VLOOKUP($A$2,$A$27:$AL$31,8,FALSE)","v":6},{"$f":"VLOOKUP($A$2,$A$27:$AL$31,9,FALSE)","v":12},{"$f":"VLOOKUP($A$2,$A$27:$AL$31,10,FALSE)","v":18},{"$f":"VLOOKUP($A$2,$A$27:$AL$31,11,FALSE)","v":24},{"$f":"VLOOKUP($A$2,$A$27:$AL$31,12,FALSE)","v":30},{"$f":"VLOOKUP($A$2,$A$27:$AL$31,13,FALSE)","v":36},12]
["Vetranie a chladenie","nehodnotí sa",0,{"$f":"IF(LEN(B7)=1,IF(M7<=G7,G$4,IF(M7<=H7,H$4,IF(M7<=I7,I$4,IF(M7<=J7,J$4,IF(M7<=K7,K$4,L$4))))),B7)","v":"nehodnotí sa"},{"$f":"IF(LEN(D7)>3,1,HLOOKUP(D7,$F$4:$L$12,9,FALSE))","v":1},null,{"$f":"VLOOKUP($A$2,$A$27:$AL$31,14,FALSE)","v":0},{"$f":"VLOOKUP($A$2,$A$27:$AL$31,15,FALSE)","v":0},{"$f":"VLOOKUP($A$2,$A$27:$AL$31,16,FALSE)","v":0},{"$f":"VLOOKUP($A$2,$A$27:$AL$31,17,FALSE)","v":0},{"$f":"VLOOKUP($A$2,$A$27:$AL$31,18,FALSE)","v":0},{"$f":"VLOOKUP($A$2,$A$27:$AL$31,19,FALSE)","v":0},0]
["Osvetlenie","A",4.79,{"$f":"IF(M8<=G8,G$4,IF(M8<=H8,H$4,IF(M8<=I8,I$4,IF(M8<=J8,J$4,IF(M8<=K8,K$4,L$4)))))","v":"A"},{"$f":"IF(LEN(D8)>3,1,HLOOKUP(D8,$F$4:$L$12,9,FALSE))","v":1},null,{"$f":"VLOOKUP($A$2,$A$27:$AL$31,20,FALSE)","v":9},{"$f":"VLOOKUP($A$2,$A$27:$AL$31,21,FALSE)","v":18},{"$f":"VLOOKUP($A$2,$A$27:$AL$31,22,FALSE)","v":23},{"$f":"VLOOKUP($A$2,$A$27:$AL$31,23,FALSE)","v":27},{"$f":"VLOOKUP($A$2,$A$27:$AL$31,24,FALSE)","v":34},{"$f":"VLOOKUP($A$2,$A$27:$AL$31,25,FALSE)","v":41},5]
["Potreba energie celkom","B",56.96,{"$f":"IF(M9<=G9,G$4,IF(M9<=H9,H$4,IF(M9<=I9,I$4,IF(M9<=J9,J$4,IF(M9<=K9,K$4,L$4)))))","v":"B"},{"$f":"IF(LEN(D9)>3,1,HLOOKUP(D9,$F$4:$L$12,9,FALSE))","v":1},null,{"$f":"IF($B$7=$A$24,VLOOKUP($A$2,$A$27:$AL$31,26,FALSE)-G7,VLOOKUP($A$2,$A$27:$AL$31,26,FALSE))","v":43},{"$f":"IF($B$7=$A$24,VLOOKUP($A$2,$A$27:$AL$31,27,FALSE)-H7,VLOOKUP($A$2,$A$27:$AL$31,27,FALSE))","v":86},{"$f":"IF($B$7=$A$24,VLOOKUP($A$2,$A$27:$AL$31,28,FALSE)-I7,VLOOKUP($A$2,$A$27:$AL$31,28,FALSE))","v":125},{"$f":"IF($B$7=$A$24,VLOOKUP($A$2,$A$27:$AL$31,29,FALSE)-J7,VLOOKUP($A$2,$A$27:$AL$31,29,FALSE))","v":163},{"$f":"IF($B$7=$A$24,VLOOKUP($A$2,$A$27:$AL$31,30,FALSE)-K7,VLOOKUP($A$2,$A$27:$AL$31,30,FALSE))","v":204},{"$f":"IF($B$7=$A$24,VLOOKUP($A$2,$A$27:$AL$31,31,FALSE)-L7,VLOOKUP($A$2,$A$27:$AL$31,31,FALSE))","v":245},57]
["Globálny ukaz. primárna energia","A1",68.209999999999994,{"$f":"IF(M10<=F10,F11,IF(M10<=G10,G$11,IF(M10<=H10,H$11,IF(M10<=I10,I$11,IF(M10<=J10,J$11,IF(M10<=K10,K$11,L$11))))))","v":"A1"},{"$f":"HLOOKUP(D10,$F$11:$L$13,3,FALSE)","v":2},{"$f":"IF($B$7=$A$24,VLOOKUP($A$2,$A$27:$AL$31,32,FALSE)-G7/2*E17,VLOOKUP($A$2,$A$27:$AL$31,32,FALSE))","v":34},{"$f":"IF($B$7=$A$24,VLOOKUP($A$2,$A$27:$AL$31,33,FALSE)-G7*E17,VLOOKUP($A$2,$A$27:$AL$31,33,FALSE))","v":68},{"$f":"IF($B$7=$A$24,VLOOKUP($A$2,$A$27:$AL$31,34,FALSE)-H7*E17,VLOOKUP($A$2,$A$27:$AL$31,34,FALSE))","v":136},{"$f":"IF($B$7=$A$24,VLOOKUP($A$2,$A$27:$AL$31,35,FALSE)-I7*E17,VLOOKUP($A$2,$A$27:$AL$31,35,FALSE))","v":204},{"$f":"IF($B$7=$A$24,VLOOKUP($A$2,$A$27:$AL$31,36,FALSE)-J7*E17,VLOOKUP($A$2,$A$27:$AL$31,36,FALSE))","v":272},{"$f":"IF($B$7=$A$24,VLOOKUP($A$2,$A$27:$AL$31,37,FALSE)-K7*E17,VLOOKUP($A$2,$A$27:$AL$31,37,FALSE))","v":340},{"$f":"IF($B$7=$A$24,VLOOKUP($A$2,$A$27:$AL$31,38,FALSE)-L7*E17,VLOOKUP($A$2,$A$27:$AL$31,38,FALSE))","v":408},68]
[null,null,null,null,null,"A0","A1","B","C","D","E","F"]
["Stavebné povolenie",{"$f":"'MU Budova 1'!K28","v":"2021-09-16"},null,null,null,3,1,1,0,0,0,0]
[null,null,null,null,null,3,2,0,0,0,0,0]
["Ciselnik energetivkych tried",null,null,"Faktor pre EE"]
["A0",null,"2016-12-31",2.76]
["A1",null,"2017-01-01",2.2000000000000002]
["A",null,null,"Výsledný faktor",{"$f":"IF(B12>C15,D16,D15)","v":2.2000000000000002}]
["B"]
["C"]
["D"]
["E"]
["F"]
["G"]
["nehodnotí sa"]
[null,"vykurovanie",null,null,null,null,null,"príprava TV",null,null,null,null,null,"vetranie a chladenie",null,null,null,null,null,"osvetlenie",null,null,null,null,null,"celková potreba energie",null,null,null,null,null,"globálny ukazovateľ primárna energia"]
["Ciselnik kategorie budov","A","B","C","D","E","F","A","B","C","D","E","F","A","B","C","D","E","F","A","B","C","D","E","F","A","B","C","D","E","F","A0","A1","B","C","D","E","F"]
["administratívna budova",28,56,84,112,140,168,4,8,12,16,20,24,16,31,45,59,75,90,15,30,38,45,56,68,{"$f":"B27+H27+N27+T27","v":63},125,179,232,291,350,61,122,255,383,511,639,766]
["budova škôl a školských zariadení",28,56,84,112,140,168,6,12,18,24,30,36,null,null,null,null,null,null,9,18,23,27,34,41,43,86,125,163,204,245,34,68,136,204,272,340,408]
["budova nemocníc",35,70,105,140,175,210,26,52,78,104,130,156,27,53,77,101,126,152,13,26,33,40,50,60,101,201,293,385,481,578,96,192,384,576,769,961,1153]
["budova hotelov a reštaurácií",36,71,107,142,178,213,32,64,96,128,160,192,14,28,42,56,70,84,12,24,31,37,46,56,{"$f":"B30+H30+N30+T30","v":94},{"$f":"C30+I30+O30+U30","v":187},275,{"$f":"E30+K30+Q30+W30","v":363},454,545,82,164,328,492,656,820,984]
["športové haly a iné budovy určené na šport",33,66,99,132,165,198,6,12,18,24,30,36,null,null,null,null,null,null,9,17,23,28,35,42,{"$f":"B31+H31+N31+T31","v":48},{"$f":"C31+I31+O31+U31","v":95},{"$f":"D31+J31+P31+V31","v":140},184,230,276,38,76,152,258,304,380,456]

{"sheet":"Rozpočet B2","index":4,"n_rows":63,"n_cols":18,"rows_kept":63,"cut":false,"hidden":true,"merged":[[59,0,59,14],[60,0,60,14],[61,0,61,14],[62,0,62,14],[45,0,45,14],[52,0,52,4],[53,0,53,4],[57,0,57,7],[58,0,58,14],[54,0,54,6],[44,1,44,14],[14,0,14,1],[20,0,20,4],[21,0,21,14],[22,1,22,14],[25,0,25,1],[31,0,31,4],[32,0,32,14],[33,1,33,14],[36,0,36,1],[42,0,42,4],[43,0,43,14],[10,3,10,4],[10,8,10,9],[11,3,11,4],[1,0,1,14],[6,0,6,5],[6,6,6,14],[8,1,8,14],[9,1,9,14],[11,7,11,14]]}
[]
["Príloha ŽoNFP č. 6 - Dokumentácia k oprávnenosti výdavkov"]
[]
[]
[]
[]
["Rozpočet  -  Budova č. 2",null,null,null,null,null,{"$f":"IF(G12=\"\",\"\",\" -  súpis. č. \"&G12)","v":""}]
[]
["Názov žiadateľa:",{"$f":"IF('Rozpočet B1 - Value for Money'!B9:O9=\"\",\"\",'Rozpočet B1 - Value for Money'!B9:O9)","v":"Obec Podhorany"}]
["Názov projektu:",{"$f":"IF('Rozpočet B1 - Value for Money'!B10:O10=\"\",\"\",'Rozpočet B1 - Value for Money'!B10:O10)","v":"Stavebné úpravy ZŠ Podhorany Zníženie spotreby energie pri prevádzke "}]
["Je žiadateľ platcom DPH v rozsahu aktivity?",null,null,"Katastrálne územie",null,"LV číslo","Súpisné číslo",null,"Právny vzťah "]
["Počet samostatných budov v ŽoNFP?",{"$f":"IF('Rozpočet B1 - Value for Money'!B12=\"\",\"\",'Rozpočet B1 - Value for Money'!B12)","v":1},null,null,null,null,null,{"$f":"IF(O11=[4]Číselníky!G13,\"Predložte súhlas všetkých podielových spoluvlastníkov stavby\",IF(O11=[4]Číselníky!G14,\"Predložte doklad oprávnujúci k výkonu správy budovy\",\"\"))","v":""}]
[]
["Zateplenie obvodového plášťa"]
["Cieľová hodnota zateplenej plochy obvodového plášťa v m2",null,null," m2"]
["Názov výdavku","Skupina výdavkov  ","Merná\njednotka","Počet \njednotiek","Jednotková cena\nbez DPH [EUR]","Cena celkom \nbez DPH [EUR]","Cena celkom \ns DPH [EUR]","Celkový \nvýdavok","Výdavok nad \nreferenčnú hodnotu","Výdavok \npri neakceptovaní\nprekročenia ref.\nhodnôt","Schválenie /\nneschválenie\nprekročenia ref.\nhodnôt","Výdavok po odčítaní\nvecne neoprávne.\na/alebo neúčelných\nvýdavkov","Výdavok po odčítaní\nnehospodárnych\nvýdavkov","Výdavok po posúdení\nprekročenia\nreferenčných hodnôt","Vecný opis výdavku"]
["Položka č. 1","021 Stavby",null,null,null,{"$f":"ROUND(D17*E17,2)","v":0},{"$f":"ROUND(F17*1.2,2)","v":0},{"$f":"IF($B$11=\"áno\",F17,G17)","v":0},null,null,null,{"$f":"H17","v":0},{"$f":"L17","v":0},{"$f":"IFERROR(ROUND(IF($K$21=\"nie\",IF($M$21<=($C$15*100),M17,M17*$J$21/$M$21),M17),2),0)","v":0}]
["Položka č. 2","021 Stavby",null,null,null,{"$f":"ROUND(D18*E18,2)","v":0},{"$f":"ROUND(F18*1.2,2)","v":0},{"$f":"IF($B$11=\"áno\",F18,G18)","v":0},null,null,null,{"$f":"H18","v":0},{"$f":"L18","v":0},{"$f":"IFERROR(ROUND(IF($K$21=\"nie\",IF($M$21<=($C$15*100),M18,M18*$J$21/$M$21),M18),2),0)","v":0}]
["Položka č. 3","021 Stavby",null,null,null,{"$f":"ROUND(D19*E19,2)","v":0},{"$f":"ROUND(F19*1.2,2)","v":0},{"$f":"IF($B$11=\"áno\",F19,G19)","v":0},null,null,null,{"$f":"H19","v":0},{"$f":"L19","v":0},0]
["Položka č. n","021 Stavby",null,null,null,{"$f":"ROUND(D20*E20,2)","v":0},{"$f":"ROUND(F20*1.2,2)","v":0},{"$f":"IF($B$11=\"áno\",F20,G20)","v":0},null,null,null,{"$f":"H20","v":0},{"$f":"L20","v":0},0]
["Spolu výdavky zateplenia obvodového plášťa",null,null,null,null,{"$f":"SUM(F17:F20)","v":0},{"$f":"SUM(G17:G20)","v":0},{"$f":"IF(OR(B11=\"\",C15=\"\",C15<=0,D12=\"\",F12=\"\",G12=\"\",O11=\"\"),0,SUM(H17:H20))","v":0},{"$f":"IF(OR(C15=0,B11=\"\"),0,IF(F21>=C15*100,IF(B11=\"áno\",F21-C15*100,G21-C15*100*1.2),0))","v":0},{"$f":"IF(OR(C15=\"\",C15<=0,D12=\"\",F12=\"\",G12=\"\",O11=\"\"),0,H21-I21)","v":0},null,{"$f":"IF(OR(B11=\"\",C15=\"\",C15<=0,D12=\"\",F12=\"\",G12=\"\",O11=\"\"),0,SUM(L17:L20))","v":0},{"$f":"IF(OR(B11=\"\",C15=\"\",C15<=0,D12=\"\",F12=\"\",G12=\"\",O11=\"\"),0,SUM(M17:M20))","v":0},{"$f":"IF(OR(B11=\"\",C15=\"\",C15<=0,D12=\"\",F12=\"\",G12=\"\",O11=\"\"),0,SUM(N17:N20))","v":0}]
[{"$f":"IF(C10*G10>=H21,\"\",\"Prekročenie referenčných hodnôt nebude bez akceptovaného zdôvodnenia schválené.\")","v":""}]
["Zdôvodnenie prekročenia referenčnej hodnoty pre obvodový plášť","V prípade prekročenia stanovenej referenčnej hodnoty pre vybrané výdavky projektu je žiadateľ oprávnený toto prekročenie zdôvodniť.\n\nŽiadateľ v zdôvodnení uvedie výdavky, ktoré najvýznamnejšie vplývajú na prekročenie stanovenej referenčnej hodnoty a zdôvodní ich nevyhnutnosť. V prípade, že zdôvodnenie prekročenia stanovenej referenčnej hodnoty nebude predložené, resp. dostatočné  alebo akceptované zo strany odborného hodnotiteľa ako odôvodniteľné, žiadané výdavky budú krátené na výšku stanovených referenčných hodnôt.\n\nBližšie informácie týkajúce sa referenčných hodnôt a ich prekročenia sú uvedené v Prílohe č. 4 Výzvy - Osobitné podmienky oprávnenosti výdavkov.\n"]
[]
["Zateplenie strešného plášťa"]
["Cieľová hodnota zateplenej plochy strešného plášťa v m2",null,null," m2"]
["Názov výdavku","Skupina výdavkov  ","Merná\njednotka","Počet \njednotiek","Jednotková cena\nbez DPH [EUR]","Cena celkom \nbez DPH [EUR]","Cena celkom \ns DPH [EUR]","Celkový \nvýdavok","Výdavok nad \nreferenčnú hodnotu","Výdavok \npri neakceptovaní\nprekročenia ref.\nhodnôt","Schválenie /\nneschválenie\nprekročenia ref.\nhodnôt","Výdavok po odčítaní\nvecne neoprávne.\na/alebo neúčelných výdavkov","Výdavok po odčítaní\nnehospodárnych\nvýdavkov","Výdavok po posúdení\nprekročenia \nreferenčných hodnôt","Vecný opis výdavku"]
["Položka č. 1","021 Stavby",null,null,null,{"$f":"ROUND(D28*E28,2)","v":0},{"$f":"ROUND(F28*1.2,2)","v":0},{"$f":"IF($B$11=\"áno\",F28,G28)","v":0},null,null,null,{"$f":"H28","v":0},{"$f":"L28","v":0},{"$f":"IFERROR(ROUND(IF($K$32=\"nie\",IF($M$32<=($C$26*80),M28,M28*$J$32/$M$32),M28),2),0)","v":0}]
["Položka č. 2","021 Stavby",null,null,null,{"$f":"ROUND(D29*E29,2)","v":0},{"$f":"ROUND(F29*1.2,2)","v":0},{"$f":"IF($B$11=\"áno\",F29,G29)","v":0},null,null,null,{"$f":"H29","v":0},{"$f":"L29","v":0},{"$f":"IFERROR(ROUND(IF($K$32=\"nie\",IF($M$32<=($C$26*80),M29,M29*$J$32/$M$32),M29),2),0)","v":0}]
["Položka č. 3","021 Stavby",null,null,null,{"$f":"ROUND(D30*E30,2)","v":0},{"$f":"ROUND(F30*1.2,2)","v":0},{"$f":"IF($B$11=\"áno\",F30,G30)","v":0},null,null,null,{"$f":"H30","v":0},{"$f":"L30","v":0},0]
["Položka č. n","021 Stavby",null,null,null,{"$f":"ROUND(D31*E31,2)","v":0},{"$f":"ROUND(F31*1.2,2)","v":0},{"$f":"IF($B$11=\"áno\",F31,G31)","v":0},null,null,null,{"$f":"H31","v":0},{"$f":"L31","v":0},0]
["Spolu výdavky zateplenia strešného plášťa",null,null,null,null,{"$f":"SUM(F28:F31)","v":0},{"$f":"SUM(G28:G31)","v":0},{"$f":"IF(OR(B11=\"\",C26=\"\",C26<=0,D12=\"\",F12=\"\",G12=\"\",O11=\"\"),0,SUM(H28:H31))","v":0},{"$f":"IF(OR(C26=0,B11=\"\"),0,IF(F32>=C26*80,IF(B11=\"áno\",F32-C26*80,G32-C26*80*1.2),0))","v":0},{"$f":"IF(OR(C26=\"\",C26<=0,D12=\"\",F12=\"\",G12=\"\",O11=\"\"),0,H32-I32)","v":0},null,{"$f":"IF(OR(B11=\"\",C26=\"\",C26<=0,D12=\"\",F12=\"\",G12=\"\",O11=\"\"),0,SUM(L28:L31))","v":0},{"$f":"IF(OR(B11=\"\",C26=\"\",C26<=0,D12=\"\",F12=\"\",G12=\"\",O11=\"\"),0,SUM(M28:M31))","v":0},{"$f":"IF(OR(B11=\"\",C26=\"\",C26<=0,D12=\"\",F12=\"\",G12=\"\",O11=\"\"),0,SUM(N28:N31))","v":0}]
[{"$f":"IF(C21*G21>=H32,\"\",\"Prekročenie referenčných hodnôt nebude bez akceptovaného zdôvodnenia schválené.\")","v":""}]
["Zdôvodnenie prekročenia referenčnej hodnoty pre strešný plášť","V prípade prekročenia stanovenej referenčnej hodnoty pre vybrané výdavky projektu je žiadateľ oprávnený toto prekročenie zdôvodniť.\n\nŽiadateľ v zdôvodnení uvedie výdavky, ktoré najvýznamnejšie vplývajú na prekročenie stanovenej referenčnej hodnoty a zdôvodní ich nevyhnutnosť. V prípade, že zdôvodnenie prekročenia stanovenej referenčnej hodnoty nebude predložené, resp. dostatočné  alebo akceptované zo strany odborného hodnotiteľa ako odôvodniteľné, žiadané výdavky budú krátené na výšku stanovených referenčných hodnôt.\n\nBližšie informácie týkajúce sa referenčných hodnôt a ich prekročenia sú uvedené v Prílohe č. 4 Výzvy - Osobitné podmienky oprávnenosti výdavkov.\n"]
[]
["Výmena otvorových konštrukcií"]
["Cieľová hodnota výmeny otvorových konštrukcií v m2",null,null," m2"]
["Názov výdavku","Skupina výdavkov  ","Merná\njednotka","Počet \njednotiek","Jednotková cena\nbez DPH [EUR]","Cena celkom \nbez DPH [EUR]","Cena celkom \ns DPH [EUR]","Celkový \nvýdavok","Výdavok nad \nreferenčnú hodnotu","Výdavok \npri neakceptovaní\nprekročenia ref.\nhodnôt","Schválenie /\nneschválenie\nprekročenia ref.\nhodnôt","Výdavok po odčítaní\nvecne neoprávne.\na/alebo neúčelných výdavkov","Výdavok po odčítaní\nnehospodárnych\nvýdavkov","Výdavok po posúdení\nprekročenia \nreferenčných hodnôt","Vecný opis výdavku"]
["Položka č. 1","021 Stavby",null,null,null,{"$f":"ROUND(D39*E39,2)","v":0},{"$f":"ROUND(F39*1.2,2)","v":0},{"$f":"IF($B$11=\"áno\",F39,G39)","v":0},null,null,null,{"$f":"H39","v":0},{"$f":"L39","v":0},{"$f":"IFERROR(ROUND(IF($K$43=\"nie\",IF($M$43<=($C$37*400),M39,M39*$J$43/$M$43),M39),2),0)","v":0}]
["Položka č. 2","021 Stavby",null,null,null,{"$f":"ROUND(D40*E40,2)","v":0},{"$f":"ROUND(F40*1.2,2)","v":0},{"$f":"IF($B$11=\"áno\",F40,G40)","v":0},null,null,null,{"$f":"H40","v":0},{"$f":"L40","v":0},{"$f":"IFERROR(ROUND(IF($K$43=\"nie\",IF($M$43<=($C$37*400),M40,M40*$J$43/$M$43),M40),2),0)","v":0}]
["Položka č. 3","021 Stavby",null,null,null,{"$f":"ROUND(D41*E41,2)","v":0},{"$f":"ROUND(F41*1.2,2)","v":0},{"$f":"IF($B$11=\"áno\",F41,G41)","v":0},null,null,null,{"$f":"H41","v":0},{"$f":"L41","v":0},0]
["Položka č. n","021 Stavby",null,null,null,{"$f":"ROUND(D42*E42,2)","v":0},{"$f":"ROUND(F42*1.2,2)","v":0},{"$f":"IF($B$11=\"áno\",F42,G42)","v":0},null,null,null,{"$f":"H42","v":0},{"$f":"L42","v":0},0]
["Spolu výdavky výmeny otvorových konštrukcií",null,null,null,null,{"$f":"SUM(F39:F42)","v":0},{"$f":"SUM(G39:G42)","v":0},{"$f":"IF(OR(B11=\"\",C37=\"\",C37<=0,D12=\"\",F12=\"\",G12=\"\",O11=\"\"),0,SUM(H39:H42))","v":0},{"$f":"IF(OR(C37=0,B11=\"\"),0,IF(F43>=C37*400,IF(B11=\"áno\",F43-C37*400,G43-C37*400*1.2),0))","v":0},{"$f":"IF(OR(C37=\"\",C37<=0,D12=\"\",F12=\"\",G12=\"\",O11=\"\"),0,H43-I43)","v":0},null,{"$f":"IF(OR(B11=\"\",C37=\"\",C37<=0,D12=\"\",F12=\"\",G12=\"\",O11=\"\"),0,SUM(L39:L42))","v":0},{"$f":"IF(OR(B11=\"\",C37=\"\",C37<=0,D12=\"\",F12=\"\",G12=\"\",O11=\"\"),0,SUM(M39:M42))","v":0},{"$f":"IF(OR(B11=\"\",C37=\"\",C37<=0,D12=\"\",F12=\"\",G12=\"\",O11=\"\"),0,SUM(N39:N42))","v":0}]
[{"$f":"IF(C32*G32>=H43,\"\",\"Prekročenie referenčných hodnôt nebude bez akceptovaného zdôvodnenia schválené.\")","v":""}]
["Zdôvodnenie prekročenia referenčnej hodnoty pre výmenu otvorových konštrukcií","V prípade prekročenia stanovenej referenčnej hodnoty pre vybrané výdavky projektu je žiadateľ oprávnený toto prekročenie zdôvodniť.\n\nŽiadateľ v zdôvodnení uvedie výdavky, ktoré najvýznamnejšie vplývajú na prekročenie stanovenej referenčnej hodnoty a zdôvodní ich nevyhnutnosť. V prípade, že zdôvodnenie prekročenia stanovenej referenčnej hodnoty nebude predložené, resp. dostatočné  alebo akceptované zo strany odborného hodnotiteľa ako odôvodniteľné, žiadané výdavky budú krátené na výšku stanovených referenčných hodnôt.\n\nBližšie informácie týkajúce sa referenčných hodnôt a ich prekročenia sú uvedené v Prílohe č. 4 Výzvy - Osobitné podmienky oprávnenosti výdavkov.\n"]
[]
["Ostatné"]
["Názov výdavku","Skupina výdavkov  ","Merná jednotka","Počet jednotiek","Jednotková cena\nbez DPH [EUR]","Cena celkom \nbez DPH [EUR]","Cena celkom \ns DPH [EUR]","Celkový \nvýdavok","Výdavok nad \nreferenčnú hodnotu","Výdavok \npri neakceptovaní\nprekročenia ref.\nhodnôt","Stĺpec1","Výdavok po odčítaní\nvecne neoprávne. \na/alebo neúčelných\nvýdavkov","Stĺpec2","Výdavok po odčítaní\nnehospodárnych\nvýdavkov","Vecný opis výdavku"]
["Položka č. 1","021 Stavby",null,null,null,{"$f":"ROUND(D49*E49,2)","v":0},{"$f":"ROUND(F49*1.2,2)","v":0},{"$f":"IF($B$11=\"áno\",F49,G49)","v":0},null,null,null,{"$f":"H49","v":0},null,{"$f":"L49","v":0}]
["Položka č. 2","021 Stavby",null,null,null,{"$f":"ROUND(D50*E50,2)","v":0},{"$f":"ROUND(F50*1.2,2)","v":0},{"$f":"IF($B$11=\"áno\",F50,G50)","v":0},null,null,null,{"$f":"H50","v":0},null,{"$f":"L50","v":0}]
["Položka č. 3","021 Stavby",null,null,null,{"$f":"ROUND(D51*E51,2)","v":0},{"$f":"ROUND(F51*1.2,2)","v":0},{"$f":"IF($B$11=\"áno\",F51,G51)","v":0},null,null,null,{"$f":"H51","v":0},null,{"$f":"L51","v":0}]
["Položka č. n","021 Stavby",null,null,null,{"$f":"ROUND(D52*E52,2)","v":0},{"$f":"ROUND(F52*1.2,2)","v":0},{"$f":"IF($B$11=\"áno\",F52,G52)","v":0},null,null,null,{"$f":"H52","v":0},null,{"$f":"L52","v":0}]
["SPOLU výdavky ostatné",null,null,null,null,{"$f":"SUM(F49:F52)","v":0},{"$f":"SUM(G49:G52)","v":0},{"$f":"IF(OR(B11=\"\",D12=\"\",F12=\"\",G12=\"\",O11=\"\"),0,SUM(H49:H52))","v":0},"RH sa pre skup. výdav. \"Ostatné\" neuplatňuje.",null,null,{"$f":"IF(OR(B11=\"\",D12=\"\",F12=\"\",G12=\"\",O11=\"\"),0,SUM(L49:L52))","v":0},null,{"$f":"IF(OR(B11=\"\",D12=\"\",F12=\"\",G12=\"\",O11=\"\"),0,SUM(N49:N52))","v":0}]
["SPOLU Výdavky na budovu č. 2",null,null,null,null,{"$f":"F21+F32+F43+F53","v":0},{"$f":"G21+G32+G43+G53","v":0},{"$f":"IF(OR('MU Budova 2'!O15=0,'MU Budova 2'!O16=0,'MU Budova 2'!O17=0,'MU Budova 2'!O18=0,'MU Budova 2'!O19=0,'MU Budova 2'!O13=0,'MU Budova 2'!O33=0,'MU Budova 2'!O34=0,'MU Budova 2'!O35=0,'MU Budova 2'!O36=0,'MU Budova 2'!O37=0,'MU Budova 2'!O38=0),0,H21+H32+H43+H53)","v":0},{"$f":"REFa+REFb+REFc","v":0},{"$f":"J21+J32+J43","v":0},null,{"$f":"IF(OR('MU Budova 2'!O15=0,'MU Budova 2'!O16=0,'MU Budova 2'!O17=0,'MU Budova 2'!O18=0,'MU Budova 2'!O19=0,'MU Budova 2'!O13=0,'MU Budova 2'!O33=0,'MU Budova 2'!O34=0,'MU Budova 2'!O35=0,'MU Budova 2'!O36=0,'MU Budova 2'!O37=0,'MU Budova 2'!O38=0),0,L21+L32+L43+L53)","v":0},null,{"$f":"IF(OR('MU Budova 2'!O15=0,'MU Budova 2'!O16=0,'MU Budova 2'!O17=0,'MU Budova 2'!O18=0,'MU Budova 2'!O19=0,'MU Budova 2'!O13=0,'MU Budova 2'!O33=0,'MU Budova 2'!O34=0,'MU Budova 2'!O35=0,'MU Budova 2'!O36=0,'MU Budova 2'!O37=0,'MU Budova 2'!O38=0),0,N21+N32+N43+N53)","v":0}]
["SPOLU Výdavky na budovu č. 2 po prípadnom odpočítaní hospodárskej činnosti a nízkych úspor potreby energie na vykurovanie",null,null,null,null,null,null,{"$f":"IF(OR('MU Budova 2'!O15=0,'MU Budova 2'!O16=0,'MU Budova 2'!O17=0,'MU Budova 2'!O18=0,'MU Budova 2'!O19=0,'MU Budova 2'!O21=0,'MU Budova 2'!O22=0,'MU Budova 2'!O23=0,'MU Budova 2'!O13=0,'MU Budova 2'!O33=0,'MU Budova 2'!O34=0,'MU Budova 2'!O35=0,'MU Budova 2'!O36=0,'MU Budova 2'!O37=0,'MU Budova 2'!O38=0),0,IF(AND('MU Budova 2'!F26=0,'MU Budova 2'!K26=0),H21+H32+H43+H53,IF(H21+H32+H43+H53-(((H21+H32+H43+H53)/100)*('MU Budova 2'!F26+'MU Budova 2'!K26))<0,0,(H21+H32+H43+H53-((H21+H32+H43+H53)/100)*('MU Budova 2'!F26+'MU Budova 2'!K26)))))","v":0},null,null,null,null,null,{"$f":"IF(OR('MU Budova 2'!O15=0,'MU Budova 2'!O16=0,'MU Budova 2'!O17=0,'MU Budova 2'!O18=0,'MU Budova 2'!O19=0,'MU Budova 2'!O21=0,'MU Budova 2'!O22=0,'MU Budova 2'!O23=0,'MU Budova 2'!O13=0,'MU Budova 2'!O33=0,'MU Budova 2'!O34=0,'MU Budova 2'!O35=0,'MU Budova 2'!O36=0,'MU Budova 2'!O37=0,'MU Budova 2'!O38=0),0,IF(AND('MU Budova 2'!F26=0,'MU Budova 2'!K26=0),N21+N32+N43+N53,IF(N21+N32+N43+N53-(((N21+N32+N43+N53)/100)*('MU Budova 2'!F26+'MU Budova 2'!K26))<0,0,(N21+N32+N43+N53-((N21+N32+N43+N53)/100)*('MU Budova 2'!F26+'MU Budova 2'!K26)))))","v":0},null,null,{"$f":"IF('Rozpočet B2'!$B$11=Číselníky!A2,'Rozpočet B2'!N55,'Rozpočet B2'!N55/1.2)","v":0}]
[null,null,null,null,null,null,null,null,null,null,null,null,null,null,null,null,null," "]
[]
["Upozornenia"]
["Každá samostatná budova reprezentuje samostatnú hlavnú aktivitu uvedenú v ŽoNPF. Pre každú samostatnú budovu sa predkladá samostatný Energetický audit, samostatná Projektová dokumentácia  vrátane Energetického hodnotenia, samostatný rozpočet a samostatný hárok MU."]
["V prípade potreby doplnenia ďalších výdavkov vložte riadky a ak relevantné skopírujte vzorce."]
["V časti \"Vecný popis výdavkov\" špecifikujte jednotlivé výdavky z hľadiska ich predmetu, resp. rozsahu, prípadne nevyhnutnosti. Teda, ak výdavok pozostáva z viacerých položiek, je potrebné tieto položky v rámci vecného popisu výdavku bližšie špecifikovať, t. j. uviesť z akých položiek pozostáva cena výdavku vrátane výšky týchto položiek.  "]
["V časti rozpočtu \"Ostatné\" zadajte stavebné výdavky, ktoré nie je možné priradiť k predchádzajúcim častiam rozpočtu (zateplenie plášťa, strechy, výmena okenných konštrukcií). Napr. výdavky na systém prípravy teplej vody, osvetlenia vrátane potrebného merania a riadenia a modernizácie príslušných rozvodov energie, inštaláciu systémov merania a riadenia, inštaláciu zariadení na využívanie OZE pre spotrebu v budove a pod."]
["Dbajte prosím na súlad údajov uvedených v Rozpočte s údajmi uvedenými vo formulári ŽoNFP, ako aj v ďalších prílohách ŽoNFP."]

{"sheet":"Rozpočet B3","index":5,"n_rows":63,"n_cols":17,"rows_kept":63,"cut":false,"hidden":true,"merged":[[59,0,59,14],[60,0,60,14],[61,0,61,14],[62,0,62,14],[45,0,45,14],[52,0,52,4],[53,0,53,4],[57,0,57,7],[58,0,58,14],[54,0,54,6],[44,1,44,14],[14,0,14,1],[20,0,20,4],[21,0,21,14],[22,1,22,14],[25,0,25,1],[31,0,31,4],[32,0,32,14],[33,1,33,14],[36,0,36,1],[42,0,42,4],[43,0,43,14],[10,3,10,4],[10,8,10,9],[11,3,11,4],[11,8,11,14],[1,0,1,14],[6,0,6,5],[6,6,6,14],[8,1,8,14],[9,1,9,14]]}
[]
["Príloha ŽoNFP č. 6 - Dokumentácia k oprávnenosti výdavkov"]
[]
[]
[]
[]
["Rozpočet  -  Budova č. 3",null,null,null,null,null,{"$f":"IF(G12=\"\",\"\",\" -  súpis. č. \"&G12)","v":""}]
[]
["Názov žiadateľa:",{"$f":"IF('Rozpočet B1 - Value for Money'!B9:O9=\"\",\"\",'Rozpočet B1 - Value for Money'!B9:O9)","v":"Obec Podhorany"}]
["Názov projektu:",{"$f":"IF('Rozpočet B1 - Value for Money'!B10:O10=\"\",\"\",'Rozpočet B1 - Value for Money'!B10:O10)","v":"Stavebné úpravy ZŠ Podhorany Zníženie spotreby energie pri prevádzke "}]
["Je žiadateľ platcom DPH v rozsahu aktivity?",null,null,"Katastrálne územie",null,"LV číslo","Súpisné číslo",null,"Právny vzťah "]
["Počet samostatných budov v ŽoNFP?",{"$f":"IF('Rozpočet B1 - Value for Money'!B12=\"\",\"\",'Rozpočet B1 - Value for Money'!B12)","v":1},null,null,null,null,null,null,{"$f":"IF(O11=[4]Číselníky!G13,\"Predložte súhlas všetkých podielových spoluvlastníkov stavby\",IF(O11=[4]Číselníky!G14,\"Predložte doklad oprávnujúci k výkonu správy budovy\",\"\"))","v":""}]
[]
["Zateplenie obvodového plášťa"]
["Cieľová hodnota zateplenej plochy obvodového plášťa v m2",null,null," m2"]
["Názov výdavku","Skupina výdavkov  ","Merná\njednotka","Počet \njednotiek","Jednotková cena\nbez DPH [EUR]","Cena celkom \nbez DPH [EUR]","Cena celkom \ns DPH [EUR]","Celkový \nvýdavok","Výdavok nad \nreferenčnú hodnotu","Výdavok \npri neakceptovaní\nprekročenia ref.\nhodnôt","Schválenie /\nneschválenie\nprekročenia ref.\nhodnôt","Výdavok po odčítaní\nvecne neoprávne.\na/alebo neúčelných\nvýdavkov","Výdavok po odčítaní\nnehospodárnych\nvýdavkov","Výdavok po posúdení\nprekročenia\nreferenčných hodnôt","Vecný opis výdavku"]
["Položka č. 1","021 Stavby",null,null,null,{"$f":"ROUND(D17*E17,2)","v":0},{"$f":"ROUND(F17*1.2,2)","v":0},{"$f":"IF($B$11=\"áno\",F17,G17)","v":0},null,null,null,{"$f":"H17","v":0},{"$f":"L17","v":0},{"$f":"IFERROR(ROUND(IF($K$21=\"nie\",IF($M$21<=($C$15*100),M17,M17*$J$21/$M$21),M17),2),0)","v":0}]
["Položka č. 2","021 Stavby",null,null,null,{"$f":"ROUND(D18*E18,2)","v":0},{"$f":"ROUND(F18*1.2,2)","v":0},{"$f":"IF($B$11=\"áno\",F18,G18)","v":0},null,null,null,{"$f":"H18","v":0},{"$f":"L18","v":0},{"$f":"IFERROR(ROUND(IF($K$21=\"nie\",IF($M$21<=($C$15*100),M18,M18*$J$21/$M$21),M18),2),0)","v":0}]
["Položka č. 3","021 Stavby",null,null,null,{"$f":"ROUND(D19*E19,2)","v":0},{"$f":"ROUND(F19*1.2,2)","v":0},{"$f":"IF($B$11=\"áno\",F19,G19)","v":0},null,null,null,{"$f":"H19","v":0},{"$f":"L19","v":0},0]
["Položka č. n","021 Stavby",null,null,null,{"$f":"ROUND(D20*E20,2)","v":0},{"$f":"ROUND(F20*1.2,2)","v":0},{"$f":"IF($B$11=\"áno\",F20,G20)","v":0},null,null,null,{"$f":"H20","v":0},{"$f":"L20","v":0},0]
["Spolu výdavky zateplenia obvodového plášťa",null,null,null,null,{"$f":"SUM(F17:F20)","v":0},{"$f":"SUM(G17:G20)","v":0},{"$f":"IF(OR(B11=\"\",C15=\"\",C15<=0,D12=\"\",F12=\"\",G12=\"\",O11=\"\"),0,SUM(H17:H20))","v":0},{"$f":"IF(OR(C15=0,B11=\"\"),0,IF(F21>=C15*100,IF(B11=\"áno\",F21-C15*100,G21-C15*100*1.2),0))","v":0},{"$f":"IF(OR(C15=\"\",C15<=0,D12=\"\",F12=\"\",G12=\"\",O11=\"\"),0,H21-I21)","v":0},null,{"$f":"IF(OR(B11=\"\",C15=\"\",C15<=0,D12=\"\",F12=\"\",G12=\"\",O11=\"\"),0,SUM(L17:L20))","v":0},{"$f":"IF(OR(B11=\"\",C15=\"\",C15<=0,D12=\"\",F12=\"\",G12=\"\",O11=\"\"),0,SUM(M17:M20))","v":0},{"$f":"IF(OR(B11=\"\",C15=\"\",C15<=0,D12=\"\",F12=\"\",G12=\"\",O11=\"\"),0,SUM(N17:N20))","v":0}]
[{"$f":"IF(C10*G10>=H21,\"\",\"Prekročenie referenčných hodnôt nebude bez akceptovaného zdôvodnenia schválené.\")","v":""}]
["Zdôvodnenie prekročenia referenčnej hodnoty pre obvodový plášť","V prípade prekročenia stanovenej referenčnej hodnoty pre vybrané výdavky projektu je žiadateľ oprávnený toto prekročenie zdôvodniť.\n\nŽiadateľ v zdôvodnení uvedie výdavky, ktoré najvýznamnejšie vplývajú na prekročenie stanovenej referenčnej hodnoty a zdôvodní ich nevyhnutnosť. V prípade, že zdôvodnenie prekročenia stanovenej referenčnej hodnoty nebude predložené, resp. dostatočné  alebo akceptované zo strany odborného hodnotiteľa ako odôvodniteľné, žiadané výdavky budú krátené na výšku stanovených referenčných hodnôt.\n\nBližšie informácie týkajúce sa referenčných hodnôt a ich prekročenia sú uvedené v Prílohe č. 4 Výzvy - Osobitné podmienky oprávnenosti výdavkov.\n"]
[]
["Zateplenie strešného plášťa"]
["Cieľová hodnota zateplenej plochy strešného plášťa v m2",null,null," m2"]
["Názov výdavku","Skupina výdavkov  ","Merná\njednotka","Počet \njednotiek","Jednotková cena\nbez DPH [EUR]","Cena celkom \nbez DPH [EUR]","Cena celkom \ns DPH [EUR]","Celkový \nvýdavok","Výdavok nad \nreferenčnú hodnotu","Výdavok \npri neakceptovaní\nprekročenia ref.\nhodnôt","Schválenie /\nneschválenie\nprekročenia ref.\nhodnôt","Výdavok po odčítaní\nvecne neoprávne.\na/alebo neúčelných výdavkov","Výdavok po odčítaní\nnehospodárnych\nvýdavkov","Výdavok po posúdení\nprekročenia \nreferenčných hodnôt","Vecný opis výdavku"]
["Položka č. 1","021 Stavby",null,null,null,{"$f":"ROUND(D28*E28,2)","v":0},{"$f":"ROUND(F28*1.2,2)","v":0},{"$f":"IF($B$11=\"áno\",F28,G28)","v":0},null,null,null,{"$f":"H28","v":0},{"$f":"L28","v":0},{"$f":"IFERROR(ROUND(IF($K$32=\"nie\",IF($M$32<=($C$26*80),M28,M28*$J$32/$M$32),M28),2),0)","v":0}]
["Položka č. 2","021 Stavby",null,null,null,{"$f":"ROUND(D29*E29,2)","v":0},{"$f":"ROUND(F29*1.2,2)","v":0},{"$f":"IF($B$11=\"áno\",F29,G29)","v":0},null,null,null,{"$f":"H29","v":0},{"$f":"L29","v":0},{"$f":"IFERROR(ROUND(IF($K$32=\"nie\",IF($M$32<=($C$26*80),M29,M29*$J$32/$M$32),M29),2),0)","v":0}]
["Položka č. 3","021 Stavby",null,null,null,{"$f":"ROUND(D30*E30,2)","v":0},{"$f":"ROUND(F30*1.2,2)","v":0},{"$f":"IF($B$11=\"áno\",F30,G30)","v":0},null,null,null,{"$f":"H30","v":0},{"$f":"L30","v":0},0]
["Položka č. n","021 Stavby",null,null,null,{"$f":"ROUND(D31*E31,2)","v":0},{"$f":"ROUND(F31*1.2,2)","v":0},{"$f":"IF($B$11=\"áno\",F31,G31)","v":0},null,null,null,{"$f":"H31","v":0},{"$f":"L31","v":0},0]
["Spolu výdavky zateplenia strešného plášťa",null,null,null,null,{"$f":"SUM(F28:F31)","v":0},{"$f":"SUM(G28:G31)","v":0},{"$f":"IF(OR(B11=\"\",C26=\"\",C26<=0,D12=\"\",F12=\"\",G12=\"\",O11=\"\"),0,SUM(H28:H31))","v":0},{"$f":"IF(OR(C26=0,B11=\"\"),0,IF(F32>=C26*80,IF(B11=\"áno\",F32-C26*80,G32-C26*80*1.2),0))","v":0},{"$f":"IF(OR(C26=\"\",C26<=0,D12=\"\",F12=\"\",G12=\"\",O11=\"\"),0,H32-I32)","v":0},null,{"$f":"IF(OR(B11=\"\",C26=\"\",C26<=0,D12=\"\",F12=\"\",G12=\"\",O11=\"\"),0,SUM(L28:L31))","v":0},{"$f":"IF(OR(B11=\"\",C26=\"\",C26<=0,D12=\"\",F12=\"\",G12=\"\",O11=\"\"),0,SUM(M28:M31))","v":0},{"$f":"IF(OR(B11=\"\",C26=\"\",C26<=0,D12=\"\",F12=\"\",G12=\"\",O11=\"\"),0,SUM(N28:N31))","v":0}]
[{"$f":"IF(C21*G21>=H32,\"\",\"Prekročenie referenčných hodnôt nebude bez akceptovaného zdôvodnenia schválené.\")","v":""}]
["Zdôvodnenie prekročenia referenčnej hodnoty pre strešný plášť","V prípade prekročenia stanovenej referenčnej hodnoty pre vybrané výdavky projektu je žiadateľ oprávnený toto prekročenie zdôvodniť.\n\nŽiadateľ v zdôvodnení uvedie výdavky, ktoré najvýznamnejšie vplývajú na prekročenie stanovenej referenčnej hodnoty a zdôvodní ich nevyhnutnosť. V prípade, že zdôvodnenie prekročenia stanovenej referenčnej hodnoty nebude predložené, resp. dostatočné  alebo akceptované zo strany odborného hodnotiteľa ako odôvodniteľné, žiadané výdavky budú krátené na výšku stanovených referenčných hodnôt.\n\nBližšie informácie týkajúce sa referenčných hodnôt a ich prekročenia sú uvedené v Prílohe č. 4 Výzvy - Osobitné podmienky oprávnenosti výdavkov.\n"]
[]
["Výmena otvorových konštrukcií"]
["Cieľová hodnota výmeny otvorových konštrukcií v m2",null,null," m2"]
["Názov výdavku","Skupina výdavkov  ","Merná\njednotka","Počet \njednotiek","Jednotková cena\nbez DPH [EUR]","Cena celkom \nbez DPH [EUR]","Cena celkom \ns DPH [EUR]","Celkový \nvýdavok","Výdavok nad \nreferenčnú hodnotu","Výdavok \npri neakceptovaní\nprekročenia ref.\nhodnôt","Schválenie /\nneschválenie\nprekročenia ref.\nhodnôt","Výdavok po odčítaní\nvecne neoprávne.\na/alebo neúčelných výdavkov","Výdavok po odčítaní\nnehospodárnych\nvýdavkov","Výdavok po posúdení\nprekročenia \nreferenčných hodnôt","Vecný opis výdavku"]
["Položka č. 1","021 Stavby",null,null,null,{"$f":"ROUND(D39*E39,2)","v":0},{"$f":"ROUND(F39*1.2,2)","v":0},{"$f":"IF($B$11=\"áno\",F39,G39)","v":0},null,null,null,{"$f":"H39","v":0},{"$f":"L39","v":0},{"$f":"IFERROR(ROUND(IF($K$43=\"nie\",IF($M$43<=($C$37*400),M39,M39*$J$43/$M$43),M39),2),0)","v":0}]
["Položka č. 2","021 Stavby",null,null,null,{"$f":"ROUND(D40*E40,2)","v":0},{"$f":"ROUND(F40*1.2,2)","v":0},{"$f":"IF($B$11=\"áno\",F40,G40)","v":0},null,null,null,{"$f":"H40","v":0},{"$f":"L40","v":0},{"$f":"IFERROR(ROUND(IF($K$43=\"nie\",IF($M$43<=($C$37*400),M40,M40*$J$43/$M$43),M40),2),0)","v":0}]
["Položka č. 3","021 Stavby",null,null,null,{"$f":"ROUND(D41*E41,2)","v":0},{"$f":"ROUND(F41*1.2,2)","v":0},{"$f":"IF($B$11=\"áno\",F41,G41)","v":0},null,null,null,{"$f":"H41","v":0},{"$f":"L41","v":0},0]
["Položka č. n","021 Stavby",null,null,null,{"$f":"ROUND(D42*E42,2)","v":0},{"$f":"ROUND(F42*1.2,2)","v":0},{"$f":"IF($B$11=\"áno\",F42,G42)","v":0},null,null,null,{"$f":"H42","v":0},{"$f":"L42","v":0},0]
["Spolu výdavky výmeny otvorových konštrukcií",null,null,null,null,{"$f":"SUM(F39:F42)","v":0},{"$f":"SUM(G39:G42)","v":0},{"$f":"IF(OR(B11=\"\",C37=\"\",C37<=0,D12=\"\",F12=\"\",G12=\"\",O11=\"\"),0,SUM(H39:H42))","v":0},{"$f":"IF(OR(C37=0,B11=\"\"),0,IF(F43>=C37*400,IF(B11=\"áno\",F43-C37*400,G43-C37*400*1.2),0))","v":0},{"$f":"IF(OR(C37=\"\",C37<=0,D12=\"\",F12=\"\",G12=\"\",O11=\"\"),0,H43-I43)","v":0},null,{"$f":"IF(OR(B11=\"\",C37=\"\",C37<=0,D12=\"\",F12=\"\",G12=\"\",O11=\"\"),0,SUM(L39:L42))","v":0},{"$f":"IF(OR(B11=\"\",C37=\"\",C37<=0,D12=\"\",F12=\"\",G12=\"\",O11=\"\"),0,SUM(M39:M42))","v":0},{"$f":"IF(OR(B11=\"\",C37=\"\",C37<=0,D12=\"\",F12=\"\",G12=\"\",O11=\"\"),0,SUM(N39:N42))","v":0}]
[{"$f":"IF(C32*G32>=H43,\"\",\"Prekročenie referenčných hodnôt nebude bez akceptovaného zdôvodnenia schválené.\")","v":""}]
["Zdôvodnenie prekročenia referenčnej hodnoty pre výmenu otvorových konštrukcií","V prípade prekročenia stanovenej referenčnej hodnoty pre vybrané výdavky projektu je žiadateľ oprávnený toto prekročenie zdôvodniť.\n\nŽiadateľ v zdôvodnení uvedie výdavky, ktoré najvýznamnejšie vplývajú na prekročenie stanovenej referenčnej hodnoty a zdôvodní ich nevyhnutnosť. V prípade, že zdôvodnenie prekročenia stanovenej referenčnej hodnoty nebude predložené, resp. dostatočné  alebo akceptované zo strany odborného hodnotiteľa ako odôvodniteľné, žiadané výdavky budú krátené na výšku stanovených referenčných hodnôt.\n\nBližšie informácie týkajúce sa referenčných hodnôt a ich prekročenia sú uvedené v Prílohe č. 4 Výzvy - Osobitné podmienky oprávnenosti výdavkov.\n"]
[]
["Ostatné"]
["Názov výdavku","Skupina výdavkov  ","Merná jednotka","Počet jednotiek","Jednotková cena\nbez DPH [EUR]","Cena celkom \nbez DPH [EUR]","Cena celkom \ns DPH [EUR]","Celkový \nvýdavok","Výdavok nad \nreferenčnú hodnotu","Výdavok \npri neakceptovaní\nprekročenia ref.\nhodnôt","Stĺpec1","Výdavok po odčítaní\nvecne neoprávne. \na/alebo neúčelných\nvýdavkov","Stĺpec2","Výdavok po odčítaní\nnehospodárnych\nvýdavkov","Vecný opis výdavku"]
["Položka č. 1","021 Stavby",null,null,null,{"$f":"ROUND(D49*E49,2)","v":0},{"$f":"ROUND(F49*1.2,2)","v":0},{"$f":"IF($B$11=\"áno\",F49,G49)","v":0},null,null,null,{"$f":"H49","v":0},null,{"$f":"L49","v":0}]
["Položka č. 2","021 Stavby",null,null,null,{"$f":"ROUND(D50*E50,2)","v":0},{"$f":"ROUND(F50*1.2,2)","v":0},{"$f":"IF($B$11=\"áno\",F50,G50)","v":0},null,null,null,{"$f":"H50","v":0},null,{"$f":"L50","v":0}]
["Položka č. 3","021 Stavby",null,null,null,{"$f":"ROUND(D51*E51,2)","v":0},{"$f":"ROUND(F51*1.2,2)","v":0},{"$f":"IF($B$11=\"áno\",F51,G51)","v":0},null,null,null,{"$f":"H51","v":0},null,{"$f":"L51","v":0}]
["Položka č. n","021 Stavby",null,null,null,{"$f":"ROUND(D52*E52,2)","v":0},{"$f":"ROUND(F52*1.2,2)","v":0},{"$f":"IF($B$11=\"áno\",F52,G52)","v":0},null,null,null,{"$f":"H52","v":0},null,{"$f":"L52","v":0}]
["SPOLU výdavky ostatné",null,null,null,null,{"$f":"SUM(F49:F52)","v":0},{"$f":"SUM(G49:G52)","v":0},{"$f":"IF(OR(B11=\"\",D12=\"\",F12=\"\",G12=\"\",O11=\"\"),0,SUM(H49:H52))","v":0},"RH sa pre skup. výdav. \"Ostatné\" neuplatňuje.",null,null,{"$f":"IF(OR(B11=\"\",D12=\"\",F12=\"\",G12=\"\",O11=\"\"),0,SUM(L49:L52))","v":0},null,{"$f":"IF(OR(B11=\"\",D12=\"\",F12=\"\",G12=\"\",O11=\"\"),0,SUM(N49:N52))","v":0}]
["SPOLU Výdavky na budovu č. 3",null,null,null,null,{"$f":"F21+F32+F43+F53","v":0},{"$f":"G21+G32+G43+G53","v":0},{"$f":"IF(OR('MU Budova 3'!O15=0,'MU Budova 3'!O16=0,'MU Budova 3'!O17=0,'MU Budova 3'!O18=0,'MU Budova 3'!O19=0,'MU Budova 3'!O13=0,'MU Budova 3'!O33=0,'MU Budova 3'!O34=0,'MU Budova 3'!O35=0,'MU Budova 3'!O36=0,'MU Budova 3'!O37=0,'MU Budova 3'!O38=0),0,H21+H32+H43+H53)","v":0},{"$f":"REFa+REFb+REFc","v":0},{"$f":"J21+J32+J43","v":0},null,{"$f":"IF(OR('MU Budova 3'!O15=0,'MU Budova 3'!O16=0,'MU Budova 3'!O17=0,'MU Budova 3'!O18=0,'MU Budova 3'!O19=0,'MU Budova 3'!O13=0,'MU Budova 3'!O33=0,'MU Budova 3'!O34=0,'MU Budova 3'!O35=0,'MU Budova 3'!O36=0,'MU Budova 3'!O37=0,'MU Budova 3'!O38=0),0,L21+L32+L43+L53)","v":0},null,{"$f":"IF(OR('MU Budova 3'!O15=0,'MU Budova 3'!O16=0,'MU Budova 3'!O17=0,'MU Budova 3'!O18=0,'MU Budova 3'!O19=0,'MU Budova 3'!O13=0,'MU Budova 3'!O33=0,'MU Budova 3'!O34=0,'MU Budova 3'!O35=0,'MU Budova 3'!O36=0,'MU Budova 3'!O37=0,'MU Budova 3'!O38=0),0,N21+N32+N43+N53)","v":0}]
["SPOLU Výdavky na budovu č. 3 po prípadnom odpočítaní hospodárskej činnosti a nízkych úspor potreby energie na vykurovanie",null,null,null,null,null,null,{"$f":"IF(OR('MU Budova 3'!O15=0,'MU Budova 3'!O16=0,'MU Budova 3'!O17=0,'MU Budova 3'!O18=0,'MU Budova 3'!O19=0,'MU Budova 3'!O21=0,'MU Budova 3'!O22=0,'MU Budova 3'!O23=0,'MU Budova 3'!O13=0,'MU Budova 3'!O33=0,'MU Budova 3'!O34=0,'MU Budova 3'!O35=0,'MU Budova 3'!O36=0,'MU Budova 3'!O37=0,'MU Budova 3'!O38=0),0,IF(AND('MU Budova 3'!F26=0,'MU Budova 3'!K26=0),H21+H32+H43+H53,IF(H21+H32+H43+H53-(((H21+H32+H43+H53)/100)*('MU Budova 3'!F26+'MU Budova 3'!K26))<0,0,(H21+H32+H43+H53-((H21+H32+H43+H53)/100)*('MU Budova 3'!F26+'MU Budova 3'!K26)))))","v":0},null,null,null,null,null,{"$f":"IF(OR('MU Budova 3'!O15=0,'MU Budova 3'!O16=0,'MU Budova 3'!O17=0,'MU Budova 3'!O18=0,'MU Budova 3'!O19=0,'MU Budova 3'!O21=0,'MU Budova 3'!O22=0,'MU Budova 3'!O23=0,'MU Budova 3'!O13=0,'MU Budova 3'!O33=0,'MU Budova 3'!O34=0,'MU Budova 3'!O35=0,'MU Budova 3'!O36=0,'MU Budova 3'!O37=0,'MU Budova 3'!O38=0),0,IF(AND('MU Budova 3'!F26=0,'MU Budova 3'!K26=0),N21+N32+N43+N53,IF(N21+N32+N43+N53-(((N21+N32+N43+N53)/100)*('MU Budova 3'!F26+'MU Budova 3'!K26))<0,0,(N21+N32+N43+N53-((N21+N32+N43+N53)/100)*('MU Budova 3'!F26+'MU Budova 3'!K26)))))","v":0},null,null,{"$f":"IF('Rozpočet B3'!$B$11=Číselníky!A2,'Rozpočet B3'!N55,'Rozpočet B3'!N55/1.2)","v":0}]
[]
[]
["Upozornenia"]
["Každá samostatná budova reprezentuje samostatnú hlavnú aktivitu uvedenú v ŽoNPF. Pre každú samostatnú budovu sa predkladá samostatný Energetický audit, samostatná Projektová dokumentácia  vrátane Energetického hodnotenia, samostatný rozpočet a samostatný hárok MU."]
["V prípade potreby doplnenia ďalších výdavkov vložte riadky a ak relevantné skopírujte vzorce."]
["V časti \"Vecný popis výdavkov\" špecifikujte jednotlivé výdavky z hľadiska ich predmetu, resp. rozsahu, prípadne nevyhnutnosti. Teda, ak výdavok pozostáva z viacerých položiek, je potrebné tieto položky v rámci vecného popisu výdavku bližšie špecifikovať, t. j. uviesť z akých položiek pozostáva cena výdavku vrátane výšky týchto položiek.  "]
["V časti rozpočtu \"Ostatné\" zadajte stavebné výdavky, ktoré nie je možné priradiť k predchádzajúcim častiam rozpočtu (zateplenie plášťa, strechy, výmena okenných konštrukcií). Napr. výdavky na systém prípravy teplej vody, osvetlenia vrátane potrebného merania a riadenia a modernizácie príslušných rozvodov energie, inštaláciu systémov merania a riadenia, inštaláciu zariadení na využívanie OZE pre spotrebu v budove a pod."]
["Dbajte prosím na súlad údajov uvedených v Rozpočte s údajmi uvedenými vo formulári ŽoNFP, ako aj v ďalších prílohách ŽoNFP."]

{"sheet":"Rozpočet B4","index":6,"n_rows":63,"n_cols":17,"rows_kept":63,"cut":false,"hidden":true,"merged":[[59,0,59,14],[60,0,60,14],[61,0,61,14],[62,0,62,14],[45,0,45,14],[52,0,52,4],[53,0,53,4],[57,0,57,7],[58,0,58,14],[54,0,54,6],[44,1,44,14],[14,0,14,1],[20,0,20,4],[21,0,21,14],[22,1,22,14],[25,0,25,1],[31,0,31,4],[32,0,32,14],[33,1,33,14],[36,0,36,1],[42,0,42,4],[43,0,43,14],[10,3,10,4],[10,8,10,9],[11,3,11,4],[11,8,11,14],[1,0,1,14],[6,0,6,5],[6,6,6,14],[8,1,8,14],[9,1,9,14]]}
[]
["Príloha ŽoNFP č. 6 - Dokumentácia k oprávnenosti výdavkov"]
[]
[]
[]
[]
["Rozpočet  -  Budova č. 4",null,null,null,null,null,{"$f":"IF(G12=\"\",\"\",\" -  súpis. č. \"&G12)","v":""}]
[]
["Názov žiadateľa:",{"$f":"IF('Rozpočet B1 - Value for Money'!B9:O9=\"\",\"\",'Rozpočet B1 - Value for Money'!B9:O9)","v":"Obec Podhorany"}]
["Názov projektu:",{"$f":"IF('Rozpočet B1 - Value for Money'!B10:O10=\"\",\"\",'Rozpočet B1 - Value for Money'!B10:O10)","v":"Stavebné úpravy ZŠ Podhorany Zníženie spotreby energie pri prevádzke "}]
["Je žiadateľ platcom DPH v rozsahu aktivity?",null,null,"Katastrálne územie",null,"LV číslo","Súpisné číslo",null,"Právny vzťah "]
["Počet samostatných budov v ŽoNFP?",{"$f":"IF('Rozpočet B1 - Value for Money'!B12=\"\",\"\",'Rozpočet B1 - Value for Money'!B12)","v":1},null,null,null,null,null,null,{"$f":"IF(O11=[4]Číselníky!G13,\"Predložte súhlas všetkých podielových spoluvlastníkov stavby\",IF(O11=[4]Číselníky!G14,\"Predložte doklad oprávnujúci k výkonu správy budovy\",\"\"))","v":""}]
[]
["Zateplenie obvodového plášťa"]
["Cieľová hodnota zateplenej plochy obvodového plášťa v m2",null,null," m2"]
["Názov výdavku","Skupina výdavkov  ","Merná\njednotka","Počet \njednotiek","Jednotková cena\nbez DPH [EUR]","Cena celkom \nbez DPH [EUR]","Cena celkom \ns DPH [EUR]","Celkový \nvýdavok","Výdavok nad \nreferenčnú hodnotu","Výdavok \npri neakceptovaní\nprekročenia ref.\nhodnôt","Schválenie /\nneschválenie\nprekročenia ref.\nhodnôt","Výdavok po odčítaní\nvecne neoprávne.\na/alebo neúčelných\nvýdavkov","Výdavok po odčítaní\nnehospodárnych\nvýdavkov","Výdavok po posúdení\nprekročenia\nreferenčných hodnôt","Vecný opis výdavku"]
["Položka č. 1","021 Stavby",null,null,null,{"$f":"ROUND(D17*E17,2)","v":0},{"$f":"ROUND(F17*1.2,2)","v":0},{"$f":"IF($B$11=\"áno\",F17,G17)","v":0},null,null,null,{"$f":"H17","v":0},{"$f":"L17","v":0},{"$f":"IFERROR(ROUND(IF($K$21=\"nie\",IF($M$21<=($C$15*100),M17,M17*$J$21/$M$21),M17),2),0)","v":0}]
["Položka č. 2","021 Stavby",null,null,null,{"$f":"ROUND(D18*E18,2)","v":0},{"$f":"ROUND(F18*1.2,2)","v":0},{"$f":"IF($B$11=\"áno\",F18,G18)","v":0},null,null,null,{"$f":"H18","v":0},{"$f":"L18","v":0},{"$f":"IFERROR(ROUND(IF($K$21=\"nie\",IF($M$21<=($C$15*100),M18,M18*$J$21/$M$21),M18),2),0)","v":0}]
["Položka č. 3","021 Stavby",null,null,null,{"$f":"ROUND(D19*E19,2)","v":0},{"$f":"ROUND(F19*1.2,2)","v":0},{"$f":"IF($B$11=\"áno\",F19,G19)","v":0},null,null,null,{"$f":"H19","v":0},{"$f":"L19","v":0},0]
["Položka č. n","021 Stavby",null,null,null,{"$f":"ROUND(D20*E20,2)","v":0},{"$f":"ROUND(F20*1.2,2)","v":0},{"$f":"IF($B$11=\"áno\",F20,G20)","v":0},null,null,null,{"$f":"H20","v":0},{"$f":"L20","v":0},0]
["Spolu výdavky zateplenia obvodového plášťa",null,null,null,null,{"$f":"SUM(F17:F20)","v":0},{"$f":"SUM(G17:G20)","v":0},{"$f":"IF(OR(B11=\"\",C15=\"\",C15<=0,D12=\"\",F12=\"\",G12=\"\",O11=\"\"),0,SUM(H17:H20))","v":0},{"$f":"IF(OR(C15=0,B11=\"\"),0,IF(F21>=C15*100,IF(B11=\"áno\",F21-C15*100,G21-C15*100*1.2),0))","v":0},{"$f":"IF(OR(C15=\"\",C15<=0,D12=\"\",F12=\"\",G12=\"\",O11=\"\"),0,H21-I21)","v":0},null,{"$f":"IF(OR(B11=\"\",C15=\"\",C15<=0,D12=\"\",F12=\"\",G12=\"\",O11=\"\"),0,SUM(L17:L20))","v":0},{"$f":"IF(OR(B11=\"\",C15=\"\",C15<=0,D12=\"\",F12=\"\",G12=\"\",O11=\"\"),0,SUM(M17:M20))","v":0},{"$f":"IF(OR(B11=\"\",C15=\"\",C15<=0,D12=\"\",F12=\"\",G12=\"\",O11=\"\"),0,SUM(N17:N20))","v":0}]
[{"$f":"IF(C10*G10>=H21,\"\",\"Prekročenie referenčných hodnôt nebude bez akceptovaného zdôvodnenia schválené.\")","v":""}]
["Zdôvodnenie prekročenia referenčnej hodnoty pre obvodový plášť","V prípade prekročenia stanovenej referenčnej hodnoty pre vybrané výdavky projektu je žiadateľ oprávnený toto prekročenie zdôvodniť.\n\nŽiadateľ v zdôvodnení uvedie výdavky, ktoré najvýznamnejšie vplývajú na prekročenie stanovenej referenčnej hodnoty a zdôvodní ich nevyhnutnosť. V prípade, že zdôvodnenie prekročenia stanovenej referenčnej hodnoty nebude predložené, resp. dostatočné  alebo akceptované zo strany odborného hodnotiteľa ako odôvodniteľné, žiadané výdavky budú krátené na výšku stanovených referenčných hodnôt.\n\nBližšie informácie týkajúce sa referenčných hodnôt a ich prekročenia sú uvedené v Prílohe č. 4 Výzvy - Osobitné podmienky oprávnenosti výdavkov.\n"]
[]
["Zateplenie strešného plášťa"]
["Cieľová hodnota zateplenej plochy strešného plášťa v m2",null,null," m2"]
["Názov výdavku","Skupina výdavkov  ","Merná\njednotka","Počet \njednotiek","Jednotková cena\nbez DPH [EUR]","Cena celkom \nbez DPH [EUR]","Cena celkom \ns DPH [EUR]","Celkový \nvýdavok","Výdavok nad \nreferenčnú hodnotu","Výdavok \npri neakceptovaní\nprekročenia ref.\nhodnôt","Schválenie /\nneschválenie\nprekročenia ref.\nhodnôt","Výdavok po odčítaní\nvecne neoprávne.\na/alebo neúčelných výdavkov","Výdavok po odčítaní\nnehospodárnych\nvýdavkov","Výdavok po posúdení\nprekročenia \nreferenčných hodnôt","Vecný opis výdavku"]
["Položka č. 1","021 Stavby",null,null,null,{"$f":"ROUND(D28*E28,2)","v":0},{"$f":"ROUND(F28*1.2,2)","v":0},{"$f":"IF($B$11=\"áno\",F28,G28)","v":0},null,null,null,{"$f":"H28","v":0},{"$f":"L28","v":0},{"$f":"IFERROR(ROUND(IF($K$32=\"nie\",IF($M$32<=($C$26*80),M28,M28*$J$32/$M$32),M28),2),0)","v":0}]
["Položka č. 2","021 Stavby",null,null,null,{"$f":"ROUND(D29*E29,2)","v":0},{"$f":"ROUND(F29*1.2,2)","v":0},{"$f":"IF($B$11=\"áno\",F29,G29)","v":0},null,null,null,{"$f":"H29","v":0},{"$f":"L29","v":0},{"$f":"IFERROR(ROUND(IF($K$32=\"nie\",IF($M$32<=($C$26*80),M29,M29*$J$32/$M$32),M29),2),0)","v":0}]
["Položka č. 3","021 Stavby",null,null,null,{"$f":"ROUND(D30*E30,2)","v":0},{"$f":"ROUND(F30*1.2,2)","v":0},{"$f":"IF($B$11=\"áno\",F30,G30)","v":0},null,null,null,{"$f":"H30","v":0},{"$f":"L30","v":0},0]
["Položka č. n","021 Stavby",null,null,null,{"$f":"ROUND(D31*E31,2)","v":0},{"$f":"ROUND(F31*1.2,2)","v":0},{"$f":"IF($B$11=\"áno\",F31,G31)","v":0},null,null,null,{"$f":"H31","v":0},{"$f":"L31","v":0},0]
["Spolu výdavky zateplenia strešného plášťa",null,null,null,null,{"$f":"SUM(F28:F31)","v":0},{"$f":"SUM(G28:G31)","v":0},{"$f":"IF(OR(B11=\"\",C26=\"\",C26<=0,D12=\"\",F12=\"\",G12=\"\",O11=\"\"),0,SUM(H28:H31))","v":0},{"$f":"IF(OR(C26=0,B11=\"\"),0,IF(F32>=C26*80,IF(B11=\"áno\",F32-C26*80,G32-C26*80*1.2),0))","v":0},{"$f":"IF(OR(C26=\"\",C26<=0,D12=\"\",F12=\"\",G12=\"\",O11=\"\"),0,H32-I32)","v":0},null,{"$f":"IF(OR(B11=\"\",C26=\"\",C26<=0,D12=\"\",F12=\"\",G12=\"\",O11=\"\"),0,SUM(L28:L31))","v":0},{"$f":"IF(OR(B11=\"\",C26=\"\",C26<=0,D12=\"\",F12=\"\",G12=\"\",O11=\"\"),0,SUM(M28:M31))","v":0},{"$f":"IF(OR(B11=\"\",C26=\"\",C26<=0,D12=\"\",F12=\"\",G12=\"\",O11=\"\"),0,SUM(N28:N31))","v":0}]
[{"$f":"IF(C21*G21>=H32,\"\",\"Prekročenie referenčných hodnôt nebude bez akceptovaného zdôvodnenia schválené.\")","v":""}]
["Zdôvodnenie prekročenia referenčnej hodnoty pre strešný plášť","V prípade prekročenia stanovenej referenčnej hodnoty pre vybrané výdavky projektu je žiadateľ oprávnený toto prekročenie zdôvodniť.\n\nŽiadateľ v zdôvodnení uvedie výdavky, ktoré najvýznamnejšie vplývajú na prekročenie stanovenej referenčnej hodnoty a zdôvodní ich nevyhnutnosť. V prípade, že zdôvodnenie prekročenia stanovenej referenčnej hodnoty nebude predložené, resp. dostatočné  alebo akceptované zo strany odborného hodnotiteľa ako odôvodniteľné, žiadané výdavky budú krátené na výšku stanovených referenčných hodnôt.\n\nBližšie informácie týkajúce sa referenčných hodnôt a ich prekročenia sú uvedené v Prílohe č. 4 Výzvy - Osobitné podmienky oprávnenosti výdavkov.\n"]
[]
["Výmena otvorových konštrukcií"]
["Cieľová hodnota výmeny otvorových konštrukcií v m2",null,null," m2"]
["Názov výdavku","Skupina výdavkov  ","Merná\njednotka","Počet \njednotiek","Jednotková cena\nbez DPH [EUR]","Cena celkom \nbez DPH [EUR]","Cena celkom \ns DPH [EUR]","Celkový \nvýdavok","Výdavok nad \nreferenčnú hodnotu","Výdavok \npri neakceptovaní\nprekročenia ref.\nhodnôt","Schválenie /\nneschválenie\nprekročenia ref.\nhodnôt","Výdavok po odčítaní\nvecne neoprávne.\na/alebo neúčelných výdavkov","Výdavok po odčítaní\nnehospodárnych\nvýdavkov","Výdavok po posúdení\nprekročenia \nreferenčných hodnôt","Vecný opis výdavku"]
["Položka č. 1","021 Stavby",null,null,null,{"$f":"ROUND(D39*E39,2)","v":0},{"$f":"ROUND(F39*1.2,2)","v":0},{"$f":"IF($B$11=\"áno\",F39,G39)","v":0},null,null,null,{"$f":"H39","v":0},{"$f":"L39","v":0},{"$f":"IFERROR(ROUND(IF($K$43=\"nie\",IF($M$43<=($C$37*400),M39,M39*$J$43/$M$43),M39),2),0)","v":0}]
["Položka č. 2","021 Stavby",null,null,null,{"$f":"ROUND(D40*E40,2)","v":0},{"$f":"ROUND(F40*1.2,2)","v":0},{"$f":"IF($B$11=\"áno\",F40,G40)","v":0},null,null,null,{"$f":"H40","v":0},{"$f":"L40","v":0},{"$f":"IFERROR(ROUND(IF($K$43=\"nie\",IF($M$43<=($C$37*400),M40,M40*$J$43/$M$43),M40),2),0)","v":0}]
["Položka č. 3","021 Stavby",null,null,null,{"$f":"ROUND(D41*E41,2)","v":0},{"$f":"ROUND(F41*1.2,2)","v":0},{"$f":"IF($B$11=\"áno\",F41,G41)","v":0},null,null,null,{"$f":"H41","v":0},{"$f":"L41","v":0},0]
["Položka č. n","021 Stavby",null,null,null,{"$f":"ROUND(D42*E42,2)","v":0},{"$f":"ROUND(F42*1.2,2)","v":0},{"$f":"IF($B$11=\"áno\",F42,G42)","v":0},null,null,null,{"$f":"H42","v":0},{"$f":"L42","v":0},0]
["Spolu výdavky výmeny otvorových konštrukcií",null,null,null,null,{"$f":"SUM(F39:F42)","v":0},{"$f":"SUM(G39:G42)","v":0},{"$f":"IF(OR(B11=\"\",C37=\"\",C37<=0,D12=\"\",F12=\"\",G12=\"\",O11=\"\"),0,SUM(H39:H42))","v":0},{"$f":"IF(OR(C37=0,B11=\"\"),0,IF(F43>=C37*400,IF(B11=\"áno\",F43-C37*400,G43-C37*400*1.2),0))","v":0},{"$f":"IF(OR(C37=\"\",C37<=0,D12=\"\",F12=\"\",G12=\"\",O11=\"\"),0,H43-I43)","v":0},null,{"$f":"IF(OR(B11=\"\",C37=\"\",C37<=0,D12=\"\",F12=\"\",G12=\"\",O11=\"\"),0,SUM(L39:L42))","v":0},{"$f":"IF(OR(B11=\"\",C37=\"\",C37<=0,D12=\"\",F12=\"\",G12=\"\",O11=\"\"),0,SUM(M39:M42))","v":0},{"$f":"IF(OR(B11=\"\",C37=\"\",C37<=0,D12=\"\",F12=\"\",G12=\"\",O11=\"\"),0,SUM(N39:N42))","v":0}]
[{"$f":"IF(C32*G32>=H43,\"\",\"Prekročenie referenčných hodnôt nebude bez akceptovaného zdôvodnenia schválené.\")","v":""}]
["Zdôvodnenie prekročenia referenčnej hodnoty pre výmenu otvorových konštrukcií","V prípade prekročenia stanovenej referenčnej hodnoty pre vybrané výdavky projektu je žiadateľ oprávnený toto prekročenie zdôvodniť.\n\nŽiadateľ v zdôvodnení uvedie výdavky, ktoré najvýznamnejšie vplývajú na prekročenie stanovenej referenčnej hodnoty a zdôvodní ich nevyhnutnosť. V prípade, že zdôvodnenie prekročenia stanovenej referenčnej hodnoty nebude predložené, resp. dostatočné  alebo akceptované zo strany odborného hodnotiteľa ako odôvodniteľné, žiadané výdavky budú krátené na výšku stanovených referenčných hodnôt.\n\nBližšie informácie týkajúce sa referenčných hodnôt a ich prekročenia sú uvedené v Prílohe č. 4 Výzvy - Osobitné podmienky oprávnenosti výdavkov.\n"]
[]
["Ostatné"]
["Názov výdavku","Skupina výdavkov  ","Merná jednotka","Počet jednotiek","Jednotková cena\nbez DPH [EUR]","Cena celkom \nbez DPH [EUR]","Cena celkom \ns DPH [EUR]","Celkový \nvýdavok","Výdavok nad \nreferenčnú hodnotu","Výdavok \npri neakceptovaní\nprekročenia ref.\nhodnôt","Stĺpec1","Výdavok po odčítaní\nvecne neoprávne. \na/alebo neúčelných\nvýdavkov","Stĺpec2","Výdavok po odčítaní\nnehospodárnych\nvýdavkov","Vecný opis výdavku"]
["Položka č. 1","021 Stavby",null,null,null,{"$f":"ROUND(D49*E49,2)","v":0},{"$f":"ROUND(F49*1.2,2)","v":0},{"$f":"IF($B$11=\"áno\",F49,G49)","v":0},null,null,null,{"$f":"H49","v":0},null,{"$f":"L49","v":0}]
["Položka č. 2","021 Stavby",null,null,null,{"$f":"ROUND(D50*E50,2)","v":0},{"$f":"ROUND(F50*1.2,2)","v":0},{"$f":"IF($B$11=\"áno\",F50,G50)","v":0},null,null,null,{"$f":"H50","v":0},null,{"$f":"L50","v":0}]
["Položka č. 3","021 Stavby",null,null,null,{"$f":"ROUND(D51*E51,2)","v":0},{"$f":"ROUND(F51*1.2,2)","v":0},{"$f":"IF($B$11=\"áno\",F51,G51)","v":0},null,null,null,{"$f":"H51","v":0},null,{"$f":"L51","v":0}]
["Položka č. n","021 Stavby",null,null,null,{"$f":"ROUND(D52*E52,2)","v":0},{"$f":"ROUND(F52*1.2,2)","v":0},{"$f":"IF($B$11=\"áno\",F52,G52)","v":0},null,null,null,{"$f":"H52","v":0},null,{"$f":"L52","v":0}]
["SPOLU výdavky ostatné",null,null,null,null,{"$f":"SUM(F49:F52)","v":0},{"$f":"SUM(G49:G52)","v":0},{"$f":"IF(OR(B11=\"\",D12=\"\",F12=\"\",G12=\"\",O11=\"\"),0,SUM(H49:H52))","v":0},"RH sa pre skup. výdav. \"Ostatné\" neuplatňuje.",null,null,{"$f":"IF(OR(B11=\"\",D12=\"\",F12=\"\",G12=\"\",O11=\"\"),0,SUM(L49:L52))","v":0},null,{"$f":"IF(OR(B11=\"\",D12=\"\",F12=\"\",G12=\"\",O11=\"\"),0,SUM(N49:N52))","v":0}]
["SPOLU Výdavky na budovu č. 4",null,null,null,null,{"$f":"F21+F32+F43+F53","v":0},{"$f":"G21+G32+G43+G53","v":0},{"$f":"IF(OR('MU Budova 4'!O15=0,'MU Budova 4'!O16=0,'MU Budova 4'!O17=0,'MU Budova 4'!O18=0,'MU Budova 4'!O19=0,'MU Budova 4'!O13=0,'MU Budova 4'!O33=0,'MU Budova 4'!O34=0,'MU Budova 4'!O35=0,'MU Budova 4'!O36=0,'MU Budova 4'!O37=0,'MU Budova 4'!O38=0),0,H21+H32+H43+H53)","v":0},{"$f":"REFa+REFb+REFc","v":0},{"$f":"J21+J32+J43","v":0},null,{"$f":"IF(OR('MU Budova 4'!O15=0,'MU Budova 4'!O16=0,'MU Budova 4'!O17=0,'MU Budova 4'!O18=0,'MU Budova 4'!O19=0,'MU Budova 4'!O13=0,'MU Budova 4'!O33=0,'MU Budova 4'!O34=0,'MU Budova 4'!O35=0,'MU Budova 4'!O36=0,'MU Budova 4'!O37=0,'MU Budova 4'!O38=0),0,L21+L32+L43+L53)","v":0},null,{"$f":"IF(OR('MU Budova 4'!O15=0,'MU Budova 4'!O16=0,'MU Budova 4'!O17=0,'MU Budova 4'!O18=0,'MU Budova 4'!O19=0,'MU Budova 4'!O13=0,'MU Budova 4'!O33=0,'MU Budova 4'!O34=0,'MU Budova 4'!O35=0,'MU Budova 4'!O36=0,'MU Budova 4'!O37=0,'MU Budova 4'!O38=0),0,N21+N32+N43+N53)","v":0}]
["SPOLU Výdavky na budovu č. 4 po prípadnom odpočítaní hospodárskej činnosti a nízkych úspor potreby energie na vykurovanie",null,null,null,null,null,null,{"$f":"IF(OR('MU Budova 4'!O15=0,'MU Budova 4'!O16=0,'MU Budova 4'!O17=0,'MU Budova 4'!O18=0,'MU Budova 4'!O19=0,'MU Budova 4'!O21=0,'MU Budova 4'!O22=0,'MU Budova 4'!O23=0,'MU Budova 4'!O13=0,'MU Budova 4'!O33=0,'MU Budova 4'!O34=0,'MU Budova 4'!O35=0,'MU Budova 4'!O36=0,'MU Budova 4'!O37=0,'MU Budova 4'!O38=0),0,IF(AND('MU Budova 4'!F26=0,'MU Budova 4'!K26=0),H21+H32+H43+H53,IF(H21+H32+H43+H53-(((H21+H32+H43+H53)/100)*('MU Budova 4'!F26+'MU Budova 4'!K26))<0,0,(H21+H32+H43+H53-((H21+H32+H43+H53)/100)*('MU Budova 4'!F26+'MU Budova 4'!K26)))))","v":0},null,null,null,null,null,{"$f":"IF(OR('MU Budova 4'!O15=0,'MU Budova 4'!O16=0,'MU Budova 4'!O17=0,'MU Budova 4'!O18=0,'MU Budova 4'!O19=0,'MU Budova 4'!O21=0,'MU Budova 4'!O22=0,'MU Budova 4'!O23=0,'MU Budova 4'!O13=0,'MU Budova 4'!O33=0,'MU Budova 4'!O34=0,'MU Budova 4'!O35=0,'MU Budova 4'!O36=0,'MU Budova 4'!O37=0,'MU Budova 4'!O38=0),0,IF(AND('MU Budova 4'!F26=0,'MU Budova 4'!K26=0),N21+N32+N43+N53,IF(N21+N32+N43+N53-(((N21+N32+N43+N53)/100)*('MU Budova 4'!F26+'MU Budova 4'!K26))<0,0,(N21+N32+N43+N53-((N21+N32+N43+N53)/100)*('MU Budova 4'!F26+'MU Budova 4'!K26)))))","v":0},null,null,{"$f":"IF('Rozpočet B4'!$B$11=Číselníky!A2,'Rozpočet B4'!N55,'Rozpočet B4'!N55/1.2)","v":0}]
[]
[]
["Upozornenia"]
["Každá samostatná budova reprezentuje samostatnú hlavnú aktivitu uvedenú v ŽoNPF. Pre každú samostatnú budovu sa predkladá samostatný Energetický audit, samostatná Projektová dokumentácia  vrátane Energetického hodnotenia, samostatný rozpočet a samostatný hárok MU."]
["V prípade potreby doplnenia ďalších výdavkov vložte riadky a ak relevantné skopírujte vzorce."]
["V časti \"Vecný popis výdavkov\" špecifikujte jednotlivé výdavky z hľadiska ich predmetu, resp. rozsahu, prípadne nevyhnutnosti. Teda, ak výdavok pozostáva z viacerých položiek, je potrebné tieto položky v rámci vecného popisu výdavku bližšie špecifikovať, t. j. uviesť z akých položiek pozostáva cena výdavku vrátane výšky týchto položiek.  "]
["V časti rozpočtu \"Ostatné\" zadajte stavebné výdavky, ktoré nie je možné priradiť k predchádzajúcim častiam rozpočtu (zateplenie plášťa, strechy, výmena okenných konštrukcií). Napr. výdavky na systém prípravy teplej vody, osvetlenia vrátane potrebného merania a riadenia a modernizácie príslušných rozvodov energie, inštaláciu systémov merania a riadenia, inštaláciu zariadení na využívanie OZE pre spotrebu v budove a pod."]
["Dbajte prosím na súlad údajov uvedených v Rozpočte s údajmi uvedenými vo formulári ŽoNFP, ako aj v ďalších prílohách ŽoNFP."]

{"sheet":"Rozpočet B5","index":7,"n_rows":63,"n_cols":17,"rows_kept":63,"cut":false,"hidden":true,"merged":[[59,0,59,14],[60,0,60,14],[61,0,61,14],[62,0,62,14],[45,0,45,14],[52,0,52,4],[53,0,53,4],[57,0,57,7],[58,0,58,14],[54,0,54,6],[44,1,44,14],[14,0,14,1],[20,0,20,4],[21,0,21,14],[22,1,22,14],[25,0,25,1],[31,0,31,4],[32,0,32,14],[33,1,33,14],[36,0,36,1],[42,0,42,4],[43,0,43,14],[10,3,10,4],[10,8,10,9],[11,3,11,4],[11,8,11,14],[1,0,1,14],[6,0,6,5],[6,6,6,14],[8,1,8,14],[9,1,9,14]]}
[]
["Príloha ŽoNFP č. 6 - Dokumentácia k oprávnenosti výdavkov"]
[]
[]
[]
[]
["Rozpočet  -  Budova č. 5",null,null,null,null,null,{"$f":"IF(G12=\"\",\"\",\" -  súpis. č. \"&G12)","v":""}]
[]
["Názov žiadateľa:",{"$f":"IF('Rozpočet B1 - Value for Money'!B9:O9=\"\",\"\",'Rozpočet B1 - Value for Money'!B9:O9)","v":"Obec Podhorany"}]
["Názov projektu:",{"$f":"IF('Rozpočet B1 - Value for Money'!B10:O10=\"\",\"\",'Rozpočet B1 - Value for Money'!B10:O10)","v":"Stavebné úpravy ZŠ Podhorany Zníženie spotreby energie pri prevádzke "}]
["Je žiadateľ platcom DPH v rozsahu aktivity?",null,null,"Katastrálne územie",null,"LV číslo","Súpisné číslo",null,"Právny vzťah "]
["Počet samostatných budov v ŽoNFP?",{"$f":"IF('Rozpočet B1 - Value for Money'!B12=\"\",\"\",'Rozpočet B1 - Value for Money'!B12)","v":1},null,null,null,null,null,null,{"$f":"IF(O11=[4]Číselníky!G13,\"Predložte súhlas všetkých podielových spoluvlastníkov stavby\",IF(O11=[4]Číselníky!G14,\"Predložte doklad oprávnujúci k výkonu správy budovy\",\"\"))","v":""}]
[]
["Zateplenie obvodového plášťa"]
["Cieľová hodnota zateplenej plochy obvodového plášťa v m2",null,null," m2"]
["Názov výdavku","Skupina výdavkov  ","Merná\njednotka","Počet \njednotiek","Jednotková cena\nbez DPH [EUR]","Cena celkom \nbez DPH [EUR]","Cena celkom \ns DPH [EUR]","Celkový \nvýdavok","Výdavok nad \nreferenčnú hodnotu","Výdavok \npri neakceptovaní\nprekročenia ref.\nhodnôt","Schválenie /\nneschválenie\nprekročenia ref.\nhodnôt","Výdavok po odčítaní\nvecne neoprávne.\na/alebo neúčelných\nvýdavkov","Výdavok po odčítaní\nnehospodárnych\nvýdavkov","Výdavok po posúdení\nprekročenia\nreferenčných hodnôt","Vecný opis výdavku"]
["Položka č. 1","021 Stavby",null,null,null,{"$f":"ROUND(D17*E17,2)","v":0},{"$f":"ROUND(F17*1.2,2)","v":0},{"$f":"IF($B$11=\"áno\",F17,G17)","v":0},null,null,null,{"$f":"H17","v":0},{"$f":"L17","v":0},{"$f":"IFERROR(ROUND(IF($K$21=\"nie\",IF($M$21<=($C$15*100),M17,M17*$J$21/$M$21),M17),2),0)","v":0}]
["Položka č. 2","021 Stavby",null,null,null,{"$f":"ROUND(D18*E18,2)","v":0},{"$f":"ROUND(F18*1.2,2)","v":0},{"$f":"IF($B$11=\"áno\",F18,G18)","v":0},null,null,null,{"$f":"H18","v":0},{"$f":"L18","v":0},{"$f":"IFERROR(ROUND(IF($K$21=\"nie\",IF($M$21<=($C$15*100),M18,M18*$J$21/$M$21),M18),2),0)","v":0}]
["Položka č. 3","021 Stavby",null,null,null,{"$f":"ROUND(D19*E19,2)","v":0},{"$f":"ROUND(F19*1.2,2)","v":0},{"$f":"IF($B$11=\"áno\",F19,G19)","v":0},null,null,null,{"$f":"H19","v":0},{"$f":"L19","v":0},0]
["Položka č. n","021 Stavby",null,null,null,{"$f":"ROUND(D20*E20,2)","v":0},{"$f":"ROUND(F20*1.2,2)","v":0},{"$f":"IF($B$11=\"áno\",F20,G20)","v":0},null,null,null,{"$f":"H20","v":0},{"$f":"L20","v":0},0]
["Spolu výdavky zateplenia obvodového plášťa",null,null,null,null,{"$f":"SUM(F17:F20)","v":0},{"$f":"SUM(G17:G20)","v":0},{"$f":"IF(OR(B11=\"\",C15=\"\",C15<=0,D12=\"\",F12=\"\",G12=\"\",O11=\"\"),0,SUM(H17:H20))","v":0},{"$f":"IF(OR(C15=0,B11=\"\"),0,IF(F21>=C15*100,IF(B11=\"áno\",F21-C15*100,G21-C15*100*1.2),0))","v":0},{"$f":"IF(OR(C15=\"\",C15<=0,D12=\"\",F12=\"\",G12=\"\",O11=\"\"),0,H21-I21)","v":0},null,{"$f":"IF(OR(B11=\"\",C15=\"\",C15<=0,D12=\"\",F12=\"\",G12=\"\",O11=\"\"),0,SUM(L17:L20))","v":0},{"$f":"IF(OR(B11=\"\",C15=\"\",C15<=0,D12=\"\",F12=\"\",G12=\"\",O11=\"\"),0,SUM(M17:M20))","v":0},{"$f":"IF(OR(B11=\"\",C15=\"\",C15<=0,D12=\"\",F12=\"\",G12=\"\",O11=\"\"),0,SUM(N17:N20))","v":0}]
[{"$f":"IF(C10*G10>=H21,\"\",\"Prekročenie referenčných hodnôt nebude bez akceptovaného zdôvodnenia schválené.\")","v":""}]
["Zdôvodnenie prekročenia referenčnej hodnoty pre obvodový plášť","V prípade prekročenia stanovenej referenčnej hodnoty pre vybrané výdavky projektu je žiadateľ oprávnený toto prekročenie zdôvodniť.\n\nŽiadateľ v zdôvodnení uvedie výdavky, ktoré najvýznamnejšie vplývajú na prekročenie stanovenej referenčnej hodnoty a zdôvodní ich nevyhnutnosť. V prípade, že zdôvodnenie prekročenia stanovenej referenčnej hodnoty nebude predložené, resp. dostatočné  alebo akceptované zo strany odborného hodnotiteľa ako odôvodniteľné, žiadané výdavky budú krátené na výšku stanovených referenčných hodnôt.\n\nBližšie informácie týkajúce sa referenčných hodnôt a ich prekročenia sú uvedené v Prílohe č. 4 Výzvy - Osobitné podmienky oprávnenosti výdavkov.\n"]
[]
["Zateplenie strešného plášťa"]
["Cieľová hodnota zateplenej plochy strešného plášťa v m2",null,null," m2"]
["Názov výdavku","Skupina výdavkov  ","Merná\njednotka","Počet \njednotiek","Jednotková cena\nbez DPH [EUR]","Cena celkom \nbez DPH [EUR]","Cena celkom \ns DPH [EUR]","Celkový \nvýdavok","Výdavok nad \nreferenčnú hodnotu","Výdavok \npri neakceptovaní\nprekročenia ref.\nhodnôt","Schválenie /\nneschválenie\nprekročenia ref.\nhodnôt","Výdavok po odčítaní\nvecne neoprávne.\na/alebo neúčelných výdavkov","Výdavok po odčítaní\nnehospodárnych\nvýdavkov","Výdavok po posúdení\nprekročenia \nreferenčných hodnôt","Vecný opis výdavku"]
["Položka č. 1","021 Stavby",null,null,null,{"$f":"ROUND(D28*E28,2)","v":0},{"$f":"ROUND(F28*1.2,2)","v":0},{"$f":"IF($B$11=\"áno\",F28,G28)","v":0},null,null,null,{"$f":"H28","v":0},{"$f":"L28","v":0},{"$f":"IFERROR(ROUND(IF($K$32=\"nie\",IF($M$32<=($C$26*80),M28,M28*$J$32/$M$32),M28),2),0)","v":0}]
["Položka č. 2","021 Stavby",null,null,null,{"$f":"ROUND(D29*E29,2)","v":0},{"$f":"ROUND(F29*1.2,2)","v":0},{"$f":"IF($B$11=\"áno\",F29,G29)","v":0},null,null,null,{"$f":"H29","v":0},{"$f":"L29","v":0},{"$f":"IFERROR(ROUND(IF($K$32=\"nie\",IF($M$32<=($C$26*80),M29,M29*$J$32/$M$32),M29),2),0)","v":0}]
["Položka č. 3","021 Stavby",null,null,null,{"$f":"ROUND(D30*E30,2)","v":0},{"$f":"ROUND(F30*1.2,2)","v":0},{"$f":"IF($B$11=\"áno\",F30,G30)","v":0},null,null,null,{"$f":"H30","v":0},{"$f":"L30","v":0},0]
["Položka č. n","021 Stavby",null,null,null,{"$f":"ROUND(D31*E31,2)","v":0},{"$f":"ROUND(F31*1.2,2)","v":0},{"$f":"IF($B$11=\"áno\",F31,G31)","v":0},null,null,null,{"$f":"H31","v":0},{"$f":"L31","v":0},0]
["Spolu výdavky zateplenia strešného plášťa",null,null,null,null,{"$f":"SUM(F28:F31)","v":0},{"$f":"SUM(G28:G31)","v":0},{"$f":"IF(OR(B11=\"\",C26=\"\",C26<=0,D12=\"\",F12=\"\",G12=\"\",O11=\"\"),0,SUM(H28:H31))","v":0},{"$f":"IF(OR(C26=0,B11=\"\"),0,IF(F32>=C26*80,IF(B11=\"áno\",F32-C26*80,G32-C26*80*1.2),0))","v":0},{"$f":"IF(OR(C26=\"\",C26<=0,D12=\"\",F12=\"\",G12=\"\",O11=\"\"),0,H32-I32)","v":0},null,{"$f":"IF(OR(B11=\"\",C26=\"\",C26<=0,D12=\"\",F12=\"\",G12=\"\",O11=\"\"),0,SUM(L28:L31))","v":0},{"$f":"IF(OR(B11=\"\",C26=\"\",C26<=0,D12=\"\",F12=\"\",G12=\"\",O11=\"\"),0,SUM(M28:M31))","v":0},{"$f":"IF(OR(B11=\"\",C26=\"\",C26<=0,D12=\"\",F12=\"\",G12=\"\",O11=\"\"),0,SUM(N28:N31))","v":0}]
[{"$f":"IF(C21*G21>=H32,\"\",\"Prekročenie referenčných hodnôt nebude bez akceptovaného zdôvodnenia schválené.\")","v":""}]
["Zdôvodnenie prekročenia referenčnej hodnoty pre strešný plášť","V prípade prekročenia stanovenej referenčnej hodnoty pre vybrané výdavky projektu je žiadateľ oprávnený toto prekročenie zdôvodniť.\n\nŽiadateľ v zdôvodnení uvedie výdavky, ktoré najvýznamnejšie vplývajú na prekročenie stanovenej referenčnej hodnoty a zdôvodní ich nevyhnutnosť. V prípade, že zdôvodnenie prekročenia stanovenej referenčnej hodnoty nebude predložené, resp. dostatočné  alebo akceptované zo strany odborného hodnotiteľa ako odôvodniteľné, žiadané výdavky budú krátené na výšku stanovených referenčných hodnôt.\n\nBližšie informácie týkajúce sa referenčných hodnôt a ich prekročenia sú uvedené v Prílohe č. 4 Výzvy - Osobitné podmienky oprávnenosti výdavkov.\n"]
[]
["Výmena otvorových konštrukcií"]
["Cieľová hodnota výmeny otvorových konštrukcií v m2",null,null," m2"]
["Názov výdavku","Skupina výdavkov  ","Merná\njednotka","Počet \njednotiek","Jednotková cena\nbez DPH [EUR]","Cena celkom \nbez DPH [EUR]","Cena celkom \ns DPH [EUR]","Celkový \nvýdavok","Výdavok nad \nreferenčnú hodnotu","Výdavok \npri neakceptovaní\nprekročenia ref.\nhodnôt","Schválenie /\nneschválenie\nprekročenia ref.\nhodnôt","Výdavok po odčítaní\nvecne neoprávne.\na/alebo neúčelných výdavkov","Výdavok po odčítaní\nnehospodárnych\nvýdavkov","Výdavok po posúdení\nprekročenia \nreferenčných hodnôt","Vecný opis výdavku"]
["Položka č. 1","021 Stavby",null,null,null,{"$f":"ROUND(D39*E39,2)","v":0},{"$f":"ROUND(F39*1.2,2)","v":0},{"$f":"IF($B$11=\"áno\",F39,G39)","v":0},null,null,null,{"$f":"H39","v":0},{"$f":"L39","v":0},{"$f":"IFERROR(ROUND(IF($K$43=\"nie\",IF($M$43<=($C$37*400),M39,M39*$J$43/$M$43),M39),2),0)","v":0}]
["Položka č. 2","021 Stavby",null,null,null,{"$f":"ROUND(D40*E40,2)","v":0},{"$f":"ROUND(F40*1.2,2)","v":0},{"$f":"IF($B$11=\"áno\",F40,G40)","v":0},null,null,null,{"$f":"H40","v":0},{"$f":"L40","v":0},{"$f":"IFERROR(ROUND(IF($K$43=\"nie\",IF($M$43<=($C$37*400),M40,M40*$J$43/$M$43),M40),2),0)","v":0}]
["Položka č. 3","021 Stavby",null,null,null,{"$f":"ROUND(D41*E41,2)","v":0},{"$f":"ROUND(F41*1.2,2)","v":0},{"$f":"IF($B$11=\"áno\",F41,G41)","v":0},null,null,null,{"$f":"H41","v":0},{"$f":"L41","v":0},0]
["Položka č. n","021 Stavby",null,null,null,{"$f":"ROUND(D42*E42,2)","v":0},{"$f":"ROUND(F42*1.2,2)","v":0},{"$f":"IF($B$11=\"áno\",F42,G42)","v":0},null,null,null,{"$f":"H42","v":0},{"$f":"L42","v":0},0]
["Spolu výdavky výmeny otvorových konštrukcií",null,null,null,null,{"$f":"SUM(F39:F42)","v":0},{"$f":"SUM(G39:G42)","v":0},{"$f":"IF(OR(B11=\"\",C37=\"\",C37<=0,D12=\"\",F12=\"\",G12=\"\",O11=\"\"),0,SUM(H39:H42))","v":0},{"$f":"IF(OR(C37=0,B11=\"\"),0,IF(F43>=C37*400,IF(B11=\"áno\",F43-C37*400,G43-C37*400*1.2),0))","v":0},{"$f":"IF(OR(C37=\"\",C37<=0,D12=\"\",F12=\"\",G12=\"\",O11=\"\"),0,H43-I43)","v":0},null,{"$f":"IF(OR(B11=\"\",C37=\"\",C37<=0,D12=\"\",F12=\"\",G12=\"\",O11=\"\"),0,SUM(L39:L42))","v":0},{"$f":"IF(OR(B11=\"\",C37=\"\",C37<=0,D12=\"\",F12=\"\",G12=\"\",O11=\"\"),0,SUM(M39:M42))","v":0},{"$f":"IF(OR(B11=\"\",C37=\"\",C37<=0,D12=\"\",F12=\"\",G12=\"\",O11=\"\"),0,SUM(N39:N42))","v":0}]
[{"$f":"IF(C32*G32>=H43,\"\",\"Prekročenie referenčných hodnôt nebude bez akceptovaného zdôvodnenia schválené.\")","v":""}]
["Zdôvodnenie prekročenia referenčnej hodnoty pre výmenu otvorových konštrukcií","V prípade prekročenia stanovenej referenčnej hodnoty pre vybrané výdavky projektu je žiadateľ oprávnený toto prekročenie zdôvodniť.\n\nŽiadateľ v zdôvodnení uvedie výdavky, ktoré najvýznamnejšie vplývajú na prekročenie stanovenej referenčnej hodnoty a zdôvodní ich nevyhnutnosť. V prípade, že zdôvodnenie prekročenia stanovenej referenčnej hodnoty nebude predložené, resp. dostatočné  alebo akceptované zo strany odborného hodnotiteľa ako odôvodniteľné, žiadané výdavky budú krátené na výšku stanovených referenčných hodnôt.\n\nBližšie informácie týkajúce sa referenčných hodnôt a ich prekročenia sú uvedené v Prílohe č. 4 Výzvy - Osobitné podmienky oprávnenosti výdavkov.\n"]
[]
["Ostatné"]
["Názov výdavku","Skupina výdavkov  ","Merná jednotka","Počet jednotiek","Jednotková cena\nbez DPH [EUR]","Cena celkom \nbez DPH [EUR]","Cena celkom \ns DPH [EUR]","Celkový \nvýdavok","Výdavok nad \nreferenčnú hodnotu","Výdavok \npri neakceptovaní\nprekročenia ref.\nhodnôt","Stĺpec1","Výdavok po odčítaní\nvecne neoprávne. \na/alebo neúčelných\nvýdavkov","Stĺpec2","Výdavok po odčítaní\nnehospodárnych\nvýdavkov","Vecný opis výdavku"]
["Položka č. 1","021 Stavby",null,null,null,{"$f":"ROUND(D49*E49,2)","v":0},{"$f":"ROUND(F49*1.2,2)","v":0},{"$f":"IF($B$11=\"áno\",F49,G49)","v":0},null,null,null,{"$f":"H49","v":0},null,{"$f":"L49","v":0}]
["Položka č. 2","021 Stavby",null,null,null,{"$f":"ROUND(D50*E50,2)","v":0},{"$f":"ROUND(F50*1.2,2)","v":0},{"$f":"IF($B$11=\"áno\",F50,G50)","v":0},null,null,null,{"$f":"H50","v":0},null,{"$f":"L50","v":0}]
["Položka č. 3","021 Stavby",null,null,null,{"$f":"ROUND(D51*E51,2)","v":0},{"$f":"ROUND(F51*1.2,2)","v":0},{"$f":"IF($B$11=\"áno\",F51,G51)","v":0},null,null,null,{"$f":"H51","v":0},null,{"$f":"L51","v":0}]
["Položka č. n","021 Stavby",null,null,null,{"$f":"ROUND(D52*E52,2)","v":0},{"$f":"ROUND(F52*1.2,2)","v":0},{"$f":"IF($B$11=\"áno\",F52,G52)","v":0},null,null,null,{"$f":"H52","v":0},null,{"$f":"L52","v":0}]
["SPOLU výdavky ostatné",null,null,null,null,{"$f":"SUM(F49:F52)","v":0},{"$f":"SUM(G49:G52)","v":0},{"$f":"IF(OR(B11=\"\",D12=\"\",F12=\"\",G12=\"\",O11=\"\"),0,SUM(H49:H52))","v":0},"RH sa pre skup. výdav. \"Ostatné\" neuplatňuje.",null,null,{"$f":"IF(OR(B11=\"\",D12=\"\",F12=\"\",G12=\"\",O11=\"\"),0,SUM(L49:L52))","v":0},null,{"$f":"IF(OR(B11=\"\",D12=\"\",F12=\"\",G12=\"\",O11=\"\"),0,SUM(N49:N52))","v":0}]
["SPOLU Výdavky na budovu č. 5",null,null,null,null,{"$f":"F21+F32+F43+F53","v":0},{"$f":"G21+G32+G43+G53","v":0},{"$f":"IF(OR('MU Budova 5'!O15=0,'MU Budova 5'!O16=0,'MU Budova 5'!O17=0,'MU Budova 5'!O18=0,'MU Budova 5'!O19=0,'MU Budova 5'!O13=0,'MU Budova 5'!O33=0,'MU Budova 5'!O34=0,'MU Budova 5'!O35=0,'MU Budova 5'!O36=0,'MU Budova 5'!O37=0,'MU Budova 5'!O38=0),0,H21+H32+H43+H53)","v":0},{"$f":"REFa+REFb+REFc","v":0},{"$f":"J21+J32+J43","v":0},null,{"$f":"IF(OR('MU Budova 5'!O15=0,'MU Budova 5'!O16=0,'MU Budova 5'!O17=0,'MU Budova 5'!O18=0,'MU Budova 5'!O19=0,'MU Budova 5'!O13=0,'MU Budova 5'!O33=0,'MU Budova 5'!O34=0,'MU Budova 5'!O35=0,'MU Budova 5'!O36=0,'MU Budova 5'!O37=0,'MU Budova 5'!O38=0),0,L21+L32+L43+L53)","v":0},null,{"$f":"IF(OR('MU Budova 5'!O15=0,'MU Budova 5'!O16=0,'MU Budova 5'!O17=0,'MU Budova 5'!O18=0,'MU Budova 5'!O19=0,'MU Budova 5'!O13=0,'MU Budova 5'!O33=0,'MU Budova 5'!O34=0,'MU Budova 5'!O35=0,'MU Budova 5'!O36=0,'MU Budova 5'!O37=0,'MU Budova 5'!O38=0),0,N21+N32+N43+N53)","v":0}]
["SPOLU Výdavky na budovu č. 5 po prípadnom odpočítaní hospodárskej činnosti a nízkych úspor potreby energie na vykurovanie",null,null,null,null,null,null,{"$f":"IF(OR('MU Budova 5'!O15=0,'MU Budova 5'!O16=0,'MU Budova 5'!O17=0,'MU Budova 5'!O18=0,'MU Budova 5'!O19=0,'MU Budova 5'!O21=0,'MU Budova 5'!O22=0,'MU Budova 5'!O23=0,'MU Budova 5'!O13=0,'MU Budova 5'!O33=0,'MU Budova 5'!O34=0,'MU Budova 5'!O35=0,'MU Budova 5'!O36=0,'MU Budova 5'!O37=0,'MU Budova 5'!O38=0),0,IF(AND('MU Budova 5'!F26=0,'MU Budova 5'!K26=0),H21+H32+H43+H53,IF(H21+H32+H43+H53-(((H21+H32+H43+H53)/100)*('MU Budova 5'!F26+'MU Budova 5'!K26))<0,0,(H21+H32+H43+H53-((H21+H32+H43+H53)/100)*('MU Budova 5'!F26+'MU Budova 5'!K26)))))","v":0},null,null,null,null,null,{"$f":"IF(OR('MU Budova 5'!O15=0,'MU Budova 5'!O16=0,'MU Budova 5'!O17=0,'MU Budova 5'!O18=0,'MU Budova 5'!O19=0,'MU Budova 5'!O21=0,'MU Budova 5'!O22=0,'MU Budova 5'!O23=0,'MU Budova 5'!O13=0,'MU Budova 5'!O33=0,'MU Budova 5'!O34=0,'MU Budova 5'!O35=0,'MU Budova 5'!O36=0,'MU Budova 5'!O37=0,'MU Budova 5'!O38=0),0,IF(AND('MU Budova 5'!F26=0,'MU Budova 5'!K26=0),N21+N32+N43+N53,IF(N21+N32+N43+N53-(((N21+N32+N43+N53)/100)*('MU Budova 5'!F26+'MU Budova 5'!K26))<0,0,(N21+N32+N43+N53-((N21+N32+N43+N53)/100)*('MU Budova 5'!F26+'MU Budova 5'!K26)))))","v":0},null,null,{"$f":"IF('Rozpočet B5'!$B$11=Číselníky!A2,'Rozpočet B5'!N55,'Rozpočet B5'!N55/1.2)","v":0}]
[]
[]
["Upozornenia"]
["Každá samostatná budova reprezentuje samostatnú hlavnú aktivitu uvedenú v ŽoNPF. Pre každú samostatnú budovu sa predkladá samostatný Energetický audit, samostatná Projektová dokumentácia  vrátane Energetického hodnotenia, samostatný rozpočet a samostatný hárok MU."]
["V prípade potreby doplnenia ďalších výdavkov vložte riadky a ak relevantné skopírujte vzorce."]
["V časti \"Vecný popis výdavkov\" špecifikujte jednotlivé výdavky z hľadiska ich predmetu, resp. rozsahu, prípadne nevyhnutnosti. Teda, ak výdavok pozostáva z viacerých položiek, je potrebné tieto položky v rámci vecného popisu výdavku bližšie špecifikovať, t. j. uviesť z akých položiek pozostáva cena výdavku vrátane výšky týchto položiek.  "]
["V časti rozpočtu \"Ostatné\" zadajte stavebné výdavky, ktoré nie je možné priradiť k predchádzajúcim častiam rozpočtu (zateplenie plášťa, strechy, výmena okenných konštrukcií). Napr. výdavky na systém prípravy teplej vody, osvetlenia vrátane potrebného merania a riadenia a modernizácie príslušných rozvodov energie, inštaláciu systémov merania a riadenia, inštaláciu zariadení na využívanie OZE pre spotrebu v budove a pod."]
["Dbajte prosím na súlad údajov uvedených v Rozpočte s údajmi uvedenými vo formulári ŽoNFP, ako aj v ďalších prílohách ŽoNFP."]

{"sheet":"Rozpočet B6","index":8,"n_rows":63,"n_cols":17,"rows_kept":63,"cut":false,"hidden":true,"merged":[[59,0,59,14],[60,0,60,14],[61,0,61,14],[62,0,62,14],[45,0,45,14],[52,0,52,4],[53,0,53,4],[57,0,57,7],[58,0,58,14],[54,0,54,6],[44,1,44,14],[14,0,14,1],[20,0,20,4],[21,0,21,14],[22,1,22,14],[25,0,25,1],[31,0,31,4],[32,0,32,14],[33,1,33,14],[36,0,36,1],[42,0,42,4],[43,0,43,14],[10,3,10,4],[10,8,10,9],[11,3,11,4],[11,8,11,14],[1,0,1,14],[6,0,6,5],[6,6,6,14],[8,1,8,14],[9,1,9,14]]}
[]
["Príloha ŽoNFP č. 6 - Dokumentácia k oprávnenosti výdavkov"]
[]
[]
[]
[]
["Rozpočet  -  Budova č. 6",null,null,null,null,null,{"$f":"IF(G12=\"\",\"\",\" -  súpis. č. \"&G12)","v":""}]
[]
["Názov žiadateľa:",{"$f":"IF('Rozpočet B1 - Value for Money'!B9:O9=\"\",\"\",'Rozpočet B1 - Value for Money'!B9:O9)","v":"Obec Podhorany"}]
["Názov projektu:",{"$f":"IF('Rozpočet B1 - Value for Money'!B10:O10=\"\",\"\",'Rozpočet B1 - Value for Money'!B10:O10)","v":"Stavebné úpravy ZŠ Podhorany Zníženie spotreby energie pri prevádzke "}]
["Je žiadateľ platcom DPH v rozsahu aktivity?",null,null,"Katastrálne územie",null,"LV číslo","Súpisné číslo",null,"Právny vzťah "]
["Počet samostatných budov v ŽoNFP?",{"$f":"IF('Rozpočet B1 - Value for Money'!B12=\"\",\"\",'Rozpočet B1 - Value for Money'!B12)","v":1},null,null,null,null,null,null,{"$f":"IF(O11=[4]Číselníky!G13,\"Predložte súhlas všetkých podielových spoluvlastníkov stavby\",IF(O11=[4]Číselníky!G14,\"Predložte doklad oprávnujúci k výkonu správy budovy\",\"\"))","v":""}]
[]
["Zateplenie obvodového plášťa"]
["Cieľová hodnota zateplenej plochy obvodového plášťa v m2",null,null," m2"]
["Názov výdavku","Skupina výdavkov  ","Merná\njednotka","Počet \njednotiek","Jednotková cena\nbez DPH [EUR]","Cena celkom \nbez DPH [EUR]","Cena celkom \ns DPH [EUR]","Celkový \nvýdavok","Výdavok nad \nreferenčnú hodnotu","Výdavok \npri neakceptovaní\nprekročenia ref.\nhodnôt","Schválenie /\nneschválenie\nprekročenia ref.\nhodnôt","Výdavok po odčítaní\nvecne neoprávne.\na/alebo neúčelných\nvýdavkov","Výdavok po odčítaní\nnehospodárnych\nvýdavkov","Výdavok po posúdení\nprekročenia\nreferenčných hodnôt","Vecný opis výdavku"]
["Položka č. 1","021 Stavby",null,null,null,{"$f":"ROUND(D17*E17,2)","v":0},{"$f":"ROUND(F17*1.2,2)","v":0},{"$f":"IF($B$11=\"áno\",F17,G17)","v":0},null,null,null,{"$f":"H17","v":0},{"$f":"L17","v":0},{"$f":"IFERROR(ROUND(IF($K$21=\"nie\",IF($M$21<=($C$15*100),M17,M17*$J$21/$M$21),M17),2),0)","v":0}]
["Položka č. 2","021 Stavby",null,null,null,{"$f":"ROUND(D18*E18,2)","v":0},{"$f":"ROUND(F18*1.2,2)","v":0},{"$f":"IF($B$11=\"áno\",F18,G18)","v":0},null,null,null,{"$f":"H18","v":0},{"$f":"L18","v":0},{"$f":"IFERROR(ROUND(IF($K$21=\"nie\",IF($M$21<=($C$15*100),M18,M18*$J$21/$M$21),M18),2),0)","v":0}]
["Položka č. 3","021 Stavby",null,null,null,{"$f":"ROUND(D19*E19,2)","v":0},{"$f":"ROUND(F19*1.2,2)","v":0},{"$f":"IF($B$11=\"áno\",F19,G19)","v":0},null,null,null,{"$f":"H19","v":0},{"$f":"L19","v":0},0]
["Položka č. n","021 Stavby",null,null,null,{"$f":"ROUND(D20*E20,2)","v":0},{"$f":"ROUND(F20*1.2,2)","v":0},{"$f":"IF($B$11=\"áno\",F20,G20)","v":0},null,null,null,{"$f":"H20","v":0},{"$f":"L20","v":0},0]
["Spolu výdavky zateplenia obvodového plášťa",null,null,null,null,{"$f":"SUM(F17:F20)","v":0},{"$f":"SUM(G17:G20)","v":0},{"$f":"IF(OR(B11=\"\",C15=\"\",C15<=0,D12=\"\",F12=\"\",G12=\"\",O11=\"\"),0,SUM(H17:H20))","v":0},{"$f":"IF(OR(C15=0,B11=\"\"),0,IF(F21>=C15*100,IF(B11=\"áno\",F21-C15*100,G21-C15*100*1.2),0))","v":0},{"$f":"IF(OR(C15=\"\",C15<=0,D12=\"\",F12=\"\",G12=\"\",O11=\"\"),0,H21-I21)","v":0},null,{"$f":"IF(OR(B11=\"\",C15=\"\",C15<=0,D12=\"\",F12=\"\",G12=\"\",O11=\"\"),0,SUM(L17:L20))","v":0},{"$f":"IF(OR(B11=\"\",C15=\"\",C15<=0,D12=\"\",F12=\"\",G12=\"\",O11=\"\"),0,SUM(M17:M20))","v":0},{"$f":"IF(OR(B11=\"\",C15=\"\",C15<=0,D12=\"\",F12=\"\",G12=\"\",O11=\"\"),0,SUM(N17:N20))","v":0}]
[{"$f":"IF(C10*G10>=H21,\"\",\"Prekročenie referenčných hodnôt nebude bez akceptovaného zdôvodnenia schválené.\")","v":""}]
["Zdôvodnenie prekročenia referenčnej hodnoty pre obvodový plášť","V prípade prekročenia stanovenej referenčnej hodnoty pre vybrané výdavky projektu je žiadateľ oprávnený toto prekročenie zdôvodniť.\n\nŽiadateľ v zdôvodnení uvedie výdavky, ktoré najvýznamnejšie vplývajú na prekročenie stanovenej referenčnej hodnoty a zdôvodní ich nevyhnutnosť. V prípade, že zdôvodnenie prekročenia stanovenej referenčnej hodnoty nebude predložené, resp. dostatočné  alebo akceptované zo strany odborného hodnotiteľa ako odôvodniteľné, žiadané výdavky budú krátené na výšku stanovených referenčných hodnôt.\n\nBližšie informácie týkajúce sa referenčných hodnôt a ich prekročenia sú uvedené v Prílohe č. 4 Výzvy - Osobitné podmienky oprávnenosti výdavkov.\n"]
[]
["Zateplenie strešného plášťa"]
["Cieľová hodnota zateplenej plochy strešného plášťa v m2",null,null," m2"]
["Názov výdavku","Skupina výdavkov  ","Merná\njednotka","Počet \njednotiek","Jednotková cena\nbez DPH [EUR]","Cena celkom \nbez DPH [EUR]","Cena celkom \ns DPH [EUR]","Celkový \nvýdavok","Výdavok nad \nreferenčnú hodnotu","Výdavok \npri neakceptovaní\nprekročenia ref.\nhodnôt","Schválenie /\nneschválenie\nprekročenia ref.\nhodnôt","Výdavok po odčítaní\nvecne neoprávne.\na/alebo neúčelných výdavkov","Výdavok po odčítaní\nnehospodárnych\nvýdavkov","Výdavok po posúdení\nprekročenia \nreferenčných hodnôt","Vecný opis výdavku"]
["Položka č. 1","021 Stavby",null,null,null,{"$f":"ROUND(D28*E28,2)","v":0},{"$f":"ROUND(F28*1.2,2)","v":0},{"$f":"IF($B$11=\"áno\",F28,G28)","v":0},null,null,null,{"$f":"H28","v":0},{"$f":"L28","v":0},{"$f":"IFERROR(ROUND(IF($K$32=\"nie\",IF($M$32<=($C$26*80),M28,M28*$J$32/$M$32),M28),2),0)","v":0}]
["Položka č. 2","021 Stavby",null,null,null,{"$f":"ROUND(D29*E29,2)","v":0},{"$f":"ROUND(F29*1.2,2)","v":0},{"$f":"IF($B$11=\"áno\",F29,G29)","v":0},null,null,null,{"$f":"H29","v":0},{"$f":"L29","v":0},{"$f":"IFERROR(ROUND(IF($K$32=\"nie\",IF($M$32<=($C$26*80),M29,M29*$J$32/$M$32),M29),2),0)","v":0}]
["Položka č. 3","021 Stavby",null,null,null,{"$f":"ROUND(D30*E30,2)","v":0},{"$f":"ROUND(F30*1.2,2)","v":0},{"$f":"IF($B$11=\"áno\",F30,G30)","v":0},null,null,null,{"$f":"H30","v":0},{"$f":"L30","v":0},0]
["Položka č. n","021 Stavby",null,null,null,{"$f":"ROUND(D31*E31,2)","v":0},{"$f":"ROUND(F31*1.2,2)","v":0},{"$f":"IF($B$11=\"áno\",F31,G31)","v":0},null,null,null,{"$f":"H31","v":0},{"$f":"L31","v":0},0]
["Spolu výdavky zateplenia strešného plášťa",null,null,null,null,{"$f":"SUM(F28:F31)","v":0},{"$f":"SUM(G28:G31)","v":0},{"$f":"IF(OR(B11=\"\",C26=\"\",C26<=0,D12=\"\",F12=\"\",G12=\"\",O11=\"\"),0,SUM(H28:H31))","v":0},{"$f":"IF(OR(C26=0,B11=\"\"),0,IF(F32>=C26*80,IF(B11=\"áno\",F32-C26*80,G32-C26*80*1.2),0))","v":0},{"$f":"IF(OR(C26=\"\",C26<=0,D12=\"\",F12=\"\",G12=\"\",O11=\"\"),0,H32-I32)","v":0},null,{"$f":"IF(OR(B11=\"\",C26=\"\",C26<=0,D12=\"\",F12=\"\",G12=\"\",O11=\"\"),0,SUM(L28:L31))","v":0},{"$f":"IF(OR(B11=\"\",C26=\"\",C26<=0,D12=\"\",F12=\"\",G12=\"\",O11=\"\"),0,SUM(M28:M31))","v":0},{"$f":"IF(OR(B11=\"\",C26=\"\",C26<=0,D12=\"\",F12=\"\",G12=\"\",O11=\"\"),0,SUM(N28:N31))","v":0}]
[{"$f":"IF(C21*G21>=H32,\"\",\"Prekročenie referenčných hodnôt nebude bez akceptovaného zdôvodnenia schválené.\")","v":""}]
["Zdôvodnenie prekročenia referenčnej hodnoty pre strešný plášť","V prípade prekročenia stanovenej referenčnej hodnoty pre vybrané výdavky projektu je žiadateľ oprávnený toto prekročenie zdôvodniť.\n\nŽiadateľ v zdôvodnení uvedie výdavky, ktoré najvýznamnejšie vplývajú na prekročenie stanovenej referenčnej hodnoty a zdôvodní ich nevyhnutnosť. V prípade, že zdôvodnenie prekročenia stanovenej referenčnej hodnoty nebude predložené, resp. dostatočné  alebo akceptované zo strany odborného hodnotiteľa ako odôvodniteľné, žiadané výdavky budú krátené na výšku stanovených referenčných hodnôt.\n\nBližšie informácie týkajúce sa referenčných hodnôt a ich prekročenia sú uvedené v Prílohe č. 4 Výzvy - Osobitné podmienky oprávnenosti výdavkov.\n"]
[]
["Výmena otvorových konštrukcií"]
["Cieľová hodnota výmeny otvorových konštrukcií v m2",null,null," m2"]
["Názov výdavku","Skupina výdavkov  ","Merná\njednotka","Počet \njednotiek","Jednotková cena\nbez DPH [EUR]","Cena celkom \nbez DPH [EUR]","Cena celkom \ns DPH [EUR]","Celkový \nvýdavok","Výdavok nad \nreferenčnú hodnotu","Výdavok \npri neakceptovaní\nprekročenia ref.\nhodnôt","Schválenie /\nneschválenie\nprekročenia ref.\nhodnôt","Výdavok po odčítaní\nvecne neoprávne.\na/alebo neúčelných výdavkov","Výdavok po odčítaní\nnehospodárnych\nvýdavkov","Výdavok po posúdení\nprekročenia \nreferenčných hodnôt","Vecný opis výdavku"]
["Položka č. 1","021 Stavby",null,null,null,{"$f":"ROUND(D39*E39,2)","v":0},{"$f":"ROUND(F39*1.2,2)","v":0},{"$f":"IF($B$11=\"áno\",F39,G39)","v":0},null,null,null,{"$f":"H39","v":0},{"$f":"L39","v":0},{"$f":"IFERROR(ROUND(IF($K$43=\"nie\",IF($M$43<=($C$37*400),M39,M39*$J$43/$M$43),M39),2),0)","v":0}]
["Položka č. 2","021 Stavby",null,null,null,{"$f":"ROUND(D40*E40,2)","v":0},{"$f":"ROUND(F40*1.2,2)","v":0},{"$f":"IF($B$11=\"áno\",F40,G40)","v":0},null,null,null,{"$f":"H40","v":0},{"$f":"L40","v":0},{"$f":"IFERROR(ROUND(IF($K$43=\"nie\",IF($M$43<=($C$37*400),M40,M40*$J$43/$M$43),M40),2),0)","v":0}]
["Položka č. 3","021 Stavby",null,null,null,{"$f":"ROUND(D41*E41,2)","v":0},{"$f":"ROUND(F41*1.2,2)","v":0},{"$f":"IF($B$11=\"áno\",F41,G41)","v":0},null,null,null,{"$f":"H41","v":0},{"$f":"L41","v":0},0]
["Položka č. n","021 Stavby",null,null,null,{"$f":"ROUND(D42*E42,2)","v":0},{"$f":"ROUND(F42*1.2,2)","v":0},{"$f":"IF($B$11=\"áno\",F42,G42)","v":0},null,null,null,{"$f":"H42","v":0},{"$f":"L42","v":0},0]
["Spolu výdavky výmeny otvorových konštrukcií",null,null,null,null,{"$f":"SUM(F39:F42)","v":0},{"$f":"SUM(G39:G42)","v":0},{"$f":"IF(OR(B11=\"\",C37=\"\",C37<=0,D12=\"\",F12=\"\",G12=\"\",O11=\"\"),0,SUM(H39:H42))","v":0},{"$f":"IF(OR(C37=0,B11=\"\"),0,IF(F43>=C37*400,IF(B11=\"áno\",F43-C37*400,G43-C37*400*1.2),0))","v":0},{"$f":"IF(OR(C37=\"\",C37<=0,D12=\"\",F12=\"\",G12=\"\",O11=\"\"),0,H43-I43)","v":0},null,{"$f":"IF(OR(B11=\"\",C37=\"\",C37<=0,D12=\"\",F12=\"\",G12=\"\",O11=\"\"),0,SUM(L39:L42))","v":0},{"$f":"IF(OR(B11=\"\",C37=\"\",C37<=0,D12=\"\",F12=\"\",G12=\"\",O11=\"\"),0,SUM(M39:M42))","v":0},{"$f":"IF(OR(B11=\"\",C37=\"\",C37<=0,D12=\"\",F12=\"\",G12=\"\",O11=\"\"),0,SUM(N39:N42))","v":0}]
[{"$f":"IF(C32*G32>=H43,\"\",\"Prekročenie referenčných hodnôt nebude bez akceptovaného zdôvodnenia schválené.\")","v":""}]
["Zdôvodnenie prekročenia referenčnej hodnoty pre výmenu otvorových konštrukcií","V prípade prekročenia stanovenej referenčnej hodnoty pre vybrané výdavky projektu je žiadateľ oprávnený toto prekročenie zdôvodniť.\n\nŽiadateľ v zdôvodnení uvedie výdavky, ktoré najvýznamnejšie vplývajú na prekročenie stanovenej referenčnej hodnoty a zdôvodní ich nevyhnutnosť. V prípade, že zdôvodnenie prekročenia stanovenej referenčnej hodnoty nebude predložené, resp. dostatočné  alebo akceptované zo strany odborného hodnotiteľa ako odôvodniteľné, žiadané výdavky budú krátené na výšku stanovených referenčných hodnôt.\n\nBližšie informácie týkajúce sa referenčných hodnôt a ich prekročenia sú uvedené v Prílohe č. 4 Výzvy - Osobitné podmienky oprávnenosti výdavkov.\n"]
[]
["Ostatné"]
["Názov výdavku","Skupina výdavkov  ","Merná jednotka","Počet jednotiek","Jednotková cena\nbez DPH [EUR]","Cena celkom \nbez DPH [EUR]","Cena celkom \ns DPH [EUR]","Celkový \nvýdavok","Výdavok nad \nreferenčnú hodnotu","Výdavok \npri neakceptovaní\nprekročenia ref.\nhodnôt","Stĺpec1","Výdavok po odčítaní\nvecne neoprávne. \na/alebo neúčelných\nvýdavkov","Stĺpec2","Výdavok po odčítaní\nnehospodárnych\nvýdavkov","Vecný opis výdavku"]
["Položka č. 1","021 Stavby",null,null,null,{"$f":"ROUND(D49*E49,2)","v":0},{"$f":"ROUND(F49*1.2,2)","v":0},{"$f":"IF($B$11=\"áno\",F49,G49)","v":0},null,null,null,{"$f":"H49","v":0},null,{"$f":"L49","v":0}]
["Položka č. 2","021 Stavby",null,null,null,{"$f":"ROUND(D50*E50,2)","v":0},{"$f":"ROUND(F50*1.2,2)","v":0},{"$f":"IF($B$11=\"áno\",F50,G50)","v":0},null,null,null,{"$f":"H50","v":0},null,{"$f":"L50","v":0}]
["Položka č. 3","021 Stavby",null,null,null,{"$f":"ROUND(D51*E51,2)","v":0},{"$f":"ROUND(F51*1.2,2)","v":0},{"$f":"IF($B$11=\"áno\",F51,G51)","v":0},null,null,null,{"$f":"H51","v":0},null,{"$f":"L51","v":0}]
["Položka č. n","021 Stavby",null,null,null,{"$f":"ROUND(D52*E52,2)","v":0},{"$f":"ROUND(F52*1.2,2)","v":0},{"$f":"IF($B$11=\"áno\",F52,G52)","v":0},null,null,null,{"$f":"H52","v":0},null,{"$f":"L52","v":0}]
["SPOLU výdavky ostatné",null,null,null,null,{"$f":"SUM(F49:F52)","v":0},{"$f":"SUM(G49:G52)","v":0},{"$f":"IF(OR(B11=\"\",D12=\"\",F12=\"\",G12=\"\",O11=\"\"),0,SUM(H49:H52))","v":0},"RH sa pre skup. výdav. \"Ostatné\" neuplatňuje.",null,null,{"$f":"IF(OR(B11=\"\",D12=\"\",F12=\"\",G12=\"\",O11=\"\"),0,SUM(L49:L52))","v":0},null,{"$f":"IF(OR(B11=\"\",D12=\"\",F12=\"\",G12=\"\",O11=\"\"),0,SUM(N49:N52))","v":0}]
["SPOLU Výdavky na budovu č. 6",null,null,null,null,{"$f":"F21+F32+F43+F53","v":0},{"$f":"G21+G32+G43+G53","v":0},{"$f":"IF(OR('MU Budova 6'!O15=0,'MU Budova 6'!O16=0,'MU Budova 6'!O17=0,'MU Budova 6'!O18=0,'MU Budova 6'!O19=0,'MU Budova 6'!O13=0,'MU Budova 6'!O33=0,'MU Budova 6'!O34=0,'MU Budova 6'!O35=0,'MU Budova 6'!O36=0,'MU Budova 6'!O37=0,'MU Budova 6'!O38=0),0,H21+H32+H43+H53)","v":0},{"$f":"REFa+REFb+REFc","v":0},{"$f":"J21+J32+J43","v":0},null,{"$f":"IF(OR('MU Budova 6'!O15=0,'MU Budova 6'!O16=0,'MU Budova 6'!O17=0,'MU Budova 6'!O18=0,'MU Budova 6'!O19=0,'MU Budova 6'!O13=0,'MU Budova 6'!O33=0,'MU Budova 6'!O34=0,'MU Budova 6'!O35=0,'MU Budova 6'!O36=0,'MU Budova 6'!O37=0,'MU Budova 6'!O38=0),0,L21+L32+L43+L53)","v":0},null,{"$f":"IF(OR('MU Budova 6'!O15=0,'MU Budova 6'!O16=0,'MU Budova 6'!O17=0,'MU Budova 6'!O18=0,'MU Budova 6'!O19=0,'MU Budova 6'!O13=0,'MU Budova 6'!O33=0,'MU Budova 6'!O34=0,'MU Budova 6'!O35=0,'MU Budova 6'!O36=0,'MU Budova 6'!O37=0,'MU Budova 6'!O38=0),0,N21+N32+N43+N53)","v":0}]
["SPOLU Výdavky na budovu č. 6 po prípadnom odpočítaní hospodárskej činnosti a nízkych úspor potreby energie na vykurovanie",null,null,null,null,null,null,{"$f":"IF(OR('MU Budova 6'!O15=0,'MU Budova 6'!O16=0,'MU Budova 6'!O17=0,'MU Budova 6'!O18=0,'MU Budova 6'!O19=0,'MU Budova 6'!O21=0,'MU Budova 6'!O22=0,'MU Budova 6'!O23=0,'MU Budova 6'!O13=0,'MU Budova 6'!O33=0,'MU Budova 6'!O34=0,'MU Budova 6'!O35=0,'MU Budova 6'!O36=0,'MU Budova 6'!O37=0,'MU Budova 6'!O38=0),0,IF(AND('MU Budova 6'!F26=0,'MU Budova 6'!K26=0),H21+H32+H43+H53,IF(H21+H32+H43+H53-(((H21+H32+H43+H53)/100)*('MU Budova 6'!F26+'MU Budova 6'!K26))<0,0,(H21+H32+H43+H53-((H21+H32+H43+H53)/100)*('MU Budova 6'!F26+'MU Budova 6'!K26)))))","v":0},null,null,null,null,null,{"$f":"IF(OR('MU Budova 6'!O15=0,'MU Budova 6'!O16=0,'MU Budova 6'!O17=0,'MU Budova 6'!O18=0,'MU Budova 6'!O19=0,'MU Budova 6'!O21=0,'MU Budova 6'!O22=0,'MU Budova 6'!O23=0,'MU Budova 6'!O13=0,'MU Budova 6'!O33=0,'MU Budova 6'!O34=0,'MU Budova 6'!O35=0,'MU Budova 6'!O36=0,'MU Budova 6'!O37=0,'MU Budova 6'!O38=0),0,IF(AND('MU Budova 6'!F26=0,'MU Budova 6'!K26=0),N21+N32+N43+N53,IF(N21+N32+N43+N53-(((N21+N32+N43+N53)/100)*('MU Budova 6'!F26+'MU Budova 6'!K26))<0,0,(N21+N32+N43+N53-((N21+N32+N43+N53)/100)*('MU Budova 6'!F26+'MU Budova 6'!K26)))))","v":0},null,null,{"$f":"IF('Rozpočet B6'!$B$11=Číselníky!A2,'Rozpočet B6'!N55,'Rozpočet B6'!N55/1.2)","v":0}]
[]
[]
["Upozornenia"]
["Každá samostatná budova reprezentuje samostatnú hlavnú aktivitu uvedenú v ŽoNPF. Pre každú samostatnú budovu sa predkladá samostatný Energetický audit, samostatná Projektová dokumentácia  vrátane Energetického hodnotenia, samostatný rozpočet a samostatný hárok MU."]
["V prípade potreby doplnenia ďalších výdavkov vložte riadky a ak relevantné skopírujte vzorce."]
["V časti \"Vecný popis výdavkov\" špecifikujte jednotlivé výdavky z hľadiska ich predmetu, resp. rozsahu, prípadne nevyhnutnosti. Teda, ak výdavok pozostáva z viacerých položiek, je potrebné tieto položky v rámci vecného popisu výdavku bližšie špecifikovať, t. j. uviesť z akých položiek pozostáva cena výdavku vrátane výšky týchto položiek.  "]
["V časti rozpočtu \"Ostatné\" zadajte stavebné výdavky, ktoré nie je možné priradiť k predchádzajúcim častiam rozpočtu (zateplenie plášťa, strechy, výmena okenných konštrukcií). Napr. výdavky na systém prípravy teplej vody, osvetlenia vrátane potrebného merania a riadenia a modernizácie príslušných rozvodov energie, inštaláciu systémov merania a riadenia, inštaláciu zariadení na využívanie OZE pre spotrebu v budove a pod."]
["Dbajte prosím na súlad údajov uvedených v Rozpočte s údajmi uvedenými vo formulári ŽoNFP, ako aj v ďalších prílohách ŽoNFP."]

{"sheet":"Rozpočet B7","index":9,"n_rows":63,"n_cols":17,"rows_kept":63,"cut":false,"hidden":true,"merged":[[59,0,59,14],[60,0,60,14],[61,0,61,14],[62,0,62,14],[45,0,45,14],[52,0,52,4],[53,0,53,4],[57,0,57,7],[58,0,58,14],[54,0,54,6],[44,1,44,14],[14,0,14,1],[20,0,20,4],[21,0,21,14],[22,1,22,14],[25,0,25,1],[31,0,31,4],[32,0,32,14],[33,1,33,14],[36,0,36,1],[42,0,42,4],[43,0,43,14],[10,3,10,4],[10,8,10,9],[11,3,11,4],[11,8,11,14],[1,0,1,14],[6,0,6,5],[6,6,6,14],[8,1,8,14],[9,1,9,14]]}
[]
["Príloha ŽoNFP č. 6 - Dokumentácia k oprávnenosti výdavkov"]
[]
[]
[]
[]
["Rozpočet  -  Budova č. 7",null,null,null,null,null,{"$f":"IF(G12=\"\",\"\",\" -  súpis. č. \"&G12)","v":""}]
[]
["Názov žiadateľa:",{"$f":"IF('Rozpočet B1 - Value for Money'!B9:O9=\"\",\"\",'Rozpočet B1 - Value for Money'!B9:O9)","v":"Obec Podhorany"}]
["Názov projektu:",{"$f":"IF('Rozpočet B1 - Value for Money'!B10:O10=\"\",\"\",'Rozpočet B1 - Value for Money'!B10:O10)","v":"Stavebné úpravy ZŠ Podhorany Zníženie spotreby energie pri prevádzke "}]
["Je žiadateľ platcom DPH v rozsahu aktivity?",null,null,"Katastrálne územie",null,"LV číslo","Súpisné číslo",null,"Právny vzťah "]
["Počet samostatných budov v ŽoNFP?",{"$f":"IF('Rozpočet B1 - Value for Money'!B12=\"\",\"\",'Rozpočet B1 - Value for Money'!B12)","v":1},null,null,null,null,null,null,{"$f":"IF(O11=[4]Číselníky!G13,\"Predložte súhlas všetkých podielových spoluvlastníkov stavby\",IF(O11=[4]Číselníky!G14,\"Predložte doklad oprávnujúci k výkonu správy budovy\",\"\"))","v":""}]
[]
["Zateplenie obvodového plášťa"]
["Cieľová hodnota zateplenej plochy obvodového plášťa v m2",null,null," m2"]
["Názov výdavku","Skupina výdavkov  ","Merná\njednotka","Počet \njednotiek","Jednotková cena\nbez DPH [EUR]","Cena celkom \nbez DPH [EUR]","Cena celkom \ns DPH [EUR]","Celkový \nvýdavok","Výdavok nad \nreferenčnú hodnotu","Výdavok \npri neakceptovaní\nprekročenia ref.\nhodnôt","Schválenie /\nneschválenie\nprekročenia ref.\nhodnôt","Výdavok po odčítaní\nvecne neoprávne.\na/alebo neúčelných\nvýdavkov","Výdavok po odčítaní\nnehospodárnych\nvýdavkov","Výdavok po posúdení\nprekročenia\nreferenčných hodnôt","Vecný opis výdavku"]
["Položka č. 1","021 Stavby",null,null,null,{"$f":"ROUND(D17*E17,2)","v":0},{"$f":"ROUND(F17*1.2,2)","v":0},{"$f":"IF($B$11=\"áno\",F17,G17)","v":0},null,null,null,{"$f":"H17","v":0},{"$f":"L17","v":0},{"$f":"IFERROR(ROUND(IF($K$21=\"nie\",IF($M$21<=($C$15*100),M17,M17*$J$21/$M$21),M17),2),0)","v":0}]
["Položka č. 2","021 Stavby",null,null,null,{"$f":"ROUND(D18*E18,2)","v":0},{"$f":"ROUND(F18*1.2,2)","v":0},{"$f":"IF($B$11=\"áno\",F18,G18)","v":0},null,null,null,{"$f":"H18","v":0},{"$f":"L18","v":0},{"$f":"IFERROR(ROUND(IF($K$21=\"nie\",IF($M$21<=($C$15*100),M18,M18*$J$21/$M$21),M18),2),0)","v":0}]
["Položka č. 3","021 Stavby",null,null,null,{"$f":"ROUND(D19*E19,2)","v":0},{"$f":"ROUND(F19*1.2,2)","v":0},{"$f":"IF($B$11=\"áno\",F19,G19)","v":0},null,null,null,{"$f":"H19","v":0},{"$f":"L19","v":0},0]
["Položka č. n","021 Stavby",null,null,null,{"$f":"ROUND(D20*E20,2)","v":0},{"$f":"ROUND(F20*1.2,2)","v":0},{"$f":"IF($B$11=\"áno\",F20,G20)","v":0},null,null,null,{"$f":"H20","v":0},{"$f":"L20","v":0},0]
["Spolu výdavky zateplenia obvodového plášťa",null,null,null,null,{"$f":"SUM(F17:F20)","v":0},{"$f":"SUM(G17:G20)","v":0},{"$f":"IF(OR(B11=\"\",C15=\"\",C15<=0,D12=\"\",F12=\"\",G12=\"\",O11=\"\"),0,SUM(H17:H20))","v":0},{"$f":"IF(OR(C15=0,B11=\"\"),0,IF(F21>=C15*100,IF(B11=\"áno\",F21-C15*100,G21-C15*100*1.2),0))","v":0},{"$f":"IF(OR(C15=\"\",C15<=0,D12=\"\",F12=\"\",G12=\"\",O11=\"\"),0,H21-I21)","v":0},null,{"$f":"IF(OR(B11=\"\",C15=\"\",C15<=0,D12=\"\",F12=\"\",G12=\"\",O11=\"\"),0,SUM(L17:L20))","v":0},{"$f":"IF(OR(B11=\"\",C15=\"\",C15<=0,D12=\"\",F12=\"\",G12=\"\",O11=\"\"),0,SUM(M17:M20))","v":0},{"$f":"IF(OR(B11=\"\",C15=\"\",C15<=0,D12=\"\",F12=\"\",G12=\"\",O11=\"\"),0,SUM(N17:N20))","v":0}]
[{"$f":"IF(C10*G10>=H21,\"\",\"Prekročenie referenčných hodnôt nebude bez akceptovaného zdôvodnenia schválené.\")","v":""}]
["Zdôvodnenie prekročenia referenčnej hodnoty pre obvodový plášť","V prípade prekročenia stanovenej referenčnej hodnoty pre vybrané výdavky projektu je žiadateľ oprávnený toto prekročenie zdôvodniť.\n\nŽiadateľ v zdôvodnení uvedie výdavky, ktoré najvýznamnejšie vplývajú na prekročenie stanovenej referenčnej hodnoty a zdôvodní ich nevyhnutnosť. V prípade, že zdôvodnenie prekročenia stanovenej referenčnej hodnoty nebude predložené, resp. dostatočné  alebo akceptované zo strany odborného hodnotiteľa ako odôvodniteľné, žiadané výdavky budú krátené na výšku stanovených referenčných hodnôt.\n\nBližšie informácie týkajúce sa referenčných hodnôt a ich prekročenia sú uvedené v Prílohe č. 4 Výzvy - Osobitné podmienky oprávnenosti výdavkov.\n"]
[]
["Zateplenie strešného plášťa"]
["Cieľová hodnota zateplenej plochy strešného plášťa v m2",null,null," m2"]
["Názov výdavku","Skupina výdavkov  ","Merná\njednotka","Počet \njednotiek","Jednotková cena\nbez DPH [EUR]","Cena celkom \nbez DPH [EUR]","Cena celkom \ns DPH [EUR]","Celkový \nvýdavok","Výdavok nad \nreferenčnú hodnotu","Výdavok \npri neakceptovaní\nprekročenia ref.\nhodnôt","Schválenie /\nneschválenie\nprekročenia ref.\nhodnôt","Výdavok po odčítaní\nvecne neoprávne.\na/alebo neúčelných výdavkov","Výdavok po odčítaní\nnehospodárnych\nvýdavkov","Výdavok po posúdení\nprekročenia \nreferenčných hodnôt","Vecný opis výdavku"]
["Položka č. 1","021 Stavby",null,null,null,{"$f":"ROUND(D28*E28,2)","v":0},{"$f":"ROUND(F28*1.2,2)","v":0},{"$f":"IF($B$11=\"áno\",F28,G28)","v":0},null,null,null,{"$f":"H28","v":0},{"$f":"L28","v":0},{"$f":"IFERROR(ROUND(IF($K$32=\"nie\",IF($M$32<=($C$26*80),M28,M28*$J$32/$M$32),M28),2),0)","v":0}]
["Položka č. 2","021 Stavby",null,null,null,{"$f":"ROUND(D29*E29,2)","v":0},{"$f":"ROUND(F29*1.2,2)","v":0},{"$f":"IF($B$11=\"áno\",F29,G29)","v":0},null,null,null,{"$f":"H29","v":0},{"$f":"L29","v":0},{"$f":"IFERROR(ROUND(IF($K$32=\"nie\",IF($M$32<=($C$26*80),M29,M29*$J$32/$M$32),M29),2),0)","v":0}]
["Položka č. 3","021 Stavby",null,null,null,{"$f":"ROUND(D30*E30,2)","v":0},{"$f":"ROUND(F30*1.2,2)","v":0},{"$f":"IF($B$11=\"áno\",F30,G30)","v":0},null,null,null,{"$f":"H30","v":0},{"$f":"L30","v":0},0]
["Položka č. n","021 Stavby",null,null,null,{"$f":"ROUND(D31*E31,2)","v":0},{"$f":"ROUND(F31*1.2,2)","v":0},{"$f":"IF($B$11=\"áno\",F31,G31)","v":0},null,null,null,{"$f":"H31","v":0},{"$f":"L31","v":0},0]
["Spolu výdavky zateplenia strešného plášťa",null,null,null,null,{"$f":"SUM(F28:F31)","v":0},{"$f":"SUM(G28:G31)","v":0},{"$f":"IF(OR(B11=\"\",C26=\"\",C26<=0,D12=\"\",F12=\"\",G12=\"\",O11=\"\"),0,SUM(H28:H31))","v":0},{"$f":"IF(OR(C26=0,B11=\"\"),0,IF(F32>=C26*80,IF(B11=\"áno\",F32-C26*80,G32-C26*80*1.2),0))","v":0},{"$f":"IF(OR(C26=\"\",C26<=0,D12=\"\",F12=\"\",G12=\"\",O11=\"\"),0,H32-I32)","v":0},null,{"$f":"IF(OR(B11=\"\",C26=\"\",C26<=0,D12=\"\",F12=\"\",G12=\"\",O11=\"\"),0,SUM(L28:L31))","v":0},{"$f":"IF(OR(B11=\"\",C26=\"\",C26<=0,D12=\"\",F12=\"\",G12=\"\",O11=\"\"),0,SUM(M28:M31))","v":0},{"$f":"IF(OR(B11=\"\",C26=\"\",C26<=0,D12=\"\",F12=\"\",G12=\"\",O11=\"\"),0,SUM(N28:N31))","v":0}]
[{"$f":"IF(C21*G21>=H32,\"\",\"Prekročenie referenčných hodnôt nebude bez akceptovaného zdôvodnenia schválené.\")","v":""}]
["Zdôvodnenie prekročenia referenčnej hodnoty pre strešný plášť","V prípade prekročenia stanovenej referenčnej hodnoty pre vybrané výdavky projektu je žiadateľ oprávnený toto prekročenie zdôvodniť.\n\nŽiadateľ v zdôvodnení uvedie výdavky, ktoré najvýznamnejšie vplývajú na prekročenie stanovenej referenčnej hodnoty a zdôvodní ich nevyhnutnosť. V prípade, že zdôvodnenie prekročenia stanovenej referenčnej hodnoty nebude predložené, resp. dostatočné  alebo akceptované zo strany odborného hodnotiteľa ako odôvodniteľné, žiadané výdavky budú krátené na výšku stanovených referenčných hodnôt.\n\nBližšie informácie týkajúce sa referenčných hodnôt a ich prekročenia sú uvedené v Prílohe č. 4 Výzvy - Osobitné podmienky oprávnenosti výdavkov.\n"]
[]
["Výmena otvorových konštrukcií"]
["Cieľová hodnota výmeny otvorových konštrukcií v m2",null,null," m2"]
["Názov výdavku","Skupina výdavkov  ","Merná\njednotka","Počet \njednotiek","Jednotková cena\nbez DPH [EUR]","Cena celkom \nbez DPH [EUR]","Cena celkom \ns DPH [EUR]","Celkový \nvýdavok","Výdavok nad \nreferenčnú hodnotu","Výdavok \npri neakceptovaní\nprekročenia ref.\nhodnôt","Schválenie /\nneschválenie\nprekročenia ref.\nhodnôt","Výdavok po odčítaní\nvecne neoprávne.\na/alebo neúčelných výdavkov","Výdavok po odčítaní\nnehospodárnych\nvýdavkov","Výdavok po posúdení\nprekročenia \nreferenčných hodnôt","Vecný opis výdavku"]
["Položka č. 1","021 Stavby",null,null,null,{"$f":"ROUND(D39*E39,2)","v":0},{"$f":"ROUND(F39*1.2,2)","v":0},{"$f":"IF($B$11=\"áno\",F39,G39)","v":0},null,null,null,{"$f":"H39","v":0},{"$f":"L39","v":0},{"$f":"IFERROR(ROUND(IF($K$43=\"nie\",IF($M$43<=($C$37*400),M39,M39*$J$43/$M$43),M39),2),0)","v":0}]
["Položka č. 2","021 Stavby",null,null,null,{"$f":"ROUND(D40*E40,2)","v":0},{"$f":"ROUND(F40*1.2,2)","v":0},{"$f":"IF($B$11=\"áno\",F40,G40)","v":0},null,null,null,{"$f":"H40","v":0},{"$f":"L40","v":0},{"$f":"IFERROR(ROUND(IF($K$43=\"nie\",IF($M$43<=($C$37*400),M40,M40*$J$43/$M$43),M40),2),0)","v":0}]
["Položka č. 3","021 Stavby",null,null,null,{"$f":"ROUND(D41*E41,2)","v":0},{"$f":"ROUND(F41*1.2,2)","v":0},{"$f":"IF($B$11=\"áno\",F41,G41)","v":0},null,null,null,{"$f":"H41","v":0},{"$f":"L41","v":0},0]
["Položka č. n","021 Stavby",null,null,null,{"$f":"ROUND(D42*E42,2)","v":0},{"$f":"ROUND(F42*1.2,2)","v":0},{"$f":"IF($B$11=\"áno\",F42,G42)","v":0},null,null,null,{"$f":"H42","v":0},{"$f":"L42","v":0},0]
["Spolu výdavky výmeny otvorových konštrukcií",null,null,null,null,{"$f":"SUM(F39:F42)","v":0},{"$f":"SUM(G39:G42)","v":0},{"$f":"IF(OR(B11=\"\",C37=\"\",C37<=0,D12=\"\",F12=\"\",G12=\"\",O11=\"\"),0,SUM(H39:H42))","v":0},{"$f":"IF(OR(C37=0,B11=\"\"),0,IF(F43>=C37*400,IF(B11=\"áno\",F43-C37*400,G43-C37*400*1.2),0))","v":0},{"$f":"IF(OR(C37=\"\",C37<=0,D12=\"\",F12=\"\",G12=\"\",O11=\"\"),0,H43-I43)","v":0},null,{"$f":"IF(OR(B11=\"\",C37=\"\",C37<=0,D12=\"\",F12=\"\",G12=\"\",O11=\"\"),0,SUM(L39:L42))","v":0},{"$f":"IF(OR(B11=\"\",C37=\"\",C37<=0,D12=\"\",F12=\"\",G12=\"\",O11=\"\"),0,SUM(M39:M42))","v":0},{"$f":"IF(OR(B11=\"\",C37=\"\",C37<=0,D12=\"\",F12=\"\",G12=\"\",O11=\"\"),0,SUM(N39:N42))","v":0}]
[{"$f":"IF(C32*G32>=H43,\"\",\"Prekročenie referenčných hodnôt nebude bez akceptovaného zdôvodnenia schválené.\")","v":""}]
["Zdôvodnenie prekročenia referenčnej hodnoty pre výmenu otvorových konštrukcií","V prípade prekročenia stanovenej referenčnej hodnoty pre vybrané výdavky projektu je žiadateľ oprávnený toto prekročenie zdôvodniť.\n\nŽiadateľ v zdôvodnení uvedie výdavky, ktoré najvýznamnejšie vplývajú na prekročenie stanovenej referenčnej hodnoty a zdôvodní ich nevyhnutnosť. V prípade, že zdôvodnenie prekročenia stanovenej referenčnej hodnoty nebude predložené, resp. dostatočné  alebo akceptované zo strany odborného hodnotiteľa ako odôvodniteľné, žiadané výdavky budú krátené na výšku stanovených referenčných hodnôt.\n\nBližšie informácie týkajúce sa referenčných hodnôt a ich prekročenia sú uvedené v Prílohe č. 4 Výzvy - Osobitné podmienky oprávnenosti výdavkov.\n"]
[]
["Ostatné"]
["Názov výdavku","Skupina výdavkov  ","Merná jednotka","Počet jednotiek","Jednotková cena\nbez DPH [EUR]","Cena celkom \nbez DPH [EUR]","Cena celkom \ns DPH [EUR]","Celkový \nvýdavok","Výdavok nad \nreferenčnú hodnotu","Výdavok \npri neakceptovaní\nprekročenia ref.\nhodnôt","Stĺpec1","Výdavok po odčítaní\nvecne neoprávne. \na/alebo neúčelných\nvýdavkov","Stĺpec2","Výdavok po odčítaní\nnehospodárnych\nvýdavkov","Vecný opis výdavku"]
["Položka č. 1","021 Stavby",null,null,null,{"$f":"ROUND(D49*E49,2)","v":0},{"$f":"ROUND(F49*1.2,2)","v":0},{"$f":"IF($B$11=\"áno\",F49,G49)","v":0},null,null,null,{"$f":"H49","v":0},null,{"$f":"L49","v":0}]
["Položka č. 2","021 Stavby",null,null,null,{"$f":"ROUND(D50*E50,2)","v":0},{"$f":"ROUND(F50*1.2,2)","v":0},{"$f":"IF($B$11=\"áno\",F50,G50)","v":0},null,null,null,{"$f":"H50","v":0},null,{"$f":"L50","v":0}]
["Položka č. 3","021 Stavby",null,null,null,{"$f":"ROUND(D51*E51,2)","v":0},{"$f":"ROUND(F51*1.2,2)","v":0},{"$f":"IF($B$11=\"áno\",F51,G51)","v":0},null,null,null,{"$f":"H51","v":0},null,{"$f":"L51","v":0}]
["Položka č. n","021 Stavby",null,null,null,{"$f":"ROUND(D52*E52,2)","v":0},{"$f":"ROUND(F52*1.2,2)","v":0},{"$f":"IF($B$11=\"áno\",F52,G52)","v":0},null,null,null,{"$f":"H52","v":0},null,{"$f":"L52","v":0}]
["SPOLU výdavky ostatné",null,null,null,null,{"$f":"SUM(F49:F52)","v":0},{"$f":"SUM(G49:G52)","v":0},{"$f":"IF(OR(B11=\"\",D12=\"\",F12=\"\",G12=\"\",O11=\"\"),0,SUM(H49:H52))","v":0},"RH sa pre skup. výdav. \"Ostatné\" neuplatňuje.",null,null,{"$f":"IF(OR(B11=\"\",D12=\"\",F12=\"\",G12=\"\",O11=\"\"),0,SUM(L49:L52))","v":0},null,{"$f":"IF(OR(B11=\"\",D12=\"\",F12=\"\",G12=\"\",O11=\"\"),0,SUM(N49:N52))","v":0}]
["SPOLU Výdavky na budovu č. 7",null,null,null,null,{"$f":"F21+F32+F43+F53","v":0},{"$f":"G21+G32+G43+G53","v":0},{"$f":"IF(OR('MU Budova 7'!O15=0,'MU Budova 7'!O16=0,'MU Budova 7'!O17=0,'MU Budova 7'!O18=0,'MU Budova 7'!O19=0,'MU Budova 7'!O13=0,'MU Budova 7'!O33=0,'MU Budova 7'!O34=0,'MU Budova 7'!O35=0,'MU Budova 7'!O36=0,'MU Budova 7'!O37=0,'MU Budova 7'!O38=0),0,H21+H32+H43+H53)","v":0},{"$f":"REFa+REFb+REFc","v":0},{"$f":"J21+J32+J43","v":0},null,{"$f":"IF(OR('MU Budova 7'!O15=0,'MU Budova 7'!O16=0,'MU Budova 7'!O17=0,'MU Budova 7'!O18=0,'MU Budova 7'!O19=0,'MU Budova 7'!O13=0,'MU Budova 7'!O33=0,'MU Budova 7'!O34=0,'MU Budova 7'!O35=0,'MU Budova 7'!O36=0,'MU Budova 7'!O37=0,'MU Budova 7'!O38=0),0,L21+L32+L43+L53)","v":0},null,{"$f":"IF(OR('MU Budova 7'!O15=0,'MU Budova 7'!O16=0,'MU Budova 7'!O17=0,'MU Budova 7'!O18=0,'MU Budova 7'!O19=0,'MU Budova 7'!O13=0,'MU Budova 7'!O33=0,'MU Budova 7'!O34=0,'MU Budova 7'!O35=0,'MU Budova 7'!O36=0,'MU Budova 7'!O37=0,'MU Budova 7'!O38=0),0,N21+N32+N43+N53)","v":0}]
["SPOLU Výdavky na budovu č. 7 po prípadnom odpočítaní hospodárskej činnosti a nízkych úspor potreby energie na vykurovanie",null,null,null,null,null,null,{"$f":"IF(OR('MU Budova 7'!O15=0,'MU Budova 7'!O16=0,'MU Budova 7'!O17=0,'MU Budova 7'!O18=0,'MU Budova 7'!O19=0,'MU Budova 7'!O21=0,'MU Budova 7'!O22=0,'MU Budova 7'!O23=0,'MU Budova 7'!O13=0,'MU Budova 7'!O33=0,'MU Budova 7'!O34=0,'MU Budova 7'!O35=0,'MU Budova 7'!O36=0,'MU Budova 7'!O37=0,'MU Budova 7'!O38=0),0,IF(AND('MU Budova 7'!F26=0,'MU Budova 7'!K26=0),H21+H32+H43+H53,IF(H21+H32+H43+H53-(((H21+H32+H43+H53)/100)*('MU Budova 7'!F26+'MU Budova 7'!K26))<0,0,(H21+H32+H43+H53-((H21+H32+H43+H53)/100)*('MU Budova 7'!F26+'MU Budova 7'!K26)))))","v":0},null,null,null,null,null,{"$f":"IF(OR('MU Budova 7'!O15=0,'MU Budova 7'!O16=0,'MU Budova 7'!O17=0,'MU Budova 7'!O18=0,'MU Budova 7'!O19=0,'MU Budova 7'!O21=0,'MU Budova 7'!O22=0,'MU Budova 7'!O23=0,'MU Budova 7'!O13=0,'MU Budova 7'!O33=0,'MU Budova 7'!O34=0,'MU Budova 7'!O35=0,'MU Budova 7'!O36=0,'MU Budova 7'!O37=0,'MU Budova 7'!O38=0),0,IF(AND('MU Budova 7'!F26=0,'MU Budova 7'!K26=0),N21+N32+N43+N53,IF(N21+N32+N43+N53-(((N21+N32+N43+N53)/100)*('MU Budova 7'!F26+'MU Budova 7'!K26))<0,0,(N21+N32+N43+N53-((N21+N32+N43+N53)/100)*('MU Budova 7'!F26+'MU Budova 7'!K26)))))","v":0},null,null,{"$f":"IF('Rozpočet B7'!$B$11=Číselníky!A2,'Rozpočet B7'!N55,'Rozpočet B7'!N55/1.2)","v":0}]
[]
[]
["Upozornenia"]
["Každá samostatná budova reprezentuje samostatnú hlavnú aktivitu uvedenú v ŽoNPF. Pre každú samostatnú budovu sa predkladá samostatný Energetický audit, samostatná Projektová dokumentácia  vrátane Energetického hodnotenia, samostatný rozpočet a samostatný hárok MU."]
["V prípade potreby doplnenia ďalších výdavkov vložte riadky a ak relevantné skopírujte vzorce."]
["V časti \"Vecný popis výdavkov\" špecifikujte jednotlivé výdavky z hľadiska ich predmetu, resp. rozsahu, prípadne nevyhnutnosti. Teda, ak výdavok pozostáva z viacerých položiek, je potrebné tieto položky v rámci vecného popisu výdavku bližšie špecifikovať, t. j. uviesť z akých položiek pozostáva cena výdavku vrátane výšky týchto položiek.  "]
["V časti rozpočtu \"Ostatné\" zadajte stavebné výdavky, ktoré nie je možné priradiť k predchádzajúcim častiam rozpočtu (zateplenie plášťa, strechy, výmena okenných konštrukcií). Napr. výdavky na systém prípravy teplej vody, osvetlenia vrátane potrebného merania a riadenia a modernizácie príslušných rozvodov energie, inštaláciu systémov merania a riadenia, inštaláciu zariadení na využívanie OZE pre spotrebu v budove a pod."]
["Dbajte prosím na súlad údajov uvedených v Rozpočte s údajmi uvedenými vo formulári ŽoNFP, ako aj v ďalších prílohách ŽoNFP."]

{"sheet":"Sumárny prehľad MU","index":10,"n_rows":40,"n_cols":5,"rows_kept":40,"cut":false,"hidden":true,"merged":[[6,0,6,4],[15,0,15,2],[16,0,16,2],[18,1,18,4],[17,0,17,4],[8,1,8,4],[9,1,9,4],[21,0,21,4],[11,0,11,4],[12,0,12,4],[13,3,13,4],[14,3,14,4],[15,3,15,4],[16,3,16,4],[13,0,13,2],[14,0,14,2]]}
[null,null,null,null,"Príloha ŽoNFP č. 6 - Dokumentácia k oprávnenosti výdavkov"]
[]
[]
[]
[]
[]
["Sumár hodnôt merateľných ukazovateľov projektu"]
[]
["Názov žiadateľa:",{"$f":"IF('Rozpočet B1 - Value for Money'!B9:O9=\"\",\"\",'Rozpočet B1 - Value for Money'!B9:O9)","v":"Obec Podhorany"}]
["Názov projektu:",{"$f":"IF('Rozpočet B1 - Value for Money'!B10:O10=\"\",\"\",'Rozpočet B1 - Value for Money'!B10:O10)","v":"Stavebné úpravy ZŠ Podhorany Zníženie spotreby energie pri prevádzke "}]
[]
["Ukazovatele verejných budov"]
["Stručná charakteristika projektu"]
["Počet verejných budov, ktoré sú predmetom projektu",null,null,{"$f":"IF('Rozpočet B1 - Value for Money'!B12=\"\",\"\",'Rozpočet B1 - Value for Money'!B12)","v":1}]
["Počet hlavných aktivít uvedených v ŽoNFP"]
["Počet predložených Projektových dokumentácii vrátane Energetického hodnotenia"]
["Počet predložených Energetických auditov "]
[]
["Upozornenie",{"$f":"IF(OR(D14=\"\",D15=\"\",D16=\"\",D17=\"\"),\"Vyplňte všetky vyššie uvedené bunky.\",IF(D14<>D15,\"Počet aktivít musí byť totožný s počtom verejných budov, ktoré sú predmetom projektu.\",IF(D16>D14,\"Počet predložených Projektových dokumentácii musí byť totožný s počtom verejných budov, ktoré sú predmetom projektu.\",IF(D16<D14,\"Ku každej budove je potrebné predložiť samostatnú Projektovú dokumentáciu vrátane Energetického hodnotenia.\",IF(D17>D14,\"Počet predložených Energetickývh auditov musí byť totožný s počtom verejných budov, ktoré sú predmetom projektu.\",IF(D17<>D14,\"Ku každej budove je potrebné predložiť samostatný Energetický audit.\",IF(D14>7,CONCATENATE(\"Limit Prílohy je prekročený. Hodnoty MU sú kumulatívne za 7 budov. Celkové hodnoty MU sa určia súčtom hodnôt jednotlivých MU v hárkoch „Sumárny prehľad MU“ všetkých predložených Príloh č. 6 ŽoNFP.\"),\"\")))))))","v":"Vyplňte všetky vyššie uvedené bunky."}]
[]
[]
["Merateľné ukazovatele projektu"]
["Názov MU","Názov Merateľného ukazovatela","Príznak rizika","Merná jednotka","Výsledná hodnota"]
["P0080","Množstvo elektrickej energie vyrobenej v zariadení OZE","S príznakom","MWh/rok",{"$f":"IF($D$14=1,'MU Budova 1'!H75,IF($D$14=2,'MU Budova 1'!H75+'MU Budova 2'!H75,IF($D$14=3,'MU Budova 1'!H75+'MU Budova 2'!H75+'MU Budova 3'!H75,IF($D$14=4,'MU Budova 1'!H75+'MU Budova 2'!H75+'MU Budova 3'!H75+'MU Budova 4'!H75,IF($D$14=5,'MU Budova 1'!H75+'MU Budova 2'!H75+'MU Budova 3'!H75+'MU Budova 4'!H75+'MU Budova 5'!H75,IF($D$14=6,'MU Budova 1'!H75+'MU Budova 2'!H75+'MU Budova 3'!H75+'MU Budova 4'!H75+'MU Budova 5'!H75+'MU Budova 6'!H75,IF($D$14>=7,'MU Budova 1'!H75+'MU Budova 2'!H75+'MU Budova 3'!H75+'MU Budova 4'!H75+'MU Budova 5'!H75+'MU Budova 6'!H75+'MU Budova 7'!H75)))))))","v":0}]
["P0084","Množstvo tepelnej energie vyrobenej v zariadení OZE","S príznakom","MWh/rok",{"$f":"IF($D$14=1,'MU Budova 1'!H76,IF($D$14=2,'MU Budova 1'!H76+'MU Budova 2'!H76,IF($D$14=3,'MU Budova 1'!H76+'MU Budova 2'!H76+'MU Budova 3'!H76,IF($D$14=4,'MU Budova 1'!H76+'MU Budova 2'!H76+'MU Budova 3'!H76+'MU Budova 4'!H76,IF($D$14=5,'MU Budova 1'!H76+'MU Budova 2'!H76+'MU Budova 3'!H76+'MU Budova 4'!H76+'MU Budova 5'!H76,IF($D$14=6,'MU Budova 1'!H76+'MU Budova 2'!H76+'MU Budova 3'!H76+'MU Budova 4'!H76+'MU Budova 5'!H76+'MU Budova 6'!H76,IF($D$14>=7,'MU Budova 1'!H76+'MU Budova 2'!H76+'MU Budova 3'!H76+'MU Budova 4'!H76+'MU Budova 5'!H76+'MU Budova 6'!H76+'MU Budova 7'!H76)))))))","v":0}]
["P0103","Odhadované ročné zníženie emisií skleníkových plynov","S príznakom"," t ekviv. CO2/rok",{"$f":"IF($D$14=1,'MU Budova 1'!H77,IF($D$14=2,'MU Budova 1'!H77+'MU Budova 2'!H77,IF($D$14=3,'MU Budova 1'!H77+'MU Budova 2'!H77+'MU Budova 3'!H77,IF($D$14=4,'MU Budova 1'!H77+'MU Budova 2'!H77+'MU Budova 3'!H77+'MU Budova 4'!H77,IF($D$14=5,'MU Budova 1'!H77+'MU Budova 2'!H77+'MU Budova 3'!H77+'MU Budova 4'!H77+'MU Budova 5'!H77,IF($D$14=6,'MU Budova 1'!H77+'MU Budova 2'!H77+'MU Budova 3'!H77+'MU Budova 4'!H77+'MU Budova 5'!H77+'MU Budova 6'!H77,IF($D$14>=7,'MU Budova 1'!H77+'MU Budova 2'!H77+'MU Budova 3'!H77+'MU Budova 4'!H77+'MU Budova 5'!H77+'MU Budova 6'!H77+'MU Budova 7'!H77)))))))","v":30.580759999999998}]
["P0250","Počet opatrení na zníženie spotreby energie realizovaných vo verejnej budove","Bez príznaku","počet",{"$f":"IF($D$14=1,'MU Budova 1'!H78,IF($D$14=2,'MU Budova 1'!H78+'MU Budova 2'!H78,IF($D$14=3,'MU Budova 1'!H78+'MU Budova 2'!H78+'MU Budova 3'!H78,IF($D$14=4,'MU Budova 1'!H78+'MU Budova 2'!H78+'MU Budova 3'!H78+'MU Budova 4'!H78,IF($D$14=5,'MU Budova 1'!H78+'MU Budova 2'!H78+'MU Budova 3'!H78+'MU Budova 4'!H78+'MU Budova 5'!H78,IF($D$14=6,'MU Budova 1'!H78+'MU Budova 2'!H78+'MU Budova 3'!H78+'MU Budova 4'!H78+'MU Budova 5'!H78+'MU Budova 6'!H78,IF($D$14>=7,'MU Budova 1'!H78+'MU Budova 2'!H78+'MU Budova 3'!H78+'MU Budova 4'!H78+'MU Budova 5'!H78+'MU Budova 6'!H78+'MU Budova 7'!H78)))))))","v":3}]
["P0470","Počet verejných budov na úrovni nízkoenerg. / ultranízkoenerg. alebo s takmer nul. potrebou energie","Bez príznaku","počet",{"$f":"IF($D$14=1,'MU Budova 1'!H79,IF($D$14=2,'MU Budova 1'!H79+'MU Budova 2'!H79,IF($D$14=3,'MU Budova 1'!H79+'MU Budova 2'!H79+'MU Budova 3'!H79,IF($D$14=4,'MU Budova 1'!H79+'MU Budova 2'!H79+'MU Budova 3'!H79+'MU Budova 4'!H79,IF($D$14=5,'MU Budova 1'!H79+'MU Budova 2'!H79+'MU Budova 3'!H79+'MU Budova 4'!H79+'MU Budova 5'!H79,IF($D$14=6,'MU Budova 1'!H79+'MU Budova 2'!H79+'MU Budova 3'!H79+'MU Budova 4'!H79+'MU Budova 5'!H79+'MU Budova 6'!H79,IF($D$14>=7,'MU Budova 1'!H79+'MU Budova 2'!H79+'MU Budova 3'!H79+'MU Budova 4'!H79+'MU Budova 5'!H79+'MU Budova 6'!H79+'MU Budova 7'!H79)))))))","v":1}]
["P0612","Podlahová plocha budov obnovených nad rámec minimálnych požiadaviek","Bez príznaku","m2",{"$f":"IF($D$14=1,'MU Budova 1'!H80,IF($D$14=2,'MU Budova 1'!H80+'MU Budova 2'!H80,IF($D$14=3,'MU Budova 1'!H80+'MU Budova 2'!H80+'MU Budova 3'!H80,IF($D$14=4,'MU Budova 1'!H80+'MU Budova 2'!H80+'MU Budova 3'!H80+'MU Budova 4'!H80,IF($D$14=5,'MU Budova 1'!H80+'MU Budova 2'!H80+'MU Budova 3'!H80+'MU Budova 4'!H80+'MU Budova 5'!H80,IF($D$14=6,'MU Budova 1'!H80+'MU Budova 2'!H80+'MU Budova 3'!H80+'MU Budova 4'!H80+'MU Budova 5'!H80+'MU Budova 6'!H80,IF($D$14>=7,'MU Budova 1'!H80+'MU Budova 2'!H80+'MU Budova 3'!H80+'MU Budova 4'!H80+'MU Budova 5'!H80+'MU Budova 6'!H80+'MU Budova 7'!H80)))))))","v":839.54}]
["P0627","Spotreba energie v budove po realizácii opatrení energetickej efektívnosti","S príznakom","MWh/rok",{"$f":"IF($D$14=1,'MU Budova 1'!H81,IF($D$14=2,'MU Budova 1'!H81+'MU Budova 2'!H81,IF($D$14=3,'MU Budova 1'!H81+'MU Budova 2'!H81+'MU Budova 3'!H81,IF($D$14=4,'MU Budova 1'!H81+'MU Budova 2'!H81+'MU Budova 3'!H81+'MU Budova 4'!H81,IF($D$14=5,'MU Budova 1'!H81+'MU Budova 2'!H81+'MU Budova 3'!H81+'MU Budova 4'!H81+'MU Budova 5'!H81,IF($D$14=6,'MU Budova 1'!H81+'MU Budova 2'!H81+'MU Budova 3'!H81+'MU Budova 4'!H81+'MU Budova 5'!H81+'MU Budova 6'!H81,IF($D$14>=7,'MU Budova 1'!H81+'MU Budova 2'!H81+'MU Budova 3'!H81+'MU Budova 4'!H81+'MU Budova 5'!H81+'MU Budova 6'!H81+'MU Budova 7'!H81)))))))","v":94.719897628922055}]
["P0628","Spotreba energie v budove pred realizáciou opatrení energetickej efektívnosti","S príznakom","MWh/rok",{"$f":"IF($D$14=1,'MU Budova 1'!H82,IF($D$14=2,'MU Budova 1'!H82+'MU Budova 2'!H82,IF($D$14=3,'MU Budova 1'!H82+'MU Budova 2'!H82+'MU Budova 3'!H82,IF($D$14=4,'MU Budova 1'!H82+'MU Budova 2'!H82+'MU Budova 3'!H82+'MU Budova 4'!H82,IF($D$14=5,'MU Budova 1'!H82+'MU Budova 2'!H82+'MU Budova 3'!H82+'MU Budova 4'!H82+'MU Budova 5'!H82,IF($D$14=6,'MU Budova 1'!H82+'MU Budova 2'!H82+'MU Budova 3'!H82+'MU Budova 4'!H82+'MU Budova 5'!H82+'MU Budova 6'!H82,IF($D$14>=7,'MU Budova 1'!H82+'MU Budova 2'!H82+'MU Budova 3'!H82+'MU Budova 4'!H82+'MU Budova 5'!H82+'MU Budova 6'!H82+'MU Budova 7'!H82)))))))","v":242.87833333333333}]
["P0687","Zníženie konečnej spotreby energie vo verejných budovách","S príznakom","kWh/rok",{"$f":"IF($D$14=1,'MU Budova 1'!H83,IF($D$14=2,'MU Budova 1'!H83+'MU Budova 2'!H83,IF($D$14=3,'MU Budova 1'!H83+'MU Budova 2'!H83+'MU Budova 3'!H83,IF($D$14=4,'MU Budova 1'!H83+'MU Budova 2'!H83+'MU Budova 3'!H83+'MU Budova 4'!H83,IF($D$14=5,'MU Budova 1'!H83+'MU Budova 2'!H83+'MU Budova 3'!H83+'MU Budova 4'!H83+'MU Budova 5'!H83,IF($D$14=6,'MU Budova 1'!H83+'MU Budova 2'!H83+'MU Budova 3'!H83+'MU Budova 4'!H83+'MU Budova 5'!H83+'MU Budova 6'!H83,IF($D$14>=7,'MU Budova 1'!H83+'MU Budova 2'!H83+'MU Budova 3'!H83+'MU Budova 4'!H83+'MU Budova 5'!H83+'MU Budova 6'!H83+'MU Budova 7'!H83)))))))","v":148158.43570441127}]
["P0689","Zníženie potreby energie vo verejných budovách","S príznakom","kWh/rok",{"$f":"IF($D$14=1,'MU Budova 1'!H84,IF($D$14=2,'MU Budova 1'!H84+'MU Budova 2'!H84,IF($D$14=3,'MU Budova 1'!H84+'MU Budova 2'!H84+'MU Budova 3'!H84,IF($D$14=4,'MU Budova 1'!H84+'MU Budova 2'!H84+'MU Budova 3'!H84+'MU Budova 4'!H84,IF($D$14=5,'MU Budova 1'!H84+'MU Budova 2'!H84+'MU Budova 3'!H84+'MU Budova 4'!H84+'MU Budova 5'!H84,IF($D$14=6,'MU Budova 1'!H84+'MU Budova 2'!H84+'MU Budova 3'!H84+'MU Budova 4'!H84+'MU Budova 5'!H84+'MU Budova 6'!H84,IF($D$14>=7,'MU Budova 1'!H84+'MU Budova 2'!H84+'MU Budova 3'!H84+'MU Budova 4'!H84+'MU Budova 5'!H84+'MU Budova 6'!H84+'MU Budova 7'!H84)))))))","v":89572.481600000014}]
["P0691","Zníženie produkcie emisií NOx","S príznakom","kg/rok",{"$f":"IF($D$14=1,'MU Budova 1'!H85,IF($D$14=2,'MU Budova 1'!H85+'MU Budova 2'!H85,IF($D$14=3,'MU Budova 1'!H85+'MU Budova 2'!H85+'MU Budova 3'!H85,IF($D$14=4,'MU Budova 1'!H85+'MU Budova 2'!H85+'MU Budova 3'!H85+'MU Budova 4'!H85,IF($D$14=5,'MU Budova 1'!H85+'MU Budova 2'!H85+'MU Budova 3'!H85+'MU Budova 4'!H85+'MU Budova 5'!H85,IF($D$14=6,'MU Budova 1'!H85+'MU Budova 2'!H85+'MU Budova 3'!H85+'MU Budova 4'!H85+'MU Budova 5'!H85+'MU Budova 6'!H85,IF($D$14>=7,'MU Budova 1'!H85+'MU Budova 2'!H85+'MU Budova 3'!H85+'MU Budova 4'!H85+'MU Budova 5'!H85+'MU Budova 6'!H85+'MU Budova 7'!H85)))))))","v":25.759999999999998}]
["P0692","Zníženie produkcie emisií PM10","S príznakom","kg/rok",{"$f":"IF($D$14=1,'MU Budova 1'!H86,IF($D$14=2,'MU Budova 1'!H86+'MU Budova 2'!H86,IF($D$14=3,'MU Budova 1'!H86+'MU Budova 2'!H86+'MU Budova 3'!H86,IF($D$14=4,'MU Budova 1'!H86+'MU Budova 2'!H86+'MU Budova 3'!H86+'MU Budova 4'!H86,IF($D$14=5,'MU Budova 1'!H86+'MU Budova 2'!H86+'MU Budova 3'!H86+'MU Budova 4'!H86+'MU Budova 5'!H86,IF($D$14=6,'MU Budova 1'!H86+'MU Budova 2'!H86+'MU Budova 3'!H86+'MU Budova 4'!H86+'MU Budova 5'!H86+'MU Budova 6'!H86,IF($D$14>=7,'MU Budova 1'!H86+'MU Budova 2'!H86+'MU Budova 3'!H86+'MU Budova 4'!H86+'MU Budova 5'!H86+'MU Budova 6'!H86+'MU Budova 7'!H86)))))))","v":1.79}]
["P0694","Zníženie produkcie emisií SO2","S príznakom","kg/rok",{"$f":"IF($D$14=1,'MU Budova 1'!H87,IF($D$14=2,'MU Budova 1'!H87+'MU Budova 2'!H87,IF($D$14=3,'MU Budova 1'!H87+'MU Budova 2'!H87+'MU Budova 3'!H87,IF($D$14=4,'MU Budova 1'!H87+'MU Budova 2'!H87+'MU Budova 3'!H87+'MU Budova 4'!H87,IF($D$14=5,'MU Budova 1'!H87+'MU Budova 2'!H87+'MU Budova 3'!H87+'MU Budova 4'!H87+'MU Budova 5'!H87,IF($D$14=6,'MU Budova 1'!H87+'MU Budova 2'!H87+'MU Budova 3'!H87+'MU Budova 4'!H87+'MU Budova 5'!H87+'MU Budova 6'!H87,IF($D$14>=7,'MU Budova 1'!H87+'MU Budova 2'!H87+'MU Budova 3'!H87+'MU Budova 4'!H87+'MU Budova 5'!H87+'MU Budova 6'!H87+'MU Budova 7'!H87)))))))","v":3.41}]
["P0701","Zníženie ročnej spotreby primárnej energie vo verejných budovách","S príznakom","kWh/rok",{"$f":"IF($D$14=1,'MU Budova 1'!H88,IF($D$14=2,'MU Budova 1'!H88+'MU Budova 2'!H88,IF($D$14=3,'MU Budova 1'!H88+'MU Budova 2'!H88+'MU Budova 3'!H88,IF($D$14=4,'MU Budova 1'!H88+'MU Budova 2'!H88+'MU Budova 3'!H88+'MU Budova 4'!H88,IF($D$14=5,'MU Budova 1'!H88+'MU Budova 2'!H88+'MU Budova 3'!H88+'MU Budova 4'!H88+'MU Budova 5'!H88,IF($D$14=6,'MU Budova 1'!H88+'MU Budova 2'!H88+'MU Budova 3'!H88+'MU Budova 4'!H88+'MU Budova 5'!H88+'MU Budova 6'!H88,IF($D$14>=7,'MU Budova 1'!H88+'MU Budova 2'!H88+'MU Budova 3'!H88+'MU Budova 4'!H88+'MU Budova 5'!H88+'MU Budova 6'!H88+'MU Budova 7'!H88)))))))","v":160907.30184336568}]
["P0705","Zvýšená kapacita výroby elektriny z obnoviteľných zdrojov","Bez príznaku","MWe",{"$f":"IF($D$14=1,'MU Budova 1'!H89,IF($D$14=2,'MU Budova 1'!H89+'MU Budova 2'!H89,IF($D$14=3,'MU Budova 1'!H89+'MU Budova 2'!H89+'MU Budova 3'!H89,IF($D$14=4,'MU Budova 1'!H89+'MU Budova 2'!H89+'MU Budova 3'!H89+'MU Budova 4'!H89,IF($D$14=5,'MU Budova 1'!H89+'MU Budova 2'!H89+'MU Budova 3'!H89+'MU Budova 4'!H89+'MU Budova 5'!H89,IF($D$14=6,'MU Budova 1'!H89+'MU Budova 2'!H89+'MU Budova 3'!H89+'MU Budova 4'!H89+'MU Budova 5'!H89+'MU Budova 6'!H89,IF($D$14>=7,'MU Budova 1'!H89+'MU Budova 2'!H89+'MU Budova 3'!H89+'MU Budova 4'!H89+'MU Budova 5'!H89+'MU Budova 6'!H89+'MU Budova 7'!H89)))))))","v":0}]
["P0706","Zvýšená kapacita výroby energie z obnoviteľných zdrojov","Bez príznaku","MW",{"$f":"IF($D$14=1,'MU Budova 1'!H90,IF($D$14=2,'MU Budova 1'!H90+'MU Budova 2'!H90,IF($D$14=3,'MU Budova 1'!H90+'MU Budova 2'!H90+'MU Budova 3'!H90,IF($D$14=4,'MU Budova 1'!H90+'MU Budova 2'!H90+'MU Budova 3'!H90+'MU Budova 4'!H90,IF($D$14=5,'MU Budova 1'!H90+'MU Budova 2'!H90+'MU Budova 3'!H90+'MU Budova 4'!H90+'MU Budova 5'!H90,IF($D$14=6,'MU Budova 1'!H90+'MU Budova 2'!H90+'MU Budova 3'!H90+'MU Budova 4'!H90+'MU Budova 5'!H90+'MU Budova 6'!H90,IF($D$14>=7,'MU Budova 1'!H90+'MU Budova 2'!H90+'MU Budova 3'!H90+'MU Budova 4'!H90+'MU Budova 5'!H90+'MU Budova 6'!H90+'MU Budova 7'!H90)))))))","v":0}]
["P0707","Zvýšená kapacita výroby tepla z obnoviteľných zdrojov","Bez príznaku","MWt",{"$f":"IF($D$14=1,'MU Budova 1'!H91,IF($D$14=2,'MU Budova 1'!H91+'MU Budova 2'!H91,IF($D$14=3,'MU Budova 1'!H91+'MU Budova 2'!H91+'MU Budova 3'!H91,IF($D$14=4,'MU Budova 1'!H91+'MU Budova 2'!H91+'MU Budova 3'!H91+'MU Budova 4'!H91,IF($D$14=5,'MU Budova 1'!H91+'MU Budova 2'!H91+'MU Budova 3'!H91+'MU Budova 4'!H91+'MU Budova 5'!H91,IF($D$14=6,'MU Budova 1'!H91+'MU Budova 2'!H91+'MU Budova 3'!H91+'MU Budova 4'!H91+'MU Budova 5'!H91+'MU Budova 6'!H91,IF($D$14>=7,'MU Budova 1'!H91+'MU Budova 2'!H91+'MU Budova 3'!H91+'MU Budova 4'!H91+'MU Budova 5'!H91+'MU Budova 6'!H91+'MU Budova 7'!H91)))))))","v":0}]

{"sheet":"MU Budova 2","index":11,"n_rows":91,"n_cols":15,"rows_kept":91,"cut":false,"hidden":true,"merged":[[24,8,24,9],[25,8,25,9],[14,12,15,12],[32,8,32,12],[27,8,27,9],[12,8,12,12],[20,0,20,1],[20,3,20,4],[20,5,20,6],[21,0,21,1],[14,8,15,11],[16,8,17,10],[17,0,17,5],[12,0,12,2],[12,3,12,6],[19,0,19,1],[19,3,19,4],[19,5,19,6],[14,0,14,5],[15,0,15,5],[16,0,16,5],[50,0,50,3],[36,6,36,7],[37,6,37,7],[40,0,40,3],[41,0,41,3],[42,0,42,3],[43,0,43,3],[44,0,44,3],[45,0,45,3],[46,0,46,3],[47,0,47,3],[49,0,49,12],[36,8,36,12],[37,8,37,12],[35,6,35,7],[27,0,27,3],[27,4,27,6],[28,0,28,3],[28,4,28,6],[32,6,32,7],[33,6,33,7],[34,6,34,7],[30,0,30,12],[31,6,31,7],[35,8,35,12],[33,8,33,12],[34,8,34,12],[1,0,1,12],[7,0,7,6],[7,7,7,12],[9,1,9,12],[10,1,10,12],[21,3,21,4],[21,5,21,6],[25,0,25,1],[25,3,25,4],[25,5,25,6],[24,0,24,1],[24,3,24,4],[24,5,24,6],[22,0,22,1],[22,3,22,4],[22,5,22,6],[23,0,23,1],[23,3,23,4],[23,5,23,6],[73,1,73,4],[74,1,74,4],[75,1,75,4],[76,1,76,4],[77,1,77,4],[67,0,67,1],[68,0,68,1],[69,0,69,1],[72,0,72,2],[72,3,72,7],[63,0,63,3],[90,1,90,4],[79,1,79,4],[80,1,80,4],[81,1,81,4],[82,1,82,4],[83,1,83,4],[84,1,84,4],[85,1,85,4],[86,1,86,4],[87,1,87,4],[88,1,88,4],[89,1,89,4],[78,1,78,4],[65,0,65,3],[66,0,66,1]]}
[]
["Príloha ŽoNFP č. 6 - Dokumentácia k oprávnenosti výdavkov"]
[]
[]
[]
[]
[]
["Merateľné ukazovateľe  -  Budova č. 2",null,null,null,null,null,null,{"$f":"IF('Rozpočet B2'!G12=\"\",\"\",\" -  súpis. č. \"&'Rozpočet B2'!G12)","v":""}]
[]
["Názov žiadateľa:",{"$f":"IF('Rozpočet B2'!B9:O9=\"\",\"\",'Rozpočet B2'!B9:O9)","v":"Obec Podhorany"}]
["Názov projektu:",{"$f":"IF('Rozpočet B2'!B10:O10=\"\",\"\",'Rozpočet B2'!B10:O10)","v":"Stavebné úpravy ZŠ Podhorany Zníženie spotreby energie pri prevádzke "}]
[]
["Využitie budovy ",null,null,{"$f":"IFERROR(IF(H82/(E64)>=0.75,Číselníky!C20,Číselníky!C19),\"\")","v":""},null,null,null,null,{"$f":"IF(OR(O15=0,O16=0,O17=0,O18=0,O19=0),\"Minimálne jedna podmienka výzvy nie je splnená (riadky 15-18)\",IF(K25<30,\"Podmienka plánovanej úspory potreby energie na vykurovanie nie je splnená\",\"\"))","v":""},null,null,null,null,null,{"$f":"IF(D13=Číselníky!C19,0,1)","v":1}]
[]
["Bude budova preukázateľne dlhodobo využívaná verejným sektorom bez zmeny charakteru jej využitia v zmysle výzvy?",null,null,null,null,null,null,null,"Ak je budova pripojená k účinným (efektívnym) systémom centralizovaného zásobovania teplom, zostane pripojená aj po ukončení realizácie projektu v zmysle výzvy?",null,null,null,null,null,{"$f":"IF(G15=Číselníky!A3,0,1)","v":1}]
["Bude dosiahnutá plánovaná úspora potreby energie na vykurovanie vo výške min. 30% v zmysle výzvy?",null,null,null,null,null,{"$f":"IF($K$26=\"\",\"\",IF($K$26=100,Číselníky!$A$3,Číselníky!$A$2))","v":""},null,null,null,null,null,null,null,{"$f":"IF(G16=Číselníky!A3,0,1)","v":1}]
["Je hlavná aktivita v súlade so Stratégiou pre redukciu PM10 a programami na zlepšenie kvality ovzdušia v zmysle výzvy?",null,null,null,null,null,null,null,"Ak je súčastou aktivity energetické zariadenie využívajúce biomasu, je a bude využívané?",null,null,"Ku dňu predloženia ŽoNFP","Po ukončení realizácie projektu",null,{"$f":"IF(G17=Číselníky!A3,0,1)","v":1}]
["Ak relevantné, je hlavná aktivita v súlade s Kritériami udržateľného využívania biomasy v zmysle výzvy?",null,null,null,null,null,null,null,null,null,null,null,null,null,{"$f":"IF(G18=Číselníky!A3,0,1)","v":1}]
[null,null,null,null,null,null,null,null,null,null,null,null,null,null,{"$f":"IF(M15=Číselníky!A3,0,1)","v":1}]
["Využívanie verejnej budovy na hospodársku činnosť",null,"Merná jednotka","Stav PRED realizáciou projektu",null,"Stav PO realizácii projektu"]
["Celková podlahová plocha verejnej budovy (v zmysle Príkladu)",null,"[ m2h ]","Uveďte celkovú podlahovú plochu budovy (z vonjakších rozmerov budovy podľa STN 73 0540-2 Tepelná ochrana budov) ku dňu predloženia ŽoNFP a postupujte v zmysle Príkladu",null,"Uveďte celkovú podlahovú plochu budovy (z vonjakších rozmerov budovy podľa STN 73 0540-2 Tepelná ochrana budov) ku dňu predloženia ŽoNFP a postupujte v zmysle Príkladu",null,null,null,null,null,null,null,null,{"$f":"IF(ISNUMBER(F21),1,0)","v":0}]
["Podlahová plocha využívaná na sprievodnú hospodársku činnosť v rámci definície zmiešaného využitia budovy (v zmysle Príkladu)",null,"[ m2h ]","Uveďte podlahovú plochu využívanú na hospodársku činnosť v rámci zmiešaného využitia budovy a to ku dňu predloženia ŽoNFP a postupujte v zmysle Príkladu",null,"Uveďte podlahovú plochu využívanú na hospodársku činnosť v rámci zmiešaného využitia budovy a to ku dňu predloženia ŽoNFP a postupujte v zmysle Príkladu",null,null,null,null,null,null,null,null,{"$f":"IF(ISNUMBER(F22),1,0)","v":0}]
["Podlahová plocha využívaná na hospodársku činnosť mimo definície zmiešaného využitia budovy ",null,"[ m2h ]","Uveďte podlahovú plochu využívanú na hospodársku činnosť mimo zmiešaného využitia budovy ku dňu predloženia ŽoNFP ",null,"Uveďte podlahovú plochu využívanú na hospodársku činnosť mimo zmiešaného využitia budovy ku dňu predloženia ŽoNFP ",null,null,null,null,null,null,null,null,{"$f":"IF(ISNUMBER(F23),1,0)","v":0}]
["Podiel podlahovej plochy zmiešaného využitia budovy",null,"[%]",{"$f":"IFERROR((D22/D21)*100,0)","v":0},null,{"$f":"IFERROR((F22/F21)*100,0)","v":0}]
["Podiel podlahovej plochy hospodárskej činnosti budovy",null,"[%]",{"$f":"IFERROR((D23/D21)*100,0)","v":0},null,{"$f":"IFERROR((F23/F21)*100,0)","v":0},null,null,"Plánovaná úspora energie na vykurovanie  [ % ]",null,{"$f":"IF(OR(E33=\"\",F33=\"\"),\"\",((E33-F33)/E33*100))","v":""}]
["Celkové percentuálne zníženie COV ",null,"[%]",0,null,{"$f":"IFERROR(IF(F24>20,SUM(F24:G25),F25),0)","v":0},null,null,"Celkové zníženie OV  [ % ]",null,{"$f":"IF(OR(E33=\"\",F33=\"\"),\"\",IF(K25<30,100,IF(AND(K25>=30,K25<=40),10,IF(AND(K25>=40,K25<=50),5,IF(K25>50,0)))))","v":""}]
[]
["Kategória budovy",null,null,null,null,null,null,null,"Dátum vydania stavebného povolenia"]
["Počet opatrení na zníženie SPOTREBY energie realizovaných v predmetnej budove"]
[]
["Príloha č. 4 - Povolenie na realizáciu projektu \nPríloha č. 5 - Projektová dokumentácia - ENERGETICKÉ HODNOTENIE"]
["Podklady k stanoveniu úspory energie",null,null,null,"Stav PRED realizáciou projektu","Stav PO realizácii projektu","Energetická trieda po realizácii projektu"]
["Potreba energie na vykurovanie",null,null,"[kWh/m2.rok]",null,null,{"$f":"IF(E28=\"\",\"Vyplňte kategóriu budovy\",IF(OR(E28=\"Administratívna budova\",E28=\"Budova škôl a školských zariadení\"),IF(ROUND(F33,0)<=28,\"A\",IF(ROUND(F33,0)<=56,\"B\",IF(ROUND(F33,0)<=84,\"C\",IF(ROUND(F33,0)<=112,\"D\",IF(ROUND(F33,0)<=140,\"E\",IF(ROUND(F33,0)<=168,\"F\",\"G\")))))),\"neoprávnená kategória budovy\"))","v":"Vyplňte kategóriu budovy"},null,{"$f":"IF(OR(G33=\"C\",G33=\"D\",G33=\"E\",G33=\"F\",G33=\"G\"),Číselníky!C19,\"\")","v":""},null,null,null,null,null,{"$f":"IF(I33=Číselníky!C19,0,1)","v":1}]
["Potreba energie na prípravu teplej vody",null,null,"[kWh/m2.rok]",null,null,{"$f":"IF(E28=\"\",\"Vyplňte kategóriu budovy\",IF(E28=\"Administratívna budova\",IF(ROUND(F34,0)<=4,\"A\",IF(ROUND(F34,0)<=8,\"B\",IF(ROUND(F34,0)<=12,\"C\",IF(ROUND(F34,0)<=16,\"D\",IF(ROUND(F34,0)<=20,\"E\",IF(ROUND(F34,0)<=24,\"F\",\"G\")))))),IF(E28=\"Budova škôl a školských zariadení\",IF(ROUND(F34,0)<=6,\"A\",IF(ROUND(F34,0)<=12,\"B\",IF(ROUND(F34,0)<=18,\"C\",IF(ROUND(F34,0)<=24,\"D\",IF(ROUND(F34,0)<=30,\"E\",IF(ROUND(F34,0)<=36,\"F\",\"G\")))))),\"neoprávnená kategória budovy\")))","v":"Vyplňte kategóriu budovy"},null,{"$f":"IF(OR(G34=\"C\",G34=\"D\",G34=\"E\",G34=\"F\",G34=\"G\"),Číselníky!C19,\"\")","v":""},null,null,null,null,null,{"$f":"IF(I34=Číselníky!C19,0,1)","v":1}]
["Potreba energie na nútené vetranie/chladenie",null,null,"[kWh/m2.rok]",null,null,{"$f":"IF(E28=\"\",\"Vyplňte kategóriu budovy\",IF(E28=\"Administratívna budova\",IF(ROUND(F35,0)<=16,\"A\",IF(ROUND(F35,0)<=31,\"B\",IF(ROUND(F35,0)<=45,\"C\",IF(ROUND(F35,0)<=59,\"D\",IF(ROUND(F35,0)<=75,\"E\",IF(ROUND(F35,0)<=90,\"F\",\"G\")))))),IF(E28=\"Budova škôl a školských zariadení\",\"nehodnotí sa\",\"neoprávnená kategória budovy\")))","v":"Vyplňte kategóriu budovy"},null,{"$f":"IF(OR(G35=\"C\",G35=\"D\",G35=\"E\",G35=\"F\",G35=\"G\"),Číselníky!C19,\"\")","v":""},null,null,null,null,null,{"$f":"IF(I35=Číselníky!C19,0,1)","v":1}]
["Potreba energie na osvetlenie",null,null,"[kWh/m2.rok]",null,null,{"$f":"IF(E28=\"\",\"Vyplňte kategóriu budovy\",IF(E28=\"Administratívna budova\",IF(ROUND(F36,0)<=15,\"A\",IF(ROUND(F36,0)<=30,\"B\",IF(ROUND(F36,0)<=38,\"C\",IF(ROUND(F36,0)<=45,\"D\",IF(ROUND(F36,0)<=56,\"E\",IF(ROUND(F36,0)<=68,\"F\",\"G\")))))),IF(E28=\"Budova škôl a školských zariadení\",IF(ROUND(F36,0)<=9,\"A\",IF(ROUND(F36,0)<=18,\"B\",IF(ROUND(F36,0)<=23,\"C\",IF(ROUND(F36,0)<=27,\"D\",IF(ROUND(F36,0)<=34,\"E\",IF(ROUND(F36,0)<=41,\"F\",\"G\")))))),\"neoprávnená kategória budovy\")))","v":"Vyplňte kategóriu budovy"},null,{"$f":"IF(OR(G36=\"C\",G36=\"D\",G36=\"E\",G36=\"F\",G36=\"G\"),Číselníky!C19,\"\")","v":""},null,null,null,null,null,{"$f":"IF(I36=Číselníky!C19,0,1)","v":1}]
["Celková potreba energie",null,null,"[kWh/m2.rok]",{"$f":"SUM(E33:E36)","v":0},{"$f":"SUM(F33:F36)","v":0},{"$f":"IF(E28=\"\",\"Vyplňte kategóriu budovy\",IF(E28=\"Administratívna budova\",IF(ROUND(F37,0)<=63,\"A\",IF(ROUND(F37,0)<=125,\"B\",IF(ROUND(F37,0)<=179,\"C\",IF(ROUND(F37,0)<=232,\"D\",IF(ROUND(F37,0)<=291,\"E\",IF(ROUND(F37,0)<=350,\"F\",\"G\")))))),IF(E28=\"Budova škôl a školských zariadení\",IF(ROUND(F37,0)<=43,\"A\",IF(ROUND(F37,0)<=86,\"B\",IF(ROUND(F37,0)<=125,\"C\",IF(ROUND(F37,0)<=163,\"D\",IF(ROUND(F37,0)<=204,\"E\",IF(ROUND(F37,0)<=245,\"F\",\"G\")))))),\"neoprávnená kategória budovy\")))","v":"Vyplňte kategóriu budovy"},null,{"$f":"IF(OR(G37=\"C\",G37=\"D\",G37=\"E\",G37=\"F\",G37=\"G\"),Číselníky!C19,\"\")","v":""},null,null,null,null,null,{"$f":"IF(I37=Číselníky!C19,0,1)","v":1}]
["Globálny ukazovateľ - Primárna energia",null,null,"[kWh/m2.rok]",null,null,{"$f":"IF(OR(E28=\"\",K28=\"\"),\"Vyplňte kategóriu budovy / Dátum stav. pov\",IF(E28=\"Administratívna budova\",IF(ROUND(F38,0)<=61,\"A0\",IF(ROUND(F38,0)<=122,\"A1\",IF(ROUND(F38,0)<=255,\"B\",IF(ROUND(F38,0)<=383,\"C\",IF(ROUND(F38,0)<=511,\"D\",IF(ROUND(F38,0)<=639,\"E\",IF(ROUND(F38,0)<=766,\"F\",\"G\"))))))),IF(E28=\"Budova škôl a školských zariadení\",IF(ROUND(F38,0)<=34,\"A0\",IF(ROUND(F38,0)<=68,\"A1\",IF(ROUND(F38,0)<=136,\"B\",IF(ROUND(F38,0)<=204,\"C\",IF(ROUND(F38,0)<=272,\"D\",IF(ROUND(F38,0)<=340,\"E\",IF(ROUND(F38,0)<=408,\"F\",\"G\"))))))),\"neoprávnená kategória budovy\")))","v":"Vyplňte kategóriu budovy / Dátum stav. pov"},null,{"$f":"IF(OR(G38=\"B\",G38=\"C\",G38=\"D\",G38=\"E\",G38=\"F\",G38=\"G\"),Číselníky!C19,IF((AND(G38=\"A1\",K28>DATEVALUE(\"31.12.2018\"))),\"Projekt. dok. musí obsahovať zdôvodnenie nedosiahnutia hornej hranice energ. triedy A0\",\"\"))","v":""},null,null,null,null,null,{"$f":"IF(I38=Číselníky!C19,0,1)","v":1}]
["Celková podlahová plocha ",null,null,"[m2]"]
[]
["Energetické zariadenia",null,null,null,"Počet kusov","Plocha - Absorpčná  [m2]","Výkon \n[kW]","Výkon na m2 \n[kWh/m2]","Využitelnosť \n[h/rok]","P0080\n [MWh]","P0084 \n[MWh]","P0705 \n[MW]","P0707 \n[MW]"]
["Tepelné čerpadlo - Elektrické",null,null,null,null,null,null,null,1290,null,{"$f":"M42*I42","v":0},null,{"$f":"(E42*G42)/1000","v":0}]
["Tepelné čerpadlo - Plynové",null,null,null,null,null,null,null,1050,null,{"$f":"M43*I43","v":0},null,{"$f":"(E43*G43)/1000","v":0}]
["KVET - Elektrina",null,null,null,null,null,null,null,1290,{"$f":"L44*I44","v":0},null,{"$f":"(E44*G44)/1000","v":0}]
["KVET - Teplo",null,null,null,null,null,null,null,1290,null,{"$f":"M45*I45","v":0},null,{"$f":"(E45*G45)/1000","v":0}]
["Solárny panel Termický plochý",null,null,null,null,null,null,525,null,null,{"$f":"(E46*F46*H46)/1000","v":0},null,{"$f":"K46/1000","v":0}]
["Solárny panel Vákouový",null,null,null,null,null,null,800,null,null,{"$f":"(E47*F47*H47)/1000","v":0},null,{"$f":"K47/1000","v":0}]
["Fotovoltaický panel",null,null,null,null,1,null,null,1000,{"$f":"L48*I48","v":0},null,{"$f":"(E48*F48*G48)/1000","v":0}]
[]
["Príloha č. 8 ŽoNFP - Energetický audit"]
["Prehľad o spotrebe energie pred realizáciou projektu",null,null,null,"Rok N-2","Rok  N-1","Rok N","Priemer","Zníženie spotreby PE"]
["elektrina",null,null,"(MWh)",null,null,null,{"$f":"(E52+F52+G52)/3","v":0},{"$f":"$H$83*H52/$H$62/(0.93*0.99*0.4)","v":{"$error":"#DIV/0!"}}]
["zemný plyn",null,null,"(MWh)",null,null,null,{"$f":"(E53+F53+G53)/3","v":0},{"$f":"$H$83*H53/$H$62/(0.99*0.985)","v":{"$error":"#DIV/0!"}}]
["biomasa, uhlie",null,null,"(MWh)",null,null,null,{"$f":"(E54+F54+G54)/3","v":0},{"$f":"$H$83*H54/$H$62","v":{"$error":"#DIV/0!"}}]
["CZT",null,null,"(MWh)",null,null,null,{"$f":"(E55+F55+G55)/3","v":0},{"$f":"IF(OR(E56=\"\",E57=\"\",E58=\"\",E59=\"\",E60=\"\",E61=\"\"),\"Vyplňte bunky E56 - 61\",$H$83*H55/$H$62/(O56*O57*O58*O59*O60*O61))","v":"Vyplňte bunky E56 - 61"}]
[null,"Účinnosť sekundárneho rozvodu - teplá voda",null,null,null,null,null,null,null,null,null,null,null,null,{"$f":"IF(E56=\"áno\",0.94,1)","v":1}]
[null,"Účinnosť OST ",null,null,null,null,null,null,null,null,null,null,null,null,{"$f":"IF(E57=\"áno\",0.985,1)","v":1}]
[null,"Účinnosť účinnosť primárneho rozvodu - teplá voda",null,null,null,null,null,null,null,null,null,null,null,null,{"$f":"IF(E58=\"áno\",0.925,1)","v":1}]
[null,"Účinnosť OST - horúca - teplá voda",null,null,null,null,null,null,null,null,null,null,null,null,{"$f":"IF(E59=\"áno\",0.985,1)","v":1}]
[null,"Účinnosť primárneho rozvodu - horúca voda",null,null,null,null,null,null,null,null,null,null,null,null,{"$f":"IF(E60=\"áno\",0.9,1)","v":1}]
[null,"Účinnosť premeny energie",null,null,null,null,null,null,null,null,null,null,null,null,{"$f":"IF(E61=\"áno\",0.88,1)","v":1}]
["Spotreba energie SPOLU",null,null,"(MWh)",{"$f":"SUM(E52:E55)","v":0},{"$f":"SUM(F52:F55)","v":0},{"$f":"SUM(G52:G55)","v":0},{"$f":"SUM(H52:H55)","v":0},{"$f":"SUM(I52:I55)","v":{"$error":"#DIV/0!"}}]
[]
["Celková potreba energie pred realizáciou projektu vypočítaná projektovým energetickým hodnotením",null,null,null,null,"MWh/rok"]
[]
["Environmentálne hodnotenie",null,null,null,"Stav PRED realizáciou projektu","Stav PO realizácii projektu"]
["CO2",null,null,"ton"]
["NOx",null,null,"kg"]
["TZL/PM10",null,null,"kg"]
["SO2",null,null,"kg"]
[]
[]
["Merateľné ukazovatele  Budova č. 2",null,null,{"$f":"IF('Rozpočet B2'!G12=\"\",\"\",\" -  súpis. č. \"&'Rozpočet B2'!G12)","v":""}]
["Názov MU","Názov Merateľného ukazovatela",null,null,null,"Príznak rizika","Merná jednotka","Výsledná hodnota"]
["P0080","Množstvo elektrickej energie vyrobenej v zariadení OZE",null,null,null,"S príznakom","MWh/rok",{"$f":"J44+J48","v":0}]
["P0084","Množstvo tepelnej energie vyrobenej v zariadení OZE",null,null,null,"S príznakom","MWh/rok",{"$f":"K42+K43+K45+K46+K47","v":0}]
["P0103","Odhadované ročné zníženie emisií skleníkových plynov",null,null,null,"S príznakom"," t ekviv. CO2/rok",{"$f":"E67-F67","v":0}]
["P0250","Počet opatrení na zníženie spotreby energie realizovaných vo verejnej budove",null,null,null,"Bez príznaku","počet",{"$f":"E29","v":0}]
["P0470","Počet verej. budov na úrovni nízkoenerg. / ultranízkoenerg. alebo s takmer nul. potrebou energie",null,null,null,"Bez príznaku","počet",1]
["P0612","Podlahová plocha budov obnovených nad rámec minimálnych požiadaviek",null,null,null,"Bez príznaku","m2",{"$f":"F39","v":0}]
["P0627","Spotreba energie v budove po realizácii opatrení energetickej efektívnosti",null,null,null,"S príznakom","MWh/rok",{"$f":"H82*(F38*F39)/(E38*E39)","v":{"$error":"#DIV/0!"}}]
["P0628","Spotreba energie v budove pred realizáciou opatrení energetickej efektívnosti",null,null,null,"S príznakom","MWh/rok",{"$f":"H62","v":0}]
["P0687","Zníženie konečnej spotreby energie vo verejných budovách",null,null,null,"S príznakom","kWh/rok",{"$f":"(H82-H81)*1000","v":{"$error":"#DIV/0!"}}]
["P0689","Zníženie potreby energie vo verejných budovách",null,null,null,"S príznakom","kWh/rok",{"$f":"(E38*E39)-(F38*F39)","v":0}]
["P0691","Zníženie produkcie emisií NOx",null,null,null,"S príznakom","kg/rok",{"$f":"E68-F68","v":0}]
["P0692","Zníženie produkcie emisií PM10",null,null,null,"S príznakom","kg/rok",{"$f":"E69-F69","v":0}]
["P0694","Zníženie produkcie emisií SO2",null,null,null,"S príznakom","kg/rok",{"$f":"E70-F70","v":0}]
["P0701","Zníženie ročnej spotreby primárnej energie vo verejných budovách",null,null,null,"S príznakom","kWh/rok",{"$f":"I62","v":{"$error":"#DIV/0!"}}]
["P0705","Zvýšená kapacita výroby elektriny z obnoviteľných zdrojov",null,null,null,"Bez príznaku","MWe",{"$f":"L44+L48","v":0}]
["P0706","Zvýšená kapacita výroby energie z obnoviteľných zdrojov",null,null,null,"Bez príznaku","MW",{"$f":"H89+H91","v":0}]
["P0707","Zvýšená kapacita výroby tepla z obnoviteľných zdrojov",null,null,null,"Bez príznaku","MWt",{"$f":"M42+M43+M45+M46+M47","v":0}]

{"sheet":"MU Budova 3","index":12,"n_rows":91,"n_cols":19,"rows_kept":91,"cut":false,"hidden":true,"merged":[[12,8,12,12],[32,8,32,12],[33,8,33,12],[34,8,34,12],[14,8,15,11],[14,12,15,12],[16,8,17,10],[24,8,24,9],[25,8,25,9],[22,0,22,1],[22,3,22,4],[22,5,22,6],[37,8,37,12],[27,8,27,9],[35,8,35,12],[36,8,36,12],[23,0,23,1],[23,3,23,4],[23,5,23,6],[24,0,24,1],[24,3,24,4],[24,5,24,6],[25,0,25,1],[25,3,25,4],[25,5,25,6],[50,0,50,3],[36,6,36,7],[37,6,37,7],[40,0,40,3],[41,0,41,3],[42,0,42,3],[43,0,43,3],[44,0,44,3],[45,0,45,3],[46,0,46,3],[47,0,47,3],[49,0,49,12],[1,0,1,12],[7,0,7,6],[7,7,7,12],[9,1,9,12],[10,1,10,12],[12,0,12,2],[12,3,12,6],[19,0,19,1],[19,3,19,4],[19,5,19,6],[14,0,14,5],[15,0,15,5],[16,0,16,5],[17,0,17,5],[20,0,20,1],[20,3,20,4],[20,5,20,6],[35,6,35,7],[27,0,27,3],[27,4,27,6],[28,0,28,3],[28,4,28,6],[30,0,30,12],[31,6,31,7],[32,6,32,7],[33,6,33,7],[34,6,34,7],[21,0,21,1],[21,3,21,4],[21,5,21,6],[73,1,73,4],[74,1,74,4],[75,1,75,4],[76,1,76,4],[77,1,77,4],[67,0,67,1],[68,0,68,1],[69,0,69,1],[72,0,72,2],[72,3,72,7],[63,0,63,3],[90,1,90,4],[79,1,79,4],[80,1,80,4],[81,1,81,4],[82,1,82,4],[83,1,83,4],[84,1,84,4],[85,1,85,4],[86,1,86,4],[87,1,87,4],[88,1,88,4],[89,1,89,4],[78,1,78,4],[65,0,65,3],[66,0,66,1]]}
[]
["Príloha ŽoNFP č. 6 - Dokumentácia k oprávnenosti výdavkov"]
[]
[]
[]
[]
[]
["Merateľné ukazovateľe  -  Budova č. 3",null,null,null,null,null,null,{"$f":"IF('Rozpočet B3'!G12=\"\",\"\",\" -  súpis. č. \"&'Rozpočet B3'!G12)","v":""}]
[]
["Názov žiadateľa:",{"$f":"IF('Rozpočet B3'!B9:O9=\"\",\"\",'Rozpočet B3'!B9:O9)","v":"Obec Podhorany"}]
["Názov projektu:",{"$f":"IF('Rozpočet B3'!B10:O10=\"\",\"\",'Rozpočet B3'!B10:O10)","v":"Stavebné úpravy ZŠ Podhorany Zníženie spotreby energie pri prevádzke "}]
[]
["Využitie budovy ",null,null,{"$f":"IFERROR(IF(H82/(E64)>=0.75,Číselníky!C20,Číselníky!C19),\"\")","v":""},null,null,null,null,{"$f":"IF(OR(O15=0,O16=0,O17=0,O18=0,O19=0),\"Minimálne jedna podmienka výzvy nie je splnená (riadky 15-18)\",IF(K25<30,\"Podmienka plánovanej úspory potreby energie na vykurovanie nie je splnená\",\"\"))","v":""},null,null,null,null,null,{"$f":"IF(D13=Číselníky!C19,0,1)","v":1}]
[]
["Bude budova preukázateľne dlhodobo využívaná verejným sektorom bez zmeny charakteru jej využitia v zmysle výzvy?",null,null,null,null,null,null,null,"Ak je budova pripojená k účinným (efektívnym) systémom centralizovaného zásobovania teplom, zostane pripojená aj po ukončení realizácie projektu v zmysle výzvy?",null,null,null,null,null,{"$f":"IF(G15=Číselníky!A3,0,1)","v":1}]
["Bude dosiahnutá plánovaná úspora potreby energie na vykurovanie vo výške min. 30% v zmysle výzvy?",null,null,null,null,null,{"$f":"IF($K$26=\"\",\"\",IF($K$26=100,Číselníky!$A$3,Číselníky!$A$2))","v":""},null,null,null,null,null,null,null,{"$f":"IF(G16=Číselníky!A3,0,1)","v":1}]
["Je hlavná aktivita v súlade so Stratégiou pre redukciu PM10 a programami na zlepšenie kvality ovzdušia v zmysle výzvy?",null,null,null,null,null,null,null,"Ak je súčastou aktivity energetické zariadenie využívajúce biomasu, je a bude využívané?",null,null,"Ku dňu predloženia ŽoNFP","Po ukončení realizácie projektu",null,{"$f":"IF(G17=Číselníky!A3,0,1)","v":1}]
["Ak relevantné, je hlavná aktivita v súlade s Kritériami udržateľného využívania biomasy v zmysle výzvy?",null,null,null,null,null,null,null,null,null,null,null,null,null,{"$f":"IF(G18=Číselníky!A3,0,1)","v":1}]
[null,null,null,null,null,null,null,null,null,null,null,null,null,null,{"$f":"IF(M15=Číselníky!A3,0,1)","v":1}]
["Využívanie verejnej budovy na hospodársku činnosť",null,"Merná jednotka","Stav PRED realizáciou projektu",null,"Stav PO realizácii projektu"]
["Celková podlahová plocha verejnej budovy (v zmysle Príkladu)",null,"[ m2h ]","Uveďte celkovú podlahovú plochu budovy (z vonjakších rozmerov budovy podľa STN 73 0540-2 Tepelná ochrana budov) ku dňu predloženia ŽoNFP a postupujte v zmysle Príkladu",null,"Uveďte celkovú podlahovú plochu budovy (z vonjakších rozmerov budovy podľa STN 73 0540-2 Tepelná ochrana budov) ku dňu predloženia ŽoNFP a postupujte v zmysle Príkladu",null,null,null,null,null,null,null,null,{"$f":"IF(ISNUMBER(F21),1,0)","v":0}]
["Podlahová plocha využívaná na sprievodnú hospodársku činnosť v rámci definície zmiešaného využitia budovy (v zmysle Príkladu)",null,"[ m2h ]","Uveďte podlahovú plochu využívanú na hospodársku činnosť v rámci zmiešaného využitia budovy a to ku dňu predloženia ŽoNFP a postupujte v zmysle Príkladu",null,"Uveďte podlahovú plochu využívanú na hospodársku činnosť v rámci zmiešaného využitia budovy a to ku dňu predloženia ŽoNFP a postupujte v zmysle Príkladu",null,null,null,null,null,null,null,null,{"$f":"IF(ISNUMBER(F22),1,0)","v":0},null,null,null," "]
["Podlahová plocha využívaná na hospodársku činnosť mimo definície zmiešaného využitia budovy ",null,"[ m2h ]","Uveďte podlahovú plochu využívanú na hospodársku činnosť mimo zmiešaného využitia budovy ku dňu predloženia ŽoNFP ",null,"Uveďte podlahovú plochu využívanú na hospodársku činnosť mimo zmiešaného využitia budovy ku dňu predloženia ŽoNFP ",null,null,null,null,null,null,null,null,{"$f":"IF(ISNUMBER(F23),1,0)","v":0}]
["Podiel podlahovej plochy zmiešaného využitia budovy",null,"[%]",{"$f":"IFERROR((D22/D21)*100,0)","v":0},null,{"$f":"IFERROR((F22/F21)*100,0)","v":0}]
["Podiel podlahovej plochy hospodárskej činnosti budovy",null,"[%]",{"$f":"IFERROR((D23/D21)*100,0)","v":0},null,{"$f":"IFERROR((F23/F21)*100,0)","v":0},null,null,"Plánovaná úspora energie na vykurovanie  [ % ]",null,{"$f":"IF(OR(E33=\"\",F33=\"\"),\"\",((E33-F33)/E33*100))","v":""}]
["Celkové percentuálne zníženie COV ",null,"[%]",0,null,{"$f":"IFERROR(IF(F24>20,SUM(F24:G25),F25),0)","v":0},null,null,"Celkové zníženie OV  [ % ]",null,{"$f":"IF(OR(E33=\"\",F33=\"\"),\"\",IF(K25<30,100,IF(AND(K25>=30,K25<=40),10,IF(AND(K25>=40,K25<=50),5,IF(K25>50,0)))))","v":""}]
[]
["Kategória budovy",null,null,null,null,null,null,null,"Dátum vydania stavebného povolenia"]
["Počet opatrení na zníženie SPOTREBY energie realizovaných v predmetnej budove"]
[]
["Príloha č. 4 - Povolenie na realizáciu projektu\nPríloha č. 5 - Projektová dokumentácia - ENERGETICKÉ HODNOTENIE"]
["Podklady k stanoveniu úspory energie",null,null,null,"Stav PRED realizáciou projektu","Stav PO realizácii projektu","Energetická trieda po realizácii projektu"]
["Potreba energie na vykurovanie",null,null,"[kWh/m2.rok]",null,null,{"$f":"IF(E28=\"\",\"Vyplňte kategóriu budovy\",IF(OR(E28=\"Administratívna budova\",E28=\"Budova škôl a školských zariadení\"),IF(ROUND(F33,0)<=28,\"A\",IF(ROUND(F33,0)<=56,\"B\",IF(ROUND(F33,0)<=84,\"C\",IF(ROUND(F33,0)<=112,\"D\",IF(ROUND(F33,0)<=140,\"E\",IF(ROUND(F33,0)<=168,\"F\",\"G\")))))),\"neoprávnená kategória budovy\"))","v":"Vyplňte kategóriu budovy"},null,{"$f":"IF(OR(G33=\"C\",G33=\"D\",G33=\"E\",G33=\"F\",G33=\"G\"),Číselníky!C19,\"\")","v":""},null,null,null,null,null,{"$f":"IF(I33=Číselníky!C19,0,1)","v":1}]
["Potreba energie na prípravu teplej vody",null,null,"[kWh/m2.rok]",null,null,{"$f":"IF(E28=\"\",\"Vyplňte kategóriu budovy\",IF(E28=\"Administratívna budova\",IF(ROUND(F34,0)<=4,\"A\",IF(ROUND(F34,0)<=8,\"B\",IF(ROUND(F34,0)<=12,\"C\",IF(ROUND(F34,0)<=16,\"D\",IF(ROUND(F34,0)<=20,\"E\",IF(ROUND(F34,0)<=24,\"F\",\"G\")))))),IF(E28=\"Budova škôl a školských zariadení\",IF(ROUND(F34,0)<=6,\"A\",IF(ROUND(F34,0)<=12,\"B\",IF(ROUND(F34,0)<=18,\"C\",IF(ROUND(F34,0)<=24,\"D\",IF(ROUND(F34,0)<=30,\"E\",IF(ROUND(F34,0)<=36,\"F\",\"G\")))))),\"neoprávnená kategória budovy\")))","v":"Vyplňte kategóriu budovy"},null,{"$f":"IF(OR(G34=\"C\",G34=\"D\",G34=\"E\",G34=\"F\",G34=\"G\"),Číselníky!C19,\"\")","v":""},null,null,null,null,null,{"$f":"IF(I34=Číselníky!C19,0,1)","v":1}]
["Potreba energie na nútené vetranie/chladenie",null,null,"[kWh/m2.rok]",null,null,{"$f":"IF(E28=\"\",\"Vyplňte kategóriu budovy\",IF(E28=\"Administratívna budova\",IF(ROUND(F35,0)<=16,\"A\",IF(ROUND(F35,0)<=31,\"B\",IF(ROUND(F35,0)<=45,\"C\",IF(ROUND(F35,0)<=59,\"D\",IF(ROUND(F35,0)<=75,\"E\",IF(ROUND(F35,0)<=90,\"F\",\"G\")))))),IF(E28=\"Budova škôl a školských zariadení\",\"nehodnotí sa\",\"neoprávnená kategória budovy\")))","v":"Vyplňte kategóriu budovy"},null,{"$f":"IF(OR(G35=\"C\",G35=\"D\",G35=\"E\",G35=\"F\",G35=\"G\"),Číselníky!C19,\"\")","v":""},null,null,null,null,null,{"$f":"IF(I35=Číselníky!C19,0,1)","v":1}]
["Potreba energie na osvetlenie",null,null,"[kWh/m2.rok]",null,null,{"$f":"IF(E28=\"\",\"Vyplňte kategóriu budovy\",IF(E28=\"Administratívna budova\",IF(ROUND(F36,0)<=15,\"A\",IF(ROUND(F36,0)<=30,\"B\",IF(ROUND(F36,0)<=38,\"C\",IF(ROUND(F36,0)<=45,\"D\",IF(ROUND(F36,0)<=56,\"E\",IF(ROUND(F36,0)<=68,\"F\",\"G\")))))),IF(E28=\"Budova škôl a školských zariadení\",IF(ROUND(F36,0)<=9,\"A\",IF(ROUND(F36,0)<=18,\"B\",IF(ROUND(F36,0)<=23,\"C\",IF(ROUND(F36,0)<=27,\"D\",IF(ROUND(F36,0)<=34,\"E\",IF(ROUND(F36,0)<=41,\"F\",\"G\")))))),\"neoprávnená kategória budovy\")))","v":"Vyplňte kategóriu budovy"},null,{"$f":"IF(OR(G36=\"C\",G36=\"D\",G36=\"E\",G36=\"F\",G36=\"G\"),Číselníky!C19,\"\")","v":""},null,null,null,null,null,{"$f":"IF(I36=Číselníky!C19,0,1)","v":1}]
["Celková potreba energie",null,null,"[kWh/m2.rok]",{"$f":"SUM(E33:E36)","v":0},{"$f":"SUM(F33:F36)","v":0},{"$f":"IF(E28=\"\",\"Vyplňte kategóriu budovy\",IF(E28=\"Administratívna budova\",IF(ROUND(F37,0)<=63,\"A\",IF(ROUND(F37,0)<=125,\"B\",IF(ROUND(F37,0)<=179,\"C\",IF(ROUND(F37,0)<=232,\"D\",IF(ROUND(F37,0)<=291,\"E\",IF(ROUND(F37,0)<=350,\"F\",\"G\")))))),IF(E28=\"Budova škôl a školských zariadení\",IF(ROUND(F37,0)<=43,\"A\",IF(ROUND(F37,0)<=86,\"B\",IF(ROUND(F37,0)<=125,\"C\",IF(ROUND(F37,0)<=163,\"D\",IF(ROUND(F37,0)<=204,\"E\",IF(ROUND(F37,0)<=245,\"F\",\"G\")))))),\"neoprávnená kategória budovy\")))","v":"Vyplňte kategóriu budovy"},null,{"$f":"IF(OR(G37=\"C\",G37=\"D\",G37=\"E\",G37=\"F\",G37=\"G\"),Číselníky!C19,\"\")","v":""},null,null,null,null,null,{"$f":"IF(I37=Číselníky!C19,0,1)","v":1}]
["Globálny ukazovateľ - Primárna energia",null,null,"[kWh/m2.rok]",null,null,{"$f":"IF(OR(E28=\"\",K28=\"\"),\"Vyplňte kategóriu budovy / Dátum stav. pov\",IF(E28=\"Administratívna budova\",IF(ROUND(F38,0)<=61,\"A0\",IF(ROUND(F38,0)<=122,\"A1\",IF(ROUND(F38,0)<=255,\"B\",IF(ROUND(F38,0)<=383,\"C\",IF(ROUND(F38,0)<=511,\"D\",IF(ROUND(F38,0)<=639,\"E\",IF(ROUND(F38,0)<=766,\"F\",\"G\"))))))),IF(E28=\"Budova škôl a školských zariadení\",IF(ROUND(F38,0)<=34,\"A0\",IF(ROUND(F38,0)<=68,\"A1\",IF(ROUND(F38,0)<=136,\"B\",IF(ROUND(F38,0)<=204,\"C\",IF(ROUND(F38,0)<=272,\"D\",IF(ROUND(F38,0)<=340,\"E\",IF(ROUND(F38,0)<=408,\"F\",\"G\"))))))),\"neoprávnená kategória budovy\")))","v":"Vyplňte kategóriu budovy / Dátum stav. pov"},null,{"$f":"IF(OR(G38=\"B\",G38=\"C\",G38=\"D\",G38=\"E\",G38=\"F\",G38=\"G\"),Číselníky!C19,IF((AND(G38=\"A1\",K28>DATEVALUE(\"31.12.2018\"))),\"Projekt. dok. musí obsahovať zdôvodnenie nedosiahnutia hornej hranice energ. triedy A0\",\"\"))","v":""},null,null,null,null,null,{"$f":"IF(I38=Číselníky!C19,0,1)","v":1}]
["Celková podlahová plocha ",null,null,"[m2]"]
[]
["Energetické zariadenia",null,null,null,"Počet kusov","Plocha - Absorpčná  [m2]","Výkon \n[kW]","Výkon na m2 \n[kWh/m2]","Využitelnosť \n[h/rok]","P0080\n [MWh]","P0084 \n[MWh]","P0705 \n[MW]","P0707 \n[MW]"]
["Tepelné čerpadlo - Elektrické",null,null,null,null,null,null,null,1290,null,{"$f":"M42*I42","v":0},null,{"$f":"(E42*G42)/1000","v":0}]
["Tepelné čerpadlo - Plynové",null,null,null,null,null,null,null,1050,null,{"$f":"M43*I43","v":0},null,{"$f":"(E43*G43)/1000","v":0}]
["KVET - Elektrina",null,null,null,null,null,null,null,1290,{"$f":"L44*I44","v":0},null,{"$f":"(E44*G44)/1000","v":0}]
["KVET - Teplo",null,null,null,null,null,null,null,1290,null,{"$f":"M45*I45","v":0},null,{"$f":"(E45*G45)/1000","v":0}]
["Solárny panel Termický plochý",null,null,null,null,null,null,525,null,null,{"$f":"(E46*F46*H46)/1000","v":0},null,{"$f":"K46/1000","v":0}]
["Solárny panel Vákouový",null,null,null,null,null,null,800,null,null,{"$f":"(E47*F47*H47)/1000","v":0},null,{"$f":"K47/1000","v":0}]
["Fotovoltaický panel",null,null,null,null,1,null,null,1000,{"$f":"L48*I48","v":0},null,{"$f":"(E48*F48*G48)/1000","v":0}]
[]
["Príloha č. 8 ŽoNFP - Energetický audit "]
["Prehľad o spotrebe energie pred realizáciou projektu",null,null,null,"Rok N-2","Rok  N-1","Rok N","Priemer","Zníženie spotreby PE"]
["elektrina",null,null,"(MWh)",null,null,null,{"$f":"(E52+F52+G52)/3","v":0},{"$f":"$H$83*H52/$H$62/(0.93*0.99*0.4)","v":{"$error":"#DIV/0!"}}]
["zemný plyn",null,null,"(MWh)",null,null,null,{"$f":"(E53+F53+G53)/3","v":0},{"$f":"$H$83*H53/$H$62/(0.99*0.985)","v":{"$error":"#DIV/0!"}}]
["biomasa, uhlie",null,null,"(MWh)",null,null,null,{"$f":"(E54+F54+G54)/3","v":0},{"$f":"$H$83*H54/$H$62","v":{"$error":"#DIV/0!"}}]
["CZT",null,null,"(MWh)",null,null,null,{"$f":"(E55+F55+G55)/3","v":0},{"$f":"IF(OR(E56=\"\",E57=\"\",E58=\"\",E59=\"\",E60=\"\",E61=\"\"),\"Vyplňte bunky E56 - 61\",$H$83*H55/$H$62/(O56*O57*O58*O59*O60*O61))","v":"Vyplňte bunky E56 - 61"}]
[null,"Účinnosť sekundárneho rozvodu - teplá voda",null,null,null,null,null,null,null,null,null,null,null,null,{"$f":"IF(E56=\"áno\",0.94,1)","v":1}]
[null,"Účinnosť OST ",null,null,null,null,null,null,null,null,null,null,null,null,{"$f":"IF(E57=\"áno\",0.985,1)","v":1}]
[null,"Účinnosť účinnosť primárneho rozvodu - teplá voda",null,null,null,null,null,null,null,null,null,null,null,null,{"$f":"IF(E58=\"áno\",0.925,1)","v":1}]
[null,"Účinnosť OST - horúca - teplá voda",null,null,null,null,null,null,null,null,null,null,null,null,{"$f":"IF(E59=\"áno\",0.985,1)","v":1}]
[null,"Účinnosť primárneho rozvodu - horúca voda",null,null,null,null,null,null,null,null,null,null,null,null,{"$f":"IF(E60=\"áno\",0.9,1)","v":1}]
[null,"Účinnosť premeny energie",null,null,null,null,null,null,null,null,null,null,null,null,{"$f":"IF(E61=\"áno\",0.88,1)","v":1}]
["Spotreba energie SPOLU",null,null,"(MWh)",{"$f":"SUM(E52:E55)","v":0},{"$f":"SUM(F52:F55)","v":0},{"$f":"SUM(G52:G55)","v":0},{"$f":"SUM(H52:H55)","v":0},{"$f":"SUM(I52:I55)","v":{"$error":"#DIV/0!"}}]
[]
["Celková potreba energie pred realizáciou projektu vypočítaná projektovým energetickým hodnotením",null,null,null,null,"MWh/rok"]
[]
["Environmentálne hodnotenie",null,null,null,"Stav PRED realizáciou projektu","Stav PO realizácii projektu"]
["CO2",null,null,"ton"]
["NOx",null,null,"kg"]
["TZL/PM10",null,null,"kg"]
["SO2",null,null,"kg"]
[]
[]
["Merateľné ukazovatele  Budova č. 3",null,null,{"$f":"IF('Rozpočet B3'!G12=\"\",\"\",\" -  súpis. č. \"&'Rozpočet B3'!G12)","v":""}]
["Názov MU","Názov Merateľného ukazovatela",null,null,null,"Príznak rizika","Merná jednotka","Výsledná hodnota"]
["P0080","Množstvo elektrickej energie vyrobenej v zariadení OZE",null,null,null,"S príznakom","MWh/rok",{"$f":"J44+J48","v":0}]
["P0084","Množstvo tepelnej energie vyrobenej v zariadení OZE",null,null,null,"S príznakom","MWh/rok",{"$f":"K42+K43+K45+K46+K47","v":0}]
["P0103","Odhadované ročné zníženie emisií skleníkových plynov",null,null,null,"S príznakom"," t ekviv. CO2/rok",{"$f":"E67-F67","v":0}]
["P0250","Počet opatrení na zníženie spotreby energie realizovaných vo verejnej budove",null,null,null,"Bez príznaku","počet",{"$f":"E29","v":0}]
["P0470","Počet verej. budov na úrovni nízkoenerg. / ultranízkoenerg. alebo s takmer nul. potrebou energie",null,null,null,"Bez príznaku","počet",1]
["P0612","Podlahová plocha budov obnovených nad rámec minimálnych požiadaviek",null,null,null,"Bez príznaku","m2",{"$f":"F39","v":0}]
["P0627","Spotreba energie v budove po realizácii opatrení energetickej efektívnosti",null,null,null,"S príznakom","MWh/rok",{"$f":"H82*(F38*F39)/(E38*E39)","v":{"$error":"#DIV/0!"}}]
["P0628","Spotreba energie v budove pred realizáciou opatrení energetickej efektívnosti",null,null,null,"S príznakom","MWh/rok",{"$f":"H62","v":0}]
["P0687","Zníženie konečnej spotreby energie vo verejných budovách",null,null,null,"S príznakom","kWh/rok",{"$f":"(H82-H81)*1000","v":{"$error":"#DIV/0!"}}]
["P0689","Zníženie potreby energie vo verejných budovách",null,null,null,"S príznakom","kWh/rok",{"$f":"(E38*E39)-(F38*F39)","v":0}]
["P0691","Zníženie produkcie emisií NOx",null,null,null,"S príznakom","kg/rok",{"$f":"E68-F68","v":0}]
["P0692","Zníženie produkcie emisií PM10",null,null,null,"S príznakom","kg/rok",{"$f":"E69-F69","v":0}]
["P0694","Zníženie produkcie emisií SO2",null,null,null,"S príznakom","kg/rok",{"$f":"E70-F70","v":0}]
["P0701","Zníženie ročnej spotreby primárnej energie vo verejných budovách",null,null,null,"S príznakom","kWh/rok",{"$f":"I62","v":{"$error":"#DIV/0!"}}]
["P0705","Zvýšená kapacita výroby elektriny z obnoviteľných zdrojov",null,null,null,"Bez príznaku","MWe",{"$f":"L44+L48","v":0}]
["P0706","Zvýšená kapacita výroby energie z obnoviteľných zdrojov",null,null,null,"Bez príznaku","MW",{"$f":"H89+H91","v":0}]
["P0707","Zvýšená kapacita výroby tepla z obnoviteľných zdrojov",null,null,null,"Bez príznaku","MWt",{"$f":"M42+M43+M45+M46+M47","v":0}]

{"sheet":"MU Budova 4","index":13,"n_rows":91,"n_cols":15,"rows_kept":91,"cut":false,"hidden":true,"merged":[[34,8,34,12],[16,8,17,10],[14,8,15,11],[14,12,15,12],[12,8,12,12],[27,8,27,9],[32,8,32,12],[24,8,24,9],[25,8,25,9],[50,0,50,3],[36,6,36,7],[37,6,37,7],[40,0,40,3],[41,0,41,3],[42,0,42,3],[43,0,43,3],[44,0,44,3],[45,0,45,3],[46,0,46,3],[47,0,47,3],[49,0,49,12],[36,8,36,12],[37,8,37,12],[22,0,22,1],[22,3,22,4],[22,5,22,6],[23,0,23,1],[23,3,23,4],[23,5,23,6],[24,0,24,1],[24,3,24,4],[24,5,24,6],[25,0,25,1],[25,3,25,4],[25,5,25,6],[35,8,35,12],[33,8,33,12],[1,0,1,12],[7,0,7,6],[7,7,7,12],[9,1,9,12],[10,1,10,12],[12,0,12,2],[12,3,12,6],[19,0,19,1],[19,3,19,4],[19,5,19,6],[14,0,14,5],[15,0,15,5],[16,0,16,5],[17,0,17,5],[20,3,20,4],[20,5,20,6],[35,6,35,7],[27,0,27,3],[27,4,27,6],[28,0,28,3],[28,4,28,6],[30,0,30,12],[31,6,31,7],[32,6,32,7],[33,6,33,7],[34,6,34,7],[21,0,21,1],[21,3,21,4],[21,5,21,6],[20,0,20,1],[73,1,73,4],[74,1,74,4],[75,1,75,4],[76,1,76,4],[77,1,77,4],[67,0,67,1],[68,0,68,1],[69,0,69,1],[72,0,72,2],[72,3,72,7],[63,0,63,3],[90,1,90,4],[79,1,79,4],[80,1,80,4],[81,1,81,4],[82,1,82,4],[83,1,83,4],[84,1,84,4],[85,1,85,4],[86,1,86,4],[87,1,87,4],[88,1,88,4],[89,1,89,4],[78,1,78,4],[65,0,65,3],[66,0,66,1]]}
[]
["Príloha ŽoNFP č. 6 - Dokumentácia k oprávnenosti výdavkov"]
[]
[]
[]
[]
[]
["Merateľné ukazovateľe  -  Budova č. 4",null,null,null,null,null,null,{"$f":"IF('Rozpočet B4'!G12=\"\",\"\",\" -  súpis. č. \"&'Rozpočet B4'!G12)","v":""}]
[]
["Názov žiadateľa:",{"$f":"IF('Rozpočet B4'!B9:O9=\"\",\"\",'Rozpočet B4'!B9:O9)","v":"Obec Podhorany"}]
["Názov projektu:",{"$f":"IF('Rozpočet B4'!B10:O10=\"\",\"\",'Rozpočet B4'!B10:O10)","v":"Stavebné úpravy ZŠ Podhorany Zníženie spotreby energie pri prevádzke "}]
[]
["Využitie budovy ",null,null,{"$f":"IFERROR(IF(H82/(E64)>=0.75,Číselníky!C20,Číselníky!C19),\"\")","v":""},null,null,null,null,{"$f":"IF(OR(O15=0,O16=0,O17=0,O18=0,O19=0),\"Minimálne jedna podmienka výzvy nie je splnená (riadky 15-18)\",IF(K25<30,\"Podmienka plánovanej úspory potreby energie na vykurovanie nie je splnená\",\"\"))","v":""},null,null,null,null,null,{"$f":"IF(D13=Číselníky!C19,0,1)","v":1}]
[]
["Bude budova preukázateľne dlhodobo využívaná verejným sektorom bez zmeny charakteru jej využitia v zmysle výzvy?",null,null,null,null,null,null,null,"Ak je budova pripojená k účinným (efektívnym) systémom centralizovaného zásobovania teplom, zostane pripojená aj po ukončení realizácie projektu v zmysle výzvy?",null,null,null,null,null,{"$f":"IF(G15=Číselníky!A3,0,1)","v":1}]
["Bude dosiahnutá plánovaná úspora potreby energie na vykurovanie vo výške min. 30% v zmysle výzvy?",null,null,null,null,null,{"$f":"IF($K$26=\"\",\"\",IF($K$26=100,Číselníky!$A$3,Číselníky!$A$2))","v":""},null,null,null,null,null,null,null,{"$f":"IF(G16=Číselníky!A3,0,1)","v":1}]
["Je hlavná aktivita v súlade so Stratégiou pre redukciu PM10 a programami na zlepšenie kvality ovzdušia v zmysle výzvy?",null,null,null,null,null,null,null,"Ak je súčastou aktivity energetické zariadenie využívajúce biomasu, je a bude využívané?",null,null,"Ku dňu predloženia ŽoNFP","Po ukončení realizácie projektu",null,{"$f":"IF(G17=Číselníky!A3,0,1)","v":1}]
["Ak relevantné, je hlavná aktivita v súlade s Kritériami udržateľného využívania biomasy v zmysle výzvy?",null,null,null,null,null,null,null,null,null,null,null,null,null,{"$f":"IF(G18=Číselníky!A3,0,1)","v":1}]
[null,null,null,null,null,null,null,null,null,null,null,null,null,null,{"$f":"IF(M15=Číselníky!A3,0,1)","v":1}]
["Využívanie verejnej budovy na hospodársku činnosť",null,"Merná jednotka","Stav PRED realizáciou projektu",null,"Stav PO realizácii projektu"]
["Celková podlahová plocha verejnej budovy (v zmysle Príkladu)",null,"[ m2h ]","Uveďte celkovú podlahovú plochu budovy (z vonjakších rozmerov budovy podľa STN 73 0540-2 Tepelná ochrana budov) ku dňu predloženia ŽoNFP a postupujte v zmysle Príkladu",null,"Uveďte celkovú podlahovú plochu budovy (z vonjakších rozmerov budovy podľa STN 73 0540-2 Tepelná ochrana budov) ku dňu predloženia ŽoNFP a postupujte v zmysle Príkladu",null,null,null,null,null,null,null,null,{"$f":"IF(ISNUMBER(F21),1,0)","v":0}]
["Podlahová plocha využívaná na sprievodnú hospodársku činnosť v rámci definície zmiešaného využitia budovy (v zmysle Príkladu)",null,"[ m2h ]","Uveďte podlahovú plochu využívanú na hospodársku činnosť v rámci zmiešaného využitia budovy a to ku dňu predloženia ŽoNFP a postupujte v zmysle Príkladu",null,"Uveďte podlahovú plochu využívanú na hospodársku činnosť v rámci zmiešaného využitia budovy a to ku dňu predloženia ŽoNFP a postupujte v zmysle Príkladu",null,null,null,null,null,null,null,null,{"$f":"IF(ISNUMBER(F22),1,0)","v":0}]
["Podlahová plocha využívaná na hospodársku činnosť mimo definície zmiešaného využitia budovy ",null,"[ m2h ]","Uveďte podlahovú plochu využívanú na hospodársku činnosť mimo zmiešaného využitia budovy ku dňu predloženia ŽoNFP",null,"Uveďte podlahovú plochu využívanú na hospodársku činnosť mimo zmiešaného využitia budovy ku dňu predloženia ŽoNFP ",null,null,null,null,null,null,null,null,{"$f":"IF(ISNUMBER(F23),1,0)","v":0}]
["Podiel podlahovej plochy zmiešaného využitia budovy",null,"[%]",{"$f":"IFERROR((D22/D21)*100,0)","v":0},null,{"$f":"IFERROR((F22/F21)*100,0)","v":0}]
["Podiel podlahovej plochy hospodárskej činnosti budovy",null,"[%]",{"$f":"IFERROR((D23/D21)*100,0)","v":0},null,{"$f":"IFERROR((F23/F21)*100,0)","v":0},null,null,"Plánovaná úspora energie na vykurovanie  [ % ]",null,{"$f":"IF(OR(E33=\"\",F33=\"\"),\"\",((E33-F33)/E33*100))","v":""}]
["Celkové percentuálne zníženie COV ",null,"[%]",0,null,{"$f":"IFERROR(IF(F24>20,SUM(F24:G25),F25),0)","v":0},null,null,"Celkové zníženie OV  [ % ]",null,{"$f":"IF(OR(E33=\"\",F33=\"\"),\"\",IF(K25<30,100,IF(AND(K25>=30,K25<=40),10,IF(AND(K25>=40,K25<=50),5,IF(K25>50,0)))))","v":""}]
[]
["Kategória budovy",null,null,null,null,null,null,null,"Dátum vydania stavebného povolenia"]
["Počet opatrení na zníženie SPOTREBY energie realizovaných v predmetnej budove"]
[]
["Príloha č. 4 - Povolenie na realizáciu projektu \nPríloha č. 5 - Projektová dokumentácia - ENERGETICKÉ HODNOTENIE"]
["Podklady k stanoveniu úspory energie",null,null,null,"Stav PRED realizáciou projektu","Stav PO realizácii projektu","Energetická trieda po realizácii projektu"]
["Potreba energie na vykurovanie",null,null,"[kWh/m2.rok]",null,null,{"$f":"IF(E28=\"\",\"Vyplňte kategóriu budovy\",IF(OR(E28=\"Administratívna budova\",E28=\"Budova škôl a školských zariadení\"),IF(ROUND(F33,0)<=28,\"A\",IF(ROUND(F33,0)<=56,\"B\",IF(ROUND(F33,0)<=84,\"C\",IF(ROUND(F33,0)<=112,\"D\",IF(ROUND(F33,0)<=140,\"E\",IF(ROUND(F33,0)<=168,\"F\",\"G\")))))),\"neoprávnená kategória budovy\"))","v":"Vyplňte kategóriu budovy"},null,{"$f":"IF(OR(G33=\"C\",G33=\"D\",G33=\"E\",G33=\"F\",G33=\"G\"),Číselníky!C19,\"\")","v":""},null,null,null,null,null,{"$f":"IF(I33=Číselníky!C19,0,1)","v":1}]
["Potreba energie na prípravu teplej vody",null,null,"[kWh/m2.rok]",null,null,{"$f":"IF(E28=\"\",\"Vyplňte kategóriu budovy\",IF(E28=\"Administratívna budova\",IF(ROUND(F34,0)<=4,\"A\",IF(ROUND(F34,0)<=8,\"B\",IF(ROUND(F34,0)<=12,\"C\",IF(ROUND(F34,0)<=16,\"D\",IF(ROUND(F34,0)<=20,\"E\",IF(ROUND(F34,0)<=24,\"F\",\"G\")))))),IF(E28=\"Budova škôl a školských zariadení\",IF(ROUND(F34,0)<=6,\"A\",IF(ROUND(F34,0)<=12,\"B\",IF(ROUND(F34,0)<=18,\"C\",IF(ROUND(F34,0)<=24,\"D\",IF(ROUND(F34,0)<=30,\"E\",IF(ROUND(F34,0)<=36,\"F\",\"G\")))))),\"neoprávnená kategória budovy\")))","v":"Vyplňte kategóriu budovy"},null,{"$f":"IF(OR(G34=\"C\",G34=\"D\",G34=\"E\",G34=\"F\",G34=\"G\"),Číselníky!C19,\"\")","v":""},null,null,null,null,null,{"$f":"IF(I34=Číselníky!C19,0,1)","v":1}]
["Potreba energie na nútené vetranie/chladenie",null,null,"[kWh/m2.rok]",null,null,{"$f":"IF(E28=\"\",\"Vyplňte kategóriu budovy\",IF(E28=\"Administratívna budova\",IF(ROUND(F35,0)<=16,\"A\",IF(ROUND(F35,0)<=31,\"B\",IF(ROUND(F35,0)<=45,\"C\",IF(ROUND(F35,0)<=59,\"D\",IF(ROUND(F35,0)<=75,\"E\",IF(ROUND(F35,0)<=90,\"F\",\"G\")))))),IF(E28=\"Budova škôl a školských zariadení\",\"nehodnotí sa\",\"neoprávnená kategória budovy\")))","v":"Vyplňte kategóriu budovy"},null,{"$f":"IF(OR(G35=\"C\",G35=\"D\",G35=\"E\",G35=\"F\",G35=\"G\"),Číselníky!C19,\"\")","v":""},null,null,null,null,null,{"$f":"IF(I35=Číselníky!C19,0,1)","v":1}]
["Potreba energie na osvetlenie",null,null,"[kWh/m2.rok]",null,null,{"$f":"IF(E28=\"\",\"Vyplňte kategóriu budovy\",IF(E28=\"Administratívna budova\",IF(ROUND(F36,0)<=15,\"A\",IF(ROUND(F36,0)<=30,\"B\",IF(ROUND(F36,0)<=38,\"C\",IF(ROUND(F36,0)<=45,\"D\",IF(ROUND(F36,0)<=56,\"E\",IF(ROUND(F36,0)<=68,\"F\",\"G\")))))),IF(E28=\"Budova škôl a školských zariadení\",IF(ROUND(F36,0)<=9,\"A\",IF(ROUND(F36,0)<=18,\"B\",IF(ROUND(F36,0)<=23,\"C\",IF(ROUND(F36,0)<=27,\"D\",IF(ROUND(F36,0)<=34,\"E\",IF(ROUND(F36,0)<=41,\"F\",\"G\")))))),\"neoprávnená kategória budovy\")))","v":"Vyplňte kategóriu budovy"},null,{"$f":"IF(OR(G36=\"C\",G36=\"D\",G36=\"E\",G36=\"F\",G36=\"G\"),Číselníky!C19,\"\")","v":""},null,null,null,null,null,{"$f":"IF(I36=Číselníky!C19,0,1)","v":1}]
["Celková potreba energie",null,null,"[kWh/m2.rok]",{"$f":"SUM(E33:E36)","v":0},{"$f":"SUM(F33:F36)","v":0},{"$f":"IF(E28=\"\",\"Vyplňte kategóriu budovy\",IF(E28=\"Administratívna budova\",IF(ROUND(F37,0)<=63,\"A\",IF(ROUND(F37,0)<=125,\"B\",IF(ROUND(F37,0)<=179,\"C\",IF(ROUND(F37,0)<=232,\"D\",IF(ROUND(F37,0)<=291,\"E\",IF(ROUND(F37,0)<=350,\"F\",\"G\")))))),IF(E28=\"Budova škôl a školských zariadení\",IF(ROUND(F37,0)<=43,\"A\",IF(ROUND(F37,0)<=86,\"B\",IF(ROUND(F37,0)<=125,\"C\",IF(ROUND(F37,0)<=163,\"D\",IF(ROUND(F37,0)<=204,\"E\",IF(ROUND(F37,0)<=245,\"F\",\"G\")))))),\"neoprávnená kategória budovy\")))","v":"Vyplňte kategóriu budovy"},null,{"$f":"IF(OR(G37=\"C\",G37=\"D\",G37=\"E\",G37=\"F\",G37=\"G\"),Číselníky!C19,\"\")","v":""},null,null,null,null,null,{"$f":"IF(I37=Číselníky!C19,0,1)","v":1}]
["Globálny ukazovateľ - Primárna energia",null,null,"[kWh/m2.rok]",null,null,{"$f":"IF(OR(E28=\"\",K28=\"\"),\"Vyplňte kategóriu budovy / Dátum stav. pov\",IF(E28=\"Administratívna budova\",IF(ROUND(F38,0)<=61,\"A0\",IF(ROUND(F38,0)<=122,\"A1\",IF(ROUND(F38,0)<=255,\"B\",IF(ROUND(F38,0)<=383,\"C\",IF(ROUND(F38,0)<=511,\"D\",IF(ROUND(F38,0)<=639,\"E\",IF(ROUND(F38,0)<=766,\"F\",\"G\"))))))),IF(E28=\"Budova škôl a školských zariadení\",IF(ROUND(F38,0)<=34,\"A0\",IF(ROUND(F38,0)<=68,\"A1\",IF(ROUND(F38,0)<=136,\"B\",IF(ROUND(F38,0)<=204,\"C\",IF(ROUND(F38,0)<=272,\"D\",IF(ROUND(F38,0)<=340,\"E\",IF(ROUND(F38,0)<=408,\"F\",\"G\"))))))),\"neoprávnená kategória budovy\")))","v":"Vyplňte kategóriu budovy / Dátum stav. pov"},null,{"$f":"IF(OR(G38=\"B\",G38=\"C\",G38=\"D\",G38=\"E\",G38=\"F\",G38=\"G\"),Číselníky!C19,IF((AND(G38=\"A1\",K28>DATEVALUE(\"31.12.2018\"))),\"Projekt. dok. musí obsahovať zdôvodnenie nedosiahnutia hornej hranice energ. triedy A0\",\"\"))","v":""},null,null,null,null,null,{"$f":"IF(I38=Číselníky!C19,0,1)","v":1}]
["Celková podlahová plocha ",null,null,"[m2]"]
[]
["Energetické zariadenia",null,null,null,"Počet kusov","Plocha - Absorpčná  [m2]","Výkon \n[kW]","Výkon na m2 \n[kWh/m2]","Využitelnosť \n[h/rok]","P0080\n [MWh]","P0084 \n[MWh]","P0705 \n[MW]","P0707 \n[MW]"]
["Tepelné čerpadlo - Elektrické",null,null,null,null,null,null,null,1290,null,{"$f":"M42*I42","v":0},null,{"$f":"(E42*G42)/1000","v":0}]
["Tepelné čerpadlo - Plynové",null,null,null,null,null,null,null,1050,null,{"$f":"M43*I43","v":0},null,{"$f":"(E43*G43)/1000","v":0}]
["KVET - Elektrina",null,null,null,null,null,null,null,1290,{"$f":"L44*I44","v":0},null,{"$f":"(E44*G44)/1000","v":0}]
["KVET - Teplo",null,null,null,null,null,null,null,1290,null,{"$f":"M45*I45","v":0},null,{"$f":"(E45*G45)/1000","v":0}]
["Solárny panel Termický plochý",null,null,null,null,null,null,525,null,null,{"$f":"(E46*F46*H46)/1000","v":0},null,{"$f":"K46/1000","v":0}]
["Solárny panel Vákouový",null,null,null,null,null,null,800,null,null,{"$f":"(E47*F47*H47)/1000","v":0},null,{"$f":"K47/1000","v":0}]
["Fotovoltaický panel",null,null,null,null,1,null,null,1000,{"$f":"L48*I48","v":0},null,{"$f":"(E48*F48*G48)/1000","v":0}]
[]
["Príloha č. 8 ŽoNFP - Energetický audit"]
["Prehľad o spotrebe energie pred realizáciou projektu",null,null,null,"Rok N-2","Rok  N-1","Rok N","Priemer","Zníženie spotreby PE"]
["elektrina",null,null,"(MWh)",null,null,null,{"$f":"(E52+F52+G52)/3","v":0},{"$f":"$H$83*H52/$H$62/(0.93*0.99*0.4)","v":{"$error":"#DIV/0!"}}]
["zemný plyn",null,null,"(MWh)",null,null,null,{"$f":"(E53+F53+G53)/3","v":0},{"$f":"$H$83*H53/$H$62/(0.99*0.985)","v":{"$error":"#DIV/0!"}}]
["biomasa, uhlie",null,null,"(MWh)",null,null,null,{"$f":"(E54+F54+G54)/3","v":0},{"$f":"$H$83*H54/$H$62","v":{"$error":"#DIV/0!"}}]
["CZT",null,null,"(MWh)",null,null,null,{"$f":"(E55+F55+G55)/3","v":0},{"$f":"IF(OR(E56=\"\",E57=\"\",E58=\"\",E59=\"\",E60=\"\",E61=\"\"),\"Vyplňte bunky E56 - 61\",$H$83*H55/$H$62/(O56*O57*O58*O59*O60*O61))","v":"Vyplňte bunky E56 - 61"}]
[null,"Účinnosť sekundárneho rozvodu - teplá voda",null,null,null,null,null,null,null,null,null,null,null,null,{"$f":"IF(E56=\"áno\",0.94,1)","v":1}]
[null,"Účinnosť OST ",null,null,null,null,null,null,null,null,null,null,null,null,{"$f":"IF(E57=\"áno\",0.985,1)","v":1}]
[null,"Účinnosť účinnosť primárneho rozvodu - teplá voda",null,null,null,null,null,null,null,null,null,null,null,null,{"$f":"IF(E58=\"áno\",0.925,1)","v":1}]
[null,"Účinnosť OST - horúca - teplá voda",null,null,null,null,null,null,null,null,null,null,null,null,{"$f":"IF(E59=\"áno\",0.985,1)","v":1}]
[null,"Účinnosť primárneho rozvodu - horúca voda",null,null,null,null,null,null,null,null,null,null,null,null,{"$f":"IF(E60=\"áno\",0.9,1)","v":1}]
[null,"Účinnosť premeny energie",null,null,null,null,null,null,null,null,null,null,null,null,{"$f":"IF(E61=\"áno\",0.88,1)","v":1}]
["Spotreba energie SPOLU",null,null,"(MWh)",{"$f":"SUM(E52:E55)","v":0},{"$f":"SUM(F52:F55)","v":0},{"$f":"SUM(G52:G55)","v":0},{"$f":"SUM(H52:H55)","v":0},{"$f":"SUM(I52:I55)","v":{"$error":"#DIV/0!"}}]
[]
["Celková potreba energie pred realizáciou projektu vypočítaná projektovým energetickým hodnotením",null,null,null,null,"MWh/rok"]
[]
["Environmentálne hodnotenie",null,null,null,"Stav PRED realizáciou projektu","Stav PO realizácii projektu"]
["CO2",null,null,"ton"]
["NOx",null,null,"kg"]
["TZL/PM10",null,null,"kg"]
["SO2",null,null,"kg"]
[]
[]
["Merateľné ukazovatele  Budova č. 4",null,null,{"$f":"IF('Rozpočet B4'!G12=\"\",\"\",\" -  súpis. č. \"&'Rozpočet B4'!G12)","v":""}]
["Názov MU","Názov Merateľného ukazovatela",null,null,null,"Príznak rizika","Merná jednotka","Výsledná hodnota"]
["P0080","Množstvo elektrickej energie vyrobenej v zariadení OZE",null,null,null,"S príznakom","MWh/rok",{"$f":"J44+J48","v":0}]
["P0084","Množstvo tepelnej energie vyrobenej v zariadení OZE",null,null,null,"S príznakom","MWh/rok",{"$f":"K42+K43+K45+K46+K47","v":0}]
["P0103","Odhadované ročné zníženie emisií skleníkových plynov",null,null,null,"S príznakom"," t ekviv. CO2/rok",{"$f":"E67-F67","v":0}]
["P0250","Počet opatrení na zníženie spotreby energie realizovaných vo verejnej budove",null,null,null,"Bez príznaku","počet",{"$f":"E29","v":0}]
["P0470","Počet verej. budov na úrovni nízkoenerg. / ultranízkoenerg. alebo s takmer nul. potrebou energie",null,null,null,"Bez príznaku","počet",1]
["P0612","Podlahová plocha budov obnovených nad rámec minimálnych požiadaviek",null,null,null,"Bez príznaku","m2",{"$f":"F39","v":0}]
["P0627","Spotreba energie v budove po realizácii opatrení energetickej efektívnosti",null,null,null,"S príznakom","MWh/rok",{"$f":"H82*(F38*F39)/(E38*E39)","v":{"$error":"#DIV/0!"}}]
["P0628","Spotreba energie v budove pred realizáciou opatrení energetickej efektívnosti",null,null,null,"S príznakom","MWh/rok",{"$f":"H62","v":0}]
["P0687","Zníženie konečnej spotreby energie vo verejných budovách",null,null,null,"S príznakom","kWh/rok",{"$f":"(H82-H81)*1000","v":{"$error":"#DIV/0!"}}]
["P0689","Zníženie potreby energie vo verejných budovách",null,null,null,"S príznakom","kWh/rok",{"$f":"(E38*E39)-(F38*F39)","v":0}]
["P0691","Zníženie produkcie emisií NOx",null,null,null,"S príznakom","kg/rok",{"$f":"E68-F68","v":0}]
["P0692","Zníženie produkcie emisií PM10",null,null,null,"S príznakom","kg/rok",{"$f":"E69-F69","v":0}]
["P0694","Zníženie produkcie emisií SO2",null,null,null,"S príznakom","kg/rok",{"$f":"E70-F70","v":0}]
["P0701","Zníženie ročnej spotreby primárnej energie vo verejných budovách",null,null,null,"S príznakom","kWh/rok",{"$f":"I62","v":{"$error":"#DIV/0!"}}]
["P0705","Zvýšená kapacita výroby elektriny z obnoviteľných zdrojov",null,null,null,"Bez príznaku","MWe",{"$f":"L44+L48","v":0}]
["P0706","Zvýšená kapacita výroby energie z obnoviteľných zdrojov",null,null,null,"Bez príznaku","MW",{"$f":"H89+H91","v":0}]
["P0707","Zvýšená kapacita výroby tepla z obnoviteľných zdrojov",null,null,null,"Bez príznaku","MWt",{"$f":"M42+M43+M45+M46+M47","v":0}]

{"sheet":"MU Budova 5","index":14,"n_rows":91,"n_cols":15,"rows_kept":91,"cut":false,"hidden":true,"merged":[[12,8,12,12],[32,8,32,12],[33,8,33,12],[34,8,34,12],[14,8,15,11],[14,12,15,12],[16,8,17,10],[24,8,24,9],[25,8,25,9],[22,0,22,1],[22,3,22,4],[22,5,22,6],[37,8,37,12],[27,8,27,9],[35,8,35,12],[36,8,36,12],[23,0,23,1],[23,3,23,4],[23,5,23,6],[24,0,24,1],[24,3,24,4],[24,5,24,6],[25,0,25,1],[25,3,25,4],[25,5,25,6],[50,0,50,3],[36,6,36,7],[37,6,37,7],[40,0,40,3],[41,0,41,3],[42,0,42,3],[43,0,43,3],[44,0,44,3],[45,0,45,3],[46,0,46,3],[47,0,47,3],[49,0,49,12],[1,0,1,12],[7,0,7,6],[7,7,7,12],[9,1,9,12],[10,1,10,12],[12,0,12,2],[12,3,12,6],[19,0,19,1],[19,3,19,4],[19,5,19,6],[14,0,14,5],[15,0,15,5],[16,0,16,5],[17,0,17,5],[20,0,20,1],[20,3,20,4],[20,5,20,6],[35,6,35,7],[27,0,27,3],[27,4,27,6],[28,0,28,3],[28,4,28,6],[30,0,30,12],[31,6,31,7],[32,6,32,7],[33,6,33,7],[34,6,34,7],[21,0,21,1],[21,3,21,4],[21,5,21,6],[73,1,73,4],[74,1,74,4],[75,1,75,4],[76,1,76,4],[77,1,77,4],[67,0,67,1],[68,0,68,1],[69,0,69,1],[72,0,72,2],[72,3,72,7],[63,0,63,3],[90,1,90,4],[79,1,79,4],[80,1,80,4],[81,1,81,4],[82,1,82,4],[83,1,83,4],[84,1,84,4],[85,1,85,4],[86,1,86,4],[87,1,87,4],[88,1,88,4],[89,1,89,4],[78,1,78,4],[65,0,65,3],[66,0,66,1]]}
[]
["Príloha ŽoNFP č. 6 - Dokumentácia k oprávnenosti výdavkov"]
[]
[]
[]
[]
[]
["Merateľné ukazovateľe  -  Budova č. 5",null,null,null,null,null,null,{"$f":"IF('Rozpočet B5'!G12=\"\",\"\",\" -  súpis. č. \"&'Rozpočet B5'!G12)","v":""}]
[]
["Názov žiadateľa:",{"$f":"IF('Rozpočet B1 - Value for Money'!B9:O9=\"\",\"\",'Rozpočet B1 - Value for Money'!B9:O9)","v":"Obec Podhorany"}]
["Názov projektu:",{"$f":"IF('Rozpočet B1 - Value for Money'!B10:O10=\"\",\"\",'Rozpočet B1 - Value for Money'!B10:O10)","v":"Stavebné úpravy ZŠ Podhorany Zníženie spotreby energie pri prevádzke "}]
[]
["Využitie budovy ",null,null,{"$f":"IFERROR(IF(H82/(E64)>=0.75,Číselníky!C20,Číselníky!C19),\"\")","v":""},null,null,null,null,{"$f":"IF(OR(O15=0,O16=0,O17=0,O18=0,O19=0),\"Minimálne jedna podmienka výzvy nie je splnená (riadky 15-18)\",IF(K25<30,\"Podmienka plánovanej úspory potreby energie na vykurovanie nie je splnená\",\"\"))","v":""},null,null,null,null,null,{"$f":"IF(D13=Číselníky!C19,0,1)","v":1}]
[]
["Bude budova preukázateľne dlhodobo využívaná verejným sektorom bez zmeny charakteru jej využitia v zmysle výzvy?",null,null,null,null,null,null,null,"Ak je budova pripojená k účinným (efektívnym) systémom centralizovaného zásobovania teplom, zostane pripojená aj po ukončení realizácie projektu v zmysle výzvy?",null,null,null,null,null,{"$f":"IF(G15=Číselníky!A3,0,1)","v":1}]
["Bude dosiahnutá plánovaná úspora potreby energie na vykurovanie vo výške min. 30% v zmysle výzvy?",null,null,null,null,null,{"$f":"IF($K$26=\"\",\"\",IF($K$26=100,Číselníky!$A$3,Číselníky!$A$2))","v":""},null,null,null,null,null,null,null,{"$f":"IF(G16=Číselníky!A3,0,1)","v":1}]
["Je hlavná aktivita v súlade so Stratégiou pre redukciu PM10 a programami na zlepšenie kvality ovzdušia v zmysle výzvy?",null,null,null,null,null,null,null,"Ak je súčastou aktivity energetické zariadenie využívajúce biomasu, je a bude využívané?",null,null,"Ku dňu predloženia ŽoNFP","Po ukončení realizácie projektu",null,{"$f":"IF(G17=Číselníky!A3,0,1)","v":1}]
["Ak relevantné, je hlavná aktivita v súlade s Kritériami udržateľného využívania biomasy v zmysle výzvy?",null,null,null,null,null,null,null,null,null,null,null,null,null,{"$f":"IF(G18=Číselníky!A3,0,1)","v":1}]
[null,null,null,null,null,null,null,null,null,null,null,null,null,null,{"$f":"IF(M15=Číselníky!A3,0,1)","v":1}]
["Využívanie verejnej budovy na hospodársku činnosť",null,"Merná jednotka","Stav PRED realizáciou projektu",null,"Stav PO realizácii projektu"]
["Celková podlahová plocha verejnej budovy (v zmysle Príkladu)",null,"[ m2h ]","Uveďte celkovú podlahovú plochu budovy (z vonjakších rozmerov budovy podľa STN 73 0540-2 Tepelná ochrana budov) ku dňu predloženia ŽoNFP a postupujte v zmysle Príkladu",null,"Uveďte celkovú podlahovú plochu budovy (z vonjakších rozmerov budovy podľa STN 73 0540-2 Tepelná ochrana budov) ku dňu predloženia ŽoNFP a postupujte v zmysle Príkladu",null,null,null,null,null,null,null,null,{"$f":"IF(ISNUMBER(F21),1,0)","v":0}]
["Podlahová plocha využívaná na sprievodnú hospodársku činnosť v rámci definície zmiešaného využitia budovy (v zmysle Príkladu)",null,"[ m2h ]","Uveďte podlahovú plochu využívanú na hospodársku činnosť v rámci zmiešaného využitia budovy a to ku dňu predloženia ŽoNFP a postupujte v zmysle Príkladu",null,"Uveďte podlahovú plochu využívanú na hospodársku činnosť v rámci zmiešaného využitia budovy a to ku dňu predloženia ŽoNFP a postupujte v zmysle Príkladu",null,null,null,null,null,null,null,null,{"$f":"IF(ISNUMBER(F22),1,0)","v":0}]
["Podlahová plocha využívaná na hospodársku činnosť mimo definície zmiešaného využitia budovy ",null,"[ m2h ]","Uveďte podlahovú plochu využívanú na hospodársku činnosť mimo zmiešaného využitia budovy ku dňu predloženia ŽoNFP ",null,"Uveďte podlahovú plochu využívanú na hospodársku činnosť mimo zmiešaného využitia budovy ku dňu predloženia ŽoNFP ",null,null,null,null,null,null,null,null,{"$f":"IF(ISNUMBER(F23),1,0)","v":0}]
["Podiel podlahovej plochy zmiešaného využitia budovy",null,"[%]",{"$f":"IFERROR((D22/D21)*100,0)","v":0},null,{"$f":"IFERROR((F22/F21)*100,0)","v":0}]
["Podiel podlahovej plochy hospodárskej činnosti budovy",null,"[%]",{"$f":"IFERROR((D23/D21)*100,0)","v":0},null,{"$f":"IFERROR((F23/F21)*100,0)","v":0},null,null,"Plánovaná úspora energie na vykurovanie  [ % ]",null,{"$f":"IF(OR(E33=\"\",F33=\"\"),\"\",((E33-F33)/E33*100))","v":""}]
["Celkové percentuálne zníženie COV ",null,"[%]",0,null,{"$f":"IFERROR(IF(F24>20,SUM(F24:G25),F25),0)","v":0},null,null,"Celkové zníženie OV  [ % ]",null,{"$f":"IF(OR(E33=\"\",F33=\"\"),\"\",IF(K25<30,100,IF(AND(K25>=30,K25<=40),10,IF(AND(K25>=40,K25<=50),5,IF(K25>50,0)))))","v":""}]
[]
["Kategória budovy",null,null,null,null,null,null,null,"Dátum vydania stavebného povolenia"]
["Počet opatrení na zníženie SPOTREBY energie realizovaných v predmetnej budove"]
[]
["Príloha č. 4 - Povolenie na realizáciu projektu\nPríloha č. 5 - Projektová dokumentácia - ENERGETICKÉ HODNOTENIE"]
["Podklady k stanoveniu úspory energie",null,null,null,"Stav PRED realizáciou projektu","Stav PO realizácii projektu","Energetická trieda po realizácii projektu"]
["Potreba energie na vykurovanie",null,null,"[kWh/m2.rok]",null,null,{"$f":"IF(E28=\"\",\"Vyplňte kategóriu budovy\",IF(OR(E28=\"Administratívna budova\",E28=\"Budova škôl a školských zariadení\"),IF(ROUND(F33,0)<=28,\"A\",IF(ROUND(F33,0)<=56,\"B\",IF(ROUND(F33,0)<=84,\"C\",IF(ROUND(F33,0)<=112,\"D\",IF(ROUND(F33,0)<=140,\"E\",IF(ROUND(F33,0)<=168,\"F\",\"G\")))))),\"neoprávnená kategória budovy\"))","v":"Vyplňte kategóriu budovy"},null,{"$f":"IF(OR(G33=\"C\",G33=\"D\",G33=\"E\",G33=\"F\",G33=\"G\"),Číselníky!C19,\"\")","v":""},null,null,null,null,null,{"$f":"IF(I33=Číselníky!C19,0,1)","v":1}]
["Potreba energie na prípravu teplej vody",null,null,"[kWh/m2.rok]",null,null,{"$f":"IF(E28=\"\",\"Vyplňte kategóriu budovy\",IF(E28=\"Administratívna budova\",IF(ROUND(F34,0)<=4,\"A\",IF(ROUND(F34,0)<=8,\"B\",IF(ROUND(F34,0)<=12,\"C\",IF(ROUND(F34,0)<=16,\"D\",IF(ROUND(F34,0)<=20,\"E\",IF(ROUND(F34,0)<=24,\"F\",\"G\")))))),IF(E28=\"Budova škôl a školských zariadení\",IF(ROUND(F34,0)<=6,\"A\",IF(ROUND(F34,0)<=12,\"B\",IF(ROUND(F34,0)<=18,\"C\",IF(ROUND(F34,0)<=24,\"D\",IF(ROUND(F34,0)<=30,\"E\",IF(ROUND(F34,0)<=36,\"F\",\"G\")))))),\"neoprávnená kategória budovy\")))","v":"Vyplňte kategóriu budovy"},null,{"$f":"IF(OR(G34=\"C\",G34=\"D\",G34=\"E\",G34=\"F\",G34=\"G\"),Číselníky!C19,\"\")","v":""},null,null,null,null,null,{"$f":"IF(I34=Číselníky!C19,0,1)","v":1}]
["Potreba energie na nútené vetranie/chladenie",null,null,"[kWh/m2.rok]",null,null,{"$f":"IF(E28=\"\",\"Vyplňte kategóriu budovy\",IF(E28=\"Administratívna budova\",IF(ROUND(F35,0)<=16,\"A\",IF(ROUND(F35,0)<=31,\"B\",IF(ROUND(F35,0)<=45,\"C\",IF(ROUND(F35,0)<=59,\"D\",IF(ROUND(F35,0)<=75,\"E\",IF(ROUND(F35,0)<=90,\"F\",\"G\")))))),IF(E28=\"Budova škôl a školských zariadení\",\"nehodnotí sa\",\"neoprávnená kategória budovy\")))","v":"Vyplňte kategóriu budovy"},null,{"$f":"IF(OR(G35=\"C\",G35=\"D\",G35=\"E\",G35=\"F\",G35=\"G\"),Číselníky!C19,\"\")","v":""},null,null,null,null,null,{"$f":"IF(I35=Číselníky!C19,0,1)","v":1}]
["Potreba energie na osvetlenie",null,null,"[kWh/m2.rok]",null,null,{"$f":"IF(E28=\"\",\"Vyplňte kategóriu budovy\",IF(E28=\"Administratívna budova\",IF(ROUND(F36,0)<=15,\"A\",IF(ROUND(F36,0)<=30,\"B\",IF(ROUND(F36,0)<=38,\"C\",IF(ROUND(F36,0)<=45,\"D\",IF(ROUND(F36,0)<=56,\"E\",IF(ROUND(F36,0)<=68,\"F\",\"G\")))))),IF(E28=\"Budova škôl a školských zariadení\",IF(ROUND(F36,0)<=9,\"A\",IF(ROUND(F36,0)<=18,\"B\",IF(ROUND(F36,0)<=23,\"C\",IF(ROUND(F36,0)<=27,\"D\",IF(ROUND(F36,0)<=34,\"E\",IF(ROUND(F36,0)<=41,\"F\",\"G\")))))),\"neoprávnená kategória budovy\")))","v":"Vyplňte kategóriu budovy"},null,{"$f":"IF(OR(G36=\"C\",G36=\"D\",G36=\"E\",G36=\"F\",G36=\"G\"),Číselníky!C19,\"\")","v":""},null,null,null,null,null,{"$f":"IF(I36=Číselníky!C19,0,1)","v":1}]
["Celková potreba energie",null,null,"[kWh/m2.rok]",{"$f":"SUM(E33:E36)","v":0},{"$f":"SUM(F33:F36)","v":0},{"$f":"IF(E28=\"\",\"Vyplňte kategóriu budovy\",IF(E28=\"Administratívna budova\",IF(ROUND(F37,0)<=63,\"A\",IF(ROUND(F37,0)<=125,\"B\",IF(ROUND(F37,0)<=179,\"C\",IF(ROUND(F37,0)<=232,\"D\",IF(ROUND(F37,0)<=291,\"E\",IF(ROUND(F37,0)<=350,\"F\",\"G\")))))),IF(E28=\"Budova škôl a školských zariadení\",IF(ROUND(F37,0)<=43,\"A\",IF(ROUND(F37,0)<=86,\"B\",IF(ROUND(F37,0)<=125,\"C\",IF(ROUND(F37,0)<=163,\"D\",IF(ROUND(F37,0)<=204,\"E\",IF(ROUND(F37,0)<=245,\"F\",\"G\")))))),\"neoprávnená kategória budovy\")))","v":"Vyplňte kategóriu budovy"},null,{"$f":"IF(OR(G37=\"C\",G37=\"D\",G37=\"E\",G37=\"F\",G37=\"G\"),Číselníky!C19,\"\")","v":""},null,null,null,null,null,{"$f":"IF(I37=Číselníky!C19,0,1)","v":1}]
["Globálny ukazovateľ - Primárna energia",null,null,"[kWh/m2.rok]",null,null,{"$f":"IF(OR(E28=\"\",K28=\"\"),\"Vyplňte kategóriu budovy / Dátum stav. pov\",IF(E28=\"Administratívna budova\",IF(ROUND(F38,0)<=61,\"A0\",IF(ROUND(F38,0)<=122,\"A1\",IF(ROUND(F38,0)<=255,\"B\",IF(ROUND(F38,0)<=383,\"C\",IF(ROUND(F38,0)<=511,\"D\",IF(ROUND(F38,0)<=639,\"E\",IF(ROUND(F38,0)<=766,\"F\",\"G\"))))))),IF(E28=\"Budova škôl a školských zariadení\",IF(ROUND(F38,0)<=34,\"A0\",IF(ROUND(F38,0)<=68,\"A1\",IF(ROUND(F38,0)<=136,\"B\",IF(ROUND(F38,0)<=204,\"C\",IF(ROUND(F38,0)<=272,\"D\",IF(ROUND(F38,0)<=340,\"E\",IF(ROUND(F38,0)<=408,\"F\",\"G\"))))))),\"neoprávnená kategória budovy\")))","v":"Vyplňte kategóriu budovy / Dátum stav. pov"},null,{"$f":"IF(OR(G38=\"B\",G38=\"C\",G38=\"D\",G38=\"E\",G38=\"F\",G38=\"G\"),Číselníky!C19,IF((AND(G38=\"A1\",K28>DATEVALUE(\"31.12.2018\"))),\"Projekt. dok. musí obsahovať zdôvodnenie nedosiahnutia hornej hranice energ. triedy A0\",\"\"))","v":""},null,null,null,null,null,{"$f":"IF(I38=Číselníky!C19,0,1)","v":1}]
["Celková podlahová plocha ",null,null,"[m2]"]
[]
["Energetické zariadenia",null,null,null,"Počet kusov","Plocha - Absorpčná  [m2]","Výkon \n[kW]","Výkon na m2 \n[kWh/m2]","Využitelnosť \n[h/rok]","P0080\n [MWh]","P0084 \n[MWh]","P0705 \n[MW]","P0707 \n[MW]"]
["Tepelné čerpadlo - Elektrické",null,null,null,null,null,null,null,1290,null,{"$f":"M42*I42","v":0},null,{"$f":"(E42*G42)/1000","v":0}]
["Tepelné čerpadlo - Plynové",null,null,null,null,null,null,null,1050,null,{"$f":"M43*I43","v":0},null,{"$f":"(E43*G43)/1000","v":0}]
["KVET - Elektrina",null,null,null,null,null,null,null,1290,{"$f":"L44*I44","v":0},null,{"$f":"(E44*G44)/1000","v":0}]
["KVET - Teplo",null,null,null,null,null,null,null,1290,null,{"$f":"M45*I45","v":0},null,{"$f":"(E45*G45)/1000","v":0}]
["Solárny panel Termický plochý",null,null,null,null,null,null,525,null,null,{"$f":"(E46*F46*H46)/1000","v":0},null,{"$f":"K46/1000","v":0}]
["Solárny panel Vákouový",null,null,null,null,null,null,800,null,null,{"$f":"(E47*F47*H47)/1000","v":0},null,{"$f":"K47/1000","v":0}]
["Fotovoltaický panel",null,null,null,null,1,null,null,1000,{"$f":"L48*I48","v":0},null,{"$f":"(E48*F48*G48)/1000","v":0}]
[]
["Príloha č. 8 ŽoNFP - Energetický audit"]
["Prehľad o spotrebe energie pred realizáciou projektu",null,null,null,"Rok N-2","Rok  N-1","Rok N","Priemer","Zníženie spotreby PE"]
["elektrina",null,null,"(MWh)",null,null,null,{"$f":"(E52+F52+G52)/3","v":0},{"$f":"$H$83*H52/$H$62/(0.93*0.99*0.4)","v":{"$error":"#DIV/0!"}}]
["zemný plyn",null,null,"(MWh)",null,null,null,{"$f":"(E53+F53+G53)/3","v":0},{"$f":"$H$83*H53/$H$62/(0.99*0.985)","v":{"$error":"#DIV/0!"}}]
["biomasa, uhlie",null,null,"(MWh)",null,null,null,{"$f":"(E54+F54+G54)/3","v":0},{"$f":"$H$83*H54/$H$62","v":{"$error":"#DIV/0!"}}]
["CZT",null,null,"(MWh)",null,null,null,{"$f":"(E55+F55+G55)/3","v":0},{"$f":"IF(OR(E56=\"\",E57=\"\",E58=\"\",E59=\"\",E60=\"\",E61=\"\"),\"Vyplňte bunky E56 - 61\",$H$83*H55/$H$62/(O56*O57*O58*O59*O60*O61))","v":"Vyplňte bunky E56 - 61"}]
[null,"Účinnosť sekundárneho rozvodu - teplá voda",null,null,null,null,null,null,null,null,null,null,null,null,{"$f":"IF(E56=\"áno\",0.94,1)","v":1}]
[null,"Účinnosť OST ",null,null,null,null,null,null,null,null,null,null,null,null,{"$f":"IF(E57=\"áno\",0.985,1)","v":1}]
[null,"Účinnosť účinnosť primárneho rozvodu - teplá voda",null,null,null,null,null,null,null,null,null,null,null,null,{"$f":"IF(E58=\"áno\",0.925,1)","v":1}]
[null,"Účinnosť OST - horúca - teplá voda",null,null,null,null,null,null,null,null,null,null,null,null,{"$f":"IF(E59=\"áno\",0.985,1)","v":1}]
[null,"Účinnosť primárneho rozvodu - horúca voda",null,null,null,null,null,null,null,null,null,null,null,null,{"$f":"IF(E60=\"áno\",0.9,1)","v":1}]
[null,"Účinnosť premeny energie",null,null,null,null,null,null,null,null,null,null,null,null,{"$f":"IF(E61=\"áno\",0.88,1)","v":1}]
["Spotreba energie SPOLU",null,null,"(MWh)",{"$f":"SUM(E52:E55)","v":0},{"$f":"SUM(F52:F55)","v":0},{"$f":"SUM(G52:G55)","v":0},{"$f":"SUM(H52:H55)","v":0},{"$f":"SUM(I52:I55)","v":{"$error":"#DIV/0!"}}]
[]
["Celková potreba energie pred realizáciou projektu vypočítaná projektovým energetickým hodnotením",null,null,null,null,"MWh/rok"]
[]
["Environmentálne hodnotenie",null,null,null,"Stav PRED realizáciou projektu","Stav PO realizácii projektu"]
["CO2",null,null,"ton"]
["NOx",null,null,"kg"]
["TZL/PM10",null,null,"kg"]
["SO2",null,null,"kg"]
[]
[]
["Merateľné ukazovatele  Budova č. 5",null,null,{"$f":"IF('Rozpočet B5'!G12=\"\",\"\",\" -  súpis. č. \"&'Rozpočet B5'!G12)","v":""}]
["Názov MU","Názov Merateľného ukazovatela",null,null,null,"Príznak rizika","Merná jednotka","Výsledná hodnota"]
["P0080","Množstvo elektrickej energie vyrobenej v zariadení OZE",null,null,null,"S príznakom","MWh/rok",{"$f":"J44+J48","v":0}]
["P0084","Množstvo tepelnej energie vyrobenej v zariadení OZE",null,null,null,"S príznakom","MWh/rok",{"$f":"K42+K43+K45+K46+K47","v":0}]
["P0103","Odhadované ročné zníženie emisií skleníkových plynov",null,null,null,"S príznakom"," t ekviv. CO2/rok",{"$f":"E67-F67","v":0}]
["P0250","Počet opatrení na zníženie spotreby energie realizovaných vo verejnej budove",null,null,null,"Bez príznaku","počet",{"$f":"E29","v":0}]
["P0470","Počet verej. budov na úrovni nízkoenerg. / ultranízkoenerg. alebo s takmer nul. potrebou energie",null,null,null,"Bez príznaku","počet",1]
["P0612","Podlahová plocha budov obnovených nad rámec minimálnych požiadaviek",null,null,null,"Bez príznaku","m2",{"$f":"F39","v":0}]
["P0627","Spotreba energie v budove po realizácii opatrení energetickej efektívnosti",null,null,null,"S príznakom","MWh/rok",{"$f":"H82*(F38*F39)/(E38*E39)","v":{"$error":"#DIV/0!"}}]
["P0628","Spotreba energie v budove pred realizáciou opatrení energetickej efektívnosti",null,null,null,"S príznakom","MWh/rok",{"$f":"H62","v":0}]
["P0687","Zníženie konečnej spotreby energie vo verejných budovách",null,null,null,"S príznakom","kWh/rok",{"$f":"(H82-H81)*1000","v":{"$error":"#DIV/0!"}}]
["P0689","Zníženie potreby energie vo verejných budovách",null,null,null,"S príznakom","kWh/rok",{"$f":"(E38*E39)-(F38*F39)","v":0}]
["P0691","Zníženie produkcie emisií NOx",null,null,null,"S príznakom","kg/rok",{"$f":"E68-F68","v":0}]
["P0692","Zníženie produkcie emisií PM10",null,null,null,"S príznakom","kg/rok",{"$f":"E69-F69","v":0}]
["P0694","Zníženie produkcie emisií SO2",null,null,null,"S príznakom","kg/rok",{"$f":"E70-F70","v":0}]
["P0701","Zníženie ročnej spotreby primárnej energie vo verejných budovách",null,null,null,"S príznakom","kWh/rok",{"$f":"I62","v":{"$error":"#DIV/0!"}}]
["P0705","Zvýšená kapacita výroby elektriny z obnoviteľných zdrojov",null,null,null,"Bez príznaku","MWe",{"$f":"L44+L48","v":0}]
["P0706","Zvýšená kapacita výroby energie z obnoviteľných zdrojov",null,null,null,"Bez príznaku","MW",{"$f":"H89+H91","v":0}]
["P0707","Zvýšená kapacita výroby tepla z obnoviteľných zdrojov",null,null,null,"Bez príznaku","MWt",{"$f":"M42+M43+M45+M46+M47","v":0}]

{"sheet":"MU Budova 6","index":15,"n_rows":91,"n_cols":15,"rows_kept":91,"cut":false,"hidden":true,"merged":[[46,0,46,3],[47,0,47,3],[49,0,49,12],[14,0,14,5],[14,8,15,11],[14,12,15,12],[15,0,15,5],[16,0,16,5],[16,8,17,10],[17,0,17,5],[24,0,24,1],[24,3,24,4],[24,5,24,6],[35,8,35,12],[36,8,36,12],[37,8,37,12],[63,0,63,3],[25,0,25,1],[25,3,25,4],[25,5,25,6],[50,0,50,3],[36,6,36,7],[37,6,37,7],[40,0,40,3],[41,0,41,3],[42,0,42,3],[43,0,43,3],[44,0,44,3],[45,0,45,3],[35,6,35,7],[27,0,27,3],[27,4,27,6],[90,1,90,4],[79,1,79,4],[80,1,80,4],[81,1,81,4],[82,1,82,4],[83,1,83,4],[84,1,84,4],[85,1,85,4],[86,1,86,4],[87,1,87,4],[88,1,88,4],[89,1,89,4],[78,1,78,4],[65,0,65,3],[66,0,66,1],[67,0,67,1],[68,0,68,1],[69,0,69,1],[72,0,72,2],[72,3,72,7],[73,1,73,4],[74,1,74,4],[75,1,75,4],[76,1,76,4],[77,1,77,4],[28,0,28,3],[28,4,28,6],[30,0,30,12],[27,8,27,9],[31,6,31,7],[20,5,20,6],[32,6,32,7],[33,6,33,7],[34,6,34,7],[32,8,32,12],[33,8,33,12],[34,8,34,12],[24,8,24,9],[25,8,25,9],[23,0,23,1],[23,3,23,4],[23,5,23,6],[12,0,12,2],[12,3,12,6],[21,0,21,1],[21,3,21,4],[21,5,21,6],[22,0,22,1],[22,3,22,4],[22,5,22,6],[19,0,19,1],[19,3,19,4],[19,5,19,6],[20,0,20,1],[20,3,20,4],[12,8,12,12],[1,0,1,12],[7,0,7,6],[7,7,7,12],[9,1,9,12],[10,1,10,12]]}
[]
["Príloha ŽoNFP č. 6 - Dokumentácia k oprávnenosti výdavkov"]
[]
[]
[]
[]
[]
["Merateľné ukazovateľe  -  Budova č. 6",null,null,null,null,null,null,{"$f":"IF('Rozpočet B6'!G12=\"\",\"\",\" -  súpis. č. \"&'Rozpočet B6'!G12)","v":""}]
[]
["Názov žiadateľa:",{"$f":"IF('Rozpočet B1 - Value for Money'!B9:O9=\"\",\"\",'Rozpočet B1 - Value for Money'!B9:O9)","v":"Obec Podhorany"}]
["Názov projektu:",{"$f":"IF('Rozpočet B1 - Value for Money'!B10:O10=\"\",\"\",'Rozpočet B1 - Value for Money'!B10:O10)","v":"Stavebné úpravy ZŠ Podhorany Zníženie spotreby energie pri prevádzke "}]
[]
["Využitie budovy ",null,null,{"$f":"IFERROR(IF(H82/(E64)>=0.75,Číselníky!C20,Číselníky!C19),\"\")","v":""},null,null,null,null,{"$f":"IF(OR(O15=0,O16=0,O17=0,O18=0,O19=0),\"Minimálne jedna podmienka výzvy nie je splnená (riadky 15-18)\",IF(K25<30,\"Podmienka plánovanej úspory potreby energie na vykurovanie nie je splnená\",\"\"))","v":""},null,null,null,null,null,{"$f":"IF(D13=Číselníky!C19,0,1)","v":1}]
[]
["Bude budova preukázateľne dlhodobo využívaná verejným sektorom bez zmeny charakteru jej využitia v zmysle výzvy?",null,null,null,null,null,null,null,"Ak je budova pripojená k účinným (efektívnym) systémom centralizovaného zásobovania teplom, zostane pripojená aj po ukončení realizácie projektu v zmysle výzvy?",null,null,null,null,null,{"$f":"IF(G15=Číselníky!A3,0,1)","v":1}]
["Bude dosiahnutá plánovaná úspora potreby energie na vykurovanie vo výške min. 30% v zmysle výzvy?",null,null,null,null,null,{"$f":"IF($K$26=\"\",\"\",IF($K$26=100,Číselníky!$A$3,Číselníky!$A$2))","v":""},null,null,null,null,null,null,null,{"$f":"IF(G16=Číselníky!A3,0,1)","v":1}]
["Je hlavná aktivita v súlade so Stratégiou pre redukciu PM10 a programami na zlepšenie kvality ovzdušia v zmysle výzvy?",null,null,null,null,null,null,null,"Ak je súčastou aktivity energetické zariadenie využívajúce biomasu, je a bude využívané?",null,null,"Ku dňu predloženia ŽoNFP","Po ukončení realizácie projektu",null,{"$f":"IF(G17=Číselníky!A3,0,1)","v":1}]
["Ak relevantné, je hlavná aktivita v súlade s Kritériami udržateľného využívania biomasy v zmysle výzvy?",null,null,null,null,null,null,null,null,null,null,null,null,null,{"$f":"IF(G18=Číselníky!A3,0,1)","v":1}]
[null,null,null,null,null,null,null,null,null,null,null,null,null,null,{"$f":"IF(M15=Číselníky!A3,0,1)","v":1}]
["Využívanie verejnej budovy na hospodársku činnosť",null,"Merná jednotka","Stav PRED realizáciou projektu",null,"Stav PO realizácii projektu"]
["Celková podlahová plocha verejnej budovy (v zmysle Príkladu)",null,"[ m2h ]","Uveďte celkovú podlahovú plochu budovy (z vonjakších rozmerov budovy podľa STN 73 0540-2 Tepelná ochrana budov) ku dňu predloženia ŽoNFP a postupujte v zmysle Príkladu",null,"Uveďte celkovú podlahovú plochu budovy (z vonjakších rozmerov budovy podľa STN 73 0540-2 Tepelná ochrana budov) ku dňu predloženia ŽoNFP a postupujte v zmysle Príkladu",null,null,null,null,null,null,null,null,{"$f":"IF(ISNUMBER(F21),1,0)","v":0}]
["Podlahová plocha využívaná na sprievodnú hospodársku činnosť v rámci definície zmiešaného využitia budovy (v zmysle Príkladu)",null,"[ m2h ]","Uveďte podlahovú plochu využívanú na hospodársku činnosť v rámci zmiešaného využitia budovy a to ku dňu predloženia ŽoNFP a postupujte v zmysle Príkladu",null,"Uveďte podlahovú plochu využívanú na hospodársku činnosť v rámci zmiešaného využitia budovy a to ku dňu predloženia ŽoNFP a postupujte v zmysle Príkladu",null,null,null,null,null,null,null,null,{"$f":"IF(ISNUMBER(F22),1,0)","v":0}]
["Podlahová plocha využívaná na hospodársku činnosť mimo definície zmiešaného využitia budovy ",null,"[ m2h ]","Uveďte podlahovú plochu využívanú na hospodársku činnosť mimo zmiešaného využitia budovy ku dňu predloženia ŽoNFP ",null,"Uveďte podlahovú plochu využívanú na hospodársku činnosť mimo zmiešaného využitia budovy ku dňu predloženia ŽoNFP ",null,null,null,null,null,null,null,null,{"$f":"IF(ISNUMBER(F23),1,0)","v":0}]
["Podiel podlahovej plochy zmiešaného využitia budovy",null,"[%]",{"$f":"IFERROR((D22/D21)*100,0)","v":0},null,{"$f":"IFERROR((F22/F21)*100,0)","v":0}]
["Podiel podlahovej plochy hospodárskej činnosti budovy",null,"[%]",{"$f":"IFERROR((D23/D21)*100,0)","v":0},null,{"$f":"IFERROR((F23/F21)*100,0)","v":0},null,null,"Plánovaná úspora energie na vykurovanie  [ % ]",null,{"$f":"IF(OR(E33=\"\",F33=\"\"),\"\",((E33-F33)/E33*100))","v":""}]
["Celkové percentuálne zníženie COV ",null,"[%]",0,null,{"$f":"IFERROR(IF(F24>20,SUM(F24:G25),F25),0)","v":0},null,null,"Celkové zníženie OV  [ % ]",null,{"$f":"IF(OR(E33=\"\",F33=\"\"),\"\",IF(K25<30,100,IF(AND(K25>=30,K25<=40),10,IF(AND(K25>=40,K25<=50),5,IF(K25>50,0)))))","v":""}]
[]
["Kategória budovy",null,null,null,null,null,null,null,"Dátum vydania stavebného povolenia"]
["Počet opatrení na zníženie SPOTREBY energie realizovaných v predmetnej budove"]
[]
["Príloha č. 4 - Povolenie na realizáciu projektu \nPríloha č. 5 - Projektová dokumentácia - ENERGETICKÉ HODNOTENIE"]
["Podklady k stanoveniu úspory energie",null,null,null,"Stav PRED realizáciou projektu","Stav PO realizácii projektu","Energetická trieda po realizácii projektu"]
["Potreba energie na vykurovanie",null,null,"[kWh/m2.rok]",null,null,{"$f":"IF(E28=\"\",\"Vyplňte kategóriu budovy\",IF(OR(E28=\"Administratívna budova\",E28=\"Budova škôl a školských zariadení\"),IF(ROUND(F33,0)<=28,\"A\",IF(ROUND(F33,0)<=56,\"B\",IF(ROUND(F33,0)<=84,\"C\",IF(ROUND(F33,0)<=112,\"D\",IF(ROUND(F33,0)<=140,\"E\",IF(ROUND(F33,0)<=168,\"F\",\"G\")))))),\"neoprávnená kategória budovy\"))","v":"Vyplňte kategóriu budovy"},null,{"$f":"IF(OR(G33=\"C\",G33=\"D\",G33=\"E\",G33=\"F\",G33=\"G\"),Číselníky!C19,\"\")","v":""},null,null,null,null,null,{"$f":"IF(I33=Číselníky!C19,0,1)","v":1}]
["Potreba energie na prípravu teplej vody",null,null,"[kWh/m2.rok]",null,null,{"$f":"IF(E28=\"\",\"Vyplňte kategóriu budovy\",IF(E28=\"Administratívna budova\",IF(ROUND(F34,0)<=4,\"A\",IF(ROUND(F34,0)<=8,\"B\",IF(ROUND(F34,0)<=12,\"C\",IF(ROUND(F34,0)<=16,\"D\",IF(ROUND(F34,0)<=20,\"E\",IF(ROUND(F34,0)<=24,\"F\",\"G\")))))),IF(E28=\"Budova škôl a školských zariadení\",IF(ROUND(F34,0)<=6,\"A\",IF(ROUND(F34,0)<=12,\"B\",IF(ROUND(F34,0)<=18,\"C\",IF(ROUND(F34,0)<=24,\"D\",IF(ROUND(F34,0)<=30,\"E\",IF(ROUND(F34,0)<=36,\"F\",\"G\")))))),\"neoprávnená kategória budovy\")))","v":"Vyplňte kategóriu budovy"},null,{"$f":"IF(OR(G34=\"C\",G34=\"D\",G34=\"E\",G34=\"F\",G34=\"G\"),Číselníky!C19,\"\")","v":""},null,null,null,null,null,{"$f":"IF(I34=Číselníky!C19,0,1)","v":1}]
["Potreba energie na nútené vetranie/chladenie",null,null,"[kWh/m2.rok]",null,null,{"$f":"IF(E28=\"\",\"Vyplňte kategóriu budovy\",IF(E28=\"Administratívna budova\",IF(ROUND(F35,0)<=16,\"A\",IF(ROUND(F35,0)<=31,\"B\",IF(ROUND(F35,0)<=45,\"C\",IF(ROUND(F35,0)<=59,\"D\",IF(ROUND(F35,0)<=75,\"E\",IF(ROUND(F35,0)<=90,\"F\",\"G\")))))),IF(E28=\"Budova škôl a školských zariadení\",\"nehodnotí sa\",\"neoprávnená kategória budovy\")))","v":"Vyplňte kategóriu budovy"},null,{"$f":"IF(OR(G35=\"C\",G35=\"D\",G35=\"E\",G35=\"F\",G35=\"G\"),Číselníky!C19,\"\")","v":""},null,null,null,null,null,{"$f":"IF(I35=Číselníky!C19,0,1)","v":1}]
["Potreba energie na osvetlenie",null,null,"[kWh/m2.rok]",null,null,{"$f":"IF(E28=\"\",\"Vyplňte kategóriu budovy\",IF(E28=\"Administratívna budova\",IF(ROUND(F36,0)<=15,\"A\",IF(ROUND(F36,0)<=30,\"B\",IF(ROUND(F36,0)<=38,\"C\",IF(ROUND(F36,0)<=45,\"D\",IF(ROUND(F36,0)<=56,\"E\",IF(ROUND(F36,0)<=68,\"F\",\"G\")))))),IF(E28=\"Budova škôl a školských zariadení\",IF(ROUND(F36,0)<=9,\"A\",IF(ROUND(F36,0)<=18,\"B\",IF(ROUND(F36,0)<=23,\"C\",IF(ROUND(F36,0)<=27,\"D\",IF(ROUND(F36,0)<=34,\"E\",IF(ROUND(F36,0)<=41,\"F\",\"G\")))))),\"neoprávnená kategória budovy\")))","v":"Vyplňte kategóriu budovy"},null,{"$f":"IF(OR(G36=\"C\",G36=\"D\",G36=\"E\",G36=\"F\",G36=\"G\"),Číselníky!C19,\"\")","v":""},null,null,null,null,null,{"$f":"IF(I36=Číselníky!C19,0,1)","v":1}]
["Celková potreba energie",null,null,"[kWh/m2.rok]",{"$f":"SUM(E33:E36)","v":0},{"$f":"SUM(F33:F36)","v":0},{"$f":"IF(E28=\"\",\"Vyplňte kategóriu budovy\",IF(E28=\"Administratívna budova\",IF(ROUND(F37,0)<=63,\"A\",IF(ROUND(F37,0)<=125,\"B\",IF(ROUND(F37,0)<=179,\"C\",IF(ROUND(F37,0)<=232,\"D\",IF(ROUND(F37,0)<=291,\"E\",IF(ROUND(F37,0)<=350,\"F\",\"G\")))))),IF(E28=\"Budova škôl a školských zariadení\",IF(ROUND(F37,0)<=43,\"A\",IF(ROUND(F37,0)<=86,\"B\",IF(ROUND(F37,0)<=125,\"C\",IF(ROUND(F37,0)<=163,\"D\",IF(ROUND(F37,0)<=204,\"E\",IF(ROUND(F37,0)<=245,\"F\",\"G\")))))),\"neoprávnená kategória budovy\")))","v":"Vyplňte kategóriu budovy"},null,{"$f":"IF(OR(G37=\"C\",G37=\"D\",G37=\"E\",G37=\"F\",G37=\"G\"),Číselníky!C19,\"\")","v":""},null,null,null,null,null,{"$f":"IF(I37=Číselníky!C19,0,1)","v":1}]
["Globálny ukazovateľ - Primárna energia",null,null,"[kWh/m2.rok]",null,null,{"$f":"IF(OR(E28=\"\",K28=\"\"),\"Vyplňte kategóriu budovy / Dátum stav. pov\",IF(E28=\"Administratívna budova\",IF(ROUND(F38,0)<=61,\"A0\",IF(ROUND(F38,0)<=122,\"A1\",IF(ROUND(F38,0)<=255,\"B\",IF(ROUND(F38,0)<=383,\"C\",IF(ROUND(F38,0)<=511,\"D\",IF(ROUND(F38,0)<=639,\"E\",IF(ROUND(F38,0)<=766,\"F\",\"G\"))))))),IF(E28=\"Budova škôl a školských zariadení\",IF(ROUND(F38,0)<=34,\"A0\",IF(ROUND(F38,0)<=68,\"A1\",IF(ROUND(F38,0)<=136,\"B\",IF(ROUND(F38,0)<=204,\"C\",IF(ROUND(F38,0)<=272,\"D\",IF(ROUND(F38,0)<=340,\"E\",IF(ROUND(F38,0)<=408,\"F\",\"G\"))))))),\"neoprávnená kategória budovy\")))","v":"Vyplňte kategóriu budovy / Dátum stav. pov"},null,{"$f":"IF(OR(G38=\"B\",G38=\"C\",G38=\"D\",G38=\"E\",G38=\"F\",G38=\"G\"),Číselníky!C19,IF((AND(G38=\"A1\",K28>DATEVALUE(\"31.12.2018\"))),\"Projekt. dok. musí obsahovať zdôvodnenie nedosiahnutia hornej hranice energ. triedy A0\",\"\"))","v":""},null,null,null,null,null,{"$f":"IF(I38=Číselníky!C19,0,1)","v":1}]
["Celková podlahová plocha ",null,null,"[m2]"]
[]
["Energetické zariadenia",null,null,null,"Počet kusov","Plocha - Absorpčná  [m2]","Výkon \n[kW]","Výkon na m2 \n[kWh/m2]","Využitelnosť \n[h/rok]","P0080\n [MWh]","P0084 \n[MWh]","P0705 \n[MW]","P0707 \n[MW]"]
["Tepelné čerpadlo - Elektrické",null,null,null,null,null,null,null,1290,null,{"$f":"M42*I42","v":0},null,{"$f":"(E42*G42)/1000","v":0}]
["Tepelné čerpadlo - Plynové",null,null,null,null,null,null,null,1050,null,{"$f":"M43*I43","v":0},null,{"$f":"(E43*G43)/1000","v":0}]
["KVET - Elektrina",null,null,null,null,null,null,null,1290,{"$f":"L44*I44","v":0},null,{"$f":"(E44*G44)/1000","v":0}]
["KVET - Teplo",null,null,null,null,null,null,null,1290,null,{"$f":"M45*I45","v":0},null,{"$f":"(E45*G45)/1000","v":0}]
["Solárny panel Termický plochý",null,null,null,null,null,null,525,null,null,{"$f":"(E46*F46*H46)/1000","v":0},null,{"$f":"K46/1000","v":0}]
["Solárny panel Vákouový",null,null,null,null,null,null,800,null,null,{"$f":"(E47*F47*H47)/1000","v":0},null,{"$f":"K47/1000","v":0}]
["Fotovoltaický panel",null,null,null,null,1,null,null,1000,{"$f":"L48*I48","v":0},null,{"$f":"(E48*F48*G48)/1000","v":0}]
[]
["Príloha č. 8 ŽoNFP - Energetický audit"]
["Prehľad o spotrebe energie pred realizáciou projektu",null,null,null,"Rok N-2","Rok  N-1","Rok N","Priemer","Zníženie spotreby PE"]
["elektrina",null,null,"(MWh)",null,null,null,{"$f":"(E52+F52+G52)/3","v":0},{"$f":"$H$83*H52/$H$62/(0.93*0.99*0.4)","v":{"$error":"#DIV/0!"}}]
["zemný plyn",null,null,"(MWh)",null,null,null,{"$f":"(E53+F53+G53)/3","v":0},{"$f":"$H$83*H53/$H$62/(0.99*0.985)","v":{"$error":"#DIV/0!"}}]
["biomasa, uhlie",null,null,"(MWh)",null,null,null,{"$f":"(E54+F54+G54)/3","v":0},{"$f":"$H$83*H54/$H$62","v":{"$error":"#DIV/0!"}}]
["CZT",null,null,"(MWh)",null,null,null,{"$f":"(E55+F55+G55)/3","v":0},{"$f":"IF(OR(E56=\"\",E57=\"\",E58=\"\",E59=\"\",E60=\"\",E61=\"\"),\"Vyplňte bunky E56 - 61\",$H$83*H55/$H$62/(O56*O57*O58*O59*O60*O61))","v":"Vyplňte bunky E56 - 61"}]
[null,"Účinnosť sekundárneho rozvodu - teplá voda",null,null,null,null,null,null,null,null,null,null,null,null,{"$f":"IF(E56=\"áno\",0.94,1)","v":1}]
[null,"Účinnosť OST ",null,null,null,null,null,null,null,null,null,null,null,null,{"$f":"IF(E57=\"áno\",0.985,1)","v":1}]
[null,"Účinnosť účinnosť primárneho rozvodu - teplá voda",null,null,null,null,null,null,null,null,null,null,null,null,{"$f":"IF(E58=\"áno\",0.925,1)","v":1}]
[null,"Účinnosť OST - horúca - teplá voda",null,null,null,null,null,null,null,null,null,null,null,null,{"$f":"IF(E59=\"áno\",0.985,1)","v":1}]
[null,"Účinnosť primárneho rozvodu - horúca voda",null,null,null,null,null,null,null,null,null,null,null,null,{"$f":"IF(E60=\"áno\",0.9,1)","v":1}]
[null,"Účinnosť premeny energie",null,null,null,null,null,null,null,null,null,null,null,null,{"$f":"IF(E61=\"áno\",0.88,1)","v":1}]
["Spotreba energie SPOLU",null,null,"(MWh)",{"$f":"SUM(E52:E55)","v":0},{"$f":"SUM(F52:F55)","v":0},{"$f":"SUM(G52:G55)","v":0},{"$f":"SUM(H52:H55)","v":0},{"$f":"SUM(I52:I55)","v":{"$error":"#DIV/0!"}}]
[]
["Celková potreba energie pred realizáciou projektu vypočítaná projektovým energetickým hodnotením",null,null,null,null,"MWh/rok"]
[]
["Environmentálne hodnotenie",null,null,null,"Stav PRED realizáciou projektu","Stav PO realizácii projektu"]
["CO2",null,null,"ton"]
["NOx",null,null,"kg"]
["TZL/PM10",null,null,"kg"]
["SO2",null,null,"kg"]
[]
[]
["Merateľné ukazovatele  Budova č. 6",null,null,{"$f":"IF('Rozpočet B6'!G12=\"\",\"\",\" -  súpis. č. \"&'Rozpočet B6'!G12)","v":""}]
["Názov MU","Názov Merateľného ukazovatela",null,null,null,"Príznak rizika","Merná jednotka","Výsledná hodnota"]
["P0080","Množstvo elektrickej energie vyrobenej v zariadení OZE",null,null,null,"S príznakom","MWh/rok",{"$f":"J44+J48","v":0}]
["P0084","Množstvo tepelnej energie vyrobenej v zariadení OZE",null,null,null,"S príznakom","MWh/rok",{"$f":"K42+K43+K45+K46+K47","v":0}]
["P0103","Odhadované ročné zníženie emisií skleníkových plynov",null,null,null,"S príznakom"," t ekviv. CO2/rok",{"$f":"E67-F67","v":0}]
["P0250","Počet opatrení na zníženie spotreby energie realizovaných vo verejnej budove",null,null,null,"Bez príznaku","počet",{"$f":"E29","v":0}]
["P0470","Počet verej. budov na úrovni nízkoenerg. / ultranízkoenerg. alebo s takmer nul. potrebou energie",null,null,null,"Bez príznaku","počet",1]
["P0612","Podlahová plocha budov obnovených nad rámec minimálnych požiadaviek",null,null,null,"Bez príznaku","m2",{"$f":"F39","v":0}]
["P0627","Spotreba energie v budove po realizácii opatrení energetickej efektívnosti",null,null,null,"S príznakom","MWh/rok",{"$f":"H82*(F38*F39)/(E38*E39)","v":{"$error":"#DIV/0!"}}]
["P0628","Spotreba energie v budove pred realizáciou opatrení energetickej efektívnosti",null,null,null,"S príznakom","MWh/rok",{"$f":"H62","v":0}]
["P0687","Zníženie konečnej spotreby energie vo verejných budovách",null,null,null,"S príznakom","kWh/rok",{"$f":"(H82-H81)*1000","v":{"$error":"#DIV/0!"}}]
["P0689","Zníženie potreby energie vo verejných budovách",null,null,null,"S príznakom","kWh/rok",{"$f":"(E38*E39)-(F38*F39)","v":0}]
["P0691","Zníženie produkcie emisií NOx",null,null,null,"S príznakom","kg/rok",{"$f":"E68-F68","v":0}]
["P0692","Zníženie produkcie emisií PM10",null,null,null,"S príznakom","kg/rok",{"$f":"E69-F69","v":0}]
["P0694","Zníženie produkcie emisií SO2",null,null,null,"S príznakom","kg/rok",{"$f":"E70-F70","v":0}]
["P0701","Zníženie ročnej spotreby primárnej energie vo verejných budovách",null,null,null,"S príznakom","kWh/rok",{"$f":"I62","v":{"$error":"#DIV/0!"}}]
["P0705","Zvýšená kapacita výroby elektriny z obnoviteľných zdrojov",null,null,null,"Bez príznaku","MWe",{"$f":"L44+L48","v":0}]
["P0706","Zvýšená kapacita výroby energie z obnoviteľných zdrojov",null,null,null,"Bez príznaku","MW",{"$f":"H89+H91","v":0}]
["P0707","Zvýšená kapacita výroby tepla z obnoviteľných zdrojov",null,null,null,"Bez príznaku","MWt",{"$f":"M42+M43+M45+M46+M47","v":0}]

{"sheet":"MU Budova 7","index":16,"n_rows":91,"n_cols":15,"rows_kept":91,"cut":false,"hidden":true,"merged":[[46,0,46,3],[47,0,47,3],[49,0,49,12],[14,0,14,5],[14,8,15,11],[14,12,15,12],[15,0,15,5],[16,0,16,5],[16,8,17,10],[17,0,17,5],[24,0,24,1],[24,3,24,4],[24,5,24,6],[35,8,35,12],[36,8,36,12],[37,8,37,12],[63,0,63,3],[25,0,25,1],[25,3,25,4],[25,5,25,6],[50,0,50,3],[36,6,36,7],[37,6,37,7],[40,0,40,3],[41,0,41,3],[42,0,42,3],[43,0,43,3],[44,0,44,3],[45,0,45,3],[35,6,35,7],[27,0,27,3],[27,4,27,6],[90,1,90,4],[79,1,79,4],[80,1,80,4],[81,1,81,4],[82,1,82,4],[83,1,83,4],[84,1,84,4],[85,1,85,4],[86,1,86,4],[87,1,87,4],[88,1,88,4],[89,1,89,4],[78,1,78,4],[65,0,65,3],[66,0,66,1],[67,0,67,1],[68,0,68,1],[69,0,69,1],[72,0,72,2],[72,3,72,7],[73,1,73,4],[74,1,74,4],[75,1,75,4],[76,1,76,4],[77,1,77,4],[28,0,28,3],[28,4,28,6],[30,0,30,12],[27,8,27,9],[31,6,31,7],[20,5,20,6],[32,6,32,7],[33,6,33,7],[34,6,34,7],[32,8,32,12],[33,8,33,12],[34,8,34,12],[24,8,24,9],[25,8,25,9],[23,0,23,1],[23,3,23,4],[23,5,23,6],[12,0,12,2],[12,3,12,6],[21,0,21,1],[21,3,21,4],[21,5,21,6],[22,0,22,1],[22,3,22,4],[22,5,22,6],[19,0,19,1],[19,3,19,4],[19,5,19,6],[20,0,20,1],[20,3,20,4],[12,8,12,12],[1,0,1,12],[7,0,7,6],[7,7,7,12],[9,1,9,12],[10,1,10,12]]}
[]
["Príloha ŽoNFP č. 6 - Dokumentácia k oprávnenosti výdavkov"]
[]
[]
[]
[]
[]
["Merateľné ukazovateľe  -  Budova č. 7",null,null,null,null,null,null,{"$f":"IF('Rozpočet B7'!G12=\"\",\"\",\" -  súpis. č. \"&'Rozpočet B7'!G12)","v":""}]
[]
["Názov žiadateľa:",{"$f":"IF('Rozpočet B1 - Value for Money'!B9:O9=\"\",\"\",'Rozpočet B1 - Value for Money'!B9:O9)","v":"Obec Podhorany"}]
["Názov projektu:",{"$f":"IF('Rozpočet B1 - Value for Money'!B10:O10=\"\",\"\",'Rozpočet B1 - Value for Money'!B10:O10)","v":"Stavebné úpravy ZŠ Podhorany Zníženie spotreby energie pri prevádzke "}]
[]
["Využitie budovy ",null,null,{"$f":"IFERROR(IF(H82/(E64)>=0.75,Číselníky!C20,Číselníky!C19),\"\")","v":""},null,null,null,null,{"$f":"IF(OR(O15=0,O16=0,O17=0,O18=0,O19=0),\"Minimálne jedna podmienka výzvy nie je splnená (riadky 15-18)\",IF(K25<30,\"Podmienka plánovanej úspory potreby energie na vykurovanie nie je splnená\",\"\"))","v":""},null,null,null,null,null,{"$f":"IF(D13=Číselníky!C19,0,1)","v":1}]
[]
["Bude budova preukázateľne dlhodobo využívaná verejným sektorom bez zmeny charakteru jej využitia v zmysle výzvy?",null,null,null,null,null,null,null,"Ak je budova pripojená k účinným (efektívnym) systémom centralizovaného zásobovania teplom, zostane pripojená aj po ukončení realizácie projektu v zmysle výzvy?",null,null,null,null,null,{"$f":"IF(G15=Číselníky!A3,0,1)","v":1}]
["Bude dosiahnutá plánovaná úspora potreby energie na vykurovanie vo výške min. 30% v zmysle výzvy?",null,null,null,null,null,{"$f":"IF($K$26=\"\",\"\",IF($K$26=100,Číselníky!$A$3,Číselníky!$A$2))","v":""},null,null,null,null,null,null,null,{"$f":"IF(G16=Číselníky!A3,0,1)","v":1}]
["Je hlavná aktivita v súlade so Stratégiou pre redukciu PM10 a programami na zlepšenie kvality ovzdušia v zmysle výzvy?",null,null,null,null,null,null,null,"Ak je súčastou aktivity energetické zariadenie využívajúce biomasu, je a bude využívané?",null,null,"Ku dňu predloženia ŽoNFP","Po ukončení realizácie projektu",null,{"$f":"IF(G17=Číselníky!A3,0,1)","v":1}]
["Ak relevantné, je hlavná aktivita v súlade s Kritériami udržateľného využívania biomasy v zmysle výzvy?",null,null,null,null,null,null,null,null,null,null,null,null,null,{"$f":"IF(G18=Číselníky!A3,0,1)","v":1}]
[null,null,null,null,null,null,null,null,null,null,null,null,null,null,{"$f":"IF(M15=Číselníky!A3,0,1)","v":1}]
["Využívanie verejnej budovy na hospodársku činnosť",null,"Merná jednotka","Stav PRED realizáciou projektu",null,"Stav PO realizácii projektu"]
["Celková podlahová plocha verejnej budovy (v zmysle Príkladu)",null,"[ m2h ]","Uveďte celkovú podlahovú plochu budovy (z vonjakších rozmerov budovy podľa STN 73 0540-2 Tepelná ochrana budov) ku dňu predloženia ŽoNFP a postupujte v zmysle Príkladu",null,"Uveďte celkovú podlahovú plochu budovy (z vonjakších rozmerov budovy podľa STN 73 0540-2 Tepelná ochrana budov) ku dňu predloženia ŽoNFP a postupujte v zmysle Príkladu",null,null,null,null,null,null,null,null,{"$f":"IF(ISNUMBER(F21),1,0)","v":0}]
["Podlahová plocha využívaná na sprievodnú hospodársku činnosť v rámci definície zmiešaného využitia budovy (v zmysle Príkladu)",null,"[ m2h ]","Uveďte podlahovú plochu využívanú na hospodársku činnosť v rámci zmiešaného využitia budovy a to ku dňu predloženia ŽoNFP a postupujte v zmysle Príkladu",null,"Uveďte podlahovú plochu využívanú na hospodársku činnosť v rámci zmiešaného využitia budovy a to ku dňu predloženia ŽoNFP a postupujte v zmysle Príkladu",null,null,null,null,null,null,null,null,{"$f":"IF(ISNUMBER(F22),1,0)","v":0}]
["Podlahová plocha využívaná na hospodársku činnosť mimo definície zmiešaného využitia budovy ",null,"[ m2h ]","Uveďte podlahovú plochu využívanú na hospodársku činnosť mimo zmiešaného využitia budovy ku dňu predloženia ŽoNFP ",null,"Uveďte podlahovú plochu využívanú na hospodársku činnosť mimo zmiešaného využitia budovy ku dňu predloženia ŽoNFP ",null,null,null,null,null,null,null,null,{"$f":"IF(ISNUMBER(F23),1,0)","v":0}]
["Podiel podlahovej plochy zmiešaného využitia budovy",null,"[%]",{"$f":"IFERROR((D22/D21)*100,0)","v":0},null,{"$f":"IFERROR((F22/F21)*100,0)","v":0}]
["Podiel podlahovej plochy hospodárskej činnosti budovy",null,"[%]",{"$f":"IFERROR((D23/D21)*100,0)","v":0},null,{"$f":"IFERROR((F23/F21)*100,0)","v":0},null,null,"Plánovaná úspora energie na vykurovanie  [ % ]",null,{"$f":"IF(OR(E33=\"\",F33=\"\"),\"\",((E33-F33)/E33*100))","v":""}]
["Celkové percentuálne zníženie COV ",null,"[%]",0,null,{"$f":"IFERROR(IF(F24>20,SUM(F24:G25),F25),0)","v":0},null,null,"Celkové zníženie OV  [ % ]",null,{"$f":"IF(OR(E33=\"\",F33=\"\"),\"\",IF(K25<30,100,IF(AND(K25>=30,K25<=40),10,IF(AND(K25>=40,K25<=50),5,IF(K25>50,0)))))","v":""}]
[]
["Kategória budovy",null,null,null,null,null,null,null,"Dátum vydania stavebného povolenia"]
["Počet opatrení na zníženie SPOTREBY energie realizovaných v predmetnej budove"]
[]
["Príloha č. 4 - Povolenie na realizáciu projektu \nPríloha č. 5 - Projektová dokumentácia - ENERGETICKÉ HODNOTENIE"]
["Podklady k stanoveniu úspory energie",null,null,null,"Stav PRED realizáciou projektu","Stav PO realizácii projektu","Energetická trieda po realizácii projektu"]
["Potreba energie na vykurovanie",null,null,"[kWh/m2.rok]",null,null,{"$f":"IF(E28=\"\",\"Vyplňte kategóriu budovy\",IF(OR(E28=\"Administratívna budova\",E28=\"Budova škôl a školských zariadení\"),IF(ROUND(F33,0)<=28,\"A\",IF(ROUND(F33,0)<=56,\"B\",IF(ROUND(F33,0)<=84,\"C\",IF(ROUND(F33,0)<=112,\"D\",IF(ROUND(F33,0)<=140,\"E\",IF(ROUND(F33,0)<=168,\"F\",\"G\")))))),\"neoprávnená kategória budovy\"))","v":"Vyplňte kategóriu budovy"},null,{"$f":"IF(OR(G33=\"C\",G33=\"D\",G33=\"E\",G33=\"F\",G33=\"G\"),Číselníky!C19,\"\")","v":""},null,null,null,null,null,{"$f":"IF(I33=Číselníky!C19,0,1)","v":1}]
["Potreba energie na prípravu teplej vody",null,null,"[kWh/m2.rok]",null,null,{"$f":"IF(E28=\"\",\"Vyplňte kategóriu budovy\",IF(E28=\"Administratívna budova\",IF(ROUND(F34,0)<=4,\"A\",IF(ROUND(F34,0)<=8,\"B\",IF(ROUND(F34,0)<=12,\"C\",IF(ROUND(F34,0)<=16,\"D\",IF(ROUND(F34,0)<=20,\"E\",IF(ROUND(F34,0)<=24,\"F\",\"G\")))))),IF(E28=\"Budova škôl a školských zariadení\",IF(ROUND(F34,0)<=6,\"A\",IF(ROUND(F34,0)<=12,\"B\",IF(ROUND(F34,0)<=18,\"C\",IF(ROUND(F34,0)<=24,\"D\",IF(ROUND(F34,0)<=30,\"E\",IF(ROUND(F34,0)<=36,\"F\",\"G\")))))),\"neoprávnená kategória budovy\")))","v":"Vyplňte kategóriu budovy"},null,{"$f":"IF(OR(G34=\"C\",G34=\"D\",G34=\"E\",G34=\"F\",G34=\"G\"),Číselníky!C19,\"\")","v":""},null,null,null,null,null,{"$f":"IF(I34=Číselníky!C19,0,1)","v":1}]
["Potreba energie na nútené vetranie/chladenie",null,null,"[kWh/m2.rok]",null,null,{"$f":"IF(E28=\"\",\"Vyplňte kategóriu budovy\",IF(E28=\"Administratívna budova\",IF(ROUND(F35,0)<=16,\"A\",IF(ROUND(F35,0)<=31,\"B\",IF(ROUND(F35,0)<=45,\"C\",IF(ROUND(F35,0)<=59,\"D\",IF(ROUND(F35,0)<=75,\"E\",IF(ROUND(F35,0)<=90,\"F\",\"G\")))))),IF(E28=\"Budova škôl a školských zariadení\",\"nehodnotí sa\",\"neoprávnená kategória budovy\")))","v":"Vyplňte kategóriu budovy"},null,{"$f":"IF(OR(G35=\"C\",G35=\"D\",G35=\"E\",G35=\"F\",G35=\"G\"),Číselníky!C19,\"\")","v":""},null,null,null,null,null,{"$f":"IF(I35=Číselníky!C19,0,1)","v":1}]
["Potreba energie na osvetlenie",null,null,"[kWh/m2.rok]",null,null,{"$f":"IF(E28=\"\",\"Vyplňte kategóriu budovy\",IF(E28=\"Administratívna budova\",IF(ROUND(F36,0)<=15,\"A\",IF(ROUND(F36,0)<=30,\"B\",IF(ROUND(F36,0)<=38,\"C\",IF(ROUND(F36,0)<=45,\"D\",IF(ROUND(F36,0)<=56,\"E\",IF(ROUND(F36,0)<=68,\"F\",\"G\")))))),IF(E28=\"Budova škôl a školských zariadení\",IF(ROUND(F36,0)<=9,\"A\",IF(ROUND(F36,0)<=18,\"B\",IF(ROUND(F36,0)<=23,\"C\",IF(ROUND(F36,0)<=27,\"D\",IF(ROUND(F36,0)<=34,\"E\",IF(ROUND(F36,0)<=41,\"F\",\"G\")))))),\"neoprávnená kategória budovy\")))","v":"Vyplňte kategóriu budovy"},null,{"$f":"IF(OR(G36=\"C\",G36=\"D\",G36=\"E\",G36=\"F\",G36=\"G\"),Číselníky!C19,\"\")","v":""},null,null,null,null,null,{"$f":"IF(I36=Číselníky!C19,0,1)","v":1}]
["Celková potreba energie",null,null,"[kWh/m2.rok]",{"$f":"SUM(E33:E36)","v":0},{"$f":"SUM(F33:F36)","v":0},{"$f":"IF(E28=\"\",\"Vyplňte kategóriu budovy\",IF(E28=\"Administratívna budova\",IF(ROUND(F37,0)<=63,\"A\",IF(ROUND(F37,0)<=125,\"B\",IF(ROUND(F37,0)<=179,\"C\",IF(ROUND(F37,0)<=232,\"D\",IF(ROUND(F37,0)<=291,\"E\",IF(ROUND(F37,0)<=350,\"F\",\"G\")))))),IF(E28=\"Budova škôl a školských zariadení\",IF(ROUND(F37,0)<=43,\"A\",IF(ROUND(F37,0)<=86,\"B\",IF(ROUND(F37,0)<=125,\"C\",IF(ROUND(F37,0)<=163,\"D\",IF(ROUND(F37,0)<=204,\"E\",IF(ROUND(F37,0)<=245,\"F\",\"G\")))))),\"neoprávnená kategória budovy\")))","v":"Vyplňte kategóriu budovy"},null,{"$f":"IF(OR(G37=\"C\",G37=\"D\",G37=\"E\",G37=\"F\",G37=\"G\"),Číselníky!C19,\"\")","v":""},null,null,null,null,null,{"$f":"IF(I37=Číselníky!C19,0,1)","v":1}]
["Globálny ukazovateľ - Primárna energia",null,null,"[kWh/m2.rok]",null,null,{"$f":"IF(OR(E28=\"\",K28=\"\"),\"Vyplňte kategóriu budovy / Dátum stav. pov\",IF(E28=\"Administratívna budova\",IF(ROUND(F38,0)<=61,\"A0\",IF(ROUND(F38,0)<=122,\"A1\",IF(ROUND(F38,0)<=255,\"B\",IF(ROUND(F38,0)<=383,\"C\",IF(ROUND(F38,0)<=511,\"D\",IF(ROUND(F38,0)<=639,\"E\",IF(ROUND(F38,0)<=766,\"F\",\"G\"))))))),IF(E28=\"Budova škôl a školských zariadení\",IF(ROUND(F38,0)<=34,\"A0\",IF(ROUND(F38,0)<=68,\"A1\",IF(ROUND(F38,0)<=136,\"B\",IF(ROUND(F38,0)<=204,\"C\",IF(ROUND(F38,0)<=272,\"D\",IF(ROUND(F38,0)<=340,\"E\",IF(ROUND(F38,0)<=408,\"F\",\"G\"))))))),\"neoprávnená kategória budovy\")))","v":"Vyplňte kategóriu budovy / Dátum stav. pov"},null,{"$f":"IF(OR(G38=\"B\",G38=\"C\",G38=\"D\",G38=\"E\",G38=\"F\",G38=\"G\"),Číselníky!C19,IF((AND(G38=\"A1\",K28>DATEVALUE(\"31.12.2018\"))),\"Projekt. dok. musí obsahovať zdôvodnenie nedosiahnutia hornej hranice energ. triedy A0\",\"\"))","v":""},null,null,null,null,null,{"$f":"IF(I38=Číselníky!C19,0,1)","v":1}]
["Celková podlahová plocha ",null,null,"[m2]"]
[]
["Energetické zariadenia",null,null,null,"Počet kusov","Plocha - Absorpčná  [m2]","Výkon \n[kW]","Výkon na m2 \n[kWh/m2]","Využitelnosť \n[h/rok]","P0080\n [MWh]","P0084 \n[MWh]","P0705 \n[MW]","P0707 \n[MW]"]
["Tepelné čerpadlo - Elektrické",null,null,null,null,null,null,null,1290,null,{"$f":"M42*I42","v":0},null,{"$f":"(E42*G42)/1000","v":0}]
["Tepelné čerpadlo - Plynové",null,null,null,null,null,null,null,1050,null,{"$f":"M43*I43","v":0},null,{"$f":"(E43*G43)/1000","v":0}]
["KVET - Elektrina",null,null,null,null,null,null,null,1290,{"$f":"L44*I44","v":0},null,{"$f":"(E44*G44)/1000","v":0}]
["KVET - Teplo",null,null,null,null,null,null,null,1290,null,{"$f":"M45*I45","v":0},null,{"$f":"(E45*G45)/1000","v":0}]
["Solárny panel Termický plochý",null,null,null,null,null,null,525,null,null,{"$f":"(E46*F46*H46)/1000","v":0},null,{"$f":"K46/1000","v":0}]
["Solárny panel Vákouový",null,null,null,null,null,null,800,null,null,{"$f":"(E47*F47*H47)/1000","v":0},null,{"$f":"K47/1000","v":0}]
["Fotovoltaický panel",null,null,null,null,1,null,null,1000,{"$f":"L48*I48","v":0},null,{"$f":"(E48*F48*G48)/1000","v":0}]
[]
["Príloha č. 8 ŽoNFP - Energetický audit"]
["Prehľad o spotrebe energie pred realizáciou projektu",null,null,null,"Rok N-2","Rok  N-1","Rok N","Priemer","Zníženie spotreby PE"]
["elektrina",null,null,"(MWh)",null,null,null,{"$f":"(E52+F52+G52)/3","v":0},{"$f":"$H$83*H52/$H$62/(0.93*0.99*0.4)","v":{"$error":"#DIV/0!"}}]
["zemný plyn",null,null,"(MWh)",null,null,null,{"$f":"(E53+F53+G53)/3","v":0},{"$f":"$H$83*H53/$H$62/(0.99*0.985)","v":{"$error":"#DIV/0!"}}]
["biomasa, uhlie",null,null,"(MWh)",null,null,null,{"$f":"(E54+F54+G54)/3","v":0},{"$f":"$H$83*H54/$H$62","v":{"$error":"#DIV/0!"}}]
["CZT",null,null,"(MWh)",null,null,null,{"$f":"(E55+F55+G55)/3","v":0},{"$f":"IF(OR(E56=\"\",E57=\"\",E58=\"\",E59=\"\",E60=\"\",E61=\"\"),\"Vyplňte bunky E56 - 61\",$H$83*H55/$H$62/(O56*O57*O58*O59*O60*O61))","v":"Vyplňte bunky E56 - 61"}]
[null,"Účinnosť sekundárneho rozvodu - teplá voda",null,null,null,null,null,null,null,null,null,null,null,null,{"$f":"IF(E56=\"áno\",0.94,1)","v":1}]
[null,"Účinnosť OST ",null,null,null,null,null,null,null,null,null,null,null,null,{"$f":"IF(E57=\"áno\",0.985,1)","v":1}]
[null,"Účinnosť účinnosť primárneho rozvodu - teplá voda",null,null,null,null,null,null,null,null,null,null,null,null,{"$f":"IF(E58=\"áno\",0.925,1)","v":1}]
[null,"Účinnosť OST - horúca - teplá voda",null,null,null,null,null,null,null,null,null,null,null,null,{"$f":"IF(E59=\"áno\",0.985,1)","v":1}]
[null,"Účinnosť primárneho rozvodu - horúca voda",null,null,null,null,null,null,null,null,null,null,null,null,{"$f":"IF(E60=\"áno\",0.9,1)","v":1}]
[null,"Účinnosť premeny energie",null,null,null,null,null,null,null,null,null,null,null,null,{"$f":"IF(E61=\"áno\",0.88,1)","v":1}]
["Spotreba energie SPOLU",null,null,"(MWh)",{"$f":"SUM(E52:E55)","v":0},{"$f":"SUM(F52:F55)","v":0},{"$f":"SUM(G52:G55)","v":0},{"$f":"SUM(H52:H55)","v":0},{"$f":"SUM(I52:I55)","v":{"$error":"#DIV/0!"}}]
[]
["Celková potreba energie pred realizáciou projektu vypočítaná projektovým energetickým hodnotením",null,null,null,null,"MWh/rok"]
[]
["Environmentálne hodnotenie",null,null,null,"Stav PRED realizáciou projektu","Stav PO realizácii projektu"]
["CO2",null,null,"ton"]
["NOx",null,null,"kg"]
["TZL/PM10",null,null,"kg"]
["SO2",null,null,"kg"]
[]
[]
["Merateľné ukazovatele  Budova č. 7",null,null,{"$f":"IF('Rozpočet B7'!G12=\"\",\"\",\" -  súpis. č. \"&'Rozpočet B7'!G12)","v":""}]
["Názov MU","Názov Merateľného ukazovatela",null,null,null,"Príznak rizika","Merná jednotka","Výsledná hodnota"]
["P0080","Množstvo elektrickej energie vyrobenej v zariadení OZE",null,null,null,"S príznakom","MWh/rok",{"$f":"J44+J48","v":0}]
["P0084","Množstvo tepelnej energie vyrobenej v zariadení OZE",null,null,null,"S príznakom","MWh/rok",{"$f":"K42+K43+K45+K46+K47","v":0}]
["P0103","Odhadované ročné zníženie emisií skleníkových plynov",null,null,null,"S príznakom"," t ekviv. CO2/rok",{"$f":"E67-F67","v":0}]
["P0250","Počet opatrení na zníženie spotreby energie realizovaných vo verejnej budove",null,null,null,"Bez príznaku","počet",{"$f":"E29","v":0}]
["P0470","Počet verej. budov na úrovni nízkoenerg. / ultranízkoenerg. alebo s takmer nul. potrebou energie",null,null,null,"Bez príznaku","počet",1]
["P0612","Podlahová plocha budov obnovených nad rámec minimálnych požiadaviek",null,null,null,"Bez príznaku","m2",{"$f":"F39","v":0}]
["P0627","Spotreba energie v budove po realizácii opatrení energetickej efektívnosti",null,null,null,"S príznakom","MWh/rok",{"$f":"H82*(F38*F39)/(E38*E39)","v":{"$error":"#DIV/0!"}}]
["P0628","Spotreba energie v budove pred realizáciou opatrení energetickej efektívnosti",null,null,null,"S príznakom","MWh/rok",{"$f":"H62","v":0}]
["P0687","Zníženie konečnej spotreby energie vo verejných budovách",null,null,null,"S príznakom","kWh/rok",{"$f":"(H82-H81)*1000","v":{"$error":"#DIV/0!"}}]
["P0689","Zníženie potreby energie vo verejných budovách",null,null,null,"S príznakom","kWh/rok",{"$f":"(E38*E39)-(F38*F39)","v":0}]
["P0691","Zníženie produkcie emisií NOx",null,null,null,"S príznakom","kg/rok",{"$f":"E68-F68","v":0}]
["P0692","Zníženie produkcie emisií PM10",null,null,null,"S príznakom","kg/rok",{"$f":"E69-F69","v":0}]
["P0694","Zníženie produkcie emisií SO2",null,null,null,"S príznakom","kg/rok",{"$f":"E70-F70","v":0}]
["P0701","Zníženie ročnej spotreby primárnej energie vo verejných budovách",null,null,null,"S príznakom","kWh/rok",{"$f":"I62","v":{"$error":"#DIV/0!"}}]
["P0705","Zvýšená kapacita výroby elektriny z obnoviteľných zdrojov",null,null,null,"Bez príznaku","MWe",{"$f":"L44+L48","v":0}]
["P0706","Zvýšená kapacita výroby energie z obnoviteľných zdrojov",null,null,null,"Bez príznaku","MW",{"$f":"H89+H91","v":0}]
["P0707","Zvýšená kapacita výroby tepla z obnoviteľných zdrojov",null,null,null,"Bez príznaku","MWt",{"$f":"M42+M43+M45+M46+M47","v":0}]

{"sheet":"Inštrukcia prepočtu PM10","index":17,"n_rows":0,"n_cols":0,"rows_kept":0,"cut":false,"hidden":true,"merged":[]}

{"sheet":"Číselníky (2)","index":18,"n_rows":35,"n_cols":7,"rows_kept":35,"cut":false,"hidden":true,"merged":[[1,2,1,3],[6,2,6,3],[10,2,10,3]]}
[]
["áno",null,"Elektrina - Faktory",null,null,null,"Kategória budovy"]
["nie",null,"Účinnosť distribúcie ",0.93,null,null,"administratívna budova"]
["irelevantné",null,"Účinnosti prenosu",0.99,null,null,"budova škôl a školských zariadení"]
[null,null,"Účinnosť premeny (transformácie)",0.4,null,null,"budova nemocníc"]
[null,null,null,null,null,null,"budova hotelov a reštaurácií"]
["1. organizácia štátnej správy",null,"Zemný plyn - Faktory",null,null,null,"športové haly a iné budovy určené na šport"]
["2. subjekt územnej samosprávy",null,"Účinnosť distribúcie",0.99,null,null,"budova pre veľkoobchodné a maloobchodné služby"]
["3. subjekt verejnej správy",null,"Účinnosť prepravy plynu",0.98499999999999999,null,null,"budova so zmiešaným účelom využitia"]
[]
[null,null,"CZT - Faktory"]
[0,null,"Účinnosť distribúcie sekundárnych rozvodov tepla ",0.94]
[2,null,"Účinnosť distribúcie prim. rozvodov tepla s teplonosným médiom teplá voda ",0.92500000000000004]
[3,null,"Účinnosť distribúcie prim. rozvodov tepla s teplonosným médiom horúca voda",0.9]
[null,null,"Účiinosť odovzdávacích staníc tepla",0.98499999999999999]
[null,null,"Účinnosť premeny energie",0.88]
[0]
[1]
[3]
[]
[]
[0]
[4]
[]
[]
[0]
[3]
[]
[]
["kritériá odborného hodnotenia splnené"]
["kritériá odborného hodnotenia nesplnené"]
[]
["vo finančnej operácií je možné pokračovať."]
["vo finančnej operácií nie je možné pokračovať."]
["finančnú operáciu je potrebné zastaviť."]

{"sheet":"Číselníky","index":19,"n_rows":20,"n_cols":7,"rows_kept":20,"cut":false,"hidden":true,"merged":[[1,2,1,3],[6,2,6,3],[10,2,10,3]]}
[]
["áno",null,"Elektrina - Faktory",null,null,null,"Kategória budovy"]
["nie",null,"Účinnosť distribúcie ",0.93,null,null,"administratívna budova"]
["irelevantné",null,"Účinnosti prenosu",0.99,null,null,"budova škôl a školských zariadení"]
[null,null,"Účinnosť premeny (transformácie)",0.4,null,null,"budova nemocníc"]
[null,null,null,null,null,null,"budova hotelov a reštaurácií"]
["áno",null,"Zemný plyn - Faktory",null,null,null,"športové haly a iné budovy určené na šport"]
["nie",null,"Účinnosť distribúcie",0.99,null,null,"budova pre veľkoobchodné a maloobchodné služby"]
["RH neprekročená",null,"Účinnosť prepravy plynu",0.98499999999999999,null,null,"budova so zmiešaným účelom využitia"]
[]
[null,null,"CZT - Faktory",null,null,null,"Majetkovo-právny vzťah"]
[null,null,"Účinnosť distribúcie sekundárnych rozvodov tepla ",0.94,1,null,"výlučné vlastníctvo budovy žiadateľom"]
[null,null,"Účinnosť distribúcie prim. rozvodov tepla s teplonosným médiom teplá voda ",0.92500000000000004,1,null,"podielové spoluvlastníctvo budovy"]
[null,null,"Účinnosť distribúcie prim. rozvodov tepla s teplonosným médiom horúca voda",0.9,1,null,"správa budovy žiadateľom"]
[null,null,"Účiinosť odovzdávacích staníc tepla",0.98499999999999999,1]
[null,null,"Účinnosť premeny energie",0.88,1]
[]
[null,null,"Využitie budovy"]
[null,null,"Budova nespĺňa podmienku oprávnenosti aktivít"]
[null,null,"Podmienka je splnená"]